Workbook

Sheet NavigationPane
C2: Scenic Rim Regional Council
C3: Refer to the accompanying User Manual for detailed instructions on how to use the Spreadsheet
B6: Version No | D6: 3 | F6: Date | G6: 20.06.18 | J6: Author | K6: Kanan Saraiya
B8: Comments | D8: Version endorsed for adoption
D10: Inputs | H10: Calculation | N10: Outputs
C12: General Input Sheet | H12: Calculation Function | M12: Summary Cost Schedule
C13: l Financial Inputs l Other "generic" inputs | H13: l Catchment based summary of demand, infrastructure (existing and new) and cost allocation l Infrastructure Cost calculation for each catchment ("Average Cost" approach) l Optional Discounted Cashflow | M13: l Summary of demand and cost allocation by catchment l Final costs by catchment
C15: Unit Rates | M15: Summary Cash flow Projections
C16: l Unit Cost of Passive Assets l Unit Cost of Land | M16: l Summary of forecast Cap X and anticipated IC revenues
C18: Demand Forecast
C19: l Estimates of current and future demand (per cost catchment)
C21: Asset Inputs
C22: Current Infrastructure (& Catchments Served)
C23: Proposed Infrastructure (& Catchments Served)
C29: Appendix C - Schedule of works model V11Feb2016

Sheet GeneralInput
A2: =NavigationPane!C2 -> Scenic Rim Regional Council
A3: Return to Navigation Pane
A4: General Input Sheet
B6: General Inputs | E6: Reference | G6: Value | I6: Comments
C8: Base Year | E8: YEAR | G8: 2014 | I8: population projections were undertaken in Dec 2014 & financial asset register for 30 June 2014
G9: =YEAR -> 2014
C10: Term (between 15 and 30 years) | E10: TERM | G10: 17
B12: Application of Discounted Cash flow
C14: Calculate charges using Discounted Cash flow? (Y/N) | E14: DCFTRIGGER | G14: Yes
B16: General Financial Inputs
B18: Discount Rate (WACC):
C19: Average 10 Year Bond Rate | E19: TenYr | G19: 0.0337 | I19: recommended by QTC1, sum of (2.3823% + 0.99%) as at 23 May 2016
B21: Option 1 | C21: Basic Margin on 10 Yr. Bond Rate | E21: Margin | G21: 0.035 | I21: 3.5% is the baseline figure quoted in LG Bulletin 06/01
C23: WACC: | E23: WACC1 | G23: =G19+G21 -> 0.0687
B25: Option 2 | C25: Capital Structure (% Debt) | E25: Capstr
C26: Market Risk Premium | E26: Risk | G26: 0.06
C27: Asset Beta | E27: AssetBeta
C28: Cost of Debt | E28: Debt
C30: WACC: | E30: WACC2 | G30: =(G25*G28)+(G19+(G27*G26)*(1-G25)) -> 0.0337
C32: WACC Option to be applied in the calculation? | E32: WACC1 | G32: =IF(G14="No",0,IF(E32="WACC1",WACC1,IF(E32="WACC2",WACC2,"Error"))) -> 0.0687
C34: Charge Factor | E34: ChargeFactor | G34: 50%, 60% & 65% | I34: 50% (2018-2021), 60% (2022 - 2026) & 65% (2027 - 2031) collection
B35: Escalation Rates
C36: Capital Escalation - Future Cap X | E36: PPI | G36: 0.0387 | I36: ten (10) yr. average Roads and Bridges Index (ABS 6427, Table 17, Index 3101)
C38: Capital Indexation Rates - Historical (June Qtr.)
E39: =YEAR -> 2014 | G39: 107 | I39: Roads and Bridges Index (ABS 6427, Table 17, Index 3101)
E40: =E39-1 -> 2013 | G40: 104.5
E41: =E40-1 -> 2012 | G41: 102.5
E42: 2011 | G42: 100.3
E43: 2010 | G43: 96.6
E44: 2009 | G44: 95.2
E45: 2008 | G45: 91.8
C47: Land Escalation | E47: LandInd | G47: 0.027 | I47: 10 year average escalation of unimproved capital value for land OR 10 year average of the CPI
C49: Charges Escalation Rate | E49: Chargeind | G49: 0.01027 | I49: escalation rate of infrastructure charges as at 30/06/2014
G50: =Chargeind -> 0.01027

Sheet UnitRates (hidden)
B2: =NavigationPane!C2 -> Scenic Rim Regional Council
B4: Unit Rates
B6: Land Cost | D6: Transportation
B9: Stormwater | D9: Parks & Community Facilities

Sheet Unit Rates
B2: Insert Organisations Name Here
A3: Return to Navigation Pane
B4: Unit Rates
B6: Land Cost | D6: Transportation
B10: Stormwater | D10: Parks & Community Facilities

Sheet CatchmentDemand
B2: =NavigationPane!C2 -> Scenic Rim Regional Council
B4: Demand Forecast
B6: Anticpated Growth Residential | D6: Anticpated Growth - NON Residential
D8: Transportation
B9: Stormwater
D10: Parks & Community Facilities

Sheet ExistTrunkAsset
B2: =NavigationPane!C2 -> Scenic Rim Regional Council
B4: Existing Trunk Assets
D6: Transportation
B7: Stormwater
D8: Parks & Community Facilities

Sheet ExistTrunkAsset- Trans
B2: =NavigationPane!C2 -> Scenic Rim Regional Council
B3: Transport
A4: Return to "Existing Trunk Assets"
B5: EXISTING TRUNK ASSETS
B8: Land Valuation Type | D8: Location
K10: Asset Data | Y10: Catchment Asset Allocation | AF10: Asset Usage | AN10: Cost Allocation
B11: Basic Asset Data | J11: Asset Attributes | M11: Basic Asset Valuation | R11: Land Attributes | V11: Refined Asset Value | Y11: ='CatchmentDemand RoadTransport'!$C8 -> Beaudesert PIA | Z11: ='CatchmentDemand RoadTransport'!$C9 -> Kooralbyn PIA | AA11: ='CatchmentDemand RoadTransport'!$C10 -> Canungra PIA | AB11: ='CatchmentDemand RoadTransport'!$C11 -> Kalbar PIA | AC11: ='CatchmentDemand RoadTransport'!$C12 -> Boonah PIA | AD11: ='CatchmentDemand RoadTransport'!$C13 -> Outside priority infrastructure area (total) | AF11: =Y11 -> Beaudesert PIA | AG11: Kooralbyn PIA | AH11: Canungra PIA | AI11: Kalbar PIA | AJ11: Boonah PIA | AK11: Outside priority infrastructure area (total) | AL11: TOTALS | AN11: =Y11 -> Beaudesert PIA | AO11: Kooralbyn PIA | AP11: Canungra PIA | AQ11: Kalbar PIA | AR11: Boonah PIA | AS11: Outside priority infrastructure area (total) | AT11: Checksum 2
B12: Asset ID | C12: LGIP ID | D12: Asset Class | E12: Asset Name | F12: Description | J12: Unit Rate Type (*) | K12: Length/unit (*) | L12: Hiercahy/name | M12: Unit Rate | N12: Baseline Valuation | O12: Site/Condition | P12: Multiplier | Q12: Gross Value | R12: Land Location/Type | S12: Size of land (mt) (*) | T12: Unit Cost | U12: Land Value | V12: Valuation Year | W12: Escalation | X12: Current Replacement Cost
Y13: 1 | Z13: =Y13+1 -> 2 | AA13: =Z13+1 -> 3 | AB13: 4 | AC13: 5 | AD13: 6
B14: Councils ID (from GIS, FAR, AMA etc.) | C14: ID from the LGIP drawings | D14: Arterial, Subarterial, Collector | F14: Street Address | G14: Location | H14: From Node | I14: To Node | N14: May be calculated from unit rates OR unique values can be direct entered | X14: CRC | Y14: =IFERROR(VLOOKUP(Y11,Roadcatch,6,FALSE),"") -> 47790 | Z14: 3552 | AA14: 5592 | AB14: 2670 | AC14: 9366 | AD14: 101368 | AF14: =Y14 -> 47790 | AG14: 3552 | AH14: 5592 | AI14: 2670 | AJ14: 9366 | AK14: 101368 | AN14: =SUM(AN15:AN2655) -> 23048881.97 | AO14: =SUM(AO15:AO2655) -> 4833194 | AP14: =SUM(AP15:AP2655) -> 1166120.48 | AQ14: =SUM(AQ15:AQ2655) -> 1285627 | AR14: =SUM(AR15:AR2655) -> 6898685 | AS14: 105778860 | AT14: =SUM(AT15:AT2448) -> 0
B15: RU-001180 | C15: 2874 | D15: Formation Financial | E15: Brookland Rd - Formation | F15: Brookland Rd | G15: Allenview | H15: Change | I15: Barnes Rd | L15: 4B | M15: =IF(J15=RoadTYPE1,VLOOKUP(L15,Roadunitrates1,2,FALSE),IF(J15=ROADTYPE2,VLOOKUP(L15,Roadunitrates2,2,FALSE),0)) -> 0 | N15: 12785 | P15: =IF(O15="",1,VLOOKUP(O15,Roadsitecond,2,FALSE)) -> 1 | Q15: =IF(N15="","",N15*P15) -> 12785 | S15: 1530 | T15: =IF(R15="",'Unit Rates-Land'!landcst,IF($D$8="Landuse",VLOOKUP(R15,LAndcost3,2,FALSE),IF($D$8="Location",VLOOKUP(R15,Landcost2,2,FALSE),"Error"))) -> 0 | U15: =IF(T15="",0,T15*10000*S15) -> 0 | V15: 2014 | W15: =IFERROR((GeneralInput!$G$39/(VLOOKUP(V15,GeneralInput!$E$39:$G$45,3,FALSE))),1) -> 1 | X15: =IFERROR((Q15+U15)*W15,0) -> 12785 | AD15: y | AF15: =IF(Y15="y",AF$14,IF(AND(Y15>0,Y15<=1),Y15*AF$14,"")) ->  | AG15: =IF(Z15="y",AG$14,IF(AND(Z15>0,Z15<=1),Z15*AG$14,"")) ->  | AH15: =IF(AA15="y",AH$14,IF(AND(AA15>0,AA15<=1),AA15*AH$14,"")) ->  | AI15: =IF(AB15="y",AI$14,IF(AND(AB15>0,AB15<=1),AB15*AI$14,"")) ->  | AJ15: =IF(AC15="y",AJ$14,IF(AND(AC15>0,AC15<=1),AC15*AJ$14,"")) ->  | AK15: =IF(AD15="y",AK$14,IF(AND(AD15>0,AD15<=1),AD15*AK$14,"")) -> 101368 | AL15: =SUM(AF15:AK15) -> 101368 | AN15: =IF(AF15="","",(AF15/$AL15)*$X15) ->  | AO15: =IF(AG15="","",(AG15/$AL15)*$X15) ->  | AP15: =IF(AH15="","",(AH15/$AL15)*$X15) ->  | AQ15: =IF(AI15="","",(AI15/$AL15)*$X15) ->  | AR15: =IF(AJ15="","",(AJ15/$AL15)*$X15) ->  | AS15: =IF(AK15="","",(AK15/$AL15)*$X15) -> 12785 | AT15: =IF(SUM(AN15:AS15)=X15,"","ERROR") -> 
B16: RS-000391 | C16: 2874 | D16: Seal Financial Asset | E16: Brookland Rd - Seal | F16: Brookland Rd | G16: Allenview | H16: Change | I16: Barnes Rd | L16: 4B | M16: 0 | N16: 79311 | P16: 1 | Q16: =IF(N16="","",N16*P16) -> 79311 | S16: 1530 | T16: =IF(R16="",'Unit Rates-Land'!landcst,IF($D$8="Landuse",VLOOKUP(R16,LAndcost3,2,FALSE),IF($D$8="Location",VLOOKUP(R16,Landcost2,2,FALSE),"Error"))) -> 0 | U16: =IF(T16="",0,T16*10000*S16) -> 0 | V16: 2014 | W16: =IFERROR((GeneralInput!$G$39/(VLOOKUP(V16,GeneralInput!$E$39:$G$45,3,FALSE))),1) -> 1 | X16: =IFERROR((Q16+U16)*W16,0) -> 79311 | AD16: y | AK16: 101368 | AL16: 101368 | AS16: 79311
B17: RP-000415 | C17: 2874 | D17: Sealed Road Financia | E17: Brookland Rd | F17: Brookland Rd | G17: Allenview | H17: Change | I17: Barnes Rd | L17: 4B | M17: 0 | N17: 244920 | P17: 1 | Q17: 244920 | S17: 1530 | T17: =IF(R17="",'Unit Rates-Land'!landcst,IF($D$8="Landuse",VLOOKUP(R17,LAndcost3,2,FALSE),IF($D$8="Location",VLOOKUP(R17,Landcost2,2,FALSE),"Error"))) -> 0 | U17: 0 | V17: 2014 | W17: =IFERROR((GeneralInput!$G$39/(VLOOKUP(V17,GeneralInput!$E$39:$G$45,3,FALSE))),1) -> 1 | X17: 244920 | AD17: y | AK17: 101368 | AL17: 101368 | AS17: 244920
B18: RC-000137 | C18: 136 | D18: Culvert Financial | E18: Brookland Rd | F18: Brookland Rd | G18: Allenview | H18: Allan Ck Rd | L18: 4B | M18: =IF(J18=RoadTYPE1,VLOOKUP(L18,Roadunitrates1,2,FALSE),IF(J18=ROADTYPE2,VLOOKUP(L18,Roadunitrates2,2,FALSE),0)) -> 0 | N18: 23675 | P18: =IF(O18="",1,VLOOKUP(O18,Roadsitecond,2,FALSE)) -> 1 | Q18: =IF(N18="","",N18*P18) -> 23675 | S18: 2 | T18: =IF(R18="",'Unit Rates-Land'!landcst,IF($D$8="Landuse",VLOOKUP(R18,LAndcost3,2,FALSE),IF($D$8="Location",VLOOKUP(R18,Landcost2,2,FALSE),"Error"))) -> 0 | U18: =IF(T18="",0,T18*10000*S18) -> 0 | V18: 2014 | W18: =IFERROR((GeneralInput!$G$39/(VLOOKUP(V18,GeneralInput!$E$39:$G$45,3,FALSE))),1) -> 1 | X18: =IFERROR((Q18+U18)*W18,0) -> 23675 | AD18: y | AK18: 101368 | AL18: 101368 | AS18: 23675
B19: RC-000138 | C19: 137 | D19: Culvert Financial | E19: Brookland Rd | F19: Brookland Rd | G19: Allenview | H19: Allan Ck Rd | L19: 4B | M19: 0 | N19: 25995 | P19: 1 | Q19: 25995 | S19: 2 | T19: =IF(R19="",'Unit Rates-Land'!landcst,IF($D$8="Landuse",VLOOKUP(R19,LAndcost3,2,FALSE),IF($D$8="Location",VLOOKUP(R19,Landcost2,2,FALSE),"Error"))) -> 0 | U19: 0 | V19: 2014 | W19: =IFERROR((GeneralInput!$G$39/(VLOOKUP(V19,GeneralInput!$E$39:$G$45,3,FALSE))),1) -> 1 | X19: 25995 | AD19: y | AK19: 101368 | AL19: 101368 | AS19: 25995
B20: RU-001181 | C20: 2873 | D20: Formation Financial | E20: Brookland Rd - Formation | F20: Brookland Rd | G20: Allenview | H20: Barnes Rd | I20: Change | L20: 4B | M20: 0 | N20: 13423 | P20: 1 | Q20: 13423 | S20: 1600 | T20: =IF(R20="",'Unit Rates-Land'!landcst,IF($D$8="Landuse",VLOOKUP(R20,LAndcost3,2,FALSE),IF($D$8="Location",VLOOKUP(R20,Landcost2,2,FALSE),"Error"))) -> 0 | U20: 0 | V20: 2014 | W20: =IFERROR((GeneralInput!$G$39/(VLOOKUP(V20,GeneralInput!$E$39:$G$45,3,FALSE))),1) -> 1 | X20: 13423 | AD20: y | AK20: 101368 | AL20: 101368 | AS20: 13423
B21: RS-000392 | C21: 2873 | D21: Seal Financial Asset | E21: Brookland Rd - Seal | F21: Brookland Rd | G21: Allenview | H21: Barnes Rd | I21: Change | L21: 4B | M21: 0 | N21: 70312 | P21: 1 | Q21: 70312 | S21: 1600 | T21: =IF(R21="",'Unit Rates-Land'!landcst,IF($D$8="Landuse",VLOOKUP(R21,LAndcost3,2,FALSE),IF($D$8="Location",VLOOKUP(R21,Landcost2,2,FALSE),"Error"))) -> 0 | U21: 0 | V21: 2014 | W21: =IFERROR((GeneralInput!$G$39/(VLOOKUP(V21,GeneralInput!$E$39:$G$45,3,FALSE))),1) -> 1 | X21: 70312 | AD21: y | AK21: 101368 | AL21: 101368 | AS21: 70312
B22: RP-000416 | C22: 2873 | D22: Sealed Road Financia | E22: Brookland Rd | F22: Brookland Rd | G22: Allenview | H22: Barnes Rd | I22: Change | L22: 4B | M22: 0 | N22: 314295 | P22: 1 | Q22: 314295 | S22: 1600 | T22: =IF(R22="",'Unit Rates-Land'!landcst,IF($D$8="Landuse",VLOOKUP(R22,LAndcost3,2,FALSE),IF($D$8="Location",VLOOKUP(R22,Landcost2,2,FALSE),"Error"))) -> 0 | U22: 0 | V22: 2014 | W22: =IFERROR((GeneralInput!$G$39/(VLOOKUP(V22,GeneralInput!$E$39:$G$45,3,FALSE))),1) -> 1 | X22: 314295 | AD22: y | AK22: 101368 | AL22: 101368 | AS22: 314295
B23: RS-000393 | C23: 2872 | D23: Seal Financial Asset | E23: Brookland Rd - Seal | F23: Brookland Rd | G23: Allenview | H23: Change | I23: 3.92 Saville Rd | L23: 4B | M23: 0 | N23: 20149 | P23: 1 | Q23: 20149 | S23: 180 | T23: =IF(R23="",'Unit Rates-Land'!landcst,IF($D$8="Landuse",VLOOKUP(R23,LAndcost3,2,FALSE),IF($D$8="Location",VLOOKUP(R23,Landcost2,2,FALSE),"Error"))) -> 0 | U23: 0 | V23: 2014 | W23: =IFERROR((GeneralInput!$G$39/(VLOOKUP(V23,GeneralInput!$E$39:$G$45,3,FALSE))),1) -> 1 | X23: 20149 | AD23: y | AK23: 101368 | AL23: 101368 | AS23: 20149
B24: RP-000417 | C24: 2872 | D24: Sealed Road Financia | E24: Brookland Rd | F24: Brookland Rd | G24: Allenview | H24: Change | I24: 3.92 Saville Rd | L24: 4B | M24: 0 | N24: 62222 | P24: 1 | Q24: 62222 | S24: 180 | T24: =IF(R24="",'Unit Rates-Land'!landcst,IF($D$8="Landuse",VLOOKUP(R24,LAndcost3,2,FALSE),IF($D$8="Location",VLOOKUP(R24,Landcost2,2,FALSE),"Error"))) -> 0 | U24: 0 | V24: 2014 | W24: =IFERROR((GeneralInput!$G$39/(VLOOKUP(V24,GeneralInput!$E$39:$G$45,3,FALSE))),1) -> 1 | X24: 62222 | AD24: y | AK24: 101368 | AL24: 101368 | AS24: 62222
B25: RU-001182 | C25: 2872 | D25: Formation Financial | E25: Brookland Rd - Formation | F25: Brookland Rd | G25: Allenview | H25: Change | I25: Seal Change | L25: 4B | M25: 0 | N25: 13363 | P25: 1 | Q25: 13363 | S25: 180 | T25: =IF(R25="",'Unit Rates-Land'!landcst,IF($D$8="Landuse",VLOOKUP(R25,LAndcost3,2,FALSE),IF($D$8="Location",VLOOKUP(R25,Landcost2,2,FALSE),"Error"))) -> 0 | U25: 0 | V25: 2014 | W25: =IFERROR((GeneralInput!$G$39/(VLOOKUP(V25,GeneralInput!$E$39:$G$45,3,FALSE))),1) -> 1 | X25: 13363 | AD25: y | AK25: 101368 | AL25: 101368 | AS25: 13363
B26: RS-003885 | C26: 20130 | D26: Seal Financial Asset | E26: Brookland Rd - Seal | F26: Brookland Rd | G26: Allenview | H26: Seal Change | I26: 3.92 Saville Rd | L26: 4B | M26: 0 | N26: 2223 | P26: 1 | Q26: 2223 | S26: 135 | T26: =IF(R26="",'Unit Rates-Land'!landcst,IF($D$8="Landuse",VLOOKUP(R26,LAndcost3,2,FALSE),IF($D$8="Location",VLOOKUP(R26,Landcost2,2,FALSE),"Error"))) -> 0 | U26: 0 | V26: 2014 | W26: =IFERROR((GeneralInput!$G$39/(VLOOKUP(V26,GeneralInput!$E$39:$G$45,3,FALSE))),1) -> 1 | X26: 2223 | AD26: y | AK26: 101368 | AL26: 101368 | AS26: 2223
B27: RP-004581 | C27: 20130 | D27: Sealed Road Financia | E27: Brookland Rd | F27: Brookland Rd | G27: Allenview | H27: Seal Change | I27: 3.92 Saville Rd | L27: 4B | M27: 0 | N27: 9119 | P27: 1 | Q27: 9119 | S27: 135 | T27: =IF(R27="",'Unit Rates-Land'!landcst,IF($D$8="Landuse",VLOOKUP(R27,LAndcost3,2,FALSE),IF($D$8="Location",VLOOKUP(R27,Landcost2,2,FALSE),"Error"))) -> 0 | U27: 0 | V27: 2014 | W27: =IFERROR((GeneralInput!$G$39/(VLOOKUP(V27,GeneralInput!$E$39:$G$45,3,FALSE))),1) -> 1 | X27: 9119 | AD27: y | AK27: 101368 | AL27: 101368 | AS27: 9119
B28: RU-001183 | C28: 2871 | D28: Formation Financial | E28: Brookland Rd - Formation | F28: Brookland Rd | G28: Allenview | H28: Saville Rd | I28: Change | L28: 4B | M28: 0 | N28: 41126 | P28: 1 | Q28: 41126 | S28: 900 | T28: =IF(R28="",'Unit Rates-Land'!landcst,IF($D$8="Landuse",VLOOKUP(R28,LAndcost3,2,FALSE),IF($D$8="Location",VLOOKUP(R28,Landcost2,2,FALSE),"Error"))) -> 0 | U28: 0 | V28: 2014 | W28: =IFERROR((GeneralInput!$G$39/(VLOOKUP(V28,GeneralInput!$E$39:$G$45,3,FALSE))),1) -> 1 | X28: 41126 | AD28: y | AK28: 101368 | AL28: 101368 | AS28: 41126
B29: RS-000394 | C29: 2871 | D29: Seal Financial Asset | E29: Brookland Rd - Seal | F29: Brookland Rd | G29: Allenview | H29: 3.92 Saville Rd | I29: Change | L29: 4B | M29: 0 | N29: 44294 | P29: 1 | Q29: 44294 | S29: 865 | T29: =IF(R29="",'Unit Rates-Land'!landcst,IF($D$8="Landuse",VLOOKUP(R29,LAndcost3,2,FALSE),IF($D$8="Location",VLOOKUP(R29,Landcost2,2,FALSE),"Error"))) -> 0 | U29: 0 | V29: 2014 | W29: =IFERROR((GeneralInput!$G$39/(VLOOKUP(V29,GeneralInput!$E$39:$G$45,3,FALSE))),1) -> 1 | X29: 44294 | AD29: y | AK29: 101368 | AL29: 101368 | AS29: 44294
B30: RP-000418 | C30: 2871 | D30: Sealed Road Financia | E30: Brookland Rd | F30: Brookland Rd | G30: Allenview | H30: 3.92 Saville Rd | I30: Change | L30: 4B | M30: 0 | N30: 150460 | P30: 1 | Q30: 150460 | S30: 865 | T30: =IF(R30="",'Unit Rates-Land'!landcst,IF($D$8="Landuse",VLOOKUP(R30,LAndcost3,2,FALSE),IF($D$8="Location",VLOOKUP(R30,Landcost2,2,FALSE),"Error"))) -> 0 | U30: 0 | V30: 2014 | W30: =IFERROR((GeneralInput!$G$39/(VLOOKUP(V30,GeneralInput!$E$39:$G$45,3,FALSE))),1) -> 1 | X30: 150460 | AD30: y | AK30: 101368 | AL30: 101368 | AS30: 150460
B31: BF-074923 | C31: 2871 | D31: Bridge Timber Fin | E31: Ferguson Reserve Bridge | F31: Brookland Rd | G31: Allenview | L31: 4B | M31: 0 | N31: 193458 | P31: 1 | Q31: 193458 | S31: 16 | T31: =IF(R31="",'Unit Rates-Land'!landcst,IF($D$8="Landuse",VLOOKUP(R31,LAndcost3,2,FALSE),IF($D$8="Location",VLOOKUP(R31,Landcost2,2,FALSE),"Error"))) -> 0 | U31: 0 | V31: 2014 | W31: =IFERROR((GeneralInput!$G$39/(VLOOKUP(V31,GeneralInput!$E$39:$G$45,3,FALSE))),1) -> 1 | X31: 193458 | AD31: y | AK31: 101368 | AL31: 101368 | AS31: 193458
B32: RC-000139 | C32: 138 | D32: Culvert Financial | E32: Brookland Rd | F32: Brookland Rd | G32: Allenview | H32: Allan Ck Rd | L32: 4B | M32: 0 | N32: 11482 | P32: 1 | Q32: 11482 | S32: 1 | T32: =IF(R32="",'Unit Rates-Land'!landcst,IF($D$8="Landuse",VLOOKUP(R32,LAndcost3,2,FALSE),IF($D$8="Location",VLOOKUP(R32,Landcost2,2,FALSE),"Error"))) -> 0 | U32: 0 | V32: 2014 | W32: =IFERROR((GeneralInput!$G$39/(VLOOKUP(V32,GeneralInput!$E$39:$G$45,3,FALSE))),1) -> 1 | X32: 11482 | AD32: y | AK32: 101368 | AL32: 101368 | AS32: 11482
B33: RU-001184 | C33: 2870 | D33: Formation Financial | E33: Brookland Rd - Formation | F33: Brookland Rd | G33: Allenview | H33: Change | I33: Change | L33: 4B | M33: 0 | N33: 29792 | P33: 1 | Q33: 29792 | S33: 745 | T33: =IF(R33="",'Unit Rates-Land'!landcst,IF($D$8="Landuse",VLOOKUP(R33,LAndcost3,2,FALSE),IF($D$8="Location",VLOOKUP(R33,Landcost2,2,FALSE),"Error"))) -> 0 | U33: 0 | V33: 2014 | W33: =IFERROR((GeneralInput!$G$39/(VLOOKUP(V33,GeneralInput!$E$39:$G$45,3,FALSE))),1) -> 1 | X33: 29792 | AD33: y | AK33: 101368 | AL33: 101368 | AS33: 29792
B34: RS-000395 | C34: 2870 | D34: Seal Financial Asset | E34: Brookland Rd - Seal | F34: Brookland Rd | G34: Allenview | H34: Change | I34: Change | L34: 4B | M34: 0 | N34: 25669 | P34: 1 | Q34: 25669 | S34: 745 | T34: =IF(R34="",'Unit Rates-Land'!landcst,IF($D$8="Landuse",VLOOKUP(R34,LAndcost3,2,FALSE),IF($D$8="Location",VLOOKUP(R34,Landcost2,2,FALSE),"Error"))) -> 0 | U34: 0 | V34: 2014 | W34: =IFERROR((GeneralInput!$G$39/(VLOOKUP(V34,GeneralInput!$E$39:$G$45,3,FALSE))),1) -> 1 | X34: 25669 | AD34: y | AK34: 101368 | AL34: 101368 | AS34: 25669
B35: RP-000419 | C35: 2870 | D35: Sealed Road Financia | E35: Brookland Rd | F35: Brookland Rd | G35: Allenview | H35: Change | I35: Change | L35: 4B | M35: 0 | N35: 128811 | P35: 1 | Q35: 128811 | S35: 745 | T35: =IF(R35="",'Unit Rates-Land'!landcst,IF($D$8="Landuse",VLOOKUP(R35,LAndcost3,2,FALSE),IF($D$8="Location",VLOOKUP(R35,Landcost2,2,FALSE),"Error"))) -> 0 | U35: 0 | V35: 2014 | W35: =IFERROR((GeneralInput!$G$39/(VLOOKUP(V35,GeneralInput!$E$39:$G$45,3,FALSE))),1) -> 1 | X35: 128811 | AD35: y | AK35: 101368 | AL35: 101368 | AS35: 128811
B36: RC-000140 | C36: 139 | D36: Culvert Financial | E36: Brookland Rd | F36: Brookland Rd | G36: Allenview | H36: Allan Ck Rd | L36: 4B | M36: 0 | N36: 25979 | P36: 1 | Q36: 25979 | S36: 2 | T36: =IF(R36="",'Unit Rates-Land'!landcst,IF($D$8="Landuse",VLOOKUP(R36,LAndcost3,2,FALSE),IF($D$8="Location",VLOOKUP(R36,Landcost2,2,FALSE),"Error"))) -> 0 | U36: 0 | V36: 2014 | W36: =IFERROR((GeneralInput!$G$39/(VLOOKUP(V36,GeneralInput!$E$39:$G$45,3,FALSE))),1) -> 1 | X36: 25979 | AD36: y | AK36: 101368 | AL36: 101368 | AS36: 25979
B37: RU-001185 | C37: 2869 | D37: Formation Financial | E37: Brookland Rd - Formation | F37: Brookland Rd | G37: Allenview | H37: Change | I37: Change | L37: 4B | M37: 0 | N37: 46413 | P37: 1 | Q37: 46413 | S37: 1000 | T37: =IF(R37="",'Unit Rates-Land'!landcst,IF($D$8="Landuse",VLOOKUP(R37,LAndcost3,2,FALSE),IF($D$8="Location",VLOOKUP(R37,Landcost2,2,FALSE),"Error"))) -> 0 | U37: 0 | V37: 2014 | W37: =IFERROR((GeneralInput!$G$39/(VLOOKUP(V37,GeneralInput!$E$39:$G$45,3,FALSE))),1) -> 1 | X37: 46413 | AD37: y | AK37: 101368 | AL37: 101368 | AS37: 46413
B38: RS-000396 | C38: 2869 | D38: Seal Financial Asset | E38: Brookland Rd - Seal | F38: Brookland Rd | G38: Allenview | H38: Change | I38: Change | L38: 4B | M38: 0 | N38: 54986 | P38: 1 | Q38: 54986 | S38: 1000 | T38: =IF(R38="",'Unit Rates-Land'!landcst,IF($D$8="Landuse",VLOOKUP(R38,LAndcost3,2,FALSE),IF($D$8="Location",VLOOKUP(R38,Landcost2,2,FALSE),"Error"))) -> 0 | U38: 0 | V38: 2014 | W38: =IFERROR((GeneralInput!$G$39/(VLOOKUP(V38,GeneralInput!$E$39:$G$45,3,FALSE))),1) -> 1 | X38: 54986 | AD38: y | AK38: 101368 | AL38: 101368 | AS38: 54986
B39: RP-000420 | C39: 2869 | D39: Sealed Road Financia | E39: Brookland Rd | F39: Brookland Rd | G39: Allenview | H39: Change | I39: Change | L39: 4B | M39: 0 | N39: 197586 | P39: 1 | Q39: 197586 | S39: 1000 | T39: =IF(R39="",'Unit Rates-Land'!landcst,IF($D$8="Landuse",VLOOKUP(R39,LAndcost3,2,FALSE),IF($D$8="Location",VLOOKUP(R39,Landcost2,2,FALSE),"Error"))) -> 0 | U39: 0 | V39: 2014 | W39: =IFERROR((GeneralInput!$G$39/(VLOOKUP(V39,GeneralInput!$E$39:$G$45,3,FALSE))),1) -> 1 | X39: 197586 | AD39: y | AK39: 101368 | AL39: 101368 | AS39: 197586
B40: RC-000141 | C40: 140 | D40: Culvert Financial | E40: Brookland Rd | F40: Brookland Rd | G40: Allenview | H40: Allan Ck Rd | L40: 4B | M40: 0 | N40: 9407 | P40: 1 | Q40: 9407 | S40: 1 | T40: =IF(R40="",'Unit Rates-Land'!landcst,IF($D$8="Landuse",VLOOKUP(R40,LAndcost3,2,FALSE),IF($D$8="Location",VLOOKUP(R40,Landcost2,2,FALSE),"Error"))) -> 0 | U40: 0 | V40: 2014 | W40: =IFERROR((GeneralInput!$G$39/(VLOOKUP(V40,GeneralInput!$E$39:$G$45,3,FALSE))),1) -> 1 | X40: 9407 | AD40: y | AK40: 101368 | AL40: 101368 | AS40: 9407
B41: RU-001186 | C41: 2868 | D41: Formation Financial | E41: Brookland Rd - Formation | F41: Brookland Rd | G41: Allenview | H41: Change | I41: Undullah Rd | L41: 4B | M41: 0 | N41: 28160 | P41: 1 | Q41: 28160 | S41: 565 | T41: =IF(R41="",'Unit Rates-Land'!landcst,IF($D$8="Landuse",VLOOKUP(R41,LAndcost3,2,FALSE),IF($D$8="Location",VLOOKUP(R41,Landcost2,2,FALSE),"Error"))) -> 0 | U41: 0 | V41: 2014 | W41: =IFERROR((GeneralInput!$G$39/(VLOOKUP(V41,GeneralInput!$E$39:$G$45,3,FALSE))),1) -> 1 | X41: 28160 | AD41: y | AK41: 101368 | AL41: 101368 | AS41: 28160
B42: RS-000397 | C42: 2868 | D42: Seal Financial Asset | E42: Brookland Rd - Seal | F42: Brookland Rd | G42: Allenview | H42: Change | I42: Undullah Rd | L42: 4B | M42: 0 | N42: 30253 | P42: 1 | Q42: 30253 | S42: 565 | T42: =IF(R42="",'Unit Rates-Land'!landcst,IF($D$8="Landuse",VLOOKUP(R42,LAndcost3,2,FALSE),IF($D$8="Location",VLOOKUP(R42,Landcost2,2,FALSE),"Error"))) -> 0 | U42: 0 | V42: 2014 | W42: =IFERROR((GeneralInput!$G$39/(VLOOKUP(V42,GeneralInput!$E$39:$G$45,3,FALSE))),1) -> 1 | X42: 30253 | AD42: y | AK42: 101368 | AL42: 101368 | AS42: 30253
B43: RP-000421 | C43: 2868 | D43: Sealed Road Financia | E43: Brookland Rd | F43: Brookland Rd | G43: Allenview | H43: Change | I43: Undullah Rd | L43: 4B | M43: 0 | N43: 131120 | P43: 1 | Q43: 131120 | S43: 565 | T43: =IF(R43="",'Unit Rates-Land'!landcst,IF($D$8="Landuse",VLOOKUP(R43,LAndcost3,2,FALSE),IF($D$8="Location",VLOOKUP(R43,Landcost2,2,FALSE),"Error"))) -> 0 | U43: 0 | V43: 2014 | W43: =IFERROR((GeneralInput!$G$39/(VLOOKUP(V43,GeneralInput!$E$39:$G$45,3,FALSE))),1) -> 1 | X43: 131120 | AD43: y | AK43: 101368 | AL43: 101368 | AS43: 131120
B44: RC-000142 | C44: 141 | D44: Culvert Financial | E44: Brookland Rd | F44: Brookland Rd | G44: Allenview | H44: Allan Ck Rd | L44: 4B | M44: 0 | N44: 14017 | P44: 1 | Q44: 14017 | S44: 1 | T44: =IF(R44="",'Unit Rates-Land'!landcst,IF($D$8="Landuse",VLOOKUP(R44,LAndcost3,2,FALSE),IF($D$8="Location",VLOOKUP(R44,Landcost2,2,FALSE),"Error"))) -> 0 | U44: 0 | V44: 2014 | W44: =IFERROR((GeneralInput!$G$39/(VLOOKUP(V44,GeneralInput!$E$39:$G$45,3,FALSE))),1) -> 1 | X44: 14017 | AD44: y | AK44: 101368 | AL44: 101368 | AS44: 14017
B45: RU-000090 | C45: 10516 | D45: Formation Financial | E45: Charlwood Rd - Formation | F45: Charlwood Rd | G45: Aratula | H45: Cunningham Hwy | I45: Change | L45: 4B | M45: 0 | N45: 19982 | P45: 1 | Q45: 19982 | S45: 200 | T45: =IF(R45="",'Unit Rates-Land'!landcst,IF($D$8="Landuse",VLOOKUP(R45,LAndcost3,2,FALSE),IF($D$8="Location",VLOOKUP(R45,Landcost2,2,FALSE),"Error"))) -> 0 | U45: 0 | V45: 2014 | W45: =IFERROR((GeneralInput!$G$39/(VLOOKUP(V45,GeneralInput!$E$39:$G$45,3,FALSE))),1) -> 1 | X45: 19982 | AD45: y | AK45: 101368 | AL45: 101368 | AS45: 19982
B46: RP-003099 | C46: 10516 | D46: Sealed Road Financia | E46: Charlwood Rd | F46: Charlwood Rd | G46: Aratula | H46: Cunningham Hwy | I46: Change | L46: 4B | M46: 0 | N46: 52703 | P46: 1 | Q46: 52703 | S46: 200 | T46: =IF(R46="",'Unit Rates-Land'!landcst,IF($D$8="Landuse",VLOOKUP(R46,LAndcost3,2,FALSE),IF($D$8="Location",VLOOKUP(R46,Landcost2,2,FALSE),"Error"))) -> 0 | U46: 0 | V46: 2014 | W46: =IFERROR((GeneralInput!$G$39/(VLOOKUP(V46,GeneralInput!$E$39:$G$45,3,FALSE))),1) -> 1 | X46: 52703 | AD46: y | AK46: 101368 | AL46: 101368 | AS46: 52703
B47: RC-004271 | C47: 10516 | D47: Culvert Financial | E47: Charlwood Rd | F47: Charlwood Rd | G47: Aratula | L47: 4B | M47: 0 | N47: 12375 | P47: 1 | Q47: 12375 | S47: 0 | T47: =IF(R47="",'Unit Rates-Land'!landcst,IF($D$8="Landuse",VLOOKUP(R47,LAndcost3,2,FALSE),IF($D$8="Location",VLOOKUP(R47,Landcost2,2,FALSE),"Error"))) -> 0 | U47: 0 | V47: 2014 | W47: =IFERROR((GeneralInput!$G$39/(VLOOKUP(V47,GeneralInput!$E$39:$G$45,3,FALSE))),1) -> 1 | X47: 12375 | AD47: y | AK47: 101368 | AL47: 101368 | AS47: 12375
B48: RU-000093 | C48: 10515 | D48: Formation Financial | E48: Charlwood Rd - Formation | F48: Charlwood Rd | G48: Aratula | H48: Change | I48: 1.28 Jensen | L48: 4B | M48: 0 | N48: 61747 | P48: 1 | Q48: 61747 | S48: 1430 | T48: =IF(R48="",'Unit Rates-Land'!landcst,IF($D$8="Landuse",VLOOKUP(R48,LAndcost3,2,FALSE),IF($D$8="Location",VLOOKUP(R48,Landcost2,2,FALSE),"Error"))) -> 0 | U48: 0 | V48: 2014 | W48: =IFERROR((GeneralInput!$G$39/(VLOOKUP(V48,GeneralInput!$E$39:$G$45,3,FALSE))),1) -> 1 | X48: 61747 | AD48: y | AK48: 101368 | AL48: 101368 | AS48: 61747
B49: RP-003100 | C49: 10515 | D49: Sealed Road Financia | E49: Charlwood Rd | F49: Charlwood Rd | G49: Aratula | H49: Change | I49: 1.28 Jensen | L49: 4B | M49: 0 | N49: 218002 | P49: 1 | Q49: 218002 | S49: 1430 | T49: =IF(R49="",'Unit Rates-Land'!landcst,IF($D$8="Landuse",VLOOKUP(R49,LAndcost3,2,FALSE),IF($D$8="Location",VLOOKUP(R49,Landcost2,2,FALSE),"Error"))) -> 0 | U49: 0 | V49: 2014 | W49: =IFERROR((GeneralInput!$G$39/(VLOOKUP(V49,GeneralInput!$E$39:$G$45,3,FALSE))),1) -> 1 | X49: 218002 | AD49: y | AK49: 101368 | AL49: 101368 | AS49: 218002
B50: RF-000307 | C50: MAIN ROAD | D50: Footpath Financial | E50: Cunningham Highway | F50: Cunningham Highway | G50: Aratula | H50: 00= Elizabeth St to South | L50: NA | M50: 0 | N50: 4794 | P50: 1 | Q50: 4794 | S50: 0 | T50: =IF(R50="",'Unit Rates-Land'!landcst,IF($D$8="Landuse",VLOOKUP(R50,LAndcost3,2,FALSE),IF($D$8="Location",VLOOKUP(R50,Landcost2,2,FALSE),"Error"))) -> 0 | U50: 0 | V50: 2014 | W50: =IFERROR((GeneralInput!$G$39/(VLOOKUP(V50,GeneralInput!$E$39:$G$45,3,FALSE))),1) -> 1 | X50: 4794 | AD50: y | AK50: 101368 | AL50: 101368 | AS50: 4794
B51: RF-000306 | C51: MAIN ROAD | D51: Footpath Financial | E51: Cunningham Highway | F51: Cunningham Highway | G51: Aratula | H51: 00=Elizabeth St to North | L51: NA | M51: 0 | N51: 7632 | P51: 1 | Q51: 7632 | S51: 0 | T51: =IF(R51="",'Unit Rates-Land'!landcst,IF($D$8="Landuse",VLOOKUP(R51,LAndcost3,2,FALSE),IF($D$8="Location",VLOOKUP(R51,Landcost2,2,FALSE),"Error"))) -> 0 | U51: 0 | V51: 2014 | W51: =IFERROR((GeneralInput!$G$39/(VLOOKUP(V51,GeneralInput!$E$39:$G$45,3,FALSE))),1) -> 1 | X51: 7632 | AD51: y | AK51: 101368 | AL51: 101368 | AS51: 7632
B52: RU-000909 | C52: 2492 | D52: Formation Financial | E52: Albert St - Formation | F52: Albert St | G52: Beaudesert | H52: Brisbane St | I52: Anna St | L52: 4A | M52: 0 | N52: 4133 | P52: 1 | Q52: 4133 | S52: 160 | T52: =IF(R52="",'Unit Rates-Land'!landcst,IF($D$8="Landuse",VLOOKUP(R52,LAndcost3,2,FALSE),IF($D$8="Location",VLOOKUP(R52,Landcost2,2,FALSE),"Error"))) -> 0 | U52: 0 | V52: 2014 | W52: =IFERROR((GeneralInput!$G$39/(VLOOKUP(V52,GeneralInput!$E$39:$G$45,3,FALSE))),1) -> 1 | X52: 4133 | Y52: y | AF52: 47790 | AL52: 47790 | AN52: 4133
B53: RK-000010 | C53: 2492 | D53: Kerb Financial Asset | E53: Albert St E Bnd P/B | F53: Albert St | G53: Beaudesert | H53: Brisbane St | I53: Anna St | L53: 4A | M53: 0 | N53: 18270 | P53: 1 | Q53: 18270 | S53: 160 | T53: =IF(R53="",'Unit Rates-Land'!landcst,IF($D$8="Landuse",VLOOKUP(R53,LAndcost3,2,FALSE),IF($D$8="Location",VLOOKUP(R53,Landcost2,2,FALSE),"Error"))) -> 0 | U53: 0 | V53: 2014 | W53: =IFERROR((GeneralInput!$G$39/(VLOOKUP(V53,GeneralInput!$E$39:$G$45,3,FALSE))),1) -> 1 | X53: 18270 | Y53: y | AF53: 47790 | AL53: 47790 | AN53: 18270
B54: RK-000011 | C54: 2492 | D54: Kerb Financial Asset | E54: Albert St E Bnd P/B | F54: Albert St | G54: Beaudesert | H54: Brisbane St | I54: Anna St | L54: 4A | M54: 0 | N54: 20880 | P54: 1 | Q54: 20880 | S54: 160 | T54: =IF(R54="",'Unit Rates-Land'!landcst,IF($D$8="Landuse",VLOOKUP(R54,LAndcost3,2,FALSE),IF($D$8="Location",VLOOKUP(R54,Landcost2,2,FALSE),"Error"))) -> 0 | U54: 0 | V54: 2014 | W54: =IFERROR((GeneralInput!$G$39/(VLOOKUP(V54,GeneralInput!$E$39:$G$45,3,FALSE))),1) -> 1 | X54: 20880 | Y54: y | AF54: 47790 | AL54: 47790 | AN54: 20880
B55: RS-000013 | C55: 2492 | D55: Seal Financial Asset | E55: Albert St - Seal | F55: Albert St | G55: Beaudesert | H55: Brisbane St | I55: Anna St | L55: 4A | M55: 0 | N55: 32127 | P55: 1 | Q55: 32127 | S55: 160 | T55: =IF(R55="",'Unit Rates-Land'!landcst,IF($D$8="Landuse",VLOOKUP(R55,LAndcost3,2,FALSE),IF($D$8="Location",VLOOKUP(R55,Landcost2,2,FALSE),"Error"))) -> 0 | U55: 0 | V55: 2014 | W55: =IFERROR((GeneralInput!$G$39/(VLOOKUP(V55,GeneralInput!$E$39:$G$45,3,FALSE))),1) -> 1 | X55: 32127 | Y55: y | AF55: 47790 | AL55: 47790 | AN55: 32127
B56: RP-000014 | C56: 2492 | D56: Sealed Road Financia | E56: Albert St | F56: Albert St | G56: Beaudesert | H56: Brisbane St | I56: Anna St | L56: 4A | M56: 0 | N56: 102631 | P56: 1 | Q56: 102631 | S56: 160 | T56: =IF(R56="",'Unit Rates-Land'!landcst,IF($D$8="Landuse",VLOOKUP(R56,LAndcost3,2,FALSE),IF($D$8="Location",VLOOKUP(R56,Landcost2,2,FALSE),"Error"))) -> 0 | U56: 0 | V56: 2014 | W56: =IFERROR((GeneralInput!$G$39/(VLOOKUP(V56,GeneralInput!$E$39:$G$45,3,FALSE))),1) -> 1 | X56: 102631 | Y56: y | AF56: 47790 | AL56: 47790 | AN56: 102631
B57: RU-000910 | C57: 2491 | D57: Formation Financial | E57: Albert St - Formation | F57: Albert St | G57: Beaudesert | H57: Anna St | I57: Duckett St | L57: 4A | M57: 0 | N57: 4986 | P57: 1 | Q57: 4986 | S57: 195 | T57: =IF(R57="",'Unit Rates-Land'!landcst,IF($D$8="Landuse",VLOOKUP(R57,LAndcost3,2,FALSE),IF($D$8="Location",VLOOKUP(R57,Landcost2,2,FALSE),"Error"))) -> 0 | U57: 0 | V57: 2014 | W57: =IFERROR((GeneralInput!$G$39/(VLOOKUP(V57,GeneralInput!$E$39:$G$45,3,FALSE))),1) -> 1 | X57: 4986 | Y57: y | AF57: 47790 | AL57: 47790 | AN57: 4986
B58: RK-000012 | C58: 2491 | D58: Kerb Financial Asset | E58: Albert St E Bnd P/B | F58: Albert St | G58: Beaudesert | H58: Anna St | I58: Duckett St | L58: 4A | M58: 0 | N58: 25520 | P58: 1 | Q58: 25520 | S58: 195 | T58: =IF(R58="",'Unit Rates-Land'!landcst,IF($D$8="Landuse",VLOOKUP(R58,LAndcost3,2,FALSE),IF($D$8="Location",VLOOKUP(R58,Landcost2,2,FALSE),"Error"))) -> 0 | U58: 0 | V58: 2014 | W58: =IFERROR((GeneralInput!$G$39/(VLOOKUP(V58,GeneralInput!$E$39:$G$45,3,FALSE))),1) -> 1 | X58: 25520 | Y58: y | AF58: 47790 | AL58: 47790 | AN58: 25520
B59: RK-000013 | C59: 2491 | D59: Kerb Financial Asset | E59: Albert St E Bnd P/B | F59: Albert St | G59: Beaudesert | H59: Anna St | I59: Duckett St | L59: 4A | M59: 0 | N59: 25520 | P59: 1 | Q59: 25520 | S59: 195 | T59: =IF(R59="",'Unit Rates-Land'!landcst,IF($D$8="Landuse",VLOOKUP(R59,LAndcost3,2,FALSE),IF($D$8="Location",VLOOKUP(R59,Landcost2,2,FALSE),"Error"))) -> 0 | U59: 0 | V59: 2014 | W59: =IFERROR((GeneralInput!$G$39/(VLOOKUP(V59,GeneralInput!$E$39:$G$45,3,FALSE))),1) -> 1 | X59: 25520 | Y59: y | AF59: 47790 | AL59: 47790 | AN59: 25520
B60: RS-000014 | C60: 2491 | D60: Seal Financial Asset | E60: Albert St - Seal | F60: Albert St | G60: Beaudesert | H60: Anna St | I60: Duckett St | L60: 4A | M60: 0 | N60: 38603 | P60: 1 | Q60: 38603 | S60: 195 | T60: =IF(R60="",'Unit Rates-Land'!landcst,IF($D$8="Landuse",VLOOKUP(R60,LAndcost3,2,FALSE),IF($D$8="Location",VLOOKUP(R60,Landcost2,2,FALSE),"Error"))) -> 0 | U60: 0 | V60: 2014 | W60: =IFERROR((GeneralInput!$G$39/(VLOOKUP(V60,GeneralInput!$E$39:$G$45,3,FALSE))),1) -> 1 | X60: 38603 | Y60: y | AF60: 47790 | AL60: 47790 | AN60: 38603
B61: RP-000015 | C61: 2491 | D61: Sealed Road Financia | E61: Albert St | F61: Albert St | G61: Beaudesert | H61: Anna St | I61: Duckett St | L61: 4A | M61: 0 | N61: 123825 | P61: 1 | Q61: 123825 | S61: 195 | T61: =IF(R61="",'Unit Rates-Land'!landcst,IF($D$8="Landuse",VLOOKUP(R61,LAndcost3,2,FALSE),IF($D$8="Location",VLOOKUP(R61,Landcost2,2,FALSE),"Error"))) -> 0 | U61: 0 | V61: 2014 | W61: =IFERROR((GeneralInput!$G$39/(VLOOKUP(V61,GeneralInput!$E$39:$G$45,3,FALSE))),1) -> 1 | X61: 123825 | Y61: y | AF61: 47790 | AL61: 47790 | AN61: 123825
B62: RU-000911 | C62: 2490 | D62: Formation Financial | E62: Albert St - Formation | F62: Albert St | G62: Beaudesert | H62: Duckett St | I62: William St | L62: 4A | M62: 0 | N62: 3226 | P62: 1 | Q62: 3226 | S62: 125 | T62: =IF(R62="",'Unit Rates-Land'!landcst,IF($D$8="Landuse",VLOOKUP(R62,LAndcost3,2,FALSE),IF($D$8="Location",VLOOKUP(R62,Landcost2,2,FALSE),"Error"))) -> 0 | U62: 0 | V62: 2014 | W62: =IFERROR((GeneralInput!$G$39/(VLOOKUP(V62,GeneralInput!$E$39:$G$45,3,FALSE))),1) -> 1 | X62: 3226 | Y62: y | AF62: 47790 | AL62: 47790 | AN62: 3226
B63: RK-001968 | C63: 2490 | D63: Kerb Financial Asset | E63: Albert St | F63: Albert St | G63: Beaudesert | H63: Duckett St | I63: William St | L63: 4A | M63: 0 | N63: 15080 | P63: 1 | Q63: 15080 | S63: 125 | T63: =IF(R63="",'Unit Rates-Land'!landcst,IF($D$8="Landuse",VLOOKUP(R63,LAndcost3,2,FALSE),IF($D$8="Location",VLOOKUP(R63,Landcost2,2,FALSE),"Error"))) -> 0 | U63: 0 | V63: 2014 | W63: =IFERROR((GeneralInput!$G$39/(VLOOKUP(V63,GeneralInput!$E$39:$G$45,3,FALSE))),1) -> 1 | X63: 15080 | Y63: y | AF63: 47790 | AL63: 47790 | AN63: 15080
B64: RK-001969 | C64: 2490 | D64: Kerb Financial Asset | E64: Albert St | F64: Albert St | G64: Beaudesert | H64: Duckett St | I64: William St | L64: 4A | M64: 0 | N64: 16820 | P64: 1 | Q64: 16820 | S64: 125 | T64: =IF(R64="",'Unit Rates-Land'!landcst,IF($D$8="Landuse",VLOOKUP(R64,LAndcost3,2,FALSE),IF($D$8="Location",VLOOKUP(R64,Landcost2,2,FALSE),"Error"))) -> 0 | U64: 0 | V64: 2014 | W64: =IFERROR((GeneralInput!$G$39/(VLOOKUP(V64,GeneralInput!$E$39:$G$45,3,FALSE))),1) -> 1 | X64: 16820 | Y64: y | AF64: 47790 | AL64: 47790 | AN64: 16820
B65: RS-000015 | C65: 2490 | D65: Seal Financial Asset | E65: Albert St - Seal | F65: Albert St | G65: Beaudesert | H65: Duckett St | I65: William St | L65: 4A | M65: 0 | N65: 24704 | P65: 1 | Q65: 24704 | S65: 125 | T65: =IF(R65="",'Unit Rates-Land'!landcst,IF($D$8="Landuse",VLOOKUP(R65,LAndcost3,2,FALSE),IF($D$8="Location",VLOOKUP(R65,Landcost2,2,FALSE),"Error"))) -> 0 | U65: 0 | V65: 2014 | W65: =IFERROR((GeneralInput!$G$39/(VLOOKUP(V65,GeneralInput!$E$39:$G$45,3,FALSE))),1) -> 1 | X65: 24704 | Y65: y | AF65: 47790 | AL65: 47790 | AN65: 24704
B66: RP-000016 | C66: 2490 | D66: Sealed Road Financia | E66: Albert St | F66: Albert St | G66: Beaudesert | H66: Duckett St | I66: William St | L66: 4A | M66: 0 | N66: 80102 | P66: 1 | Q66: 80102 | S66: 125 | T66: =IF(R66="",'Unit Rates-Land'!landcst,IF($D$8="Landuse",VLOOKUP(R66,LAndcost3,2,FALSE),IF($D$8="Location",VLOOKUP(R66,Landcost2,2,FALSE),"Error"))) -> 0 | U66: 0 | V66: 2014 | W66: =IFERROR((GeneralInput!$G$39/(VLOOKUP(V66,GeneralInput!$E$39:$G$45,3,FALSE))),1) -> 1 | X66: 80102 | Y66: y | AF66: 47790 | AL66: 47790 | AN66: 80102
B67: RU-000912 | C67: 2489 | D67: Formation Financial | E67: Albert St - Formation | F67: Albert St | G67: Beaudesert | H67: William St | I67: Tina St | L67: 4A | M67: 0 | N67: 1349 | P67: 1 | Q67: 1349 | S67: 70 | T67: =IF(R67="",'Unit Rates-Land'!landcst,IF($D$8="Landuse",VLOOKUP(R67,LAndcost3,2,FALSE),IF($D$8="Location",VLOOKUP(R67,Landcost2,2,FALSE),"Error"))) -> 0 | U67: 0 | V67: 2014 | W67: =IFERROR((GeneralInput!$G$39/(VLOOKUP(V67,GeneralInput!$E$39:$G$45,3,FALSE))),1) -> 1 | X67: 1349 | Y67: y | AF67: 47790 | AL67: 47790 | AN67: 1349
B68: RK-000014 | C68: 2489 | D68: Kerb Financial Asset | E68: Albert St E Bnd P/B | F68: Albert St | G68: Beaudesert | H68: William St | I68: Tina St | L68: 4A | M68: 0 | N68: 4400 | P68: 1 | Q68: 4400 | S68: 70 | T68: =IF(R68="",'Unit Rates-Land'!landcst,IF($D$8="Landuse",VLOOKUP(R68,LAndcost3,2,FALSE),IF($D$8="Location",VLOOKUP(R68,Landcost2,2,FALSE),"Error"))) -> 0 | U68: 0 | V68: 2014 | W68: =IFERROR((GeneralInput!$G$39/(VLOOKUP(V68,GeneralInput!$E$39:$G$45,3,FALSE))),1) -> 1 | X68: 4400 | Y68: y | AF68: 47790 | AL68: 47790 | AN68: 4400
B69: RK-000015 | C69: 2489 | D69: Kerb Financial Asset | E69: Albert St E Bnd P/B | F69: Albert St | G69: Beaudesert | H69: William St | I69: Tina St | L69: 4A | M69: 0 | N69: 9860 | P69: 1 | Q69: 9860 | S69: 70 | T69: =IF(R69="",'Unit Rates-Land'!landcst,IF($D$8="Landuse",VLOOKUP(R69,LAndcost3,2,FALSE),IF($D$8="Location",VLOOKUP(R69,Landcost2,2,FALSE),"Error"))) -> 0 | U69: 0 | V69: 2014 | W69: =IFERROR((GeneralInput!$G$39/(VLOOKUP(V69,GeneralInput!$E$39:$G$45,3,FALSE))),1) -> 1 | X69: 9860 | Y69: y | AF69: 47790 | AL69: 47790 | AN69: 9860
B70: RS-000016 | C70: 2489 | D70: Seal Financial Asset | E70: Albert St - Seal | F70: Albert St | G70: Beaudesert | H70: William St | I70: Tina St | L70: 4A | M70: 0 | N70: 10849 | P70: 1 | Q70: 10849 | S70: 70 | T70: =IF(R70="",'Unit Rates-Land'!landcst,IF($D$8="Landuse",VLOOKUP(R70,LAndcost3,2,FALSE),IF($D$8="Location",VLOOKUP(R70,Landcost2,2,FALSE),"Error"))) -> 0 | U70: 0 | V70: 2014 | W70: =IFERROR((GeneralInput!$G$39/(VLOOKUP(V70,GeneralInput!$E$39:$G$45,3,FALSE))),1) -> 1 | X70: 10849 | Y70: y | AF70: 47790 | AL70: 47790 | AN70: 10849
B71: RP-000017 | C71: 2489 | D71: Sealed Road Financia | E71: Albert St | F71: Albert St | G71: Beaudesert | H71: William St | I71: Tina St | L71: 4A | M71: 0 | N71: 33501 | P71: 1 | Q71: 33501 | S71: 70 | T71: =IF(R71="",'Unit Rates-Land'!landcst,IF($D$8="Landuse",VLOOKUP(R71,LAndcost3,2,FALSE),IF($D$8="Location",VLOOKUP(R71,Landcost2,2,FALSE),"Error"))) -> 0 | U71: 0 | V71: 2014 | W71: =IFERROR((GeneralInput!$G$39/(VLOOKUP(V71,GeneralInput!$E$39:$G$45,3,FALSE))),1) -> 1 | X71: 33501 | Y71: y | AF71: 47790 | AL71: 47790 | AN71: 33501
B72: RF-000001 | C72: 2492 | D72: Footpath Financial | E72: Albert St E Bnd P/B | F72: Albert St E Bnd P/B | G72: Beaudesert | H72: Brisbane St | I72: Anna St | L72: 4A | M72: 0 | N72: 28800 | P72: 1 | Q72: 28800 | S72: 0 | T72: =IF(R72="",'Unit Rates-Land'!landcst,IF($D$8="Landuse",VLOOKUP(R72,LAndcost3,2,FALSE),IF($D$8="Location",VLOOKUP(R72,Landcost2,2,FALSE),"Error"))) -> 0 | U72: 0 | V72: 2014 | W72: =IFERROR((GeneralInput!$G$39/(VLOOKUP(V72,GeneralInput!$E$39:$G$45,3,FALSE))),1) -> 1 | X72: 28800 | Y72: y | AF72: 47790 | AL72: 47790 | AN72: 28800
B73: RF-000002 | C73: 2490 | D73: Footpath Financial | E73: Albert St E Bnd P/B | F73: Albert St E Bnd P/B | G73: Beaudesert | H73: Duckett St | I73: William St | L73: 4A | M73: 0 | N73: 15894 | P73: 1 | Q73: 15894 | S73: 0 | T73: =IF(R73="",'Unit Rates-Land'!landcst,IF($D$8="Landuse",VLOOKUP(R73,LAndcost3,2,FALSE),IF($D$8="Location",VLOOKUP(R73,Landcost2,2,FALSE),"Error"))) -> 0 | U73: 0 | V73: 2014 | W73: =IFERROR((GeneralInput!$G$39/(VLOOKUP(V73,GeneralInput!$E$39:$G$45,3,FALSE))),1) -> 1 | X73: 15894 | Y73: y | AF73: 47790 | AL73: 47790 | AN73: 15894
B74: RF-000004 | C74: 8106 | D74: Footpath Financial | E74: Albert St E Bnd P/B | F74: Albert St E Bnd P/B | G74: Beaudesert | H74: Ecole St | I74: Arthur St | L74: 4A | M74: 0 | N74: 10080 | P74: 1 | Q74: 10080 | S74: 0 | T74: =IF(R74="",'Unit Rates-Land'!landcst,IF($D$8="Landuse",VLOOKUP(R74,LAndcost3,2,FALSE),IF($D$8="Location",VLOOKUP(R74,Landcost2,2,FALSE),"Error"))) -> 0 | U74: 0 | V74: 2014 | W74: =IFERROR((GeneralInput!$G$39/(VLOOKUP(V74,GeneralInput!$E$39:$G$45,3,FALSE))),1) -> 1 | X74: 10080 | Y74: y | AF74: 47790 | AL74: 47790 | AN74: 10080
B75: RF-000007 | C75: 8111 | D75: Footpath Financial | E75: Albert St E Bnd P/B | F75: Albert St E Bnd P/B | G75: Beaudesert | H75: Mitchell St | I75: Boundary St | L75: 4A | M75: 0 | N75: 20340 | P75: 1 | Q75: 20340 | S75: 0 | T75: =IF(R75="",'Unit Rates-Land'!landcst,IF($D$8="Landuse",VLOOKUP(R75,LAndcost3,2,FALSE),IF($D$8="Location",VLOOKUP(R75,Landcost2,2,FALSE),"Error"))) -> 0 | U75: 0 | V75: 2014 | W75: =IFERROR((GeneralInput!$G$39/(VLOOKUP(V75,GeneralInput!$E$39:$G$45,3,FALSE))),1) -> 1 | X75: 20340 | Y75: y | AF75: 47790 | AL75: 47790 | AN75: 20340
B76: RF-000008 | C76: 8111 | D76: Footpath Financial | E76: Albert St E Bnd P/B | F76: Albert St E Bnd P/B | G76: Beaudesert | H76: Mitchell St | I76: Boundary St | L76: 4A | M76: 0 | N76: 203 | P76: 1 | Q76: 203 | S76: 0 | T76: =IF(R76="",'Unit Rates-Land'!landcst,IF($D$8="Landuse",VLOOKUP(R76,LAndcost3,2,FALSE),IF($D$8="Location",VLOOKUP(R76,Landcost2,2,FALSE),"Error"))) -> 0 | U76: 0 | V76: 2014 | W76: =IFERROR((GeneralInput!$G$39/(VLOOKUP(V76,GeneralInput!$E$39:$G$45,3,FALSE))),1) -> 1 | X76: 203 | Y76: y | AF76: 47790 | AL76: 47790 | AN76: 203
B77: RF-000003 | C77: 8104 | D77: Footpath Financial | E77: Albert St E Bnd P/B | F77: Albert St E Bnd P/B | G77: Beaudesert | H77: Tina St | I77: Ecole St | L77: 4A | M77: 0 | N77: 28440 | P77: 1 | Q77: 28440 | S77: 0 | T77: =IF(R77="",'Unit Rates-Land'!landcst,IF($D$8="Landuse",VLOOKUP(R77,LAndcost3,2,FALSE),IF($D$8="Location",VLOOKUP(R77,Landcost2,2,FALSE),"Error"))) -> 0 | U77: 0 | V77: 2014 | W77: =IFERROR((GeneralInput!$G$39/(VLOOKUP(V77,GeneralInput!$E$39:$G$45,3,FALSE))),1) -> 1 | X77: 28440 | Y77: y | AF77: 47790 | AL77: 47790 | AN77: 28440
B78: RU-000913 | C78: 8104 | D78: Formation Financial | E78: Albert St E Bnd P/L - Formation | F78: Albert St E Bnd P/L | G78: Beaudesert | H78: Tina St | I78: Ecole St | L78: 4A | M78: 0 | N78: 1506 | P78: 1 | Q78: 1506 | S78: 163 | T78: =IF(R78="",'Unit Rates-Land'!landcst,IF($D$8="Landuse",VLOOKUP(R78,LAndcost3,2,FALSE),IF($D$8="Location",VLOOKUP(R78,Landcost2,2,FALSE),"Error"))) -> 0 | U78: 0 | V78: 2014 | W78: =IFERROR((GeneralInput!$G$39/(VLOOKUP(V78,GeneralInput!$E$39:$G$45,3,FALSE))),1) -> 1 | X78: 1506 | Y78: y | AF78: 47790 | AL78: 47790 | AN78: 1506
B79: RK-000017 | C79: 8104 | D79: Kerb Financial Asset | E79: Albert St E Bnd P/B | F79: Albert St E Bnd P/L | G79: Beaudesert | H79: Tina St | I79: Ecole St | L79: 4A | M79: 0 | N79: 21460 | P79: 1 | Q79: 21460 | S79: 163 | T79: =IF(R79="",'Unit Rates-Land'!landcst,IF($D$8="Landuse",VLOOKUP(R79,LAndcost3,2,FALSE),IF($D$8="Location",VLOOKUP(R79,Landcost2,2,FALSE),"Error"))) -> 0 | U79: 0 | V79: 2014 | W79: =IFERROR((GeneralInput!$G$39/(VLOOKUP(V79,GeneralInput!$E$39:$G$45,3,FALSE))),1) -> 1 | X79: 21460 | Y79: y | AF79: =IF(Y79="y",AF$14,IF(AND(Y79>0,Y79<=1),Y79*AF$14,"")) -> 47790 | AG79: =IF(Z79="y",AG$14,IF(AND(Z79>0,Z79<=1),Z79*AG$14,"")) ->  | AH79: =IF(AA79="y",AH$14,IF(AND(AA79>0,AA79<=1),AA79*AH$14,"")) ->  | AI79: =IF(AB79="y",AI$14,IF(AND(AB79>0,AB79<=1),AB79*AI$14,"")) ->  | AJ79: =IF(AC79="y",AJ$14,IF(AND(AC79>0,AC79<=1),AC79*AJ$14,"")) ->  | AK79: =IF(AD79="y",AK$14,IF(AND(AD79>0,AD79<=1),AD79*AK$14,"")) ->  | AL79: =SUM(AF79:AK79) -> 47790 | AN79: =IF(AF79="","",(AF79/$AL79)*$X79) -> 21460 | AO79: =IF(AG79="","",(AG79/$AL79)*$X79) ->  | AP79: =IF(AH79="","",(AH79/$AL79)*$X79) ->  | AQ79: =IF(AI79="","",(AI79/$AL79)*$X79) ->  | AR79: =IF(AJ79="","",(AJ79/$AL79)*$X79) ->  | AS79: =IF(AK79="","",(AK79/$AL79)*$X79) ->  | AT79: =IF(SUM(AN79:AS79)=X79,"","ERROR") -> 
B80: RS-000017 | C80: 8104 | D80: Seal Financial Asset | E80: Albert St E Bnd P/L - Seal | F80: Albert St E Bnd P/L | G80: Beaudesert | H80: Tina St | I80: Ecole St | L80: 4A | M80: 0 | N80: 5977 | P80: 1 | Q80: 5977 | S80: 163 | T80: =IF(R80="",'Unit Rates-Land'!landcst,IF($D$8="Landuse",VLOOKUP(R80,LAndcost3,2,FALSE),IF($D$8="Location",VLOOKUP(R80,Landcost2,2,FALSE),"Error"))) -> 0 | U80: 0 | V80: 2014 | W80: =IFERROR((GeneralInput!$G$39/(VLOOKUP(V80,GeneralInput!$E$39:$G$45,3,FALSE))),1) -> 1 | X80: 5977 | Y80: y | AF80: 47790 | AL80: 47790 | AN80: 5977
B81: RP-000018 | C81: 8104 | D81: Sealed Road Financia | E81: Albert St E Bnd P/L | F81: Albert St E Bnd P/L | G81: Beaudesert | H81: Tina St | I81: Ecole St | L81: 4A | M81: 0 | N81: 21373 | P81: 1 | Q81: 21373 | S81: 163 | T81: =IF(R81="",'Unit Rates-Land'!landcst,IF($D$8="Landuse",VLOOKUP(R81,LAndcost3,2,FALSE),IF($D$8="Location",VLOOKUP(R81,Landcost2,2,FALSE),"Error"))) -> 0 | U81: 0 | V81: 2014 | W81: =IFERROR((GeneralInput!$G$39/(VLOOKUP(V81,GeneralInput!$E$39:$G$45,3,FALSE))),1) -> 1 | X81: 21373 | Y81: y | AF81: 47790 | AL81: 47790 | AN81: 21373
B82: RU-000914 | C82: 8106 | D82: Formation Financial | E82: Albert St E Bnd P/L - Formation | F82: Albert St E Bnd P/L | G82: Beaudesert | H82: Ecole St | I82: Arthur St | L82: 4A | M82: =IF(J82=RoadTYPE1,VLOOKUP(L82,Roadunitrates1,2,FALSE),IF(J82=ROADTYPE2,VLOOKUP(L82,Roadunitrates2,2,FALSE),0)) -> 0 | N82: 893 | P82: =IF(O82="",1,VLOOKUP(O82,Roadsitecond,2,FALSE)) -> 1 | Q82: =IF(N82="","",N82*P82) -> 893 | S82: 58 | T82: =IF(R82="",'Unit Rates-Land'!landcst,IF($D$8="Landuse",VLOOKUP(R82,LAndcost3,2,FALSE),IF($D$8="Location",VLOOKUP(R82,Landcost2,2,FALSE),"Error"))) -> 0 | U82: =IF(T82="",0,T82*10000*S82) -> 0 | V82: 2014 | W82: =IFERROR((GeneralInput!$G$39/(VLOOKUP(V82,GeneralInput!$E$39:$G$45,3,FALSE))),1) -> 1 | X82: =IFERROR((Q82+U82)*W82,0) -> 893 | Y82: y | AF82: 47790 | AL82: 47790 | AN82: 893
B83: RK-000018 | C83: 8106 | D83: Kerb Financial Asset | E83: Albert St E Bnd P/B | F83: Albert St E Bnd P/L | G83: Beaudesert | H83: Ecole St | I83: Arthur St | L83: 4A | M83: 0 | N83: 6090 | P83: 1 | Q83: 6090 | S83: 58 | T83: =IF(R83="",'Unit Rates-Land'!landcst,IF($D$8="Landuse",VLOOKUP(R83,LAndcost3,2,FALSE),IF($D$8="Location",VLOOKUP(R83,Landcost2,2,FALSE),"Error"))) -> 0 | U83: 0 | V83: 2014 | W83: =IFERROR((GeneralInput!$G$39/(VLOOKUP(V83,GeneralInput!$E$39:$G$45,3,FALSE))),1) -> 1 | X83: 6090 | Y83: y | AF83: 47790 | AL83: 47790 | AN83: 6090
B84: RS-000018 | C84: 8106 | D84: Seal Financial Asset | E84: Albert St E Bnd P/L - Seal | F84: Albert St E Bnd P/L | G84: Beaudesert | H84: Ecole St | I84: Arthur St | L84: 4A | M84: 0 | N84: 2127 | P84: 1 | Q84: 2127 | S84: 58 | T84: =IF(R84="",'Unit Rates-Land'!landcst,IF($D$8="Landuse",VLOOKUP(R84,LAndcost3,2,FALSE),IF($D$8="Location",VLOOKUP(R84,Landcost2,2,FALSE),"Error"))) -> 0 | U84: 0 | V84: 2014 | W84: =IFERROR((GeneralInput!$G$39/(VLOOKUP(V84,GeneralInput!$E$39:$G$45,3,FALSE))),1) -> 1 | X84: 2127 | Y84: y | AF84: 47790 | AL84: 47790 | AN84: 2127
B85: RP-000019 | C85: 8106 | D85: Sealed Road Financia | E85: Albert St E Bnd P/L | F85: Albert St E Bnd P/L | G85: Beaudesert | H85: Ecole St | I85: Arthur St | L85: 4A | M85: 0 | N85: 7605 | P85: 1 | Q85: 7605 | S85: 58 | T85: =IF(R85="",'Unit Rates-Land'!landcst,IF($D$8="Landuse",VLOOKUP(R85,LAndcost3,2,FALSE),IF($D$8="Location",VLOOKUP(R85,Landcost2,2,FALSE),"Error"))) -> 0 | U85: 0 | V85: 2014 | W85: =IFERROR((GeneralInput!$G$39/(VLOOKUP(V85,GeneralInput!$E$39:$G$45,3,FALSE))),1) -> 1 | X85: 7605 | Y85: y | AF85: 47790 | AL85: 47790 | AN85: 7605
B86: RU-000915 | C86: 8108 | D86: Formation Financial | E86: Albert St E Bnd P/L - Formation | F86: Albert St E Bnd P/L | G86: Beaudesert | H86: Arthur St | I86: Hart St | L86: 4A | M86: 0 | N86: 10303 | P86: 1 | Q86: 10303 | S86: 223 | T86: =IF(R86="",'Unit Rates-Land'!landcst,IF($D$8="Landuse",VLOOKUP(R86,LAndcost3,2,FALSE),IF($D$8="Location",VLOOKUP(R86,Landcost2,2,FALSE),"Error"))) -> 0 | U86: 0 | V86: 2014 | W86: =IFERROR((GeneralInput!$G$39/(VLOOKUP(V86,GeneralInput!$E$39:$G$45,3,FALSE))),1) -> 1 | X86: 10303 | Y86: y | AF86: 47790 | AL86: 47790 | AN86: 10303
B87: RK-000019 | C87: 8108 | D87: Kerb Financial Asset | E87: Albert St E Bnd P/B | F87: Albert St E Bnd P/L | G87: Beaudesert | H87: Arthur St | I87: Hart St | L87: 4A | M87: 0 | N87: 30160 | P87: 1 | Q87: 30160 | S87: 223 | T87: =IF(R87="",'Unit Rates-Land'!landcst,IF($D$8="Landuse",VLOOKUP(R87,LAndcost3,2,FALSE),IF($D$8="Location",VLOOKUP(R87,Landcost2,2,FALSE),"Error"))) -> 0 | U87: 0 | V87: 2014 | W87: =IFERROR((GeneralInput!$G$39/(VLOOKUP(V87,GeneralInput!$E$39:$G$45,3,FALSE))),1) -> 1 | X87: 30160 | Y87: y | AF87: 47790 | AL87: 47790 | AN87: 30160
B88: RS-000019 | C88: 8108 | D88: Seal Financial Asset | E88: Albert St E Bnd P/L - Seal | F88: Albert St E Bnd P/L | G88: Beaudesert | H88: Arthur St | I88: Hart St | L88: 4A | M88: 0 | N88: 8177 | P88: 1 | Q88: 8177 | S88: 223 | T88: =IF(R88="",'Unit Rates-Land'!landcst,IF($D$8="Landuse",VLOOKUP(R88,LAndcost3,2,FALSE),IF($D$8="Location",VLOOKUP(R88,Landcost2,2,FALSE),"Error"))) -> 0 | U88: 0 | V88: 2014 | W88: =IFERROR((GeneralInput!$G$39/(VLOOKUP(V88,GeneralInput!$E$39:$G$45,3,FALSE))),1) -> 1 | X88: 8177 | Y88: y | AF88: 47790 | AL88: 47790 | AN88: 8177
B89: RP-000020 | C89: 8108 | D89: Sealed Road Financia | E89: Albert St E Bnd P/L | F89: Albert St E Bnd P/L | G89: Beaudesert | H89: Arthur St | I89: Hart St | L89: 4A | M89: 0 | N89: 29240 | P89: 1 | Q89: 29240 | S89: 223 | T89: =IF(R89="",'Unit Rates-Land'!landcst,IF($D$8="Landuse",VLOOKUP(R89,LAndcost3,2,FALSE),IF($D$8="Location",VLOOKUP(R89,Landcost2,2,FALSE),"Error"))) -> 0 | U89: 0 | V89: 2014 | W89: =IFERROR((GeneralInput!$G$39/(VLOOKUP(V89,GeneralInput!$E$39:$G$45,3,FALSE))),1) -> 1 | X89: 29240 | Y89: y | AF89: 47790 | AL89: 47790 | AN89: 29240
B90: RU-000916 | C90: 8110 | D90: Formation Financial | E90: Albert St E Bnd P/L - Formation | F90: Albert St E Bnd P/L | G90: Beaudesert | H90: Hart St | I90: Mitchell St | L90: 4A | M90: 0 | N90: 2735 | P90: 1 | Q90: 2735 | S90: 111 | T90: =IF(R90="",'Unit Rates-Land'!landcst,IF($D$8="Landuse",VLOOKUP(R90,LAndcost3,2,FALSE),IF($D$8="Location",VLOOKUP(R90,Landcost2,2,FALSE),"Error"))) -> 0 | U90: 0 | V90: 2014 | W90: =IFERROR((GeneralInput!$G$39/(VLOOKUP(V90,GeneralInput!$E$39:$G$45,3,FALSE))),1) -> 1 | X90: 2735 | Y90: y | AF90: 47790 | AL90: 47790 | AN90: 2735
B91: RK-000020 | C91: 8110 | D91: Kerb Financial Asset | E91: Albert St E Bnd P/B | F91: Albert St E Bnd P/L | G91: Beaudesert | H91: Hart St | I91: Mitchell St | L91: 4A | M91: 0 | N91: 14210 | P91: 1 | Q91: 14210 | S91: 111 | T91: =IF(R91="",'Unit Rates-Land'!landcst,IF($D$8="Landuse",VLOOKUP(R91,LAndcost3,2,FALSE),IF($D$8="Location",VLOOKUP(R91,Landcost2,2,FALSE),"Error"))) -> 0 | U91: 0 | V91: 2014 | W91: =IFERROR((GeneralInput!$G$39/(VLOOKUP(V91,GeneralInput!$E$39:$G$45,3,FALSE))),1) -> 1 | X91: 14210 | Y91: y | AF91: 47790 | AL91: 47790 | AN91: 14210
B92: RS-000020 | C92: 8110 | D92: Seal Financial Asset | E92: Albert St E Bnd P/L - Seal | F92: Albert St E Bnd P/L | G92: Beaudesert | H92: Hart St | I92: Mitchell St | L92: 4A | M92: 0 | N92: 4070 | P92: 1 | Q92: 4070 | S92: 111 | T92: =IF(R92="",'Unit Rates-Land'!landcst,IF($D$8="Landuse",VLOOKUP(R92,LAndcost3,2,FALSE),IF($D$8="Location",VLOOKUP(R92,Landcost2,2,FALSE),"Error"))) -> 0 | U92: 0 | V92: 2014 | W92: =IFERROR((GeneralInput!$G$39/(VLOOKUP(V92,GeneralInput!$E$39:$G$45,3,FALSE))),1) -> 1 | X92: 4070 | Y92: y | AF92: 47790 | AL92: 47790 | AN92: 4070
B93: RP-000021 | C93: 8110 | D93: Sealed Road Financia | E93: Albert St E Bnd P/L | F93: Albert St E Bnd P/L | G93: Beaudesert | H93: Hart St | I93: Mitchell St | L93: 4A | M93: 0 | N93: 14554 | P93: 1 | Q93: 14554 | S93: 111 | T93: =IF(R93="",'Unit Rates-Land'!landcst,IF($D$8="Landuse",VLOOKUP(R93,LAndcost3,2,FALSE),IF($D$8="Location",VLOOKUP(R93,Landcost2,2,FALSE),"Error"))) -> 0 | U93: 0 | V93: 2014 | W93: =IFERROR((GeneralInput!$G$39/(VLOOKUP(V93,GeneralInput!$E$39:$G$45,3,FALSE))),1) -> 1 | X93: 14554 | Y93: y | AF93: 47790 | AL93: 47790 | AN93: 14554
B94: RU-000917 | C94: 8111 | D94: Formation Financial | E94: Albert St E Bnd P/L - Formation | F94: Albert St E Bnd P/L | G94: Beaudesert | H94: Mitchell St | I94: Boundary St | L94: 4A | M94: 0 | N94: 1848 | P94: 1 | Q94: 1848 | S94: 120 | T94: =IF(R94="",'Unit Rates-Land'!landcst,IF($D$8="Landuse",VLOOKUP(R94,LAndcost3,2,FALSE),IF($D$8="Location",VLOOKUP(R94,Landcost2,2,FALSE),"Error"))) -> 0 | U94: 0 | V94: 2014 | W94: =IFERROR((GeneralInput!$G$39/(VLOOKUP(V94,GeneralInput!$E$39:$G$45,3,FALSE))),1) -> 1 | X94: 1848 | Y94: y | AF94: 47790 | AL94: 47790 | AN94: 1848
B95: RK-000021 | C95: 8111 | D95: Kerb Financial Asset | E95: Albert St E Bnd P/B | F95: Albert St E Bnd P/L | G95: Beaudesert | H95: Mitchell St | I95: Boundary St | L95: 4A | M95: 0 | N95: 14210 | P95: 1 | Q95: 14210 | S95: 120 | T95: =IF(R95="",'Unit Rates-Land'!landcst,IF($D$8="Landuse",VLOOKUP(R95,LAndcost3,2,FALSE),IF($D$8="Location",VLOOKUP(R95,Landcost2,2,FALSE),"Error"))) -> 0 | U95: 0 | V95: 2014 | W95: =IFERROR((GeneralInput!$G$39/(VLOOKUP(V95,GeneralInput!$E$39:$G$45,3,FALSE))),1) -> 1 | X95: 14210 | Y95: y | AF95: 47790 | AL95: 47790 | AN95: 14210
B96: RS-000021 | C96: 8111 | D96: Seal Financial Asset | E96: Albert St E Bnd P/L - Seal | F96: Albert St E Bnd P/L | G96: Beaudesert | H96: Mitchell St | I96: Boundary St | L96: 4A | M96: 0 | N96: 4400 | P96: 1 | Q96: 4400 | S96: 120 | T96: =IF(R96="",'Unit Rates-Land'!landcst,IF($D$8="Landuse",VLOOKUP(R96,LAndcost3,2,FALSE),IF($D$8="Location",VLOOKUP(R96,Landcost2,2,FALSE),"Error"))) -> 0 | U96: 0 | V96: 2014 | W96: =IFERROR((GeneralInput!$G$39/(VLOOKUP(V96,GeneralInput!$E$39:$G$45,3,FALSE))),1) -> 1 | X96: 4400 | Y96: y | AF96: 47790 | AL96: 47790 | AN96: 4400
B97: RP-000022 | C97: 8111 | D97: Sealed Road Financia | E97: Albert St E Bnd P/L | F97: Albert St E Bnd P/L | G97: Beaudesert | H97: Mitchell St | I97: Boundary St | L97: 4A | M97: 0 | N97: 15734 | P97: 1 | Q97: 15734 | S97: 120 | T97: =IF(R97="",'Unit Rates-Land'!landcst,IF($D$8="Landuse",VLOOKUP(R97,LAndcost3,2,FALSE),IF($D$8="Location",VLOOKUP(R97,Landcost2,2,FALSE),"Error"))) -> 0 | U97: 0 | V97: 2014 | W97: =IFERROR((GeneralInput!$G$39/(VLOOKUP(V97,GeneralInput!$E$39:$G$45,3,FALSE))),1) -> 1 | X97: 15734 | Y97: y | AF97: 47790 | AL97: 47790 | AN97: 15734
B98: RF-000250 | D98: Footpath Financial | E98: Albert St E Bnd P/B | F98: Albert St East Bnd P/B | G98: Beaudesert | H98: Tina St | I98: Albert Gardens | L98: 4A | M98: 0 | N98: 54000 | P98: 1 | Q98: 54000 | S98: 0 | T98: =IF(R98="",'Unit Rates-Land'!landcst,IF($D$8="Landuse",VLOOKUP(R98,LAndcost3,2,FALSE),IF($D$8="Location",VLOOKUP(R98,Landcost2,2,FALSE),"Error"))) -> 0 | U98: 0 | V98: 2014 | W98: =IFERROR((GeneralInput!$G$39/(VLOOKUP(V98,GeneralInput!$E$39:$G$45,3,FALSE))),1) -> 1 | X98: 54000 | Y98: y | AF98: 47790 | AL98: 47790 | AN98: 54000
B99: RU-000918 | C99: 8105 | D99: Formation Financial | E99: Albert St W Bnd P/B - Formation | F99: Albert St W Bnd P/B | G99: Beaudesert | H99: Tina St | I99: Ecole St | L99: 4B | M99: 0 | N99: 10481 | P99: 1 | Q99: 10481 | S99: 713 | T99: =IF(R99="",'Unit Rates-Land'!landcst,IF($D$8="Landuse",VLOOKUP(R99,LAndcost3,2,FALSE),IF($D$8="Location",VLOOKUP(R99,Landcost2,2,FALSE),"Error"))) -> 0 | U99: 0 | V99: 2014 | W99: =IFERROR((GeneralInput!$G$39/(VLOOKUP(V99,GeneralInput!$E$39:$G$45,3,FALSE))),1) -> 1 | X99: 10481 | Y99: y | AF99: 47790 | AL99: 47790 | AN99: 10481
B100: RK-000027 | C100: 8105 | D100: Kerb Financial Asset | E100: Albert St W Bnd P/B | F100: Albert St W Bnd P/B | G100: Beaudesert | H100: Tina St | I100: Ecole St | L100: 4B | M100: 0 | N100: 21460 | P100: 1 | Q100: 21460 | S100: 713 | T100: =IF(R100="",'Unit Rates-Land'!landcst,IF($D$8="Landuse",VLOOKUP(R100,LAndcost3,2,FALSE),IF($D$8="Location",VLOOKUP(R100,Landcost2,2,FALSE),"Error"))) -> 0 | U100: 0 | V100: 2014 | W100: =IFERROR((GeneralInput!$G$39/(VLOOKUP(V100,GeneralInput!$E$39:$G$45,3,FALSE))),1) -> 1 | X100: 21460 | Y100: y | AF100: 47790 | AL100: 47790 | AN100: 21460
B101: RS-000025 | C101: 8105 | D101: Seal Financial Asset | E101: Albert St W Bnd P/B - Seal | F101: Albert St W Bnd P/B | G101: Beaudesert | H101: Tina St | I101: Ecole St | L101: 4B | M101: 0 | N101: 49197 | P101: 1 | Q101: 49197 | S101: 713 | T101: =IF(R101="",'Unit Rates-Land'!landcst,IF($D$8="Landuse",VLOOKUP(R101,LAndcost3,2,FALSE),IF($D$8="Location",VLOOKUP(R101,Landcost2,2,FALSE),"Error"))) -> 0 | U101: 0 | V101: 2014 | W101: =IFERROR((GeneralInput!$G$39/(VLOOKUP(V101,GeneralInput!$E$39:$G$45,3,FALSE))),1) -> 1 | X101: 49197 | Y101: y | AF101: 47790 | AL101: 47790 | AN101: 49197
B102: RP-000025 | C102: 8105 | D102: Sealed Road Financia | E102: Albert St W Bnd P/B | F102: Albert St W Bnd P/B | G102: Beaudesert | H102: Tina St | I102: Ecole St | L102: 4B | M102: 0 | N102: 159356 | P102: 1 | Q102: 159356 | S102: 713 | T102: =IF(R102="",'Unit Rates-Land'!landcst,IF($D$8="Landuse",VLOOKUP(R102,LAndcost3,2,FALSE),IF($D$8="Location",VLOOKUP(R102,Landcost2,2,FALSE),"Error"))) -> 0 | U102: 0 | V102: 2014 | W102: =IFERROR((GeneralInput!$G$39/(VLOOKUP(V102,GeneralInput!$E$39:$G$45,3,FALSE))),1) -> 1 | X102: 159356 | Y102: y | AF102: 47790 | AL102: 47790 | AN102: 159356
B103: RU-000919 | C103: 8107 | D103: Formation Financial | E103: Albert St W Bnd P/B - Formation | F103: Albert St W Bnd P/B | G103: Beaudesert | H103: Ecole St | I103: Arthur St | L103: 4B | M103: 0 | N103: 487 | P103: 1 | Q103: 487 | S103: 58 | T103: =IF(R103="",'Unit Rates-Land'!landcst,IF($D$8="Landuse",VLOOKUP(R103,LAndcost3,2,FALSE),IF($D$8="Location",VLOOKUP(R103,Landcost2,2,FALSE),"Error"))) -> 0 | U103: 0 | V103: 2014 | W103: =IFERROR((GeneralInput!$G$39/(VLOOKUP(V103,GeneralInput!$E$39:$G$45,3,FALSE))),1) -> 1 | X103: 487 | Y103: y | AF103: 47790 | AL103: 47790 | AN103: 487
B104: RK-000028 | C104: 8107 | D104: Kerb Financial Asset | E104: Albert St W Bnd P/B | F104: Albert St W Bnd P/B | G104: Beaudesert | H104: Ecole St | I104: Arthur St | L104: 4B | M104: 0 | N104: 6090 | P104: 1 | Q104: 6090 | S104: 58 | T104: =IF(R104="",'Unit Rates-Land'!landcst,IF($D$8="Landuse",VLOOKUP(R104,LAndcost3,2,FALSE),IF($D$8="Location",VLOOKUP(R104,Landcost2,2,FALSE),"Error"))) -> 0 | U104: 0 | V104: 2014 | W104: =IFERROR((GeneralInput!$G$39/(VLOOKUP(V104,GeneralInput!$E$39:$G$45,3,FALSE))),1) -> 1 | X104: 6090 | Y104: y | AF104: 47790 | AL104: 47790 | AN104: 6090
B105: RS-000026 | C105: 8107 | D105: Seal Financial Asset | E105: Albert St W Bnd P/B - Seal | F105: Albert St W Bnd P/B | G105: Beaudesert | H105: Ecole St | I105: Arthur St | L105: 4B | M105: 0 | N105: 4002 | P105: 1 | Q105: 4002 | S105: 58 | T105: =IF(R105="",'Unit Rates-Land'!landcst,IF($D$8="Landuse",VLOOKUP(R105,LAndcost3,2,FALSE),IF($D$8="Location",VLOOKUP(R105,Landcost2,2,FALSE),"Error"))) -> 0 | U105: 0 | V105: 2014 | W105: =IFERROR((GeneralInput!$G$39/(VLOOKUP(V105,GeneralInput!$E$39:$G$45,3,FALSE))),1) -> 1 | X105: 4002 | Y105: y | AF105: 47790 | AL105: 47790 | AN105: 4002
B106: RP-000026 | C106: 8107 | D106: Sealed Road Financia | E106: Albert St W Bnd P/B | F106: Albert St W Bnd P/B | G106: Beaudesert | H106: Ecole St | I106: Arthur St | L106: 4B | M106: 0 | N106: 12963 | P106: 1 | Q106: 12963 | S106: 58 | T106: =IF(R106="",'Unit Rates-Land'!landcst,IF($D$8="Landuse",VLOOKUP(R106,LAndcost3,2,FALSE),IF($D$8="Location",VLOOKUP(R106,Landcost2,2,FALSE),"Error"))) -> 0 | U106: 0 | V106: 2014 | W106: =IFERROR((GeneralInput!$G$39/(VLOOKUP(V106,GeneralInput!$E$39:$G$45,3,FALSE))),1) -> 1 | X106: 12963 | Y106: y | AF106: 47790 | AL106: 47790 | AN106: 12963
B107: RU-000920 | C107: 8109 | D107: Formation Financial | E107: Albert St W Bnd P/B - Formation | F107: Albert St W Bnd P/B | G107: Beaudesert | H107: Arthur St | I107: End Parking Lane | L107: 4B | M107: 0 | N107: 1025 | P107: 1 | Q107: 1025 | S107: 122 | T107: =IF(R107="",'Unit Rates-Land'!landcst,IF($D$8="Landuse",VLOOKUP(R107,LAndcost3,2,FALSE),IF($D$8="Location",VLOOKUP(R107,Landcost2,2,FALSE),"Error"))) -> 0 | U107: 0 | V107: 2014 | W107: =IFERROR((GeneralInput!$G$39/(VLOOKUP(V107,GeneralInput!$E$39:$G$45,3,FALSE))),1) -> 1 | X107: 1025 | Y107: y | AF107: 47790 | AL107: 47790 | AN107: 1025
B108: RK-000029 | C108: 8109 | D108: Kerb Financial Asset | E108: Albert St W Bnd P/B | F108: Albert St W Bnd P/B | G108: Beaudesert | H108: Arthur St | I108: End Parking Lane | L108: 4B | M108: 0 | N108: 30160 | P108: 1 | Q108: 30160 | S108: 122 | T108: =IF(R108="",'Unit Rates-Land'!landcst,IF($D$8="Landuse",VLOOKUP(R108,LAndcost3,2,FALSE),IF($D$8="Location",VLOOKUP(R108,Landcost2,2,FALSE),"Error"))) -> 0 | U108: 0 | V108: 2014 | W108: =IFERROR((GeneralInput!$G$39/(VLOOKUP(V108,GeneralInput!$E$39:$G$45,3,FALSE))),1) -> 1 | X108: 30160 | Y108: y | AF108: 47790 | AL108: 47790 | AN108: 30160
B109: RS-000027 | C109: 8109 | D109: Seal Financial Asset | E109: Albert St W Bnd P/B - Seal | F109: Albert St W Bnd P/B | G109: Beaudesert | H109: Arthur St | I109: End Parking Lane | L109: 4B | M109: 0 | N109: 8418 | P109: 1 | Q109: 8418 | S109: 122 | T109: =IF(R109="",'Unit Rates-Land'!landcst,IF($D$8="Landuse",VLOOKUP(R109,LAndcost3,2,FALSE),IF($D$8="Location",VLOOKUP(R109,Landcost2,2,FALSE),"Error"))) -> 0 | U109: 0 | V109: 2014 | W109: =IFERROR((GeneralInput!$G$39/(VLOOKUP(V109,GeneralInput!$E$39:$G$45,3,FALSE))),1) -> 1 | X109: 8418 | Y109: y | AF109: 47790 | AL109: 47790 | AN109: 8418
B110: RP-000027 | C110: 8109 | D110: Sealed Road Financia | E110: Albert St W Bnd P/B | F110: Albert St W Bnd P/B | G110: Beaudesert | H110: Arthur St | I110: End Parking Lane | L110: 4B | M110: 0 | N110: 27267 | P110: 1 | Q110: 27267 | S110: 122 | T110: =IF(R110="",'Unit Rates-Land'!landcst,IF($D$8="Landuse",VLOOKUP(R110,LAndcost3,2,FALSE),IF($D$8="Location",VLOOKUP(R110,Landcost2,2,FALSE),"Error"))) -> 0 | U110: 0 | V110: 2014 | W110: =IFERROR((GeneralInput!$G$39/(VLOOKUP(V110,GeneralInput!$E$39:$G$45,3,FALSE))),1) -> 1 | X110: 27267 | Y110: y | AF110: 47790 | AL110: 47790 | AN110: 27267
B111: RF-000015 | C111: 8191 | D111: Footpath Financial | E111: Anna St | F111: Anna St | G111: Beaudesert | H111: Eaglesfield St | I111: William St | L111: 4A | M111: 0 | N111: 42588 | P111: 1 | Q111: 42588 | S111: 0 | T111: =IF(R111="",'Unit Rates-Land'!landcst,IF($D$8="Landuse",VLOOKUP(R111,LAndcost3,2,FALSE),IF($D$8="Location",VLOOKUP(R111,Landcost2,2,FALSE),"Error"))) -> 0 | U111: 0 | V111: 2014 | W111: =IFERROR((GeneralInput!$G$39/(VLOOKUP(V111,GeneralInput!$E$39:$G$45,3,FALSE))),1) -> 1 | X111: 42588 | Y111: y | AF111: 47790 | AL111: 47790 | AN111: 42588
B112: RF-000016 | C112: 8191 | D112: Footpath Financial | E112: Anna St | F112: Anna St | G112: Beaudesert | H112: Eaglesfield St | I112: William St | L112: 4A | M112: 0 | N112: 37596 | P112: 1 | Q112: 37596 | S112: 0 | T112: =IF(R112="",'Unit Rates-Land'!landcst,IF($D$8="Landuse",VLOOKUP(R112,LAndcost3,2,FALSE),IF($D$8="Location",VLOOKUP(R112,Landcost2,2,FALSE),"Error"))) -> 0 | U112: 0 | V112: 2014 | W112: =IFERROR((GeneralInput!$G$39/(VLOOKUP(V112,GeneralInput!$E$39:$G$45,3,FALSE))),1) -> 1 | X112: 37596 | Y112: y | AF112: 47790 | AL112: 47790 | AN112: 37596
B113: RF-000017 | C113: 8191 | D113: Footpath Financial | E113: Anna St | F113: Anna St | G113: Beaudesert | H113: Eaglesfield St | I113: William St | L113: 4A | M113: 0 | N113: 20048 | P113: 1 | Q113: 20048 | S113: 0 | T113: =IF(R113="",'Unit Rates-Land'!landcst,IF($D$8="Landuse",VLOOKUP(R113,LAndcost3,2,FALSE),IF($D$8="Location",VLOOKUP(R113,Landcost2,2,FALSE),"Error"))) -> 0 | U113: 0 | V113: 2014 | W113: =IFERROR((GeneralInput!$G$39/(VLOOKUP(V113,GeneralInput!$E$39:$G$45,3,FALSE))),1) -> 1 | X113: 20048 | Y113: y | AF113: 47790 | AL113: 47790 | AN113: 20048
B114: RF-000018 | C114: 8193 | D114: Footpath Financial | E114: Anna St | F114: Anna St | G114: Beaudesert | H114: William St | I114: Albert St | L114: 4B | M114: 0 | N114: 17597 | P114: 1 | Q114: 17597 | S114: 0 | T114: =IF(R114="",'Unit Rates-Land'!landcst,IF($D$8="Landuse",VLOOKUP(R114,LAndcost3,2,FALSE),IF($D$8="Location",VLOOKUP(R114,Landcost2,2,FALSE),"Error"))) -> 0 | U114: 0 | V114: 2014 | W114: =IFERROR((GeneralInput!$G$39/(VLOOKUP(V114,GeneralInput!$E$39:$G$45,3,FALSE))),1) -> 1 | X114: 17597 | Y114: y | AF114: 47790 | AL114: 47790 | AN114: 17597
B115: RF-000019 | C115: 8193 | D115: Footpath Financial | E115: Anna St | F115: Anna St | G115: Beaudesert | H115: William St | I115: Albert St | L115: 4B | M115: 0 | N115: 25056 | P115: 1 | Q115: 25056 | S115: 0 | T115: =IF(R115="",'Unit Rates-Land'!landcst,IF($D$8="Landuse",VLOOKUP(R115,LAndcost3,2,FALSE),IF($D$8="Location",VLOOKUP(R115,Landcost2,2,FALSE),"Error"))) -> 0 | U115: 0 | V115: 2014 | W115: =IFERROR((GeneralInput!$G$39/(VLOOKUP(V115,GeneralInput!$E$39:$G$45,3,FALSE))),1) -> 1 | X115: 25056 | Y115: y | AF115: 47790 | AL115: 47790 | AN115: 25056
B116: RU-000953 | C116: 8188 | D116: Formation Financial | E116: Anna St - Formation | F116: Anna St | G116: Beaudesert | H116: SBL Tubber St | I116: Selwyn St | L116: 4B | M116: 0 | N116: 6876 | P116: 1 | Q116: 6876 | S116: 155 | T116: =IF(R116="",'Unit Rates-Land'!landcst,IF($D$8="Landuse",VLOOKUP(R116,LAndcost3,2,FALSE),IF($D$8="Location",VLOOKUP(R116,Landcost2,2,FALSE),"Error"))) -> 0 | U116: 0 | V116: 2014 | W116: =IFERROR((GeneralInput!$G$39/(VLOOKUP(V116,GeneralInput!$E$39:$G$45,3,FALSE))),1) -> 1 | X116: 6876 | Y116: y | AF116: 47790 | AL116: 47790 | AN116: 6876
B117: RK-000043 | C117: 8188 | D117: Kerb Financial Asset | E117: Anna St | F117: Anna St | G117: Beaudesert | H117: SBL Tubber St | I117: Selwyn St | L117: 4B | M117: 0 | N117: 21605 | P117: 1 | Q117: 21605 | S117: 155 | T117: =IF(R117="",'Unit Rates-Land'!landcst,IF($D$8="Landuse",VLOOKUP(R117,LAndcost3,2,FALSE),IF($D$8="Location",VLOOKUP(R117,Landcost2,2,FALSE),"Error"))) -> 0 | U117: 0 | V117: 2014 | W117: =IFERROR((GeneralInput!$G$39/(VLOOKUP(V117,GeneralInput!$E$39:$G$45,3,FALSE))),1) -> 1 | X117: 21605 | Y117: y | AF117: 47790 | AL117: 47790 | AN117: 21605
B118: RK-000045 | C118: 8188 | D118: Kerb Financial Asset | E118: Anna St | F118: Anna St | G118: Beaudesert | H118: SBL Tubber St | I118: Selwyn St | L118: 4B | M118: 0 | N118: 20300 | P118: 1 | Q118: 20300 | S118: 155 | T118: =IF(R118="",'Unit Rates-Land'!landcst,IF($D$8="Landuse",VLOOKUP(R118,LAndcost3,2,FALSE),IF($D$8="Location",VLOOKUP(R118,Landcost2,2,FALSE),"Error"))) -> 0 | U118: 0 | V118: 2014 | W118: =IFERROR((GeneralInput!$G$39/(VLOOKUP(V118,GeneralInput!$E$39:$G$45,3,FALSE))),1) -> 1 | X118: 20300 | Y118: y | AF118: 47790 | AL118: 47790 | AN118: 20300
B119: RS-000070 | C119: 8188 | D119: Seal Financial Asset | E119: Anna St - Seal | F119: Anna St | G119: Beaudesert | H119: SBL Tubber St | I119: Selwyn St | L119: 4B | M119: 0 | N119: 13436 | P119: 1 | Q119: 13436 | S119: 155 | T119: =IF(R119="",'Unit Rates-Land'!landcst,IF($D$8="Landuse",VLOOKUP(R119,LAndcost3,2,FALSE),IF($D$8="Location",VLOOKUP(R119,Landcost2,2,FALSE),"Error"))) -> 0 | U119: 0 | V119: 2014 | W119: =IFERROR((GeneralInput!$G$39/(VLOOKUP(V119,GeneralInput!$E$39:$G$45,3,FALSE))),1) -> 1 | X119: 13436 | Y119: y | AF119: 47790 | AL119: 47790 | AN119: 13436
B120: RP-000071 | C120: 8188 | D120: Sealed Road Financia | E120: Anna St | F120: Anna St | G120: Beaudesert | H120: SBL Tubber St | I120: Selwyn St | L120: 4B | M120: 0 | N120: 45138 | P120: 1 | Q120: 45138 | S120: 155 | T120: =IF(R120="",'Unit Rates-Land'!landcst,IF($D$8="Landuse",VLOOKUP(R120,LAndcost3,2,FALSE),IF($D$8="Location",VLOOKUP(R120,Landcost2,2,FALSE),"Error"))) -> 0 | U120: 0 | V120: 2014 | W120: =IFERROR((GeneralInput!$G$39/(VLOOKUP(V120,GeneralInput!$E$39:$G$45,3,FALSE))),1) -> 1 | X120: 45138 | Y120: y | AF120: 47790 | AL120: 47790 | AN120: 45138
B121: RU-000954 | C121: 8189 | D121: Formation Financial | E121: Anna St - Formation | F121: Anna St | G121: Beaudesert | H121: Selwyn St | I121: Seal Change | L121: 4A | M121: 0 | N121: 7673 | P121: 1 | Q121: 7673 | S121: 174 | T121: =IF(R121="",'Unit Rates-Land'!landcst,IF($D$8="Landuse",VLOOKUP(R121,LAndcost3,2,FALSE),IF($D$8="Location",VLOOKUP(R121,Landcost2,2,FALSE),"Error"))) -> 0 | U121: 0 | V121: 2014 | W121: =IFERROR((GeneralInput!$G$39/(VLOOKUP(V121,GeneralInput!$E$39:$G$45,3,FALSE))),1) -> 1 | X121: 7673 | Y121: y | AF121: 47790 | AL121: 47790 | AN121: 7673
B122: RK-000047 | C122: 8189 | D122: Kerb Financial Asset | E122: Anna St | F122: Anna St | G122: Beaudesert | H122: Selwyn St | I122: Seal Change | L122: 4A | M122: 0 | N122: 25230 | P122: 1 | Q122: 25230 | S122: 174 | T122: =IF(R122="",'Unit Rates-Land'!landcst,IF($D$8="Landuse",VLOOKUP(R122,LAndcost3,2,FALSE),IF($D$8="Location",VLOOKUP(R122,Landcost2,2,FALSE),"Error"))) -> 0 | U122: 0 | V122: 2014 | W122: =IFERROR((GeneralInput!$G$39/(VLOOKUP(V122,GeneralInput!$E$39:$G$45,3,FALSE))),1) -> 1 | X122: 25230 | Y122: y | AF122: 47790 | AL122: 47790 | AN122: 25230
B123: RK-000049 | C123: 8189 | D123: Kerb Financial Asset | E123: Anna St | F123: Anna St | G123: Beaudesert | H123: Selwyn St | I123: Seal Change | L123: 4A | M123: 0 | N123: 23490 | P123: 1 | Q123: 23490 | S123: 174 | T123: =IF(R123="",'Unit Rates-Land'!landcst,IF($D$8="Landuse",VLOOKUP(R123,LAndcost3,2,FALSE),IF($D$8="Location",VLOOKUP(R123,Landcost2,2,FALSE),"Error"))) -> 0 | U123: 0 | V123: 2014 | W123: =IFERROR((GeneralInput!$G$39/(VLOOKUP(V123,GeneralInput!$E$39:$G$45,3,FALSE))),1) -> 1 | X123: 23490 | Y123: y | AF123: 47790 | AL123: 47790 | AN123: 23490
B124: RS-000071 | C124: 8189 | D124: Seal Financial Asset | E124: Anna St - Seal | F124: Anna St | G124: Beaudesert | H124: Selwyn St | I124: Seal Change | L124: 4A | M124: 0 | N124: 15280 | P124: 1 | Q124: 15280 | S124: 174 | T124: =IF(R124="",'Unit Rates-Land'!landcst,IF($D$8="Landuse",VLOOKUP(R124,LAndcost3,2,FALSE),IF($D$8="Location",VLOOKUP(R124,Landcost2,2,FALSE),"Error"))) -> 0 | U124: 0 | V124: 2014 | W124: =IFERROR((GeneralInput!$G$39/(VLOOKUP(V124,GeneralInput!$E$39:$G$45,3,FALSE))),1) -> 1 | X124: 15280 | Y124: y | AF124: 47790 | AL124: 47790 | AN124: 15280
B125: RP-000072 | C125: 8189 | D125: Sealed Road Financia | E125: Anna St | F125: Anna St | G125: Beaudesert | H125: Selwyn St | I125: Seal Change | L125: 4A | M125: 0 | N125: 57556 | P125: 1 | Q125: 57556 | S125: 174 | T125: =IF(R125="",'Unit Rates-Land'!landcst,IF($D$8="Landuse",VLOOKUP(R125,LAndcost3,2,FALSE),IF($D$8="Location",VLOOKUP(R125,Landcost2,2,FALSE),"Error"))) -> 0 | U125: 0 | V125: 2014 | W125: =IFERROR((GeneralInput!$G$39/(VLOOKUP(V125,GeneralInput!$E$39:$G$45,3,FALSE))),1) -> 1 | X125: 57556 | Y125: y | AF125: 47790 | AL125: 47790 | AN125: 57556
B126: RU-000955 | C126: 8190 | D126: Formation Financial | E126: Anna St - Formation | F126: Anna St | G126: Beaudesert | H126: Seal Change | I126: Eaglesfield St | L126: 4A | M126: 0 | N126: 2226 | P126: 1 | Q126: 2226 | S126: 49 | T126: =IF(R126="",'Unit Rates-Land'!landcst,IF($D$8="Landuse",VLOOKUP(R126,LAndcost3,2,FALSE),IF($D$8="Location",VLOOKUP(R126,Landcost2,2,FALSE),"Error"))) -> 0 | U126: 0 | V126: 2014 | W126: =IFERROR((GeneralInput!$G$39/(VLOOKUP(V126,GeneralInput!$E$39:$G$45,3,FALSE))),1) -> 1 | X126: 2226 | Y126: y | AF126: 47790 | AL126: 47790 | AN126: 2226
B127: RK-000051 | C127: 8190 | D127: Kerb Financial Asset | E127: Anna St | F127: Anna St | G127: Beaudesert | H127: Seal Change | I127: Eaglesfield St | L127: 4A | M127: 0 | N127: 6670 | P127: 1 | Q127: 6670 | S127: 49 | T127: =IF(R127="",'Unit Rates-Land'!landcst,IF($D$8="Landuse",VLOOKUP(R127,LAndcost3,2,FALSE),IF($D$8="Location",VLOOKUP(R127,Landcost2,2,FALSE),"Error"))) -> 0 | U127: 0 | V127: 2014 | W127: =IFERROR((GeneralInput!$G$39/(VLOOKUP(V127,GeneralInput!$E$39:$G$45,3,FALSE))),1) -> 1 | X127: 6670 | Y127: y | AF127: 47790 | AL127: 47790 | AN127: 6670
B128: RK-000053 | C128: 8190 | D128: Kerb Financial Asset | E128: Anna St | F128: Anna St | G128: Beaudesert | H128: Seal Change | I128: Eaglesfield St | L128: 4A | M128: 0 | N128: 7250 | P128: 1 | Q128: 7250 | S128: 49 | T128: =IF(R128="",'Unit Rates-Land'!landcst,IF($D$8="Landuse",VLOOKUP(R128,LAndcost3,2,FALSE),IF($D$8="Location",VLOOKUP(R128,Landcost2,2,FALSE),"Error"))) -> 0 | U128: 0 | V128: 2014 | W128: =IFERROR((GeneralInput!$G$39/(VLOOKUP(V128,GeneralInput!$E$39:$G$45,3,FALSE))),1) -> 1 | X128: 7250 | Y128: y | AF128: 47790 | AL128: 47790 | AN128: 7250
B129: RS-000072 | C129: 8190 | D129: Seal Financial Asset | E129: Anna St - Seal | F129: Anna St | G129: Beaudesert | H129: Seal Change | I129: Eaglesfield St | L129: 4A | M129: 0 | N129: 10571 | P129: 1 | Q129: 10571 | S129: 49 | T129: =IF(R129="",'Unit Rates-Land'!landcst,IF($D$8="Landuse",VLOOKUP(R129,LAndcost3,2,FALSE),IF($D$8="Location",VLOOKUP(R129,Landcost2,2,FALSE),"Error"))) -> 0 | U129: 0 | V129: 2014 | W129: =IFERROR((GeneralInput!$G$39/(VLOOKUP(V129,GeneralInput!$E$39:$G$45,3,FALSE))),1) -> 1 | X129: 10571 | Y129: y | AF129: 47790 | AL129: 47790 | AN129: 10571
B130: RP-000073 | C130: 8190 | D130: Sealed Road Financia | E130: Anna St | F130: Anna St | G130: Beaudesert | H130: Seal Change | I130: Eaglesfield St | L130: 4A | M130: 0 | N130: 29800 | P130: 1 | Q130: 29800 | S130: 49 | T130: =IF(R130="",'Unit Rates-Land'!landcst,IF($D$8="Landuse",VLOOKUP(R130,LAndcost3,2,FALSE),IF($D$8="Location",VLOOKUP(R130,Landcost2,2,FALSE),"Error"))) -> 0 | U130: 0 | V130: 2014 | W130: =IFERROR((GeneralInput!$G$39/(VLOOKUP(V130,GeneralInput!$E$39:$G$45,3,FALSE))),1) -> 1 | X130: 29800 | Y130: y | AF130: 47790 | AL130: 47790 | AN130: 29800
B131: RU-000956 | C131: 8191 | D131: Formation Financial | E131: Anna St - Formation | F131: Anna St | G131: Beaudesert | H131: Eaglesfield St | I131: William St | L131: 4A | M131: 0 | N131: 14266 | P131: 1 | Q131: 14266 | S131: 296 | T131: =IF(R131="",'Unit Rates-Land'!landcst,IF($D$8="Landuse",VLOOKUP(R131,LAndcost3,2,FALSE),IF($D$8="Location",VLOOKUP(R131,Landcost2,2,FALSE),"Error"))) -> 0 | U131: 0 | V131: 2014 | W131: =IFERROR((GeneralInput!$G$39/(VLOOKUP(V131,GeneralInput!$E$39:$G$45,3,FALSE))),1) -> 1 | X131: 14266 | Y131: y | AF131: 47790 | AL131: 47790 | AN131: 14266
B132: RK-000054 | C132: 8191 | D132: Kerb Financial Asset | E132: Anna St | F132: Anna St | G132: Beaudesert | H132: Eaglesfield St | I132: William St | L132: 4A | M132: 0 | N132: 40020 | P132: 1 | Q132: 40020 | S132: 296 | T132: =IF(R132="",'Unit Rates-Land'!landcst,IF($D$8="Landuse",VLOOKUP(R132,LAndcost3,2,FALSE),IF($D$8="Location",VLOOKUP(R132,Landcost2,2,FALSE),"Error"))) -> 0 | U132: 0 | V132: 2014 | W132: =IFERROR((GeneralInput!$G$39/(VLOOKUP(V132,GeneralInput!$E$39:$G$45,3,FALSE))),1) -> 1 | X132: 40020 | Y132: y | AF132: 47790 | AL132: 47790 | AN132: 40020
B133: RK-000056 | C133: 8191 | D133: Kerb Financial Asset | E133: Anna St | F133: Anna St | G133: Beaudesert | H133: Eaglesfield St | I133: William St | L133: 4A | M133: 0 | N133: 42340 | P133: 1 | Q133: 42340 | S133: 296 | T133: =IF(R133="",'Unit Rates-Land'!landcst,IF($D$8="Landuse",VLOOKUP(R133,LAndcost3,2,FALSE),IF($D$8="Location",VLOOKUP(R133,Landcost2,2,FALSE),"Error"))) -> 0 | U133: 0 | V133: 2014 | W133: =IFERROR((GeneralInput!$G$39/(VLOOKUP(V133,GeneralInput!$E$39:$G$45,3,FALSE))),1) -> 1 | X133: 42340 | Y133: y | AF133: 47790 | AL133: 47790 | AN133: 42340
B134: RS-000073 | C134: 8191 | D134: Seal Financial Asset | E134: Anna St - Seal | F134: Anna St | G134: Beaudesert | H134: Eaglesfield St | I134: William St | L134: 4A | M134: 0 | N134: 95809 | P134: 1 | Q134: 95809 | S134: 296 | T134: =IF(R134="",'Unit Rates-Land'!landcst,IF($D$8="Landuse",VLOOKUP(R134,LAndcost3,2,FALSE),IF($D$8="Location",VLOOKUP(R134,Landcost2,2,FALSE),"Error"))) -> 0 | U134: 0 | V134: 2014 | W134: =IFERROR((GeneralInput!$G$39/(VLOOKUP(V134,GeneralInput!$E$39:$G$45,3,FALSE))),1) -> 1 | X134: 95809 | Y134: y | AF134: 47790 | AL134: 47790 | AN134: 95809
B135: RP-000074 | C135: 8191 | D135: Sealed Road Financia | E135: Anna St | F135: Anna St | G135: Beaudesert | H135: Eaglesfield St | I135: William St | L135: 4A | M135: 0 | N135: 191495 | P135: 1 | Q135: 191495 | S135: 296 | T135: =IF(R135="",'Unit Rates-Land'!landcst,IF($D$8="Landuse",VLOOKUP(R135,LAndcost3,2,FALSE),IF($D$8="Location",VLOOKUP(R135,Landcost2,2,FALSE),"Error"))) -> 0 | U135: 0 | V135: 2014 | W135: =IFERROR((GeneralInput!$G$39/(VLOOKUP(V135,GeneralInput!$E$39:$G$45,3,FALSE))),1) -> 1 | X135: 191495 | Y135: y | AF135: 47790 | AL135: 47790 | AN135: 191495
B136: RU-000957 | C136: 8193 | D136: Formation Financial | E136: Anna St - Formation | F136: Anna St | G136: Beaudesert | H136: William St | I136: Albert St | L136: 4B | M136: 0 | N136: 6927 | P136: 1 | Q136: 6927 | S136: 171 | T136: =IF(R136="",'Unit Rates-Land'!landcst,IF($D$8="Landuse",VLOOKUP(R136,LAndcost3,2,FALSE),IF($D$8="Location",VLOOKUP(R136,Landcost2,2,FALSE),"Error"))) -> 0 | U136: 0 | V136: 2014 | W136: =IFERROR((GeneralInput!$G$39/(VLOOKUP(V136,GeneralInput!$E$39:$G$45,3,FALSE))),1) -> 1 | X136: 6927 | Y136: y | AF136: 47790 | AL136: 47790 | AN136: 6927
B137: RK-000058 | C137: 8193 | D137: Kerb Financial Asset | E137: Anna St | F137: Anna St | G137: Beaudesert | H137: William St | I137: Albert St | L137: 4B | M137: 0 | N137: 18270 | P137: 1 | Q137: 18270 | S137: 171 | T137: =IF(R137="",'Unit Rates-Land'!landcst,IF($D$8="Landuse",VLOOKUP(R137,LAndcost3,2,FALSE),IF($D$8="Location",VLOOKUP(R137,Landcost2,2,FALSE),"Error"))) -> 0 | U137: 0 | V137: 2014 | W137: =IFERROR((GeneralInput!$G$39/(VLOOKUP(V137,GeneralInput!$E$39:$G$45,3,FALSE))),1) -> 1 | X137: 18270 | Y137: y | AF137: 47790 | AL137: 47790 | AN137: 18270
B138: RK-000059 | C138: 8193 | D138: Kerb Financial Asset | E138: Anna St | F138: Anna St | G138: Beaudesert | H138: William St | I138: Albert St | L138: 4B | M138: 0 | N138: 19140 | P138: 1 | Q138: 19140 | S138: 171 | T138: =IF(R138="",'Unit Rates-Land'!landcst,IF($D$8="Landuse",VLOOKUP(R138,LAndcost3,2,FALSE),IF($D$8="Location",VLOOKUP(R138,Landcost2,2,FALSE),"Error"))) -> 0 | U138: 0 | V138: 2014 | W138: =IFERROR((GeneralInput!$G$39/(VLOOKUP(V138,GeneralInput!$E$39:$G$45,3,FALSE))),1) -> 1 | X138: 19140 | Y138: y | AF138: 47790 | AL138: 47790 | AN138: 19140
B139: RS-000075 | C139: 8193 | D139: Seal Financial Asset | E139: Anna St - Seal | F139: Anna St | G139: Beaudesert | H139: William St | I139: Albert St | L139: 4B | M139: 0 | N139: 46390 | P139: 1 | Q139: 46390 | S139: 171 | T139: =IF(R139="",'Unit Rates-Land'!landcst,IF($D$8="Landuse",VLOOKUP(R139,LAndcost3,2,FALSE),IF($D$8="Location",VLOOKUP(R139,Landcost2,2,FALSE),"Error"))) -> 0 | U139: 0 | V139: 2014 | W139: =IFERROR((GeneralInput!$G$39/(VLOOKUP(V139,GeneralInput!$E$39:$G$45,3,FALSE))),1) -> 1 | X139: 46390 | Y139: y | AF139: 47790 | AL139: 47790 | AN139: 46390
B140: RP-000076 | C140: 8193 | D140: Sealed Road Financia | E140: Anna St | F140: Anna St | G140: Beaudesert | H140: William St | I140: Albert St | L140: 4B | M140: 0 | N140: 92857 | P140: 1 | Q140: 92857 | S140: 171 | T140: =IF(R140="",'Unit Rates-Land'!landcst,IF($D$8="Landuse",VLOOKUP(R140,LAndcost3,2,FALSE),IF($D$8="Location",VLOOKUP(R140,Landcost2,2,FALSE),"Error"))) -> 0 | U140: 0 | V140: 2014 | W140: =IFERROR((GeneralInput!$G$39/(VLOOKUP(V140,GeneralInput!$E$39:$G$45,3,FALSE))),1) -> 1 | X140: 92857 | Y140: y | AF140: 47790 | AL140: 47790 | AN140: 92857
B141: RU-000958 | C141: 8194 | D141: Formation Financial | E141: Anna St - Formation | F141: Anna St | G141: Beaudesert | H141: Albert St | I141: Jane St | L141: 4B | M141: 0 | N141: 8278 | P141: 1 | Q141: 8278 | S141: 220 | T141: =IF(R141="",'Unit Rates-Land'!landcst,IF($D$8="Landuse",VLOOKUP(R141,LAndcost3,2,FALSE),IF($D$8="Location",VLOOKUP(R141,Landcost2,2,FALSE),"Error"))) -> 0 | U141: 0 | V141: 2014 | W141: =IFERROR((GeneralInput!$G$39/(VLOOKUP(V141,GeneralInput!$E$39:$G$45,3,FALSE))),1) -> 1 | X141: 8278 | Y141: y | AF141: 47790 | AL141: 47790 | AN141: 8278
B142: RK-000060 | C142: 8194 | D142: Kerb Financial Asset | E142: Anna St | F142: Anna St | G142: Beaudesert | H142: Albert St | I142: Jane St | L142: 4B | M142: 0 | N142: 27260 | P142: 1 | Q142: 27260 | S142: 220 | T142: =IF(R142="",'Unit Rates-Land'!landcst,IF($D$8="Landuse",VLOOKUP(R142,LAndcost3,2,FALSE),IF($D$8="Location",VLOOKUP(R142,Landcost2,2,FALSE),"Error"))) -> 0 | U142: 0 | V142: 2014 | W142: =IFERROR((GeneralInput!$G$39/(VLOOKUP(V142,GeneralInput!$E$39:$G$45,3,FALSE))),1) -> 1 | X142: 27260 | Y142: y | AF142: 47790 | AL142: 47790 | AN142: 27260
B143: RK-000061 | C143: 8194 | D143: Kerb Financial Asset | E143: Anna St | F143: Anna St | G143: Beaudesert | H143: Albert St | I143: Jane St | L143: 4B | M143: 0 | N143: 29000 | P143: 1 | Q143: 29000 | S143: 220 | T143: =IF(R143="",'Unit Rates-Land'!landcst,IF($D$8="Landuse",VLOOKUP(R143,LAndcost3,2,FALSE),IF($D$8="Location",VLOOKUP(R143,Landcost2,2,FALSE),"Error"))) -> 0 | U143: 0 | V143: 2014 | W143: =IFERROR((GeneralInput!$G$39/(VLOOKUP(V143,GeneralInput!$E$39:$G$45,3,FALSE))),1) -> 1 | X143: 29000 | Y143: y | AF143: =IF(Y143="y",AF$14,IF(AND(Y143>0,Y143<=1),Y143*AF$14,"")) -> 47790 | AG143: =IF(Z143="y",AG$14,IF(AND(Z143>0,Z143<=1),Z143*AG$14,"")) ->  | AH143: =IF(AA143="y",AH$14,IF(AND(AA143>0,AA143<=1),AA143*AH$14,"")) ->  | AI143: =IF(AB143="y",AI$14,IF(AND(AB143>0,AB143<=1),AB143*AI$14,"")) ->  | AJ143: =IF(AC143="y",AJ$14,IF(AND(AC143>0,AC143<=1),AC143*AJ$14,"")) ->  | AK143: =IF(AD143="y",AK$14,IF(AND(AD143>0,AD143<=1),AD143*AK$14,"")) ->  | AL143: =SUM(AF143:AK143) -> 47790 | AN143: =IF(AF143="","",(AF143/$AL143)*$X143) -> 29000 | AO143: =IF(AG143="","",(AG143/$AL143)*$X143) ->  | AP143: =IF(AH143="","",(AH143/$AL143)*$X143) ->  | AQ143: =IF(AI143="","",(AI143/$AL143)*$X143) ->  | AR143: =IF(AJ143="","",(AJ143/$AL143)*$X143) ->  | AS143: =IF(AK143="","",(AK143/$AL143)*$X143) ->  | AT143: =IF(SUM(AN143:AS143)=X143,"","ERROR") -> 
B144: RS-000076 | C144: 8194 | D144: Seal Financial Asset | E144: Anna St - Seal | F144: Anna St | G144: Beaudesert | H144: Albert St | I144: Jane St | L144: 4B | M144: 0 | N144: 34997 | P144: 1 | Q144: 34997 | S144: 220 | T144: =IF(R144="",'Unit Rates-Land'!landcst,IF($D$8="Landuse",VLOOKUP(R144,LAndcost3,2,FALSE),IF($D$8="Location",VLOOKUP(R144,Landcost2,2,FALSE),"Error"))) -> 0 | U144: 0 | V144: 2014 | W144: =IFERROR((GeneralInput!$G$39/(VLOOKUP(V144,GeneralInput!$E$39:$G$45,3,FALSE))),1) -> 1 | X144: 34997 | Y144: y | AF144: 47790 | AL144: 47790 | AN144: 34997
B145: RP-000077 | C145: 8194 | D145: Sealed Road Financia | E145: Anna St | F145: Anna St | G145: Beaudesert | H145: Albert St | I145: Jane St | L145: 4B | M145: 0 | N145: 109640 | P145: 1 | Q145: 109640 | S145: 220 | T145: =IF(R145="",'Unit Rates-Land'!landcst,IF($D$8="Landuse",VLOOKUP(R145,LAndcost3,2,FALSE),IF($D$8="Location",VLOOKUP(R145,Landcost2,2,FALSE),"Error"))) -> 0 | U145: 0 | V145: 2014 | W145: =IFERROR((GeneralInput!$G$39/(VLOOKUP(V145,GeneralInput!$E$39:$G$45,3,FALSE))),1) -> 1 | X145: 109640 | Y145: y | AF145: 47790 | AL145: 47790 | AN145: 109640
B146: RU-000959 | C146: 8195 | D146: Formation Financial | E146: Anna St - Formation | F146: Anna St | G146: Beaudesert | H146: Jane St | I146: Collins St | L146: 4B | M146: =IF(J146=RoadTYPE1,VLOOKUP(L146,Roadunitrates1,2,FALSE),IF(J146=ROADTYPE2,VLOOKUP(L146,Roadunitrates2,2,FALSE),0)) -> 0 | N146: 4692 | P146: =IF(O146="",1,VLOOKUP(O146,Roadsitecond,2,FALSE)) -> 1 | Q146: =IF(N146="","",N146*P146) -> 4692 | S146: 198 | T146: =IF(R146="",'Unit Rates-Land'!landcst,IF($D$8="Landuse",VLOOKUP(R146,LAndcost3,2,FALSE),IF($D$8="Location",VLOOKUP(R146,Landcost2,2,FALSE),"Error"))) -> 0 | U146: =IF(T146="",0,T146*10000*S146) -> 0 | V146: 2014 | W146: =IFERROR((GeneralInput!$G$39/(VLOOKUP(V146,GeneralInput!$E$39:$G$45,3,FALSE))),1) -> 1 | X146: =IFERROR((Q146+U146)*W146,0) -> 4692 | Y146: y | AF146: 47790 | AL146: 47790 | AN146: 4692
B147: RK-000062 | C147: 8195 | D147: Kerb Financial Asset | E147: Anna St | F147: Anna St | G147: Beaudesert | H147: Jane St | I147: Collins St | L147: 4B | M147: 0 | N147: 26970 | P147: 1 | Q147: 26970 | S147: 198 | T147: =IF(R147="",'Unit Rates-Land'!landcst,IF($D$8="Landuse",VLOOKUP(R147,LAndcost3,2,FALSE),IF($D$8="Location",VLOOKUP(R147,Landcost2,2,FALSE),"Error"))) -> 0 | U147: 0 | V147: 2014 | W147: =IFERROR((GeneralInput!$G$39/(VLOOKUP(V147,GeneralInput!$E$39:$G$45,3,FALSE))),1) -> 1 | X147: 26970 | Y147: y | AF147: 47790 | AL147: 47790 | AN147: 26970
B148: RK-000063 | C148: 8195 | D148: Kerb Financial Asset | E148: Anna St | F148: Anna St | G148: Beaudesert | H148: Jane St | I148: Collins St | L148: 4B | M148: 0 | N148: 26390 | P148: 1 | Q148: 26390 | S148: 198 | T148: =IF(R148="",'Unit Rates-Land'!landcst,IF($D$8="Landuse",VLOOKUP(R148,LAndcost3,2,FALSE),IF($D$8="Location",VLOOKUP(R148,Landcost2,2,FALSE),"Error"))) -> 0 | U148: 0 | V148: 2014 | W148: =IFERROR((GeneralInput!$G$39/(VLOOKUP(V148,GeneralInput!$E$39:$G$45,3,FALSE))),1) -> 1 | X148: 26390 | Y148: y | AF148: 47790 | AL148: 47790 | AN148: 26390
B149: RS-000077 | C149: 8195 | D149: Seal Financial Asset | E149: Anna St - Seal | F149: Anna St | G149: Beaudesert | H149: Jane St | I149: Collins St | L149: 4B | M149: 0 | N149: 20238 | P149: 1 | Q149: 20238 | S149: 198 | T149: =IF(R149="",'Unit Rates-Land'!landcst,IF($D$8="Landuse",VLOOKUP(R149,LAndcost3,2,FALSE),IF($D$8="Location",VLOOKUP(R149,Landcost2,2,FALSE),"Error"))) -> 0 | U149: 0 | V149: 2014 | W149: =IFERROR((GeneralInput!$G$39/(VLOOKUP(V149,GeneralInput!$E$39:$G$45,3,FALSE))),1) -> 1 | X149: 20238 | Y149: y | AF149: 47790 | AL149: 47790 | AN149: 20238
B150: RP-000078 | C150: 8195 | D150: Sealed Road Financia | E150: Anna St | F150: Anna St | G150: Beaudesert | H150: Jane St | I150: Collins St | L150: 4B | M150: 0 | N150: 63081 | P150: 1 | Q150: 63081 | S150: 198 | T150: =IF(R150="",'Unit Rates-Land'!landcst,IF($D$8="Landuse",VLOOKUP(R150,LAndcost3,2,FALSE),IF($D$8="Location",VLOOKUP(R150,Landcost2,2,FALSE),"Error"))) -> 0 | U150: 0 | V150: 2014 | W150: =IFERROR((GeneralInput!$G$39/(VLOOKUP(V150,GeneralInput!$E$39:$G$45,3,FALSE))),1) -> 1 | X150: 63081 | Y150: y | AF150: 47790 | AL150: 47790 | AN150: 63081
B151: RU-000970 | C151: 8200 | D151: Formation Financial | E151: Arthur St - Formation | F151: Arthur St | G151: Beaudesert | H151: NBL Albert St | I151: Delamore St | L151: 4B | M151: 0 | N151: 4022 | P151: 1 | Q151: 4022 | S151: 159 | T151: =IF(R151="",'Unit Rates-Land'!landcst,IF($D$8="Landuse",VLOOKUP(R151,LAndcost3,2,FALSE),IF($D$8="Location",VLOOKUP(R151,Landcost2,2,FALSE),"Error"))) -> 0 | U151: 0 | V151: 2014 | W151: =IFERROR((GeneralInput!$G$39/(VLOOKUP(V151,GeneralInput!$E$39:$G$45,3,FALSE))),1) -> 1 | X151: 4022 | Y151: y | AF151: 47790 | AL151: 47790 | AN151: 4022
B152: RK-000077 | C152: 8200 | D152: Kerb Financial Asset | E152: Arthur St | F152: Arthur St | G152: Beaudesert | H152: NBL Albert St | I152: Delamore St | L152: 4B | M152: 0 | N152: 22330 | P152: 1 | Q152: 22330 | S152: 159 | T152: =IF(R152="",'Unit Rates-Land'!landcst,IF($D$8="Landuse",VLOOKUP(R152,LAndcost3,2,FALSE),IF($D$8="Location",VLOOKUP(R152,Landcost2,2,FALSE),"Error"))) -> 0 | U152: 0 | V152: 2014 | W152: =IFERROR((GeneralInput!$G$39/(VLOOKUP(V152,GeneralInput!$E$39:$G$45,3,FALSE))),1) -> 1 | X152: 22330 | Y152: y | AF152: 47790 | AL152: 47790 | AN152: 22330
B153: RK-000078 | C153: 8200 | D153: Kerb Financial Asset | E153: Arthur St | F153: Arthur St | G153: Beaudesert | H153: NBL Albert St | I153: Delamore St | L153: 4B | M153: 0 | N153: 22330 | P153: 1 | Q153: 22330 | S153: 159 | T153: =IF(R153="",'Unit Rates-Land'!landcst,IF($D$8="Landuse",VLOOKUP(R153,LAndcost3,2,FALSE),IF($D$8="Location",VLOOKUP(R153,Landcost2,2,FALSE),"Error"))) -> 0 | U153: 0 | V153: 2014 | W153: =IFERROR((GeneralInput!$G$39/(VLOOKUP(V153,GeneralInput!$E$39:$G$45,3,FALSE))),1) -> 1 | X153: 22330 | Y153: y | AF153: 47790 | AL153: 47790 | AN153: 22330
B154: RS-000102 | C154: 8200 | D154: Seal Financial Asset | E154: Arthur St - Seal | F154: Arthur St | G154: Beaudesert | H154: NBL Albert St | I154: Delamore St | L154: 4B | M154: 0 | N154: 26040 | P154: 1 | Q154: 26040 | S154: 159 | T154: =IF(R154="",'Unit Rates-Land'!landcst,IF($D$8="Landuse",VLOOKUP(R154,LAndcost3,2,FALSE),IF($D$8="Location",VLOOKUP(R154,Landcost2,2,FALSE),"Error"))) -> 0 | U154: 0 | V154: 2014 | W154: =IFERROR((GeneralInput!$G$39/(VLOOKUP(V154,GeneralInput!$E$39:$G$45,3,FALSE))),1) -> 1 | X154: 26040 | Y154: y | AF154: 47790 | AL154: 47790 | AN154: 26040
B155: RP-000103 | C155: 8200 | D155: Sealed Road Financia | E155: Arthur St | F155: Arthur St | G155: Beaudesert | H155: NBL Albert St | I155: Delamore St | L155: 4B | M155: 0 | N155: 43087 | P155: 1 | Q155: 43087 | S155: 159 | T155: =IF(R155="",'Unit Rates-Land'!landcst,IF($D$8="Landuse",VLOOKUP(R155,LAndcost3,2,FALSE),IF($D$8="Location",VLOOKUP(R155,Landcost2,2,FALSE),"Error"))) -> 0 | U155: 0 | V155: 2014 | W155: =IFERROR((GeneralInput!$G$39/(VLOOKUP(V155,GeneralInput!$E$39:$G$45,3,FALSE))),1) -> 1 | X155: 43087 | Y155: y | AF155: 47790 | AL155: 47790 | AN155: 43087
B156: RU-000971 | C156: 8201 | D156: Formation Financial | E156: Arthur St - Formation | F156: Arthur St | G156: Beaudesert | H156: Delamore St | I156: Eaglesfield St | L156: 4B | M156: 0 | N156: 6847 | P156: 1 | Q156: 6847 | S156: 284 | T156: =IF(R156="",'Unit Rates-Land'!landcst,IF($D$8="Landuse",VLOOKUP(R156,LAndcost3,2,FALSE),IF($D$8="Location",VLOOKUP(R156,Landcost2,2,FALSE),"Error"))) -> 0 | U156: 0 | V156: 2014 | W156: =IFERROR((GeneralInput!$G$39/(VLOOKUP(V156,GeneralInput!$E$39:$G$45,3,FALSE))),1) -> 1 | X156: 6847 | Y156: y | AF156: 47790 | AL156: 47790 | AN156: 6847
B157: RK-000079 | C157: 8201 | D157: Kerb Financial Asset | E157: Arthur St | F157: Arthur St | G157: Beaudesert | H157: Delamore St | I157: Eaglesfield St | L157: 4B | M157: 0 | N157: 37120 | P157: 1 | Q157: 37120 | S157: 284 | T157: =IF(R157="",'Unit Rates-Land'!landcst,IF($D$8="Landuse",VLOOKUP(R157,LAndcost3,2,FALSE),IF($D$8="Location",VLOOKUP(R157,Landcost2,2,FALSE),"Error"))) -> 0 | U157: 0 | V157: 2014 | W157: =IFERROR((GeneralInput!$G$39/(VLOOKUP(V157,GeneralInput!$E$39:$G$45,3,FALSE))),1) -> 1 | X157: 37120 | Y157: y | AF157: 47790 | AL157: 47790 | AN157: 37120
B158: RK-000081 | C158: 8201 | D158: Kerb Financial Asset | E158: Arthur St | F158: Arthur St | G158: Beaudesert | H158: Delamore St | I158: Eaglesfield St | L158: 4B | M158: 0 | N158: 37120 | P158: 1 | Q158: 37120 | S158: 284 | T158: =IF(R158="",'Unit Rates-Land'!landcst,IF($D$8="Landuse",VLOOKUP(R158,LAndcost3,2,FALSE),IF($D$8="Location",VLOOKUP(R158,Landcost2,2,FALSE),"Error"))) -> 0 | U158: 0 | V158: 2014 | W158: =IFERROR((GeneralInput!$G$39/(VLOOKUP(V158,GeneralInput!$E$39:$G$45,3,FALSE))),1) -> 1 | X158: 37120 | Y158: y | AF158: 47790 | AL158: 47790 | AN158: 37120
B159: RS-000103 | C159: 8201 | D159: Seal Financial Asset | E159: Arthur St - Seal | F159: Arthur St | G159: Beaudesert | H159: Delamore St | I159: Eaglesfield St | L159: 4B | M159: 0 | N159: 45660 | P159: 1 | Q159: 45660 | S159: 284 | T159: =IF(R159="",'Unit Rates-Land'!landcst,IF($D$8="Landuse",VLOOKUP(R159,LAndcost3,2,FALSE),IF($D$8="Location",VLOOKUP(R159,Landcost2,2,FALSE),"Error"))) -> 0 | U159: 0 | V159: 2014 | W159: =IFERROR((GeneralInput!$G$39/(VLOOKUP(V159,GeneralInput!$E$39:$G$45,3,FALSE))),1) -> 1 | X159: 45660 | Y159: y | AF159: 47790 | AL159: 47790 | AN159: 45660
B160: RP-000104 | C160: 8201 | D160: Sealed Road Financia | E160: Arthur St | F160: Arthur St | G160: Beaudesert | H160: Delamore St | I160: Eaglesfield St | L160: 4B | M160: 0 | N160: 87785 | P160: 1 | Q160: 87785 | S160: 284 | T160: =IF(R160="",'Unit Rates-Land'!landcst,IF($D$8="Landuse",VLOOKUP(R160,LAndcost3,2,FALSE),IF($D$8="Location",VLOOKUP(R160,Landcost2,2,FALSE),"Error"))) -> 0 | U160: 0 | V160: 2014 | W160: =IFERROR((GeneralInput!$G$39/(VLOOKUP(V160,GeneralInput!$E$39:$G$45,3,FALSE))),1) -> 1 | X160: 87785 | Y160: y | AF160: 47790 | AL160: 47790 | AN160: 87785
B161: RU-001020 | C161: 5056 | D161: Formation Financial | E161: Beaudesert High School Carpark - Formation | F161: Beaudesert High School Carpark | G161: Beaudesert | H161: Mt Lindesay Hwy | I161: Mt Lindesay Hwy | L161: NA | M161: 0 | N161: 4631 | P161: 1 | Q161: 4631 | S161: 166 | T161: =IF(R161="",'Unit Rates-Land'!landcst,IF($D$8="Landuse",VLOOKUP(R161,LAndcost3,2,FALSE),IF($D$8="Location",VLOOKUP(R161,Landcost2,2,FALSE),"Error"))) -> 0 | U161: 0 | V161: 2014 | W161: =IFERROR((GeneralInput!$G$39/(VLOOKUP(V161,GeneralInput!$E$39:$G$45,3,FALSE))),1) -> 1 | X161: 4631 | Y161: y | AF161: 47790 | AL161: 47790 | AN161: 4631
B162: RK-001977 | C162: 5056 | D162: Kerb Financial Asset | E162: Beaudesert High School Carpark | F162: Beaudesert High School Carpark | G162: Beaudesert | H162: Mt Lindesay Hwy | I162: Mt Lindesay Hwy | L162: NA | M162: 0 | N162: 20590 | P162: 1 | Q162: 20590 | S162: 166 | T162: =IF(R162="",'Unit Rates-Land'!landcst,IF($D$8="Landuse",VLOOKUP(R162,LAndcost3,2,FALSE),IF($D$8="Location",VLOOKUP(R162,Landcost2,2,FALSE),"Error"))) -> 0 | U162: 0 | V162: 2014 | W162: =IFERROR((GeneralInput!$G$39/(VLOOKUP(V162,GeneralInput!$E$39:$G$45,3,FALSE))),1) -> 1 | X162: 20590 | Y162: y | AF162: 47790 | AL162: 47790 | AN162: 20590
B163: RK-001978 | C163: 5056 | D163: Kerb Financial Asset | E163: Beaudesert High School Carpark | F163: Beaudesert High School Carpark | G163: Beaudesert | H163: Mt Lindesay Hwy | I163: Mt Lindesay Hwy | L163: NA | M163: 0 | N163: 20010 | P163: 1 | Q163: 20010 | S163: 166 | T163: =IF(R163="",'Unit Rates-Land'!landcst,IF($D$8="Landuse",VLOOKUP(R163,LAndcost3,2,FALSE),IF($D$8="Location",VLOOKUP(R163,Landcost2,2,FALSE),"Error"))) -> 0 | U163: 0 | V163: 2014 | W163: =IFERROR((GeneralInput!$G$39/(VLOOKUP(V163,GeneralInput!$E$39:$G$45,3,FALSE))),1) -> 1 | X163: 20010 | Y163: y | AF163: 47790 | AL163: 47790 | AN163: 20010
B164: RP-001807 | C164: 5056 | D164: Sealed Road Financia | E164: Beaudesert High School Carpark | F164: Beaudesert High School Carpark | G164: Beaudesert | H164: Mt Lindesay Hwy | I164: Mt Lindesay Hwy | L164: NA | M164: 0 | N164: 66538 | P164: 1 | Q164: 66538 | S164: 166 | T164: =IF(R164="",'Unit Rates-Land'!landcst,IF($D$8="Landuse",VLOOKUP(R164,LAndcost3,2,FALSE),IF($D$8="Location",VLOOKUP(R164,Landcost2,2,FALSE),"Error"))) -> 0 | U164: 0 | V164: 2014 | W164: =IFERROR((GeneralInput!$G$39/(VLOOKUP(V164,GeneralInput!$E$39:$G$45,3,FALSE))),1) -> 1 | X164: 66538 | Y164: y | AF164: 47790 | AL164: 47790 | AN164: 66538
B165: RU-001053 | C165: 8227 | D165: Formation Financial | E165: Beetham St - Formation | F165: Beetham St | G165: Beaudesert | H165: WBL Helen St | I165: Elizabeth St | L165: 4B | M165: 0 | N165: 1339 | P165: 1 | Q165: 1339 | S165: 120 | T165: =IF(R165="",'Unit Rates-Land'!landcst,IF($D$8="Landuse",VLOOKUP(R165,LAndcost3,2,FALSE),IF($D$8="Location",VLOOKUP(R165,Landcost2,2,FALSE),"Error"))) -> 0 | U165: 0 | V165: 2014 | W165: =IFERROR((GeneralInput!$G$39/(VLOOKUP(V165,GeneralInput!$E$39:$G$45,3,FALSE))),1) -> 1 | X165: 1339 | Y165: y | AF165: 47790 | AL165: 47790 | AN165: 1339
B166: RK-000126 | C166: 8227 | D166: Kerb Financial Asset | E166: Beetham St | F166: Beetham St | G166: Beaudesert | H166: WBL Helen St | I166: Elizabeth St | L166: 4B | M166: 0 | N166: 17400 | P166: 1 | Q166: 17400 | S166: 120 | T166: =IF(R166="",'Unit Rates-Land'!landcst,IF($D$8="Landuse",VLOOKUP(R166,LAndcost3,2,FALSE),IF($D$8="Location",VLOOKUP(R166,Landcost2,2,FALSE),"Error"))) -> 0 | U166: 0 | V166: 2014 | W166: =IFERROR((GeneralInput!$G$39/(VLOOKUP(V166,GeneralInput!$E$39:$G$45,3,FALSE))),1) -> 1 | X166: 17400 | Y166: y | AF166: 47790 | AL166: 47790 | AN166: 17400
B167: RS-000216 | C167: 8227 | D167: Seal Financial Asset | E167: Beetham St - Seal | F167: Beetham St | G167: Beaudesert | H167: WBL Helen St | I167: Elizabeth St | L167: 4B | M167: 0 | N167: 9796 | P167: 1 | Q167: 9796 | S167: 120 | T167: =IF(R167="",'Unit Rates-Land'!landcst,IF($D$8="Landuse",VLOOKUP(R167,LAndcost3,2,FALSE),IF($D$8="Location",VLOOKUP(R167,Landcost2,2,FALSE),"Error"))) -> 0 | U167: 0 | V167: 2014 | W167: =IFERROR((GeneralInput!$G$39/(VLOOKUP(V167,GeneralInput!$E$39:$G$45,3,FALSE))),1) -> 1 | X167: 9796 | Y167: y | AF167: 47790 | AL167: 47790 | AN167: 9796
B168: RP-000225 | C168: 8227 | D168: Sealed Road Financia | E168: Beetham St | F168: Beetham St | G168: Beaudesert | H168: WBL Helen St | I168: Elizabeth St | L168: 4B | M168: 0 | N168: 37733 | P168: 1 | Q168: 37733 | S168: 120 | T168: =IF(R168="",'Unit Rates-Land'!landcst,IF($D$8="Landuse",VLOOKUP(R168,LAndcost3,2,FALSE),IF($D$8="Location",VLOOKUP(R168,Landcost2,2,FALSE),"Error"))) -> 0 | U168: 0 | V168: 2014 | W168: =IFERROR((GeneralInput!$G$39/(VLOOKUP(V168,GeneralInput!$E$39:$G$45,3,FALSE))),1) -> 1 | X168: 37733 | Y168: y | AF168: 47790 | AL168: 47790 | AN168: 37733
B169: RF-000028 | C169: 8240 | D169: Footpath Financial | E169: Birnam St | F169: Birnam St | G169: Beaudesert | H169: EBL Brisbane St | I169: James St | L169: 4B | M169: 0 | N169: 46800 | P169: 1 | Q169: 46800 | S169: 0 | T169: =IF(R169="",'Unit Rates-Land'!landcst,IF($D$8="Landuse",VLOOKUP(R169,LAndcost3,2,FALSE),IF($D$8="Location",VLOOKUP(R169,Landcost2,2,FALSE),"Error"))) -> 0 | U169: 0 | V169: 2014 | W169: =IFERROR((GeneralInput!$G$39/(VLOOKUP(V169,GeneralInput!$E$39:$G$45,3,FALSE))),1) -> 1 | X169: 46800 | Y169: y | AF169: 47790 | AL169: 47790 | AN169: 46800
B170: RF-000029 | C170: 8241 | D170: Footpath Financial | E170: Birnam St | F170: Birnam St | G170: Beaudesert | H170: James St | I170: Alice St | L170: 4B | M170: 0 | N170: 21330 | P170: 1 | Q170: 21330 | S170: 0 | T170: =IF(R170="",'Unit Rates-Land'!landcst,IF($D$8="Landuse",VLOOKUP(R170,LAndcost3,2,FALSE),IF($D$8="Location",VLOOKUP(R170,Landcost2,2,FALSE),"Error"))) -> 0 | U170: 0 | V170: 2014 | W170: =IFERROR((GeneralInput!$G$39/(VLOOKUP(V170,GeneralInput!$E$39:$G$45,3,FALSE))),1) -> 1 | X170: 21330 | Y170: y | AF170: 47790 | AL170: 47790 | AN170: 21330
B171: RU-001081 | C171: 8240 | D171: Formation Financial | E171: Birnam St - Formation | F171: Birnam St | G171: Beaudesert | H171: EBL Brisbane St | I171: James St | L171: 4B | M171: 0 | N171: 6690 | P171: 1 | Q171: 6690 | S171: 270 | T171: =IF(R171="",'Unit Rates-Land'!landcst,IF($D$8="Landuse",VLOOKUP(R171,LAndcost3,2,FALSE),IF($D$8="Location",VLOOKUP(R171,Landcost2,2,FALSE),"Error"))) -> 0 | U171: 0 | V171: 2014 | W171: =IFERROR((GeneralInput!$G$39/(VLOOKUP(V171,GeneralInput!$E$39:$G$45,3,FALSE))),1) -> 1 | X171: 6690 | Y171: y | AF171: 47790 | AL171: 47790 | AN171: 6690
B172: RK-000137 | C172: 8240 | D172: Kerb Financial Asset | E172: Birnam St | F172: Birnam St | G172: Beaudesert | H172: EBL Brisbane St | I172: James St | L172: 4B | M172: 0 | N172: 38135 | P172: 1 | Q172: 38135 | S172: 270 | T172: =IF(R172="",'Unit Rates-Land'!landcst,IF($D$8="Landuse",VLOOKUP(R172,LAndcost3,2,FALSE),IF($D$8="Location",VLOOKUP(R172,Landcost2,2,FALSE),"Error"))) -> 0 | U172: 0 | V172: 2014 | W172: =IFERROR((GeneralInput!$G$39/(VLOOKUP(V172,GeneralInput!$E$39:$G$45,3,FALSE))),1) -> 1 | X172: 38135 | Y172: y | AF172: 47790 | AL172: 47790 | AN172: 38135
B173: RK-000138 | C173: 8240 | D173: Kerb Financial Asset | E173: Birnam St | F173: Birnam St | G173: Beaudesert | H173: EBL Brisbane St | I173: James St | L173: 4B | M173: 0 | N173: 34510 | P173: 1 | Q173: 34510 | S173: 270 | T173: =IF(R173="",'Unit Rates-Land'!landcst,IF($D$8="Landuse",VLOOKUP(R173,LAndcost3,2,FALSE),IF($D$8="Location",VLOOKUP(R173,Landcost2,2,FALSE),"Error"))) -> 0 | U173: 0 | V173: 2014 | W173: =IFERROR((GeneralInput!$G$39/(VLOOKUP(V173,GeneralInput!$E$39:$G$45,3,FALSE))),1) -> 1 | X173: 34510 | Y173: y | AF173: 47790 | AL173: 47790 | AN173: 34510
B174: RS-000262 | C174: 8240 | D174: Seal Financial Asset | E174: Birnam St - Seal | F174: Birnam St | G174: Beaudesert | H174: EBL Brisbane St | I174: James St | L174: 4B | M174: 0 | N174: 43364 | P174: 1 | Q174: 43364 | S174: 270 | T174: =IF(R174="",'Unit Rates-Land'!landcst,IF($D$8="Landuse",VLOOKUP(R174,LAndcost3,2,FALSE),IF($D$8="Location",VLOOKUP(R174,Landcost2,2,FALSE),"Error"))) -> 0 | U174: 0 | V174: 2014 | W174: =IFERROR((GeneralInput!$G$39/(VLOOKUP(V174,GeneralInput!$E$39:$G$45,3,FALSE))),1) -> 1 | X174: 43364 | Y174: y | AF174: 47790 | AL174: 47790 | AN174: 43364
B175: RP-000277 | C175: 8240 | D175: Sealed Road Financia | E175: Birnam St | F175: Birnam St | G175: Beaudesert | H175: EBL Brisbane St | I175: James St | L175: 4B | M175: 0 | N175: 85022 | P175: 1 | Q175: 85022 | S175: 270 | T175: =IF(R175="",'Unit Rates-Land'!landcst,IF($D$8="Landuse",VLOOKUP(R175,LAndcost3,2,FALSE),IF($D$8="Location",VLOOKUP(R175,Landcost2,2,FALSE),"Error"))) -> 0 | U175: 0 | V175: 2014 | W175: =IFERROR((GeneralInput!$G$39/(VLOOKUP(V175,GeneralInput!$E$39:$G$45,3,FALSE))),1) -> 1 | X175: 85022 | Y175: y | AF175: 47790 | AL175: 47790 | AN175: 85022
B176: RU-001082 | C176: 8241 | D176: Formation Financial | E176: Birnam St - Formation | F176: Birnam St | G176: Beaudesert | H176: James St | I176: Alice St | L176: 4B | M176: 0 | N176: 7546 | P176: 1 | Q176: 7546 | S176: 318 | T176: =IF(R176="",'Unit Rates-Land'!landcst,IF($D$8="Landuse",VLOOKUP(R176,LAndcost3,2,FALSE),IF($D$8="Location",VLOOKUP(R176,Landcost2,2,FALSE),"Error"))) -> 0 | U176: 0 | V176: 2014 | W176: =IFERROR((GeneralInput!$G$39/(VLOOKUP(V176,GeneralInput!$E$39:$G$45,3,FALSE))),1) -> 1 | X176: 7546 | Y176: y | AF176: 47790 | AL176: 47790 | AN176: 7546
B177: RK-000139 | C177: 8241 | D177: Kerb Financial Asset | E177: Birnam St | F177: Birnam St | G177: Beaudesert | H177: James St | I177: Alice St | L177: 4B | M177: 0 | N177: 44950 | P177: 1 | Q177: 44950 | S177: 318 | T177: =IF(R177="",'Unit Rates-Land'!landcst,IF($D$8="Landuse",VLOOKUP(R177,LAndcost3,2,FALSE),IF($D$8="Location",VLOOKUP(R177,Landcost2,2,FALSE),"Error"))) -> 0 | U177: 0 | V177: 2014 | W177: =IFERROR((GeneralInput!$G$39/(VLOOKUP(V177,GeneralInput!$E$39:$G$45,3,FALSE))),1) -> 1 | X177: 44950 | Y177: y | AF177: 47790 | AL177: 47790 | AN177: 44950
B178: RK-000140 | C178: 8241 | D178: Kerb Financial Asset | E178: Birnam St | F178: Birnam St | G178: Beaudesert | H178: James St | I178: Alice St | L178: 4B | M178: 0 | N178: 44370 | P178: 1 | Q178: 44370 | S178: 318 | T178: =IF(R178="",'Unit Rates-Land'!landcst,IF($D$8="Landuse",VLOOKUP(R178,LAndcost3,2,FALSE),IF($D$8="Location",VLOOKUP(R178,Landcost2,2,FALSE),"Error"))) -> 0 | U178: 0 | V178: 2014 | W178: =IFERROR((GeneralInput!$G$39/(VLOOKUP(V178,GeneralInput!$E$39:$G$45,3,FALSE))),1) -> 1 | X178: 44370 | Y178: y | AF178: 47790 | AL178: 47790 | AN178: 44370
B179: RS-000263 | C179: 8241 | D179: Seal Financial Asset | E179: Birnam St - Seal | F179: Birnam St | G179: Beaudesert | H179: James St | I179: Alice St | L179: 4B | M179: 0 | N179: 47318 | P179: 1 | Q179: 47318 | S179: 318 | T179: =IF(R179="",'Unit Rates-Land'!landcst,IF($D$8="Landuse",VLOOKUP(R179,LAndcost3,2,FALSE),IF($D$8="Location",VLOOKUP(R179,Landcost2,2,FALSE),"Error"))) -> 0 | U179: 0 | V179: 2014 | W179: =IFERROR((GeneralInput!$G$39/(VLOOKUP(V179,GeneralInput!$E$39:$G$45,3,FALSE))),1) -> 1 | X179: 47318 | Y179: y | AF179: 47790 | AL179: 47790 | AN179: 47318
B180: RP-000278 | C180: 8241 | D180: Sealed Road Financia | E180: Birnam St | F180: Birnam St | G180: Beaudesert | H180: James St | I180: Alice St | L180: 4B | M180: 0 | N180: 93816 | P180: 1 | Q180: 93816 | S180: 318 | T180: =IF(R180="",'Unit Rates-Land'!landcst,IF($D$8="Landuse",VLOOKUP(R180,LAndcost3,2,FALSE),IF($D$8="Location",VLOOKUP(R180,Landcost2,2,FALSE),"Error"))) -> 0 | U180: 0 | V180: 2014 | W180: =IFERROR((GeneralInput!$G$39/(VLOOKUP(V180,GeneralInput!$E$39:$G$45,3,FALSE))),1) -> 1 | X180: 93816 | Y180: y | AF180: 47790 | AL180: 47790 | AN180: 93816
B181: RF-000600 | C181: 8241-02-03 | D181: Footpath Financial | E181: Birnam St | F181: Birnam St | G181: Beaudesert | H181: James St +75m | I181: Dunsinane St +60m | L181: 4B | M181: 0 | N181: 98100 | P181: 1 | Q181: 98100 | S181: 545 | T181: =IF(R181="",'Unit Rates-Land'!landcst,IF($D$8="Landuse",VLOOKUP(R181,LAndcost3,2,FALSE),IF($D$8="Location",VLOOKUP(R181,Landcost2,2,FALSE),"Error"))) -> 0 | U181: 0 | V181: 2014 | W181: =IFERROR((GeneralInput!$G$39/(VLOOKUP(V181,GeneralInput!$E$39:$G$45,3,FALSE))),1) -> 1 | X181: 98100 | Y181: y | AF181: 47790 | AL181: 47790 | AN181: 98100
B182: RU-001083 | C182: 8242 | D182: Formation Financial | E182: Birnam St - Formation | F182: Birnam St | G182: Beaudesert | H182: Alice St | I182: Dunsinane St | L182: 4B | M182: 0 | N182: 5636 | P182: 1 | Q182: 5636 | S182: 241 | T182: =IF(R182="",'Unit Rates-Land'!landcst,IF($D$8="Landuse",VLOOKUP(R182,LAndcost3,2,FALSE),IF($D$8="Location",VLOOKUP(R182,Landcost2,2,FALSE),"Error"))) -> 0 | U182: 0 | V182: 2014 | W182: =IFERROR((GeneralInput!$G$39/(VLOOKUP(V182,GeneralInput!$E$39:$G$45,3,FALSE))),1) -> 1 | X182: 5636 | Y182: y | AF182: 47790 | AL182: 47790 | AN182: 5636
B183: RK-000141 | C183: 8242 | D183: Kerb Financial Asset | E183: Birnam St | F183: Birnam St | G183: Beaudesert | H183: Alice St | I183: Dunsinane St | L183: 4B | M183: 0 | N183: 30160 | P183: 1 | Q183: 30160 | S183: 241 | T183: =IF(R183="",'Unit Rates-Land'!landcst,IF($D$8="Landuse",VLOOKUP(R183,LAndcost3,2,FALSE),IF($D$8="Location",VLOOKUP(R183,Landcost2,2,FALSE),"Error"))) -> 0 | U183: 0 | V183: 2014 | W183: =IFERROR((GeneralInput!$G$39/(VLOOKUP(V183,GeneralInput!$E$39:$G$45,3,FALSE))),1) -> 1 | X183: 30160 | Y183: y | AF183: 47790 | AL183: 47790 | AN183: 30160
B184: RK-000142 | C184: 8242 | D184: Kerb Financial Asset | E184: Birnam St | F184: Birnam St | G184: Beaudesert | H184: Alice St | I184: Dunsinane St | L184: 4B | M184: 0 | N184: 34800 | P184: 1 | Q184: 34800 | S184: 241 | T184: =IF(R184="",'Unit Rates-Land'!landcst,IF($D$8="Landuse",VLOOKUP(R184,LAndcost3,2,FALSE),IF($D$8="Location",VLOOKUP(R184,Landcost2,2,FALSE),"Error"))) -> 0 | U184: 0 | V184: 2014 | W184: =IFERROR((GeneralInput!$G$39/(VLOOKUP(V184,GeneralInput!$E$39:$G$45,3,FALSE))),1) -> 1 | X184: 34800 | Y184: y | AF184: 47790 | AL184: 47790 | AN184: 34800
B185: RS-000264 | C185: 8242 | D185: Seal Financial Asset | E185: Birnam St - Seal | F185: Birnam St | G185: Beaudesert | H185: Alice St | I185: Dunsinane St | L185: 4B | M185: 0 | N185: 22604 | P185: 1 | Q185: 22604 | S185: 241 | T185: =IF(R185="",'Unit Rates-Land'!landcst,IF($D$8="Landuse",VLOOKUP(R185,LAndcost3,2,FALSE),IF($D$8="Location",VLOOKUP(R185,Landcost2,2,FALSE),"Error"))) -> 0 | U185: 0 | V185: 2014 | W185: =IFERROR((GeneralInput!$G$39/(VLOOKUP(V185,GeneralInput!$E$39:$G$45,3,FALSE))),1) -> 1 | X185: 22604 | Y185: y | AF185: 47790 | AL185: 47790 | AN185: 22604
B186: RP-000279 | C186: 8242 | D186: Sealed Road Financia | E186: Birnam St | F186: Birnam St | G186: Beaudesert | H186: Alice St | I186: Dunsinane St | L186: 4B | M186: 0 | N186: 71258 | P186: 1 | Q186: 71258 | S186: 241 | T186: =IF(R186="",'Unit Rates-Land'!landcst,IF($D$8="Landuse",VLOOKUP(R186,LAndcost3,2,FALSE),IF($D$8="Location",VLOOKUP(R186,Landcost2,2,FALSE),"Error"))) -> 0 | U186: 0 | V186: 2014 | W186: =IFERROR((GeneralInput!$G$39/(VLOOKUP(V186,GeneralInput!$E$39:$G$45,3,FALSE))),1) -> 1 | X186: 71258 | Y186: y | AF186: 47790 | AL186: 47790 | AN186: 71258
B187: RU-001084 | C187: 8243 | D187: Formation Financial | E187: Birnam St - Formation | F187: Birnam St | G187: Beaudesert | H187: Dunsinane St | I187: End | L187: 4B | M187: 0 | N187: 3812 | P187: 1 | Q187: 3812 | S187: 166 | T187: =IF(R187="",'Unit Rates-Land'!landcst,IF($D$8="Landuse",VLOOKUP(R187,LAndcost3,2,FALSE),IF($D$8="Location",VLOOKUP(R187,Landcost2,2,FALSE),"Error"))) -> 0 | U187: 0 | V187: 2014 | W187: =IFERROR((GeneralInput!$G$39/(VLOOKUP(V187,GeneralInput!$E$39:$G$45,3,FALSE))),1) -> 1 | X187: 3812 | Y187: y | AF187: 47790 | AL187: 47790 | AN187: 3812
B188: RK-000143 | C188: 8243 | D188: Kerb Financial Asset | E188: Birnam St | F188: Birnam St | G188: Beaudesert | H188: Dunsinane St | I188: End | L188: 4B | M188: 0 | N188: 14210 | P188: 1 | Q188: 14210 | S188: 166 | T188: =IF(R188="",'Unit Rates-Land'!landcst,IF($D$8="Landuse",VLOOKUP(R188,LAndcost3,2,FALSE),IF($D$8="Location",VLOOKUP(R188,Landcost2,2,FALSE),"Error"))) -> 0 | U188: 0 | V188: 2014 | W188: =IFERROR((GeneralInput!$G$39/(VLOOKUP(V188,GeneralInput!$E$39:$G$45,3,FALSE))),1) -> 1 | X188: 14210 | Y188: y | AF188: 47790 | AL188: 47790 | AN188: 14210
B189: RK-000144 | C189: 8243 | D189: Kerb Financial Asset | E189: Birnam St | F189: Birnam St | G189: Beaudesert | H189: Dunsinane St | I189: End | L189: 4B | M189: 0 | N189: 16820 | P189: 1 | Q189: 16820 | S189: 166 | T189: =IF(R189="",'Unit Rates-Land'!landcst,IF($D$8="Landuse",VLOOKUP(R189,LAndcost3,2,FALSE),IF($D$8="Location",VLOOKUP(R189,Landcost2,2,FALSE),"Error"))) -> 0 | U189: 0 | V189: 2014 | W189: =IFERROR((GeneralInput!$G$39/(VLOOKUP(V189,GeneralInput!$E$39:$G$45,3,FALSE))),1) -> 1 | X189: 16820 | Y189: y | AF189: 47790 | AL189: 47790 | AN189: 16820
B190: RS-000265 | C190: 8243 | D190: Seal Financial Asset | E190: Birnam St - Seal | F190: Birnam St | G190: Beaudesert | H190: Dunsinane St | I190: End | L190: 4B | M190: 0 | N190: 15286 | P190: 1 | Q190: 15286 | S190: 166 | T190: =IF(R190="",'Unit Rates-Land'!landcst,IF($D$8="Landuse",VLOOKUP(R190,LAndcost3,2,FALSE),IF($D$8="Location",VLOOKUP(R190,Landcost2,2,FALSE),"Error"))) -> 0 | U190: 0 | V190: 2014 | W190: =IFERROR((GeneralInput!$G$39/(VLOOKUP(V190,GeneralInput!$E$39:$G$45,3,FALSE))),1) -> 1 | X190: 15286 | Y190: y | AF190: 47790 | AL190: 47790 | AN190: 15286
B191: RP-000280 | C191: 8243 | D191: Sealed Road Financia | E191: Birnam St | F191: Birnam St | G191: Beaudesert | H191: Dunsinane St | I191: End | L191: 4B | M191: 0 | N191: 50645 | P191: 1 | Q191: 50645 | S191: 166 | T191: =IF(R191="",'Unit Rates-Land'!landcst,IF($D$8="Landuse",VLOOKUP(R191,LAndcost3,2,FALSE),IF($D$8="Location",VLOOKUP(R191,Landcost2,2,FALSE),"Error"))) -> 0 | U191: 0 | V191: 2014 | W191: =IFERROR((GeneralInput!$G$39/(VLOOKUP(V191,GeneralInput!$E$39:$G$45,3,FALSE))),1) -> 1 | X191: 50645 | Y191: y | AF191: 47790 | AL191: 47790 | AN191: 50645
B192: RU-001109 | C192: 8254 | D192: Formation Financial | E192: Boundary St - Formation | F192: Boundary St | G192: Beaudesert | H192: NBL Albert St | I192: Lane St | L192: 4B | M192: 0 | N192: 8259 | P192: 1 | Q192: 8259 | S192: 338 | T192: =IF(R192="",'Unit Rates-Land'!landcst,IF($D$8="Landuse",VLOOKUP(R192,LAndcost3,2,FALSE),IF($D$8="Location",VLOOKUP(R192,Landcost2,2,FALSE),"Error"))) -> 0 | U192: 0 | V192: 2014 | W192: =IFERROR((GeneralInput!$G$39/(VLOOKUP(V192,GeneralInput!$E$39:$G$45,3,FALSE))),1) -> 1 | X192: 8259 | Y192: y | AF192: 47790 | AL192: 47790 | AN192: 8259
B193: RK-000188 | C193: 8254 | D193: Kerb Financial Asset | E193: Boundary St | F193: Boundary St | G193: Beaudesert | H193: NBL Albert St | I193: Lane St | L193: 4B | M193: 0 | N193: 49590 | P193: 1 | Q193: 49590 | S193: 338 | T193: =IF(R193="",'Unit Rates-Land'!landcst,IF($D$8="Landuse",VLOOKUP(R193,LAndcost3,2,FALSE),IF($D$8="Location",VLOOKUP(R193,Landcost2,2,FALSE),"Error"))) -> 0 | U193: 0 | V193: 2014 | W193: =IFERROR((GeneralInput!$G$39/(VLOOKUP(V193,GeneralInput!$E$39:$G$45,3,FALSE))),1) -> 1 | X193: 49590 | Y193: y | AF193: 47790 | AL193: 47790 | AN193: 49590
B194: RK-000189 | C194: 8254 | D194: Kerb Financial Asset | E194: Boundary St | F194: Boundary St | G194: Beaudesert | H194: NBL Albert St | I194: Lane St | L194: 4B | M194: 0 | N194: 49735 | P194: 1 | Q194: 49735 | S194: 338 | T194: =IF(R194="",'Unit Rates-Land'!landcst,IF($D$8="Landuse",VLOOKUP(R194,LAndcost3,2,FALSE),IF($D$8="Location",VLOOKUP(R194,Landcost2,2,FALSE),"Error"))) -> 0 | U194: 0 | V194: 2014 | W194: =IFERROR((GeneralInput!$G$39/(VLOOKUP(V194,GeneralInput!$E$39:$G$45,3,FALSE))),1) -> 1 | X194: 49735 | Y194: y | AF194: 47790 | AL194: 47790 | AN194: 49735
B195: RS-000318 | C195: 8254 | D195: Seal Financial Asset | E195: Boundary St - Seal | F195: Boundary St | G195: Beaudesert | H195: NBL Albert St | I195: Lane St | L195: 4B | M195: 0 | N195: 33958 | P195: 1 | Q195: 33958 | S195: 338 | T195: =IF(R195="",'Unit Rates-Land'!landcst,IF($D$8="Landuse",VLOOKUP(R195,LAndcost3,2,FALSE),IF($D$8="Location",VLOOKUP(R195,Landcost2,2,FALSE),"Error"))) -> 0 | U195: 0 | V195: 2014 | W195: =IFERROR((GeneralInput!$G$39/(VLOOKUP(V195,GeneralInput!$E$39:$G$45,3,FALSE))),1) -> 1 | X195: 33958 | Y195: y | AF195: 47790 | AL195: 47790 | AN195: 33958
B196: RP-000339 | C196: 8254 | D196: Sealed Road Financia | E196: Boundary St | F196: Boundary St | G196: Beaudesert | H196: NBL Albert St | I196: Lane St | L196: 4B | M196: 0 | N196: 115423 | P196: 1 | Q196: 115423 | S196: 338 | T196: =IF(R196="",'Unit Rates-Land'!landcst,IF($D$8="Landuse",VLOOKUP(R196,LAndcost3,2,FALSE),IF($D$8="Location",VLOOKUP(R196,Landcost2,2,FALSE),"Error"))) -> 0 | U196: 0 | V196: 2014 | W196: =IFERROR((GeneralInput!$G$39/(VLOOKUP(V196,GeneralInput!$E$39:$G$45,3,FALSE))),1) -> 1 | X196: 115423 | Y196: y | AF196: 47790 | AL196: 47790 | AN196: 115423
B197: RU-001110 | C197: 8255 | D197: Formation Financial | E197: Boundary St - Formation | F197: Boundary St | G197: Beaudesert | H197: Lane St | I197: Eaglesfield St | L197: 4B | M197: 0 | N197: 2719 | P197: 1 | Q197: 2719 | S197: 107 | T197: =IF(R197="",'Unit Rates-Land'!landcst,IF($D$8="Landuse",VLOOKUP(R197,LAndcost3,2,FALSE),IF($D$8="Location",VLOOKUP(R197,Landcost2,2,FALSE),"Error"))) -> 0 | U197: 0 | V197: 2014 | W197: =IFERROR((GeneralInput!$G$39/(VLOOKUP(V197,GeneralInput!$E$39:$G$45,3,FALSE))),1) -> 1 | X197: 2719 | Y197: y | AF197: 47790 | AL197: 47790 | AN197: 2719
B198: RK-000190 | C198: 8255 | D198: Kerb Financial Asset | E198: Boundary St | F198: Boundary St | G198: Beaudesert | H198: Lane St | I198: Eaglesfield St | L198: 4B | M198: 0 | N198: 13630 | P198: 1 | Q198: 13630 | S198: 107 | T198: =IF(R198="",'Unit Rates-Land'!landcst,IF($D$8="Landuse",VLOOKUP(R198,LAndcost3,2,FALSE),IF($D$8="Location",VLOOKUP(R198,Landcost2,2,FALSE),"Error"))) -> 0 | U198: 0 | V198: 2014 | W198: =IFERROR((GeneralInput!$G$39/(VLOOKUP(V198,GeneralInput!$E$39:$G$45,3,FALSE))),1) -> 1 | X198: 13630 | Y198: y | AF198: 47790 | AL198: 47790 | AN198: 13630
B199: RK-000191 | C199: 8255 | D199: Kerb Financial Asset | E199: Boundary St | F199: Boundary St | G199: Beaudesert | H199: Lane St | I199: Eaglesfield St | L199: 4B | M199: 0 | N199: 15515 | P199: 1 | Q199: 15515 | S199: 107 | T199: =IF(R199="",'Unit Rates-Land'!landcst,IF($D$8="Landuse",VLOOKUP(R199,LAndcost3,2,FALSE),IF($D$8="Location",VLOOKUP(R199,Landcost2,2,FALSE),"Error"))) -> 0 | U199: 0 | V199: 2014 | W199: =IFERROR((GeneralInput!$G$39/(VLOOKUP(V199,GeneralInput!$E$39:$G$45,3,FALSE))),1) -> 1 | X199: 15515 | Y199: y | AF199: 47790 | AL199: 47790 | AN199: 15515
B200: RS-000319 | C200: 8255 | D200: Seal Financial Asset | E200: Boundary St - Seal | F200: Boundary St | G200: Beaudesert | H200: Lane St | I200: Eaglesfield St | L200: 4B | M200: 0 | N200: 10842 | P200: 1 | Q200: 10842 | S200: 107 | T200: =IF(R200="",'Unit Rates-Land'!landcst,IF($D$8="Landuse",VLOOKUP(R200,LAndcost3,2,FALSE),IF($D$8="Location",VLOOKUP(R200,Landcost2,2,FALSE),"Error"))) -> 0 | U200: 0 | V200: 2014 | W200: =IFERROR((GeneralInput!$G$39/(VLOOKUP(V200,GeneralInput!$E$39:$G$45,3,FALSE))),1) -> 1 | X200: 10842 | Y200: y | AF200: 47790 | AL200: 47790 | AN200: 10842
B201: RP-000340 | C201: 8255 | D201: Sealed Road Financia | E201: Boundary St | F201: Boundary St | G201: Beaudesert | H201: Lane St | I201: Eaglesfield St | L201: 4B | M201: 0 | N201: 34756 | P201: 1 | Q201: 34756 | S201: 107 | T201: =IF(R201="",'Unit Rates-Land'!landcst,IF($D$8="Landuse",VLOOKUP(R201,LAndcost3,2,FALSE),IF($D$8="Location",VLOOKUP(R201,Landcost2,2,FALSE),"Error"))) -> 0 | U201: 0 | V201: 2014 | W201: =IFERROR((GeneralInput!$G$39/(VLOOKUP(V201,GeneralInput!$E$39:$G$45,3,FALSE))),1) -> 1 | X201: 34756 | Y201: y | AF201: 47790 | AL201: 47790 | AN201: 34756
B202: RU-001111 | C202: 8256 | D202: Formation Financial | E202: Boundary St - Formation | F202: Boundary St | G202: Beaudesert | H202: Eaglesfield St | I202: End | L202: 4B | M202: 0 | N202: 6413 | P202: 1 | Q202: 6413 | S202: 265 | T202: =IF(R202="",'Unit Rates-Land'!landcst,IF($D$8="Landuse",VLOOKUP(R202,LAndcost3,2,FALSE),IF($D$8="Location",VLOOKUP(R202,Landcost2,2,FALSE),"Error"))) -> 0 | U202: 0 | V202: 2014 | W202: =IFERROR((GeneralInput!$G$39/(VLOOKUP(V202,GeneralInput!$E$39:$G$45,3,FALSE))),1) -> 1 | X202: 6413 | Y202: y | AF202: 47790 | AL202: 47790 | AN202: 6413
B203: RK-000192 | C203: 8256 | D203: Kerb Financial Asset | E203: Boundary St | F203: Boundary St | G203: Beaudesert | H203: Eaglesfield St | I203: End | L203: 4B | M203: 0 | N203: 33930 | P203: 1 | Q203: 33930 | S203: 265 | T203: =IF(R203="",'Unit Rates-Land'!landcst,IF($D$8="Landuse",VLOOKUP(R203,LAndcost3,2,FALSE),IF($D$8="Location",VLOOKUP(R203,Landcost2,2,FALSE),"Error"))) -> 0 | U203: 0 | V203: 2014 | W203: =IFERROR((GeneralInput!$G$39/(VLOOKUP(V203,GeneralInput!$E$39:$G$45,3,FALSE))),1) -> 1 | X203: 33930 | Y203: y | AF203: 47790 | AL203: 47790 | AN203: 33930
B204: RK-000193 | C204: 8256 | D204: Kerb Financial Asset | E204: Boundary St | F204: Boundary St | G204: Beaudesert | H204: Eaglesfield St | I204: End | L204: 4B | M204: 0 | N204: 36250 | P204: 1 | Q204: 36250 | S204: 265 | T204: =IF(R204="",'Unit Rates-Land'!landcst,IF($D$8="Landuse",VLOOKUP(R204,LAndcost3,2,FALSE),IF($D$8="Location",VLOOKUP(R204,Landcost2,2,FALSE),"Error"))) -> 0 | U204: 0 | V204: 2014 | W204: =IFERROR((GeneralInput!$G$39/(VLOOKUP(V204,GeneralInput!$E$39:$G$45,3,FALSE))),1) -> 1 | X204: 36250 | Y204: y | AF204: 47790 | AL204: 47790 | AN204: 36250
... 921 more rows

Sheet ExistTrunkAsset- Park
B2: =NavigationPane!C2 -> Scenic Rim Regional Council
B3: Parks and Land for Community Facilities
A4: Return to "Existing Trunk Assets"
B5: EXISTING TRUNK ASSETS
B8: Land Valuation Type | D8: Location
B10: Asset Data | V10: Catchment Asset Allocation | Z10: Asset Usage | AE10: Cost Allocation
B11: Basic Asset Data | H11: Asset Attributes | J11: Basic Asset Valuation | O11: Land Attributes | S11: Refined Asset Value | V11: ='CatchmentDemand-Parks & Comm'!$C8 -> Beaudesert | W11: ='CatchmentDemand-Parks & Comm'!$C9 -> Boonah | X11: ='CatchmentDemand-Parks & Comm'!$C10 -> Tamborine - Canungra | Z11: =V11 -> Beaudesert | AA11: =W11 -> Boonah | AB11: =X11 -> Tamborine - Canungra | AC11: TOTALS | AE11: =V11 -> Beaudesert | AF11: =W11 -> Boonah | AG11: =X11 -> Tamborine - Canungra | AH11: Checksum 2
B12: Asset ID | C12: LGIP ID | D12: Asset Class | E12: Address | G12: Description | H12: Unit Rate Type (*) | I12: Unit (*) | J12: Unit Rate | K12: Baseline Valuation | L12: Site/Condition | M12: Multiplier | N12: Gross Value | O12: Land Location/Type | P12: Size of land (ha) (*) | Q12: Unit Cost | R12: Land Value | S12: Valuation Year | T12: Escalation | U12: Current Repalcement Cost
V13: 1 | W13: =V13+1 -> 2 | X13: =W13+1 -> 3
B14: Councils ID (from GIS, FAR, AMA etc.) | C14: ID from the LGIP drawings | D14: Local/District Park | E14: Street | F14: Suburb | K14: May be calculated from unit rates OR unique values can be direct entered | U14: CRC | V14: =IFERROR(VLOOKUP(V11,Parkscatch,6,FALSE),"") -> 28259 | W14: 14065 | X14: 15993 | Z14: =V14 -> 28259 | AA14: =W14 -> 14065 | AB14: =X14 -> 15993 | AE14: =SUM(AE15:AE147) -> 7314039 | AF14: =SUM(AF15:AF147) -> 6219094.9 | AG14: =SUM(AG15:AG147) -> 15694444 | AH14: =SUM(AH15:AH147) -> 0
B15: LF-000018 | C15: 1 | D15: Corridor Park | E15: Beaudesert-Nerang Road | F15: Beaudesert | G15: Brayford Park (Kingsley Drive to Junior Chamber Park) | J15: =IFERROR(VLOOKUP($H15,Parksunitrate1,2,FALSE),0) -> 0 | K15: 200000 | M15: =IF(L15="",1,VLOOKUP(L15,PArksitecond,2,FALSE)) -> 1 | N15: =IF(K15="","",K15*M15) -> 200000 | P15: 1.3497 | Q15: =IF(O15="",'Unit Rates-Land'!landcst,IF($D$8="Landuse",VLOOKUP(O15,LAndcost3,2,FALSE),IF($D$8="Location",VLOOKUP(O15,Landcost2,2,FALSE),"Error"))) -> 0 | R15: =IF(Q15="",0,Q15*10000*P15) -> 0 | S15: 2014 | T15: =IFERROR((GeneralInput!$G$39/(VLOOKUP(S15,GeneralInput!$E$39:$G$45,3,FALSE))),1) -> 1 | U15: =IFERROR((R15+N15)*T15,0) -> 200000 | V15: y | Z15: =IF(V15="y",Z$14,IF(AND(V15>0,V15<=1),V15*Z$14,"")) -> 28259 | AA15: =IF(W15="y",AA$14,IF(AND(W15>0,W15<=1),W15*AA$14,"")) ->  | AB15: =IF(X15="y",AB$14,IF(AND(X15>0,X15<=1),X15*AB$14,"")) ->  | AC15: =SUM(Z15:AB15) -> 28259 | AE15: =IF(Z15="","",(Z15/$AC15)*$U15) -> 200000 | AF15: =IF(AA15="","",(AA15/$AC15)*$U15) ->  | AG15: =IF(AB15="","",(AB15/$AC15)*$U15) ->  | AH15: =IF(SUM(AE15:AG15)=U15,"","ERROR") -> 
B16: Reserve | C16: 2 | D16: Recreation Park | E16: 79 Brolga Rd | F16: Beaudesert | G16: Brolga Road Park | J16: 0 | K16: 0 | M16: 1 | N16: 0 | P16: 1.5742 | Q16: =IF(O16="",'Unit Rates-Land'!landcst,IF($D$8="Landuse",VLOOKUP(O16,LAndcost3,2,FALSE),IF($D$8="Location",VLOOKUP(O16,Landcost2,2,FALSE),"Error"))) -> 0 | R16: 0 | S16: 2014 | T16: =IFERROR((GeneralInput!$G$39/(VLOOKUP(S16,GeneralInput!$E$39:$G$45,3,FALSE))),1) -> 1 | U16: 0 | V16: y | Z16: 28259 | AC16: 28259 | AE16: 0
B17: BO-000092 | C17: 3 | D17: Recreation Park | E17: Cedar Drive | F17: Beaudesert | G17: Cedar Drive Park | J17: 0 | K17: 12200 | M17: 1 | N17: 12200 | P17: 0.1084 | Q17: =IF(O17="",'Unit Rates-Land'!landcst,IF($D$8="Landuse",VLOOKUP(O17,LAndcost3,2,FALSE),IF($D$8="Location",VLOOKUP(O17,Landcost2,2,FALSE),"Error"))) -> 0 | R17: 0 | S17: 2014 | T17: =IFERROR((GeneralInput!$G$39/(VLOOKUP(S17,GeneralInput!$E$39:$G$45,3,FALSE))),1) -> 1 | U17: 12200 | V17: y | Z17: 28259 | AC17: 28259 | AE17: 12200
B18: BO-000003, BO-000005 & BO-000010 | C18: 4 | D18: Civic Space | E18: Cnr William & Brisbane Sts | F18: Beaudesert | G18: Central Place | J18: 0 | K18: 197500 | M18: 1 | N18: 197500 | P18: 0.0063 | Q18: =IF(O18="",'Unit Rates-Land'!landcst,IF($D$8="Landuse",VLOOKUP(O18,LAndcost3,2,FALSE),IF($D$8="Location",VLOOKUP(O18,Landcost2,2,FALSE),"Error"))) -> 0 | R18: 0 | S18: 2014 | T18: =IFERROR((GeneralInput!$G$39/(VLOOKUP(S18,GeneralInput!$E$39:$G$45,3,FALSE))),1) -> 1 | U18: 197500 | V18: y | Z18: 28259 | AC18: 28259 | AE18: 197500
B19: BO-000039 & BO-000040 | C19: 5 | D19: Recreation Park | E19: 86 Brisbane Street | F19: Beaudesert | G19: DAVIDSON PARK | J19: 0 | K19: 34100 | M19: 1 | N19: 34100 | P19: 0.1706 | Q19: =IF(O19="",'Unit Rates-Land'!landcst,IF($D$8="Landuse",VLOOKUP(O19,LAndcost3,2,FALSE),IF($D$8="Location",VLOOKUP(O19,Landcost2,2,FALSE),"Error"))) -> 0 | R19: 0 | S19: 2014 | T19: =IFERROR((GeneralInput!$G$39/(VLOOKUP(S19,GeneralInput!$E$39:$G$45,3,FALSE))),1) -> 1 | U19: 34100 | V19: y | Z19: 28259 | AC19: 28259 | AE19: 34100
B20: BO-001905 & BO-002012 | C20: 6 | D20: Recreation Park | E20: Hugo Dr | F20: Beaudesert | G20: Hugo Drive | J20: 0 | K20: 10080 | M20: 1 | N20: 10080 | P20: 1.4063 | Q20: =IF(O20="",'Unit Rates-Land'!landcst,IF($D$8="Landuse",VLOOKUP(O20,LAndcost3,2,FALSE),IF($D$8="Location",VLOOKUP(O20,Landcost2,2,FALSE),"Error"))) -> 0 | R20: 0 | S20: 2014 | T20: =IFERROR((GeneralInput!$G$39/(VLOOKUP(S20,GeneralInput!$E$39:$G$45,3,FALSE))),1) -> 1 | U20: 10080 | V20: y | Z20: 28259 | AC20: 28259 | AE20: 10080
B21: BO-000066, 68, 69, 73 to 80, 759, 853, 1202, 1203, 1557, 1558, 1559, 1849, 1897, 2038, 1201, 1556 & 1969 & LF-000020 & LF-000021, RP-002879, RP-004523 & RP-004524 | C21: 7 | D21: Premier Park | E21: Telemon St & Brisbane St | F21: Beaudesert | G21: JUBILEE PARK | J21: 0 | K21: 1835275 | M21: 1 | N21: 1835275 | Q21: =IF(O21="",'Unit Rates-Land'!landcst,IF($D$8="Landuse",VLOOKUP(O21,LAndcost3,2,FALSE),IF($D$8="Location",VLOOKUP(O21,Landcost2,2,FALSE),"Error"))) -> 0 | R21: 0 | S21: 2014 | T21: =IFERROR((GeneralInput!$G$39/(VLOOKUP(S21,GeneralInput!$E$39:$G$45,3,FALSE))),1) -> 1 | U21: 1835275 | V21: y | Z21: 28259 | AC21: 28259 | AE21: 1835275
B22: LF-000017, BO-000058, BO-000060, BO-001561, BO-001887, BO-000057, BO-001204, BO-001414 & BO-001560 | C22: 8 | D22: Recreation Park | E22: Beaudesert-Nerang Road & Brooklands Dr | F22: Beaudesert | G22: Junior Chamber Park (including Corsa St section) | J22: 0 | K22: 267530 | M22: 1 | N22: 267530 | P22: 5.1099 | Q22: =IF(O22="",'Unit Rates-Land'!landcst,IF($D$8="Landuse",VLOOKUP(O22,LAndcost3,2,FALSE),IF($D$8="Location",VLOOKUP(O22,Landcost2,2,FALSE),"Error"))) -> 0 | R22: 0 | S22: 2014 | T22: =IFERROR((GeneralInput!$G$39/(VLOOKUP(S22,GeneralInput!$E$39:$G$45,3,FALSE))),1) -> 1 | U22: 267530 | V22: y | Z22: 28259 | AC22: 28259 | AE22: 267530
B23: BO-001903 | C23: 9 | D23: Recreation Park | E23: 42 Michaelina Dr | F23: Beaudesert | G23: Keith Little Park - New | J23: 0 | K23: 18000 | M23: 1 | N23: 18000 | P23: 0.4274 | Q23: =IF(O23="",'Unit Rates-Land'!landcst,IF($D$8="Landuse",VLOOKUP(O23,LAndcost3,2,FALSE),IF($D$8="Location",VLOOKUP(O23,Landcost2,2,FALSE),"Error"))) -> 0 | R23: 0 | S23: 2014 | T23: =IFERROR((GeneralInput!$G$39/(VLOOKUP(S23,GeneralInput!$E$39:$G$45,3,FALSE))),1) -> 1 | U23: 18000 | V23: y | Z23: 28259 | AC23: 28259 | AE23: 18000
B24: LF-000023 | C24: 10 | D24: Recreation Park | E24: McKee St | F24: Beaudesert | G24: Lions Bicentennial Park (Back) | J24: 0 | K24: 0 | M24: 1 | N24: 0 | P24: 2.5938 | Q24: =IF(O24="",'Unit Rates-Land'!landcst,IF($D$8="Landuse",VLOOKUP(O24,LAndcost3,2,FALSE),IF($D$8="Location",VLOOKUP(O24,Landcost2,2,FALSE),"Error"))) -> 0 | R24: 0 | S24: 2014 | T24: =IFERROR((GeneralInput!$G$39/(VLOOKUP(S24,GeneralInput!$E$39:$G$45,3,FALSE))),1) -> 1 | U24: 0 | V24: y | Z24: 28259 | AC24: 28259 | AE24: 0
B25: LF-000023, BO-000082, 83, 1948, 2036, 81, 1205, 1415 & 1562 | C25: 11 | D25: Recreation Park | E25: McKee St | F25: Beaudesert | G25: Lions Bicentennial Park (Front) | J25: 0 | K25: 733499 | M25: 1 | N25: 733499 | P25: 1.3165 | Q25: =IF(O25="",'Unit Rates-Land'!landcst,IF($D$8="Landuse",VLOOKUP(O25,LAndcost3,2,FALSE),IF($D$8="Location",VLOOKUP(O25,Landcost2,2,FALSE),"Error"))) -> 0 | R25: 0 | S25: 2014 | T25: =IFERROR((GeneralInput!$G$39/(VLOOKUP(S25,GeneralInput!$E$39:$G$45,3,FALSE))),1) -> 1 | U25: 733499 | V25: y | Z25: 28259 | AC25: 28259 | AE25: 733499
B26: LF-000031, 32, 33 & 34 & BO-000094, 1206 & 1564 | C26: 12 | D26: Sports Park | E26: 1-11 Helen & 13-19 Peterson Street | F26: Beaudesert | G26: MAVOR PARK | J26: 0 | K26: 734800 | M26: 1 | N26: 734800 | P26: 1.9272 | Q26: =IF(O26="",'Unit Rates-Land'!landcst,IF($D$8="Landuse",VLOOKUP(O26,LAndcost3,2,FALSE),IF($D$8="Location",VLOOKUP(O26,Landcost2,2,FALSE),"Error"))) -> 0 | R26: 0 | S26: 2014 | T26: =IFERROR((GeneralInput!$G$39/(VLOOKUP(S26,GeneralInput!$E$39:$G$45,3,FALSE))),1) -> 1 | U26: 734800 | V26: y | Z26: 28259 | AC26: 28259 | AE26: 734800
B27: Reserve | C27: 13 | D27: Corridor Park | E27: Michaelina Drive | F27: Beaudesert | G27: Michaelina Drive Reserve | J27: 0 | K27: 0 | M27: 1 | N27: 0 | P27: 0.6479 | Q27: =IF(O27="",'Unit Rates-Land'!landcst,IF($D$8="Landuse",VLOOKUP(O27,LAndcost3,2,FALSE),IF($D$8="Location",VLOOKUP(O27,Landcost2,2,FALSE),"Error"))) -> 0 | R27: 0 | S27: 2014 | T27: =IFERROR((GeneralInput!$G$39/(VLOOKUP(S27,GeneralInput!$E$39:$G$45,3,FALSE))),1) -> 1 | U27: 0 | V27: y | Z27: 28259 | AC27: 28259 | AE27: 0
B28: LF-000009, BO-000051, 1933 & 2017 | C28: 14 | D28: Recreation Park | E28: 73-81 Birnam St | F28: Beaudesert | G28: Muriel Drynan Memorial Park | J28: 0 | K28: 406350 | M28: 1 | N28: 406350 | P28: 1.8642 | Q28: =IF(O28="",'Unit Rates-Land'!landcst,IF($D$8="Landuse",VLOOKUP(O28,LAndcost3,2,FALSE),IF($D$8="Location",VLOOKUP(O28,Landcost2,2,FALSE),"Error"))) -> 0 | R28: 0 | S28: 2014 | T28: =IFERROR((GeneralInput!$G$39/(VLOOKUP(S28,GeneralInput!$E$39:$G$45,3,FALSE))),1) -> 1 | U28: 406350 | V28: y | Z28: 28259 | AC28: 28259 | AE28: 406350
B29: LF-000013 | C29: 15 | D29: Recreation Park | E29: Eaglesfield St | F29: Beaudesert | G29: NEV SPILLANE PARK | J29: 0 | K29: 170000 | M29: 1 | N29: 170000 | P29: 0.1002 | Q29: =IF(O29="",'Unit Rates-Land'!landcst,IF($D$8="Landuse",VLOOKUP(O29,LAndcost3,2,FALSE),IF($D$8="Location",VLOOKUP(O29,Landcost2,2,FALSE),"Error"))) -> 0 | R29: 0 | S29: 2014 | T29: =IFERROR((GeneralInput!$G$39/(VLOOKUP(S29,GeneralInput!$E$39:$G$45,3,FALSE))),1) -> 1 | U29: 170000 | V29: y | Z29: 28259 | AC29: 28259 | AE29: 170000
B30: LF-000027, BO-000088, 89, 1218, 1417 & 1578 | C30: 16 | D30: Sports Park | E30: Bromelton Street | F30: Beaudesert | G30: Selwyn Park (Sports oval) | J30: 0 | K30: 577500 | M30: 1 | N30: 577500 | P30: 3.7975 | Q30: =IF(O30="",'Unit Rates-Land'!landcst,IF($D$8="Landuse",VLOOKUP(O30,LAndcost3,2,FALSE),IF($D$8="Location",VLOOKUP(O30,Landcost2,2,FALSE),"Error"))) -> 0 | R30: 0 | S30: 2014 | T30: =IFERROR((GeneralInput!$G$39/(VLOOKUP(S30,GeneralInput!$E$39:$G$45,3,FALSE))),1) -> 1 | U30: 577500 | V30: y | Z30: 28259 | AC30: 28259 | AE30: 577500
B31: LF-000002 | C31: 17 | D31: Corridor Park | E31: 165 Brisbane Street | F31: Beaudesert | G31: Tubber Street Park | J31: 0 | K31: 50000 | M31: 1 | N31: 50000 | P31: 0.3092 | Q31: =IF(O31="",'Unit Rates-Land'!landcst,IF($D$8="Landuse",VLOOKUP(O31,LAndcost3,2,FALSE),IF($D$8="Location",VLOOKUP(O31,Landcost2,2,FALSE),"Error"))) -> 0 | R31: 0 | S31: 2014 | T31: =IFERROR((GeneralInput!$G$39/(VLOOKUP(S31,GeneralInput!$E$39:$G$45,3,FALSE))),1) -> 1 | U31: 50000 | V31: y | Z31: 28259 | AC31: 28259 | AE31: 50000
B32: LF-000038, BO-001941 & BO-002025 | C32: 18 | D32: Sports Park | E32: 2-4 Petersen Street | F32: Beaudesert | G32: Willis Park (Junior Rugby League Football Club) | J32: 0 | K32: 457400 | M32: 1 | N32: 457400 | P32: 2.168 | Q32: =IF(O32="",'Unit Rates-Land'!landcst,IF($D$8="Landuse",VLOOKUP(O32,LAndcost3,2,FALSE),IF($D$8="Location",VLOOKUP(O32,Landcost2,2,FALSE),"Error"))) -> 0 | R32: 0 | S32: 2014 | T32: =IFERROR((GeneralInput!$G$39/(VLOOKUP(S32,GeneralInput!$E$39:$G$45,3,FALSE))),1) -> 1 | U32: 457400 | V32: y | Z32: 28259 | AC32: 28259 | AE32: 457400
B33: Reserve | C33: 19 | D33: Corridor Park | E33: Carrigan Way | F33: Gleneagle | G33: Carrigan Way (Strathmore Way Reserve) | J33: 0 | K33: 0 | M33: 1 | N33: 0 | P33: 2.7412 | Q33: =IF(O33="",'Unit Rates-Land'!landcst,IF($D$8="Landuse",VLOOKUP(O33,LAndcost3,2,FALSE),IF($D$8="Location",VLOOKUP(O33,Landcost2,2,FALSE),"Error"))) -> 0 | R33: 0 | S33: 2014 | T33: =IFERROR((GeneralInput!$G$39/(VLOOKUP(S33,GeneralInput!$E$39:$G$45,3,FALSE))),1) -> 1 | U33: 0 | V33: y | Z33: 28259 | AC33: 28259 | AE33: 0
B34: Reserve | C34: 20 | D34: Corridor Park | E34: Mt Lindsay Highway | F34: Gleneagle | G34: Cosgrove Ct | J34: 0 | K34: 0 | M34: 1 | N34: 0 | P34: 1.836 | Q34: =IF(O34="",'Unit Rates-Land'!landcst,IF($D$8="Landuse",VLOOKUP(O34,LAndcost3,2,FALSE),IF($D$8="Location",VLOOKUP(O34,Landcost2,2,FALSE),"Error"))) -> 0 | R34: 0 | S34: 2014 | T34: =IFERROR((GeneralInput!$G$39/(VLOOKUP(S34,GeneralInput!$E$39:$G$45,3,FALSE))),1) -> 1 | U34: 0 | V34: y | Z34: 28259 | AC34: 28259 | AE34: 0
B35: RP-002867, RP-004513 & RP-004514 | C35: 21 | D35: Sports Park | E35: Mt Lindsay Highway | F35: Gleneagle | G35: EVERDELL PARK | J35: 0 | K35: 21982 | M35: 1 | N35: 21982 | P35: 9.4065 | Q35: =IF(O35="",'Unit Rates-Land'!landcst,IF($D$8="Landuse",VLOOKUP(O35,LAndcost3,2,FALSE),IF($D$8="Location",VLOOKUP(O35,Landcost2,2,FALSE),"Error"))) -> 0 | R35: 0 | S35: 2014 | T35: =IFERROR((GeneralInput!$G$39/(VLOOKUP(S35,GeneralInput!$E$39:$G$45,3,FALSE))),1) -> 1 | U35: 21982 | V35: y | Z35: 28259 | AC35: 28259 | AE35: 21982
B36: Reserve | C36: 22 | D36: Corridor Park | E36: Mt Lindsay Highway | F36: Gleneagle | G36: Kenross Ct | J36: 0 | K36: 0 | M36: 1 | N36: 0 | P36: 1.4387 | Q36: =IF(O36="",'Unit Rates-Land'!landcst,IF($D$8="Landuse",VLOOKUP(O36,LAndcost3,2,FALSE),IF($D$8="Location",VLOOKUP(O36,Landcost2,2,FALSE),"Error"))) -> 0 | R36: 0 | S36: 2014 | T36: =IFERROR((GeneralInput!$G$39/(VLOOKUP(S36,GeneralInput!$E$39:$G$45,3,FALSE))),1) -> 1 | U36: 0 | V36: y | Z36: 28259 | AC36: 28259 | AE36: 0
B37: BO-000279, 1884 & 2002 | C37: 24 | D37: Recreation Park | E37: 153-219 Wellington Bundock Drive | F37: Kooralbyn | G37: Boomarang Lagoon Park | J37: 0 | K37: 21970 | M37: 1 | N37: 21970 | P37: 1.3381 | Q37: =IF(O37="",'Unit Rates-Land'!landcst,IF($D$8="Landuse",VLOOKUP(O37,LAndcost3,2,FALSE),IF($D$8="Location",VLOOKUP(O37,Landcost2,2,FALSE),"Error"))) -> 0 | R37: 0 | S37: 2014 | T37: =IFERROR((GeneralInput!$G$39/(VLOOKUP(S37,GeneralInput!$E$39:$G$45,3,FALSE))),1) -> 1 | U37: 21970 | V37: y | Z37: 28259 | AC37: 28259 | AE37: 21970
B38: Reserve | C38: 25 | D38: Corridor Park | E38: 36 Routley Drive | F38: Kooralbyn | G38: Hinchcliffe Bridge Park | J38: 0 | K38: 0 | M38: 1 | N38: 0 | P38: 2.1102 | Q38: =IF(O38="",'Unit Rates-Land'!landcst,IF($D$8="Landuse",VLOOKUP(O38,LAndcost3,2,FALSE),IF($D$8="Location",VLOOKUP(O38,Landcost2,2,FALSE),"Error"))) -> 0 | R38: 0 | S38: 2014 | T38: =IFERROR((GeneralInput!$G$39/(VLOOKUP(S38,GeneralInput!$E$39:$G$45,3,FALSE))),1) -> 1 | U38: 0 | V38: y | Z38: 28259 | AC38: 28259 | AE38: 0
B39: BO-000296, 297, 1757, 301, 1373 & 1756 | C39: 26 | D39: Premier Park | E39: Mt Lindesay Hwy | F39: Rathdowney | G39: Collins Park | J39: 0 | K39: 123580 | M39: 1 | N39: 123580 | P39: 0.4282 | Q39: =IF(O39="",'Unit Rates-Land'!landcst,IF($D$8="Landuse",VLOOKUP(O39,LAndcost3,2,FALSE),IF($D$8="Location",VLOOKUP(O39,Landcost2,2,FALSE),"Error"))) -> 0 | R39: 0 | S39: 2014 | T39: =IFERROR((GeneralInput!$G$39/(VLOOKUP(S39,GeneralInput!$E$39:$G$45,3,FALSE))),1) -> 1 | U39: 123580 | V39: y | Z39: 28259 | AC39: 28259 | AE39: 123580
B40: LF-000157, BO-000315 & 316 | C40: 27 | D40: Recreation Park | E40: 102-104 Mt Lindesay Hwy | F40: Rathdowney | G40: Rathdowney Memorial Grounds | J40: 0 | K40: 85336 | M40: 1 | N40: 85336 | P40: 0.4035 | Q40: =IF(O40="",'Unit Rates-Land'!landcst,IF($D$8="Landuse",VLOOKUP(O40,LAndcost3,2,FALSE),IF($D$8="Location",VLOOKUP(O40,Landcost2,2,FALSE),"Error"))) -> 0 | R40: 0 | S40: 2014 | T40: =IFERROR((GeneralInput!$G$39/(VLOOKUP(S40,GeneralInput!$E$39:$G$45,3,FALSE))),1) -> 1 | U40: 85336 | V40: y | Z40: 28259 | AC40: 28259 | AE40: 85336
B41: LF-000156 & 152 | C41: 28 | D41: Sports Park | E41: 102-104 Mt Lindesay Hwy | F41: Rathdowney | G41: Rathdowney Memorial Grounds (Sport oval) | J41: 0 | K41: 262000 | M41: 1 | N41: 262000 | P41: 6.4224 | Q41: =IF(O41="",'Unit Rates-Land'!landcst,IF($D$8="Landuse",VLOOKUP(O41,LAndcost3,2,FALSE),IF($D$8="Location",VLOOKUP(O41,Landcost2,2,FALSE),"Error"))) -> 0 | R41: 0 | S41: 2014 | T41: =IFERROR((GeneralInput!$G$39/(VLOOKUP(S41,GeneralInput!$E$39:$G$45,3,FALSE))),1) -> 1 | U41: 262000 | V41: y | Z41: 28259 | AC41: 28259 | AE41: 262000
B42: LF-000538 & BO-000971 | C42: 29 | D42: Sports Park | E42: 37 Elizabeth St | F42: Aratula | G42: Moffatt Memorial Park | J42: 0 | K42: 238000 | M42: 1 | N42: 238000 | P42: 3.845 | Q42: =IF(O42="",'Unit Rates-Land'!landcst,IF($D$8="Landuse",VLOOKUP(O42,LAndcost3,2,FALSE),IF($D$8="Location",VLOOKUP(O42,Landcost2,2,FALSE),"Error"))) -> 0 | R42: 0 | S42: 2014 | T42: =IFERROR((GeneralInput!$G$39/(VLOOKUP(S42,GeneralInput!$E$39:$G$45,3,FALSE))),1) -> 1 | U42: 238000 | W42: y | AA42: 14065 | AC42: 14065 | AF42: 238000
B43: BO-000948, 1173, 1612, 1613, 949, 1247, 1610 & 1983 | C43: 30 | D43: Recreation Park | E43: 20 Boonah-Fassifern Rd | F43: Boonah | G43: BICENTENNIAL PARK | J43: 0 | K43: 100080 | M43: 1 | N43: 100080 | P43: 7.0702 | Q43: =IF(O43="",'Unit Rates-Land'!landcst,IF($D$8="Landuse",VLOOKUP(O43,LAndcost3,2,FALSE),IF($D$8="Location",VLOOKUP(O43,Landcost2,2,FALSE),"Error"))) -> 0 | R43: 0 | S43: 2014 | T43: =IFERROR((GeneralInput!$G$39/(VLOOKUP(S43,GeneralInput!$E$39:$G$45,3,FALSE))),1) -> 1 | U43: 100080 | W43: y | AA43: 14065 | AC43: 14065 | AF43: 100080
B44: LF-000578 & BO-002033 | C44: 31 | D44: Civic Space | E44: 70 high street | F44: Boonah | G44: Boonah Forecourt | J44: 0 | K44: 226697.9 | M44: 1 | N44: 226697.9 | P44: 0.0453 | Q44: =IF(O44="",'Unit Rates-Land'!landcst,IF($D$8="Landuse",VLOOKUP(O44,LAndcost3,2,FALSE),IF($D$8="Location",VLOOKUP(O44,Landcost2,2,FALSE),"Error"))) -> 0 | R44: 0 | S44: 2014 | T44: =IFERROR((GeneralInput!$G$39/(VLOOKUP(S44,GeneralInput!$E$39:$G$45,3,FALSE))),1) -> 1 | U44: 226697.9 | W44: y | AA44: 14065 | AC44: 14065 | AF44: 226697.9
B45: Reserve | C45: 32 | D45: Sports Park | E45: Boonah Rathdowney Road | F45: Boonah | G45: Broken Paddle Canoe Club | J45: 0 | K45: 0 | M45: 1 | N45: 0 | P45: 4.296 | Q45: =IF(O45="",'Unit Rates-Land'!landcst,IF($D$8="Landuse",VLOOKUP(O45,LAndcost3,2,FALSE),IF($D$8="Location",VLOOKUP(O45,Landcost2,2,FALSE),"Error"))) -> 0 | R45: 0 | S45: 2014 | T45: =IFERROR((GeneralInput!$G$39/(VLOOKUP(S45,GeneralInput!$E$39:$G$45,3,FALSE))),1) -> 1 | U45: 0 | W45: y | AA45: 14065 | AC45: 14065 | AF45: 0
B46: LF-000541, BO-000966, 1018, 954, 1250 & 1616 | C46: 33 | D46: Sports Park | E46: Coronation Dr | F46: Boonah | G46: Coronation Park | J46: =IFERROR(VLOOKUP($H46,Parksunitrate1,2,FALSE),0) -> 0 | K46: 1005681 | M46: =IF(L46="",1,VLOOKUP(L46,PArksitecond,2,FALSE)) -> 1 | N46: =IF(K46="","",K46*M46) -> 1005681 | P46: 7.5954 | Q46: =IF(O46="",'Unit Rates-Land'!landcst,IF($D$8="Landuse",VLOOKUP(O46,LAndcost3,2,FALSE),IF($D$8="Location",VLOOKUP(O46,Landcost2,2,FALSE),"Error"))) -> 0 | R46: =IF(Q46="",0,Q46*10000*P46) -> 0 | S46: 2014 | T46: =IFERROR((GeneralInput!$G$39/(VLOOKUP(S46,GeneralInput!$E$39:$G$45,3,FALSE))),1) -> 1 | U46: =IFERROR((R46+N46)*T46,0) -> 1005681 | W46: y | Z46: =IF(V46="y",Z$14,IF(AND(V46>0,V46<=1),V46*Z$14,"")) ->  | AA46: =IF(W46="y",AA$14,IF(AND(W46>0,W46<=1),W46*AA$14,"")) -> 14065 | AB46: =IF(X46="y",AB$14,IF(AND(X46>0,X46<=1),X46*AB$14,"")) ->  | AC46: =SUM(Z46:AB46) -> 14065 | AE46: =IF(Z46="","",(Z46/$AC46)*$U46) ->  | AF46: =IF(AA46="","",(AA46/$AC46)*$U46) -> 1005681 | AG46: =IF(AB46="","",(AB46/$AC46)*$U46) ->  | AH46: =IF(SUM(AE46:AG46)=U46,"","ERROR") -> 
B47: RF-000521 | C47: 34 | D47: Recreation Park | E47: Boonah Rathdowney Road | F47: Boonah | G47: Dugandan Park | J47: 0 | K47: 54000 | M47: 1 | N47: 54000 | P47: 0.9236 | Q47: =IF(O47="",'Unit Rates-Land'!landcst,IF($D$8="Landuse",VLOOKUP(O47,LAndcost3,2,FALSE),IF($D$8="Location",VLOOKUP(O47,Landcost2,2,FALSE),"Error"))) -> 0 | R47: 0 | S47: 2014 | T47: =IFERROR((GeneralInput!$G$39/(VLOOKUP(S47,GeneralInput!$E$39:$G$45,3,FALSE))),1) -> 1 | U47: 54000 | W47: y | AA47: 14065 | AC47: 14065 | AF47: 54000
B48: Reserve | C48: 35 | D48: Sports Park | E48: Boonah Rathdowney Road | F48: Boonah | G48: Dugandan Park (Oval) | J48: 0 | K48: 0 | M48: 1 | N48: 0 | P48: 1.8224 | Q48: =IF(O48="",'Unit Rates-Land'!landcst,IF($D$8="Landuse",VLOOKUP(O48,LAndcost3,2,FALSE),IF($D$8="Location",VLOOKUP(O48,Landcost2,2,FALSE),"Error"))) -> 0 | R48: 0 | S48: 2014 | T48: =IFERROR((GeneralInput!$G$39/(VLOOKUP(S48,GeneralInput!$E$39:$G$45,3,FALSE))),1) -> 1 | U48: 0 | W48: y | AA48: 14065 | AC48: 14065 | AF48: 0
B49: Reserve | C49: 36 | D49: Corridor Park | E49: Boonah Rathdowney Road | F49: Boonah | G49: Dugandan Park Pathway | J49: 0 | K49: 0 | M49: 1 | N49: 0 | P49: 0.8935 | Q49: =IF(O49="",'Unit Rates-Land'!landcst,IF($D$8="Landuse",VLOOKUP(O49,LAndcost3,2,FALSE),IF($D$8="Location",VLOOKUP(O49,Landcost2,2,FALSE),"Error"))) -> 0 | R49: 0 | S49: 2014 | T49: =IFERROR((GeneralInput!$G$39/(VLOOKUP(S49,GeneralInput!$E$39:$G$45,3,FALSE))),1) -> 1 | U49: 0 | W49: y | AA49: 14065 | AC49: 14065 | AF49: 0
B50: LF-000539 & 540 | C50: 37 | D50: Recreation Park | E50: Alfred st | F50: Boonah | G50: Lions Club of Boonah | J50: 0 | K50: 210000 | M50: 1 | N50: 210000 | P50: 1.428 | Q50: =IF(O50="",'Unit Rates-Land'!landcst,IF($D$8="Landuse",VLOOKUP(O50,LAndcost3,2,FALSE),IF($D$8="Location",VLOOKUP(O50,Landcost2,2,FALSE),"Error"))) -> 0 | R50: 0 | S50: 2014 | T50: =IFERROR((GeneralInput!$G$39/(VLOOKUP(S50,GeneralInput!$E$39:$G$45,3,FALSE))),1) -> 1 | U50: 210000 | W50: y | AA50: 14065 | AC50: 14065 | AF50: 210000
B51: LF-000457, BO-000964, 967, 991, 1635, 1636, 1940, 2024, 2037, 2042, 958, 1268, 1435 & 1634 | C51: 38 | D51: Premier Park | E51: Hoya Road | F51: Boonah | G51: SPRINGLEIGH PARK | J51: 0 | K51: 526150 | M51: 1 | N51: 526150 | P51: 2.7241 | Q51: =IF(O51="",'Unit Rates-Land'!landcst,IF($D$8="Landuse",VLOOKUP(O51,LAndcost3,2,FALSE),IF($D$8="Location",VLOOKUP(O51,Landcost2,2,FALSE),"Error"))) -> 0 | R51: 0 | S51: 2014 | T51: =IFERROR((GeneralInput!$G$39/(VLOOKUP(S51,GeneralInput!$E$39:$G$45,3,FALSE))),1) -> 1 | U51: 526150 | W51: y | AA51: 14065 | AC51: 14065 | AF51: 526150
B52: Reserve | C52: 39 | D52: Recreation Park | E52: 16-20 Preston Court | F52: Dugandan | G52: Stanfield Estate Park (Boonah) | J52: 0 | K52: 0 | M52: 1 | N52: 0 | P52: 0.7124 | Q52: =IF(O52="",'Unit Rates-Land'!landcst,IF($D$8="Landuse",VLOOKUP(O52,LAndcost3,2,FALSE),IF($D$8="Location",VLOOKUP(O52,Landcost2,2,FALSE),"Error"))) -> 0 | R52: 0 | S52: 2014 | T52: =IFERROR((GeneralInput!$G$39/(VLOOKUP(S52,GeneralInput!$E$39:$G$45,3,FALSE))),1) -> 1 | U52: 0 | W52: y | AA52: 14065 | AC52: 14065 | AF52: 0
B53: BO-000972, 950, 1284, 1439 &1652 | C53: 40 | D53: Recreation Park | E53: Boonah Rathdowney Road | F53: Boonah | G53: Tiny Tots Park (Rotary Park) | J53: 0 | K53: 99363 | M53: 1 | N53: 99363 | P53: 0.1871 | Q53: =IF(O53="",'Unit Rates-Land'!landcst,IF($D$8="Landuse",VLOOKUP(O53,LAndcost3,2,FALSE),IF($D$8="Location",VLOOKUP(O53,Landcost2,2,FALSE),"Error"))) -> 0 | R53: 0 | S53: 2014 | T53: =IFERROR((GeneralInput!$G$39/(VLOOKUP(S53,GeneralInput!$E$39:$G$45,3,FALSE))),1) -> 1 | U53: 99363 | W53: y | AA53: 14065 | AC53: 14065 | AF53: 99363
B54: BO-001886 | C54: 41 | D54: Recreation Park | E54: Boonah Rathdowney Road | F54: Boonah | G54: Toby Slater Park (Lions Park) | J54: 0 | K54: 10000 | M54: 1 | N54: 10000 | P54: 0.1145 | Q54: =IF(O54="",'Unit Rates-Land'!landcst,IF($D$8="Landuse",VLOOKUP(O54,LAndcost3,2,FALSE),IF($D$8="Location",VLOOKUP(O54,Landcost2,2,FALSE),"Error"))) -> 0 | R54: 0 | S54: 2014 | T54: =IFERROR((GeneralInput!$G$39/(VLOOKUP(S54,GeneralInput!$E$39:$G$45,3,FALSE))),1) -> 1 | U54: 10000 | W54: y | AA54: 14065 | AC54: 14065 | AF54: 10000
B55: LF-000510, 511 & 513 | C55: 42 | D55: Corridor Park | E55: 1 Eagle St | F55: Harrisville | G55: Eagle Street Park (BMX Park) | J55: 0 | K55: 280000 | M55: 1 | N55: 280000 | P55: 0.2988 | Q55: =IF(O55="",'Unit Rates-Land'!landcst,IF($D$8="Landuse",VLOOKUP(O55,LAndcost3,2,FALSE),IF($D$8="Location",VLOOKUP(O55,Landcost2,2,FALSE),"Error"))) -> 0 | R55: 0 | S55: 2014 | T55: =IFERROR((GeneralInput!$G$39/(VLOOKUP(S55,GeneralInput!$E$39:$G$45,3,FALSE))),1) -> 1 | U55: 280000 | W55: y | AA55: 14065 | AC55: 14065 | AF55: 280000
B56: LF-000627, BO-002061, 2062, 2063, 2064, 2050, 2051, 2052 & 2053, RP-004731 & RP-004732 | C56: 43 | D56: Sports Park | E56: 15 Pollock Street | F56: Harrisville | G56: Hayes Oval Inc - new sports park | J56: 0 | K56: 559865 | M56: 1 | N56: 559865 | P56: 7.105 | Q56: =IF(O56="",'Unit Rates-Land'!landcst,IF($D$8="Landuse",VLOOKUP(O56,LAndcost3,2,FALSE),IF($D$8="Location",VLOOKUP(O56,Landcost2,2,FALSE),"Error"))) -> 0 | R56: 0 | S56: 2014 | T56: =IFERROR((GeneralInput!$G$39/(VLOOKUP(S56,GeneralInput!$E$39:$G$45,3,FALSE))),1) -> 1 | U56: 559865 | W56: y | AA56: 14065 | AC56: 14065 | AF56: 559865
B57: LF-000500, BO-001106, 1107, 1108, 1900 & 2011 | C57: 44 | D57: Recreation Park | E57: 10 Wholey Drive | F57: Harrisville | G57: LIONS ROTARY PARK | J57: 0 | K57: 254725 | M57: 1 | N57: 254725 | P57: 0.4571 | Q57: =IF(O57="",'Unit Rates-Land'!landcst,IF($D$8="Landuse",VLOOKUP(O57,LAndcost3,2,FALSE),IF($D$8="Location",VLOOKUP(O57,Landcost2,2,FALSE),"Error"))) -> 0 | R57: 0 | S57: 2014 | T57: =IFERROR((GeneralInput!$G$39/(VLOOKUP(S57,GeneralInput!$E$39:$G$45,3,FALSE))),1) -> 1 | U57: 254725 | W57: y | AA57: 14065 | AC57: 14065 | AF57: 254725
B58: LF-000503, BO-001112, 1117, 1118, 1119, 1121, 1122, 1113, 1323, 1698 & 1984 | C58: 45 | D58: Recreation Park | E58: 43 Queen Street | F58: Harrisville | G58: MEMORIAL PARK | J58: 0 | K58: 431215 | M58: 1 | N58: 431215 | P58: 0.4711 | Q58: =IF(O58="",'Unit Rates-Land'!landcst,IF($D$8="Landuse",VLOOKUP(O58,LAndcost3,2,FALSE),IF($D$8="Location",VLOOKUP(O58,Landcost2,2,FALSE),"Error"))) -> 0 | R58: 0 | S58: 2014 | T58: =IFERROR((GeneralInput!$G$39/(VLOOKUP(S58,GeneralInput!$E$39:$G$45,3,FALSE))),1) -> 1 | U58: 431215 | W58: y | AA58: 14065 | AC58: 14065 | AF58: 431215
B59: BO-000963, 986, 1710, 980, 1333, 1462 & 1709, RP-004725, RP-004726 & RS-003982 | C59: 46 | D59: Premier Park | E59: 25-27 Edward St | F59: Kalbar | G59: Engelsbrug Park | J59: 0 | K59: 167318 | M59: 1 | N59: 167318 | P59: 0.8113 | Q59: =IF(O59="",'Unit Rates-Land'!landcst,IF($D$8="Landuse",VLOOKUP(O59,LAndcost3,2,FALSE),IF($D$8="Location",VLOOKUP(O59,Landcost2,2,FALSE),"Error"))) -> 0 | R59: 0 | S59: 2014 | T59: =IFERROR((GeneralInput!$G$39/(VLOOKUP(S59,GeneralInput!$E$39:$G$45,3,FALSE))),1) -> 1 | U59: 167318 | W59: y | AA59: 14065 | AC59: 14065 | AF59: 167318
B60: LF-000562 & LF-000459 & BO-000968 | C60: 47 | D60: Recreation Park | E60: 22 George St | F60: Kalbar | G60: JEC Pennell Park | J60: 0 | K60: 295700 | M60: 1 | N60: 295700 | P60: 0.2428 | Q60: =IF(O60="",'Unit Rates-Land'!landcst,IF($D$8="Landuse",VLOOKUP(O60,LAndcost3,2,FALSE),IF($D$8="Location",VLOOKUP(O60,Landcost2,2,FALSE),"Error"))) -> 0 | R60: 0 | S60: 2014 | T60: =IFERROR((GeneralInput!$G$39/(VLOOKUP(S60,GeneralInput!$E$39:$G$45,3,FALSE))),1) -> 1 | U60: 295700 | W60: y | AA60: 14065 | AC60: 14065 | AF60: 295700
B61: Reserve | C61: 48 | D61: Recreation Park | E61: George St | F61: Kalbar | G61: Kalbar BMX Park | J61: 0 | K61: 0 | M61: 1 | N61: 0 | P61: 4.7241 | Q61: =IF(O61="",'Unit Rates-Land'!landcst,IF($D$8="Landuse",VLOOKUP(O61,LAndcost3,2,FALSE),IF($D$8="Location",VLOOKUP(O61,Landcost2,2,FALSE),"Error"))) -> 0 | R61: 0 | S61: 2014 | T61: =IFERROR((GeneralInput!$G$39/(VLOOKUP(S61,GeneralInput!$E$39:$G$45,3,FALSE))),1) -> 1 | U61: 0 | W61: y | AA61: 14065 | AC61: 14065 | AF61: 0
B62: LF-000421, LF-000576, LF-000577, BO-000908, 981, 1161, 1331, 1707, 1711, 1899 & 2010 | C62: 49 | D62: Recreation Park | E62: 78-80 George St | F62: Kalbar | G62: Kalbar Civic Centre Park | J62: 0 | K62: 495400 | M62: 1 | N62: 495400 | P62: 0.378 | Q62: =IF(O62="",'Unit Rates-Land'!landcst,IF($D$8="Landuse",VLOOKUP(O62,LAndcost3,2,FALSE),IF($D$8="Location",VLOOKUP(O62,Landcost2,2,FALSE),"Error"))) -> 0 | R62: 0 | S62: 2014 | T62: =IFERROR((GeneralInput!$G$39/(VLOOKUP(S62,GeneralInput!$E$39:$G$45,3,FALSE))),1) -> 1 | U62: 495400 | W62: y | AA62: 14065 | AC62: 14065 | AF62: 495400
B63: BO-000947, 1340 & 1718 | C63: 50 | D63: Recreation Park | E63: Slatter Park Rd | F63: Maroon | G63: Slatter H.G. Park | J63: 0 | K63: 97200 | M63: 1 | N63: 97200 | P63: 0.4261 | Q63: =IF(O63="",'Unit Rates-Land'!landcst,IF($D$8="Landuse",VLOOKUP(O63,LAndcost3,2,FALSE),IF($D$8="Location",VLOOKUP(O63,Landcost2,2,FALSE),"Error"))) -> 0 | R63: 0 | S63: 2014 | T63: =IFERROR((GeneralInput!$G$39/(VLOOKUP(S63,GeneralInput!$E$39:$G$45,3,FALSE))),1) -> 1 | U63: 97200 | W63: y | AA63: 14065 | AC63: 14065 | AF63: 97200
B64: BO-000970, 957, 1352, 1469, 1730 & 2027 | C64: 51 | D64: Recreation Park | E64: 1 Cavanagh St | F64: Mount Alford | G64: Bowman Park | J64: 0 | K64: 90300 | M64: 1 | N64: 90300 | P64: 0.4033 | Q64: =IF(O64="",'Unit Rates-Land'!landcst,IF($D$8="Landuse",VLOOKUP(O64,LAndcost3,2,FALSE),IF($D$8="Location",VLOOKUP(O64,Landcost2,2,FALSE),"Error"))) -> 0 | R64: 0 | S64: 2014 | T64: =IFERROR((GeneralInput!$G$39/(VLOOKUP(S64,GeneralInput!$E$39:$G$45,3,FALSE))),1) -> 1 | U64: 90300 | W64: y | AA64: 14065 | AC64: 14065 | AF64: 90300
B65: Reserve | C65: 52 | D65: Corridor Park | E65: 19-35 Flinders Street | F65: Peak Crossing | G65: GOOLMAN PARK | J65: 0 | K65: 0 | M65: 1 | N65: 0 | P65: 1.4262 | Q65: =IF(O65="",'Unit Rates-Land'!landcst,IF($D$8="Landuse",VLOOKUP(O65,LAndcost3,2,FALSE),IF($D$8="Location",VLOOKUP(O65,Landcost2,2,FALSE),"Error"))) -> 0 | R65: 0 | S65: 2014 | T65: =IFERROR((GeneralInput!$G$39/(VLOOKUP(S65,GeneralInput!$E$39:$G$45,3,FALSE))),1) -> 1 | U65: 0 | W65: y | AA65: 14065 | AC65: 14065 | AF65: 0
B66: BO-001133, 1138, 1140, 1143, 1145, 1146, 1754, 1901, 1135, 1371, 1753 & 2026, BO-001136 & RP-004535 | C66: 53 | D66: Premier Park | E66: Lot 161 Ipswich-Boonah Rd | F66: Peak Crossing | G66: PEAK MOUNTAIN VIEW PARK | J66: 0 | K66: 225964 | M66: 1 | N66: 225964 | P66: 1.8736 | Q66: =IF(O66="",'Unit Rates-Land'!landcst,IF($D$8="Landuse",VLOOKUP(O66,LAndcost3,2,FALSE),IF($D$8="Location",VLOOKUP(O66,Landcost2,2,FALSE),"Error"))) -> 0 | R66: 0 | S66: 2014 | T66: =IFERROR((GeneralInput!$G$39/(VLOOKUP(S66,GeneralInput!$E$39:$G$45,3,FALSE))),1) -> 1 | U66: 225964 | W66: y | AA66: 14065 | AC66: 14065 | AF66: 225964
B67: LF-000458, BO-000951 & 1773 | C67: 54 | D67: Recreation Park | E67: Gray St | F67: Roadvale | G67: Roadvale Park | J67: 0 | K67: 61000 | M67: 1 | N67: 61000 | P67: 0.423 | Q67: =IF(O67="",'Unit Rates-Land'!landcst,IF($D$8="Landuse",VLOOKUP(O67,LAndcost3,2,FALSE),IF($D$8="Location",VLOOKUP(O67,Landcost2,2,FALSE),"Error"))) -> 0 | R67: 0 | S67: 2014 | T67: =IFERROR((GeneralInput!$G$39/(VLOOKUP(S67,GeneralInput!$E$39:$G$45,3,FALSE))),1) -> 1 | U67: 61000 | W67: y | AA67: 14065 | AC67: 14065 | AF67: 61000
B68: BO-000974 & 1774 | C68: 55 | D68: Recreation Park | E68: Rosevale Rd | F68: Rosevale | G68: Rosevale Pioneer Park | J68: 0 | K68: 11500 | M68: 1 | N68: 11500 | P68: 0.1379 | Q68: =IF(O68="",'Unit Rates-Land'!landcst,IF($D$8="Landuse",VLOOKUP(O68,LAndcost3,2,FALSE),IF($D$8="Location",VLOOKUP(O68,Landcost2,2,FALSE),"Error"))) -> 0 | R68: 0 | S68: 2014 | T68: =IFERROR((GeneralInput!$G$39/(VLOOKUP(S68,GeneralInput!$E$39:$G$45,3,FALSE))),1) -> 1 | U68: 11500 | W68: y | AA68: 14065 | AC68: 14065 | AF68: 11500
B69: BO-000975, 976, 1405 & 1795 | C69: 56 | D69: Sports Park | E69: Bath St | F69: Warrill View | G69: JF Burnett Park | J69: 0 | K69: 112696 | M69: 1 | N69: 112696 | P69: 2.5101 | Q69: =IF(O69="",'Unit Rates-Land'!landcst,IF($D$8="Landuse",VLOOKUP(O69,LAndcost3,2,FALSE),IF($D$8="Location",VLOOKUP(O69,Landcost2,2,FALSE),"Error"))) -> 0 | R69: 0 | S69: 2014 | T69: =IFERROR((GeneralInput!$G$39/(VLOOKUP(S69,GeneralInput!$E$39:$G$45,3,FALSE))),1) -> 1 | U69: 112696 | W69: y | AA69: 14065 | AC69: 14065 | AF69: 112696
B70: LF-000060 | C70: 57 | D70: Recreation Park | E70: McInnes Court | F70: Beechmont | G70: Cypress Ct Reserve | J70: 0 | K70: 200000 | M70: 1 | N70: 200000 | P70: 0.6343 | Q70: =IF(O70="",'Unit Rates-Land'!landcst,IF($D$8="Landuse",VLOOKUP(O70,LAndcost3,2,FALSE),IF($D$8="Location",VLOOKUP(O70,Landcost2,2,FALSE),"Error"))) -> 0 | R70: 0 | S70: 2014 | T70: =IFERROR((GeneralInput!$G$39/(VLOOKUP(S70,GeneralInput!$E$39:$G$45,3,FALSE))),1) -> 1 | U70: 200000 | X70: y | AB70: 15993 | AC70: 15993 | AG70: 200000
B71: BO-000145, 149, 150, 1242, 1605, 144, 1240 & 1603, RP-004690, RP-004718 & RP-004719 | C71: 58 | D71: Sports Park | E71: 1908 Beechmont Road | F71: Beechmont | G71: GRACELEIGH PARK | J71: 0 | K71: 118693 | M71: 1 | N71: 118693 | P71: 2.7226 | Q71: =IF(O71="",'Unit Rates-Land'!landcst,IF($D$8="Landuse",VLOOKUP(O71,LAndcost3,2,FALSE),IF($D$8="Location",VLOOKUP(O71,Landcost2,2,FALSE),"Error"))) -> 0 | R71: 0 | S71: 2014 | T71: =IFERROR((GeneralInput!$G$39/(VLOOKUP(S71,GeneralInput!$E$39:$G$45,3,FALSE))),1) -> 1 | U71: 118693 | X71: y | AB71: 15993 | AC71: 15993 | AG71: 118693
B72: LF-000061, 62, 64 & 65 | C72: 59 | D72: Recreation Park | E72: McInnes Court | F72: Beechmont | G72: McInnes Estate Parks | J72: 0 | K72: 960000 | M72: 1 | N72: 960000 | P72: 1.9443 | Q72: =IF(O72="",'Unit Rates-Land'!landcst,IF($D$8="Landuse",VLOOKUP(O72,LAndcost3,2,FALSE),IF($D$8="Location",VLOOKUP(O72,Landcost2,2,FALSE),"Error"))) -> 0 | R72: 0 | S72: 2014 | T72: =IFERROR((GeneralInput!$G$39/(VLOOKUP(S72,GeneralInput!$E$39:$G$45,3,FALSE))),1) -> 1 | U72: 960000 | X72: y | AB72: 15993 | AC72: 15993 | AG72: 960000
B73: LF-000075, LF-000078, BO-000155, 157, 158, 161, 1664, 159, 1295, 1446 & 1663 | C73: 60 | D73: Premier Park | E73: 1-3, 9-13 Kidston & 39-41 Christie Street | F73: Canungra | G73: DJ SMITH MEMORIAL PARK | J73: 0 | K73: 1053460 | M73: 1 | N73: 1053460 | P73: 0.5123 | Q73: =IF(O73="",'Unit Rates-Land'!landcst,IF($D$8="Landuse",VLOOKUP(O73,LAndcost3,2,FALSE),IF($D$8="Location",VLOOKUP(O73,Landcost2,2,FALSE),"Error"))) -> 0 | R73: 0 | S73: 2014 | T73: =IFERROR((GeneralInput!$G$39/(VLOOKUP(S73,GeneralInput!$E$39:$G$45,3,FALSE))),1) -> 1 | U73: 1053460 | X73: y | AB73: 15993 | AC73: 15993 | AG73: 1053460
B74: BO-000173, RP-004721, RP-004722 & RS-003981 | C74: 61 | D74: Recreation Park | E74: Beaudesert - Nerang Rd & 2 Coburg Rd | F74: Canungra | G74: LIONS PARK Canungra | J74: 0 | K74: 137837 | M74: 1 | N74: 137837 | P74: 0.4795 | Q74: =IF(O74="",'Unit Rates-Land'!landcst,IF($D$8="Landuse",VLOOKUP(O74,LAndcost3,2,FALSE),IF($D$8="Location",VLOOKUP(O74,Landcost2,2,FALSE),"Error"))) -> 0 | R74: 0 | S74: 2014 | T74: =IFERROR((GeneralInput!$G$39/(VLOOKUP(S74,GeneralInput!$E$39:$G$45,3,FALSE))),1) -> 1 | U74: 137837 | X74: y | AB74: 15993 | AC74: 15993 | AG74: 137837
B75: BO-000182, 1298, 1669, 1928, 1932, 1959, 1960, 180, 1297, 1667 & 2029 | C75: 62 | D75: Sports Park | E75: 9-37 Coburg Rd | F75: Canungra | G75: MORIARTY PARK | J75: 0 | K75: 411650 | M75: 1 | N75: 411650 | P75: 4.4342 | Q75: =IF(O75="",'Unit Rates-Land'!landcst,IF($D$8="Landuse",VLOOKUP(O75,LAndcost3,2,FALSE),IF($D$8="Location",VLOOKUP(O75,Landcost2,2,FALSE),"Error"))) -> 0 | R75: 0 | S75: 2014 | T75: =IFERROR((GeneralInput!$G$39/(VLOOKUP(S75,GeneralInput!$E$39:$G$45,3,FALSE))),1) -> 1 | U75: 411650 | X75: y | AB75: 15993 | AC75: 15993 | AG75: 411650
B76: Reserve | C76: 63 | D76: Recreation Park | E76: 10 Picnic Place | F76: Canungra | G76: Riverbend Drive Park | J76: 0 | K76: 0 | M76: 1 | N76: 0 | P76: 4.595 | Q76: =IF(O76="",'Unit Rates-Land'!landcst,IF($D$8="Landuse",VLOOKUP(O76,LAndcost3,2,FALSE),IF($D$8="Location",VLOOKUP(O76,Landcost2,2,FALSE),"Error"))) -> 0 | R76: 0 | S76: 2014 | T76: =IFERROR((GeneralInput!$G$39/(VLOOKUP(S76,GeneralInput!$E$39:$G$45,3,FALSE))),1) -> 1 | U76: 0 | X76: y | AB76: 15993 | AC76: 15993 | AG76: 0
B77: LF-000629 | C77: NS1 | D77: Sports Park | E77: Finch Road | F77: Canungra | G77: new sports park Canungra - land acquisition | J77: 0 | K77: 315505 | M77: 1 | N77: 315505 | P77: 2.264 | Q77: =IF(O77="",'Unit Rates-Land'!landcst,IF($D$8="Landuse",VLOOKUP(O77,LAndcost3,2,FALSE),IF($D$8="Location",VLOOKUP(O77,Landcost2,2,FALSE),"Error"))) -> 0 | R77: =IF(Q77="",0,Q77*10000*P77) -> 0 | S77: 2014 | T77: =IFERROR((GeneralInput!$G$39/(VLOOKUP(S77,GeneralInput!$E$39:$G$45,3,FALSE))),1) -> 1 | U77: 315505 | X77: y | AB77: =IF(X77="y",AB$14,IF(AND(X77>0,X77<=1),X77*AB$14,"")) -> 15993 | AC77: =SUM(Z77:AB77) -> 15993 | AG77: =IF(AB77="","",(AB77/$AC77)*$U77) -> 315505 | AH77: =IF(SUM(AE77:AG77)=U77,"","ERROR") -> 
B78: 16 | C78: 64 | D78: Sports Park | E78: 1501 Beaudesert-Beenleigh Road | F78: Tamborine | G78: CEDAR CREEK PARK | J78: 0 | K78: 0 | M78: 1 | N78: 0 | P78: 6.2253 | Q78: =IF(O78="",'Unit Rates-Land'!landcst,IF($D$8="Landuse",VLOOKUP(O78,LAndcost3,2,FALSE),IF($D$8="Location",VLOOKUP(O78,Landcost2,2,FALSE),"Error"))) -> 0 | R78: 0 | S78: 2014 | T78: =IFERROR((GeneralInput!$G$39/(VLOOKUP(S78,GeneralInput!$E$39:$G$45,3,FALSE))),1) -> 1 | U78: 0 | X78: y | AB78: 15993 | AC78: 15993 | AG78: 0
B79: Reserve | C79: 65 | D79: Corridor Park | E79: 56 Kilmore Drive | F79: Tamborine | G79: Kilmore Drive Park | J79: =IFERROR(VLOOKUP($H79,Parksunitrate1,2,FALSE),0) -> 0 | K79: 0 | M79: =IF(L79="",1,VLOOKUP(L79,PArksitecond,2,FALSE)) -> 1 | N79: =IF(K79="","",K79*M79) -> 0 | P79: 14.3059 | Q79: =IF(O79="",'Unit Rates-Land'!landcst,IF($D$8="Landuse",VLOOKUP(O79,LAndcost3,2,FALSE),IF($D$8="Location",VLOOKUP(O79,Landcost2,2,FALSE),"Error"))) -> 0 | R79: =IF(Q79="",0,Q79*10000*P79) -> 0 | S79: 2014 | T79: =IFERROR((GeneralInput!$G$39/(VLOOKUP(S79,GeneralInput!$E$39:$G$45,3,FALSE))),1) -> 1 | U79: =IFERROR((R79+N79)*T79,0) -> 0 | X79: y | Z79: =IF(V79="y",Z$14,IF(AND(V79>0,V79<=1),V79*Z$14,"")) ->  | AA79: =IF(W79="y",AA$14,IF(AND(W79>0,W79<=1),W79*AA$14,"")) ->  | AB79: =IF(X79="y",AB$14,IF(AND(X79>0,X79<=1),X79*AB$14,"")) -> 15993 | AC79: =SUM(Z79:AB79) -> 15993 | AE79: =IF(Z79="","",(Z79/$AC79)*$U79) ->  | AF79: =IF(AA79="","",(AA79/$AC79)*$U79) ->  | AG79: =IF(AB79="","",(AB79/$AC79)*$U79) -> 0 | AH79: =IF(SUM(AE79:AG79)=U79,"","ERROR") -> 
B80: BO-001902, 214, 1389 & 1776 | C80: 66 | D80: Sports Park | E80: 2205 Beaudesert - Beenleigh Rd | F80: Tamborine | G80: Middle Park (Oval) & Pony club | J80: 0 | K80: 76200 | M80: 1 | N80: 76200 | P80: 9.887 | Q80: =IF(O80="",'Unit Rates-Land'!landcst,IF($D$8="Landuse",VLOOKUP(O80,LAndcost3,2,FALSE),IF($D$8="Location",VLOOKUP(O80,Landcost2,2,FALSE),"Error"))) -> 0 | R80: 0 | S80: 2014 | T80: =IFERROR((GeneralInput!$G$39/(VLOOKUP(S80,GeneralInput!$E$39:$G$45,3,FALSE))),1) -> 1 | U80: 76200 | X80: y | AB80: 15993 | AC80: 15993 | AG80: 76200
B81: Road reserve | C81: 67 | D81: Recreation Park | E81: Tamborine Mountain Road | F81: Tamborine | G81: Tamborine Park | J81: 0 | K81: 0 | M81: 1 | N81: 0 | P81: 0.3499 | Q81: =IF(O81="",'Unit Rates-Land'!landcst,IF($D$8="Landuse",VLOOKUP(O81,LAndcost3,2,FALSE),IF($D$8="Location",VLOOKUP(O81,Landcost2,2,FALSE),"Error"))) -> 0 | R81: 0 | S81: 2014 | T81: =IFERROR((GeneralInput!$G$39/(VLOOKUP(S81,GeneralInput!$E$39:$G$45,3,FALSE))),1) -> 1 | U81: 0 | X81: y | AB81: 15993 | AC81: 15993 | AG81: 0
B82: BO-000225, 227, 229, 1783, 1784, 222, 1394, 1484 & 1781, RP-002864, RP-004511 & RP-004512 | C82: 68 | D82: Recreation Park | E82: 2680-2726 Waterford-Tamborine Road | F82: Tamborine | G82: TAMBORINE SCHOOL PARK (Memorial) | J82: 0 | K82: 266692 | M82: 1 | N82: 266692 | P82: 3.8116 | Q82: =IF(O82="",'Unit Rates-Land'!landcst,IF($D$8="Landuse",VLOOKUP(O82,LAndcost3,2,FALSE),IF($D$8="Location",VLOOKUP(O82,Landcost2,2,FALSE),"Error"))) -> 0 | R82: 0 | S82: 2014 | T82: =IFERROR((GeneralInput!$G$39/(VLOOKUP(S82,GeneralInput!$E$39:$G$45,3,FALSE))),1) -> 1 | U82: 266692 | X82: y | AB82: 15993 | AC82: 15993 | AG82: 266692
B83: LF-000265, 581 & BO-000605 | C83: 69 | D83: Recreation Park | E83: 18-20 Cliff & 66-67 Southport | F83: Tamborine Mountain | G83: EAGLE HEIGHTS PARK | J83: 0 | K83: 403000 | M83: 1 | N83: 403000 | P83: 0.1311 | Q83: =IF(O83="",'Unit Rates-Land'!landcst,IF($D$8="Landuse",VLOOKUP(O83,LAndcost3,2,FALSE),IF($D$8="Location",VLOOKUP(O83,Landcost2,2,FALSE),"Error"))) -> 0 | R83: 0 | S83: 2014 | T83: =IFERROR((GeneralInput!$G$39/(VLOOKUP(S83,GeneralInput!$E$39:$G$45,3,FALSE))),1) -> 1 | U83: 403000 | X83: y | AB83: 15993 | AC83: 15993 | AG83: 403000
B84: LF-000269, BO-000612 & 613 | C84: 70 | D84: Recreation Park | E84: 57-71 Siganto & 2-12 Golf Course Rd | F84: Tamborine Mountain | G84: GUANABA PARK | J84: 0 | K84: 511100 | M84: 1 | N84: 511100 | P84: 1.8916 | Q84: =IF(O84="",'Unit Rates-Land'!landcst,IF($D$8="Landuse",VLOOKUP(O84,LAndcost3,2,FALSE),IF($D$8="Location",VLOOKUP(O84,Landcost2,2,FALSE),"Error"))) -> 0 | R84: 0 | S84: 2014 | T84: =IFERROR((GeneralInput!$G$39/(VLOOKUP(S84,GeneralInput!$E$39:$G$45,3,FALSE))),1) -> 1 | U84: 511100 | X84: y | AB84: 15993 | AC84: 15993 | AG84: 511100
B85: LF-000289 | C85: 71 | D85: Corridor Park | E85: 54 Sequoia Drive | F85: Tamborine Mountain | G85: Herringe Family Ecological Corridor | J85: 0 | K85: 420000 | M85: 1 | N85: 420000 | P85: 3.7911 | Q85: =IF(O85="",'Unit Rates-Land'!landcst,IF($D$8="Landuse",VLOOKUP(O85,LAndcost3,2,FALSE),IF($D$8="Location",VLOOKUP(O85,Landcost2,2,FALSE),"Error"))) -> 0 | R85: 0 | S85: 2014 | T85: =IFERROR((GeneralInput!$G$39/(VLOOKUP(S85,GeneralInput!$E$39:$G$45,3,FALSE))),1) -> 1 | U85: 420000 | X85: y | AB85: 15993 | AC85: 15993 | AG85: 420000
B86: Reserve | C86: 72 | D86: Recreation Park | E86: 1 Holt Road | F86: Tamborine Mountain | G86: HOLT PARK | J86: 0 | K86: 0 | M86: 1 | N86: 0 | P86: 1.0173 | Q86: =IF(O86="",'Unit Rates-Land'!landcst,IF($D$8="Landuse",VLOOKUP(O86,LAndcost3,2,FALSE),IF($D$8="Location",VLOOKUP(O86,Landcost2,2,FALSE),"Error"))) -> 0 | R86: 0 | S86: 2014 | T86: =IFERROR((GeneralInput!$G$39/(VLOOKUP(S86,GeneralInput!$E$39:$G$45,3,FALSE))),1) -> 1 | U86: 0 | X86: y | AB86: 15993 | AC86: 15993 | AG86: 0
B87: BO-000619 | C87: 73 | D87: Recreation Park | E87: 99-113 Curtis Road | F87: Tamborine Mountain | G87: Lions Park (Mt Tamborine) | J87: 0 | K87: 83350 | M87: 1 | N87: 83350 | P87: 1.4904 | Q87: =IF(O87="",'Unit Rates-Land'!landcst,IF($D$8="Landuse",VLOOKUP(O87,LAndcost3,2,FALSE),IF($D$8="Location",VLOOKUP(O87,Landcost2,2,FALSE),"Error"))) -> 0 | R87: 0 | S87: 2014 | T87: =IFERROR((GeneralInput!$G$39/(VLOOKUP(S87,GeneralInput!$E$39:$G$45,3,FALSE))),1) -> 1 | U87: 83350 | X87: y | AB87: 15993 | AC87: 15993 | AG87: 83350
B88: LF-000275, RP-004577, RP-004729 & RP-004730 | C88: 74 | D88: Sports Park | E88: 364-412 Long Rd | F88: Tamborine Mountain | G88: Long Road Sports Complex | J88: 0 | K88: 4033106 | M88: 1 | N88: 4033106 | P88: 19.9067 | Q88: =IF(O88="",'Unit Rates-Land'!landcst,IF($D$8="Landuse",VLOOKUP(O88,LAndcost3,2,FALSE),IF($D$8="Location",VLOOKUP(O88,Landcost2,2,FALSE),"Error"))) -> 0 | R88: 0 | S88: 2014 | T88: =IFERROR((GeneralInput!$G$39/(VLOOKUP(S88,GeneralInput!$E$39:$G$45,3,FALSE))),1) -> 1 | U88: 4033106 | X88: y | AB88: 15993 | AC88: 15993 | AG88: 4033106
B89: Reserve | C89: 75 | D89: Civic Space | E89: Main street | F89: Tamborine Mountain | G89: Main Street Park | J89: 0 | K89: 0 | M89: 1 | N89: 0 | P89: 0.1343 | Q89: =IF(O89="",'Unit Rates-Land'!landcst,IF($D$8="Landuse",VLOOKUP(O89,LAndcost3,2,FALSE),IF($D$8="Location",VLOOKUP(O89,Landcost2,2,FALSE),"Error"))) -> 0 | R89: 0 | S89: 2014 | T89: =IFERROR((GeneralInput!$G$39/(VLOOKUP(S89,GeneralInput!$E$39:$G$45,3,FALSE))),1) -> 1 | U89: 0 | X89: y | AB89: 15993 | AC89: 15993 | AG89: 0
B90: LF-000288 | C90: 76 | D90: Recreation Park | E90: 11-27 Geissmann Street | F90: Tamborine Mountain | G90: North Tamborine Park (Outers) | J90: 0 | K90: 877840 | M90: 1 | N90: 877840 | P90: 1.4952 | Q90: =IF(O90="",'Unit Rates-Land'!landcst,IF($D$8="Landuse",VLOOKUP(O90,LAndcost3,2,FALSE),IF($D$8="Location",VLOOKUP(O90,Landcost2,2,FALSE),"Error"))) -> 0 | R90: 0 | S90: 2014 | T90: =IFERROR((GeneralInput!$G$39/(VLOOKUP(S90,GeneralInput!$E$39:$G$45,3,FALSE))),1) -> 1 | U90: 877840 | X90: y | AB90: 15993 | AC90: 15993 | AG90: 877840
B91: LF-000288, RP-002884, RP-004525 & RP-004526, BO-001964, BO-001965, BO-001966 & BO-000670 | C91: 77 | D91: Sports Park | E91: 11-27 Geissmann Street | F91: Tamborine Mountain | G91: North Tamborine Park (Oval) | J91: 0 | K91: 223322 | M91: 1 | N91: 223322 | P91: 1.1538 | Q91: =IF(O91="",'Unit Rates-Land'!landcst,IF($D$8="Landuse",VLOOKUP(O91,LAndcost3,2,FALSE),IF($D$8="Location",VLOOKUP(O91,Landcost2,2,FALSE),"Error"))) -> 0 | R91: 0 | S91: 2014 | T91: =IFERROR((GeneralInput!$G$39/(VLOOKUP(S91,GeneralInput!$E$39:$G$45,3,FALSE))),1) -> 1 | U91: 223322 | X91: y | AB91: 15993 | AC91: 15993 | AG91: 223322
B92: LF-000270, BO-000617, 615, 1397 & 1787 | C92: 78 | D92: Recreation Park | E92: School Rd | F92: Tamborine Mountain | G92: ROSSER PARK | J92: 0 | K92: 340400 | M92: 1 | N92: 340400 | P92: 0.641 | Q92: =IF(O92="",'Unit Rates-Land'!landcst,IF($D$8="Landuse",VLOOKUP(O92,LAndcost3,2,FALSE),IF($D$8="Location",VLOOKUP(O92,Landcost2,2,FALSE),"Error"))) -> 0 | R92: 0 | S92: 2014 | T92: =IFERROR((GeneralInput!$G$39/(VLOOKUP(S92,GeneralInput!$E$39:$G$45,3,FALSE))),1) -> 1 | U92: 340400 | X92: y | AB92: 15993 | AC92: 15993 | AG92: 340400
B93: BO-000599, 602, 598, 1314, 1454 & 1689 | C93: 79 | D93: Recreation Park | E93: 2-12 Stradbroke Ave & 30-34 Central Ave | F93: Tamborine Mountain | G93: STAFFSMITH PARK | J93: 0 | K93: 140900 | M93: 1 | N93: 140900 | P93: 0.8366 | Q93: =IF(O93="",'Unit Rates-Land'!landcst,IF($D$8="Landuse",VLOOKUP(O93,LAndcost3,2,FALSE),IF($D$8="Location",VLOOKUP(O93,Landcost2,2,FALSE),"Error"))) -> 0 | R93: 0 | S93: 2014 | T93: =IFERROR((GeneralInput!$G$39/(VLOOKUP(S93,GeneralInput!$E$39:$G$45,3,FALSE))),1) -> 1 | U93: 140900 | X93: y | AB93: 15993 | AC93: 15993 | AG93: 140900
B94: LF-000260, LF-000261 & LF-000262 & BO-000572, 576, 577, 579, 580,581, 1310, 1312, 1682, 1684, 1686, 1687, 1688, 2043, 2044, 2045, 2046, 573, 1313, 1453, 1685 & 584, RP-004691, RP-004723, RP-002872, RP-004515 & RP-004516 | C94: 80 | D94: Premier Park | E94: 30 Kinabalu Dr & 19-23 Forsythia Dr | F94: Tamborine Mountain | G94: TAMBORINE MOUNTAIN BOTANICAL G | J94: 0 | K94: 1988251 | M94: 1 | N94: 1988251 | P94: 8.6759 | Q94: =IF(O94="",'Unit Rates-Land'!landcst,IF($D$8="Landuse",VLOOKUP(O94,LAndcost3,2,FALSE),IF($D$8="Location",VLOOKUP(O94,Landcost2,2,FALSE),"Error"))) -> 0 | R94: 0 | S94: 2014 | T94: =IFERROR((GeneralInput!$G$39/(VLOOKUP(S94,GeneralInput!$E$39:$G$45,3,FALSE))),1) -> 1 | U94: 1988251 | X94: y | AB94: 15993 | AC94: 15993 | AG94: 1988251
B95: BO-000626 | C95: 81 | D95: Recreation Park | E95: 21-43 Geissman Dr | F95: Tamborine Mountain | G95: Youngman Family Park | J95: 0 | K95: 54088 | M95: 1 | N95: 54088 | P95: 6.1716 | Q95: =IF(O95="",'Unit Rates-Land'!landcst,IF($D$8="Landuse",VLOOKUP(O95,LAndcost3,2,FALSE),IF($D$8="Location",VLOOKUP(O95,Landcost2,2,FALSE),"Error"))) -> 0 | R95: 0 | S95: 2014 | T95: =IFERROR((GeneralInput!$G$39/(VLOOKUP(S95,GeneralInput!$E$39:$G$45,3,FALSE))),1) -> 1 | U95: 54088 | X95: y | AB95: 15993 | AC95: 15993 | AG95: 54088
B96: Reserve | C96: 127 | D96: Recreation Park | E96: Old Coach Road | F96: Tamborine | G96: RPW Martin Memorial Park | J96: 0 | K96: 0 | M96: =IF(L96="",1,VLOOKUP(L96,PArksitecond,2,FALSE)) -> 1 | N96: =IF(K96="","",K96*M96) -> 0 | P96: 1.903 | Q96: =IF(O96="",'Unit Rates-Land'!landcst,IF($D$8="Landuse",VLOOKUP(O96,LAndcost3,2,FALSE),IF($D$8="Location",VLOOKUP(O96,Landcost2,2,FALSE),"Error"))) -> 0 | R96: =IF(Q96="",0,Q96*10000*P96) -> 0 | S96: 2014 | T96: =IFERROR((GeneralInput!$G$39/(VLOOKUP(S96,GeneralInput!$E$39:$G$45,3,FALSE))),1) -> 1 | U96: =IFERROR((R96+N96)*T96,0) -> 0 | X96: y | AB96: =IF(X96="y",AB$14,IF(AND(X96>0,X96<=1),X96*AB$14,"")) -> 15993 | AC96: =SUM(Z96:AB96) -> 15993 | AG96: =IF(AB96="","",(AB96/$AC96)*$U96) -> 0
B97: Reserve | C97: 82 | D97: Corridor Park | E97: 83 Climax Court | F97: Witheren | G97: Canungra Downs Park | J97: 0 | K97: 0 | M97: 1 | N97: 0 | P97: 0.7831 | Q97: =IF(O97="",'Unit Rates-Land'!landcst,IF($D$8="Landuse",VLOOKUP(O97,LAndcost3,2,FALSE),IF($D$8="Location",VLOOKUP(O97,Landcost2,2,FALSE),"Error"))) -> 0 | R97: 0 | S97: 2014 | T97: =IFERROR((GeneralInput!$G$39/(VLOOKUP(S97,GeneralInput!$E$39:$G$45,3,FALSE))),1) -> 1 | U97: 0 | X97: y | AB97: 15993 | AC97: 15993 | AG97: 0
B98: Reserve | C98: 83 | D98: Corridor Park | E98: 83 Climax Court | F98: Witheren | G98: Canungra Downs Park | J98: 0 | K98: 0 | M98: 1 | N98: 0 | P98: 1.0374 | Q98: =IF(O98="",'Unit Rates-Land'!landcst,IF($D$8="Landuse",VLOOKUP(O98,LAndcost3,2,FALSE),IF($D$8="Location",VLOOKUP(O98,Landcost2,2,FALSE),"Error"))) -> 0 | R98: 0 | S98: 2014 | T98: =IFERROR((GeneralInput!$G$39/(VLOOKUP(S98,GeneralInput!$E$39:$G$45,3,FALSE))),1) -> 1 | U98: 0 | X98: y | AB98: 15993 | AC98: 15993 | AG98: 0
B99: Reserve | C99: 84 | D99: Corridor Park | E99: 83 Climax Court | F99: Witheren | G99: Canungra Downs Park (Ponny Trail) | J99: 0 | K99: 0 | M99: 1 | N99: 0 | P99: 10.8694 | Q99: =IF(O99="",'Unit Rates-Land'!landcst,IF($D$8="Landuse",VLOOKUP(O99,LAndcost3,2,FALSE),IF($D$8="Location",VLOOKUP(O99,Landcost2,2,FALSE),"Error"))) -> 0 | R99: 0 | S99: 2014 | T99: =IFERROR((GeneralInput!$G$39/(VLOOKUP(S99,GeneralInput!$E$39:$G$45,3,FALSE))),1) -> 1 | U99: 0 | X99: y | AB99: 15993 | AC99: 15993 | AG99: 0
J100: 0 | K100: =J100*I100 -> 0 | M100: 1 | N100: 0 | Q100: =IF(O100="",'Unit Rates-Land'!landcst,IF($D$8="Landuse",VLOOKUP(O100,LAndcost3,2,FALSE),IF($D$8="Location",VLOOKUP(O100,Landcost2,2,FALSE),"Error"))) -> 0 | R100: 0 | S100: 2014 | T100: =IFERROR((GeneralInput!$G$39/(VLOOKUP(S100,GeneralInput!$E$39:$G$45,3,FALSE))),1) -> 1 | U100: 0 | AC100: 0
B101: LF-000005 | C101: 101 | D101: Library | E101: 58 Brisbane Street | F101: Beaudesert | G101: Beaudesert Library | J101: 0 | K101: 280000 | M101: 1 | N101: 280000 | P101: 0.1803 | Q101: =IF(O101="",'Unit Rates-Land'!landcst,IF($D$8="Landuse",VLOOKUP(O101,LAndcost3,2,FALSE),IF($D$8="Location",VLOOKUP(O101,Landcost2,2,FALSE),"Error"))) -> 0 | R101: 0 | S101: 2014 | T101: =IFERROR((GeneralInput!$G$39/(VLOOKUP(S101,GeneralInput!$E$39:$G$45,3,FALSE))),1) -> 1 | U101: 280000 | V101: y | Z101: 28259 | AC101: 28259 | AE101: 280000
B102: LF-000020 | C102: 7 | D102: Museum | E102: 56 Brisbane Street | F102: Beaudesert | G102: Beaudesert Museum (Jubilee Park) | J102: 0 | K102: 0 | M102: 1 | N102: 0 | P102: 2.561 | Q102: =IF(O102="",'Unit Rates-Land'!landcst,IF($D$8="Landuse",VLOOKUP(O102,LAndcost3,2,FALSE),IF($D$8="Location",VLOOKUP(O102,Landcost2,2,FALSE),"Error"))) -> 0 | R102: 0 | S102: 2014 | T102: =IFERROR((GeneralInput!$G$39/(VLOOKUP(S102,GeneralInput!$E$39:$G$45,3,FALSE))),1) -> 1 | U102: 0 | V102: y | Z102: 28259 | AC102: 28259 | AE102: 0
B103: LF-000032 | C103: 12 | D103: Indoor sports facility | E103: 13-15 Petersen Street | F103: Beaudesert | G103: Beaudesert Netball Club | J103: 0 | K103: 0 | M103: 1 | N103: 0 | P103: 0.4047 | Q103: =IF(O103="",'Unit Rates-Land'!landcst,IF($D$8="Landuse",VLOOKUP(O103,LAndcost3,2,FALSE),IF($D$8="Location",VLOOKUP(O103,Landcost2,2,FALSE),"Error"))) -> 0 | R103: 0 | S103: 2014 | T103: =IFERROR((GeneralInput!$G$39/(VLOOKUP(S103,GeneralInput!$E$39:$G$45,3,FALSE))),1) -> 1 | U103: 0 | V103: y | Z103: 28259 | AC103: 28259 | AE103: 0
B104: LF-000034 | C104: 12 | D104: Indoor sports facility | E104: 7-11 Helen Street | F104: Beaudesert | G104: Beaudesert Netball Club | J104: 0 | K104: 0 | M104: 1 | N104: 0 | P104: 0.5716 | Q104: =IF(O104="",'Unit Rates-Land'!landcst,IF($D$8="Landuse",VLOOKUP(O104,LAndcost3,2,FALSE),IF($D$8="Location",VLOOKUP(O104,Landcost2,2,FALSE),"Error"))) -> 0 | R104: 0 | S104: 2014 | T104: =IFERROR((GeneralInput!$G$39/(VLOOKUP(S104,GeneralInput!$E$39:$G$45,3,FALSE))),1) -> 1 | U104: 0 | V104: y | Z104: 28259 | AC104: 28259 | AE104: 0
B105: Reserve | C105: 102 | D105: Indoor sports facility | E105: 3180 Beaudesert-Boonah Road | F105: Beaudesert | G105: Beaudesert Racecourse | J105: 0 | K105: 0 | M105: 1 | N105: 0 | P105: 33.739 | Q105: =IF(O105="",'Unit Rates-Land'!landcst,IF($D$8="Landuse",VLOOKUP(O105,LAndcost3,2,FALSE),IF($D$8="Location",VLOOKUP(O105,Landcost2,2,FALSE),"Error"))) -> 0 | R105: 0 | S105: 2014 | T105: =IFERROR((GeneralInput!$G$39/(VLOOKUP(S105,GeneralInput!$E$39:$G$45,3,FALSE))),1) -> 1 | U105: 0 | V105: y | Z105: 28259 | AC105: 28259 | AE105: 0
B106: LF-000012 | C106: 103 | D106: Indoor sports facility | E106: 56A Eaglesfield Street | F106: Beaudesert | G106: Beaudesert Scout Hall | J106: 0 | K106: 240000 | M106: 1 | N106: 240000 | P106: 0.2023 | Q106: =IF(O106="",'Unit Rates-Land'!landcst,IF($D$8="Landuse",VLOOKUP(O106,LAndcost3,2,FALSE),IF($D$8="Location",VLOOKUP(O106,Landcost2,2,FALSE),"Error"))) -> 0 | R106: 0 | S106: 2014 | T106: =IFERROR((GeneralInput!$G$39/(VLOOKUP(S106,GeneralInput!$E$39:$G$45,3,FALSE))),1) -> 1 | U106: 240000 | V106: y | Z106: 28259 | AC106: 28259 | AE106: 240000
B107: LF-000004 | C107: 104 | D107: Aquatic Centre | E107: 54 Brisbane Street | F107: Beaudesert | G107: Beaudesert Swimming Pool | J107: 0 | K107: 450000 | M107: 1 | N107: 450000 | P107: 0.5397 | Q107: =IF(O107="",'Unit Rates-Land'!landcst,IF($D$8="Landuse",VLOOKUP(O107,LAndcost3,2,FALSE),IF($D$8="Location",VLOOKUP(O107,Landcost2,2,FALSE),"Error"))) -> 0 | R107: 0 | S107: 2014 | T107: =IFERROR((GeneralInput!$G$39/(VLOOKUP(S107,GeneralInput!$E$39:$G$45,3,FALSE))),1) -> 1 | U107: 450000 | V107: y | Z107: 28259 | AC107: 28259 | AE107: 450000
B108: RP-002846 & RP-004507 | C108: 105 | D108: Art gallery | E108: 2-14 Enterprise Drive | F108: Beaudesert | G108: Dick Westerman Park | J108: 0 | K108: 4937 | M108: 1 | N108: 4937 | P108: 2.47 | Q108: =IF(O108="",'Unit Rates-Land'!landcst,IF($D$8="Landuse",VLOOKUP(O108,LAndcost3,2,FALSE),IF($D$8="Location",VLOOKUP(O108,Landcost2,2,FALSE),"Error"))) -> 0 | R108: 0 | S108: 2014 | T108: =IFERROR((GeneralInput!$G$39/(VLOOKUP(S108,GeneralInput!$E$39:$G$45,3,FALSE))),1) -> 1 | U108: 4937 | V108: y | Z108: 28259 | AC108: 28259 | AE108: 4937
B109: LF-000038 | C109: 18 | D109: Indoor sports facility | E109: 2-4 Petersen Street | F109: Beaudesert | G109: Junior Rugby League Football Club | J109: 0 | K109: 0 | M109: 1 | N109: 0 | P109: 2.168 | Q109: =IF(O109="",'Unit Rates-Land'!landcst,IF($D$8="Landuse",VLOOKUP(O109,LAndcost3,2,FALSE),IF($D$8="Location",VLOOKUP(O109,Landcost2,2,FALSE),"Error"))) -> 0 | R109: 0 | S109: 2014 | T109: =IFERROR((GeneralInput!$G$39/(VLOOKUP(S109,GeneralInput!$E$39:$G$45,3,FALSE))),1) -> 1 | U109: 0 | V109: y | Z109: 28259 | AC109: 28259 | AE109: 0
B110: LF-000027 | C110: 16 | D110: Indoor sports facility | E110: 21-35 Bromelton Street | F110: Beaudesert | G110: Selwyn Parks Sports Facility | J110: 0 | K110: 0 | M110: 1 | N110: 0 | P110: 3.986 | Q110: =IF(O110="",'Unit Rates-Land'!landcst,IF($D$8="Landuse",VLOOKUP(O110,LAndcost3,2,FALSE),IF($D$8="Location",VLOOKUP(O110,Landcost2,2,FALSE),"Error"))) -> 0 | R110: =IF(Q110="",0,Q110*10000*P110) -> 0 | S110: 2014 | T110: =IFERROR((GeneralInput!$G$39/(VLOOKUP(S110,GeneralInput!$E$39:$G$45,3,FALSE))),1) -> 1 | U110: =IFERROR((R110+N110)*T110,0) -> 0 | V110: y | Z110: 28259 | AC110: 28259 | AE110: 0
B111: Reserve | C111: 106 | D111: Community Centre | E111: 82 Brisbane Street | F111: Beaudesert | G111: The Centre | J111: 0 | K111: 0 | M111: 1 | N111: 0 | P111: 0.184 | Q111: =IF(O111="",'Unit Rates-Land'!landcst,IF($D$8="Landuse",VLOOKUP(O111,LAndcost3,2,FALSE),IF($D$8="Location",VLOOKUP(O111,Landcost2,2,FALSE),"Error"))) -> 0 | R111: 0 | S111: 2014 | T111: =IFERROR((GeneralInput!$G$39/(VLOOKUP(S111,GeneralInput!$E$39:$G$45,3,FALSE))),1) -> 1 | U111: 0 | V111: y | Z111: 28259 | AC111: 28259 | AE111: 0
B112: reserve | C112: 21 | D112: Indoor sports facility | E112: 148-160 Mt Lindesay Highway | F112: Gleneagle | G112: Everdell Park (Cricket & Rugby Club ) | J112: 0 | K112: 0 | M112: 1 | N112: 0 | P112: 9.34 | Q112: =IF(O112="",'Unit Rates-Land'!landcst,IF($D$8="Landuse",VLOOKUP(O112,LAndcost3,2,FALSE),IF($D$8="Location",VLOOKUP(O112,Landcost2,2,FALSE),"Error"))) -> 0 | R112: 0 | S112: 2014 | T112: =IFERROR((GeneralInput!$G$39/(VLOOKUP(S112,GeneralInput!$E$39:$G$45,3,FALSE))),1) -> 1 | U112: 0 | V112: y | Z112: 28259 | AC112: 28259 | AE112: 0
B113: LF-000141 | C113: 107 | D113: Community Centre | E113: 79 Ogilvie Place | F113: Kooralbyn | G113: Kooralbyn Community Centre | J113: =IFERROR(VLOOKUP($H113,Parksunitrate1,2,FALSE),0) -> 0 | K113: 120000 | M113: =IF(L113="",1,VLOOKUP(L113,PArksitecond,2,FALSE)) -> 1 | N113: =IF(K113="","",K113*M113) -> 120000 | P113: 0.5915 | Q113: =IF(O113="",'Unit Rates-Land'!landcst,IF($D$8="Landuse",VLOOKUP(O113,LAndcost3,2,FALSE),IF($D$8="Location",VLOOKUP(O113,Landcost2,2,FALSE),"Error"))) -> 0 | R113: =IF(Q113="",0,Q113*10000*P113) -> 0 | S113: 2014 | T113: =IFERROR((GeneralInput!$G$39/(VLOOKUP(S113,GeneralInput!$E$39:$G$45,3,FALSE))),1) -> 1 | U113: =IFERROR((R113+N113)*T113,0) -> 120000 | V113: y | Z113: =IF(V113="y",Z$14,IF(AND(V113>0,V113<=1),V113*Z$14,"")) -> 28259 | AA113: =IF(W113="y",AA$14,IF(AND(W113>0,W113<=1),W113*AA$14,"")) ->  | AB113: =IF(X113="y",AB$14,IF(AND(X113>0,X113<=1),X113*AB$14,"")) ->  | AC113: =SUM(Z113:AB113) -> 28259 | AE113: =IF(Z113="","",(Z113/$AC113)*$U113) -> 120000 | AF113: =IF(AA113="","",(AA113/$AC113)*$U113) ->  | AG113: =IF(AB113="","",(AB113/$AC113)*$U113) ->  | AH113: =IF(SUM(AE113:AG113)=U113,"","ERROR") -> 
B114: LF-000156 | C114: 28 | D114: Community Centre | E114: 72-100 Collins Street | F114: Rathdowney | G114: Rathdowney Bowls Club | J114: 0 | K114: 0 | M114: 1 | N114: 0 | P114: 3.392 | Q114: =IF(O114="",'Unit Rates-Land'!landcst,IF($D$8="Landuse",VLOOKUP(O114,LAndcost3,2,FALSE),IF($D$8="Location",VLOOKUP(O114,Landcost2,2,FALSE),"Error"))) -> 0 | R114: 0 | S114: 2014 | T114: =IFERROR((GeneralInput!$G$39/(VLOOKUP(S114,GeneralInput!$E$39:$G$45,3,FALSE))),1) -> 1 | U114: 0 | V114: y | Z114: 28259 | AC114: 28259 | AE114: 0
B115: state school | C115: 108 | D115: Aquatic Centre | E115: 141-155 Mt Lindesay Highway | F115: Rathdowney | G115: Rathdowney Pool | J115: 0 | K115: 0 | M115: 1 | N115: 0 | P115: 0.3264 | Q115: =IF(O115="",'Unit Rates-Land'!landcst,IF($D$8="Landuse",VLOOKUP(O115,LAndcost3,2,FALSE),IF($D$8="Location",VLOOKUP(O115,Landcost2,2,FALSE),"Error"))) -> 0 | R115: 0 | S115: 2014 | T115: =IFERROR((GeneralInput!$G$39/(VLOOKUP(S115,GeneralInput!$E$39:$G$45,3,FALSE))),1) -> 1 | U115: 0 | V115: y | Z115: 28259 | AC115: 28259 | AE115: 0
B116: LF-000538 | C116: 29 | D116: Indoor sports facility | E116: 17 Carter Road | F116: Aratula | G116: Aratula Sports Complex (Moffatt Memorial Park) | J116: 0 | K116: 0 | M116: 1 | N116: 0 | P116: 1.811 | Q116: =IF(O116="",'Unit Rates-Land'!landcst,IF($D$8="Landuse",VLOOKUP(O116,LAndcost3,2,FALSE),IF($D$8="Location",VLOOKUP(O116,Landcost2,2,FALSE),"Error"))) -> 0 | R116: 0 | S116: 2014 | T116: =IFERROR((GeneralInput!$G$39/(VLOOKUP(S116,GeneralInput!$E$39:$G$45,3,FALSE))),1) -> 1 | U116: 0 | W116: y | AA116: 14065 | AC116: 14065 | AF116: 0
B117: LF-000420 | C117: 109 | D117: Community Centre | E117: 3 High Street | F117: Boonah | G117: Boonah & District Cultural Centre | J117: 0 | K117: 340000 | M117: 1 | N117: 340000 | P117: 0.1902 | Q117: =IF(O117="",'Unit Rates-Land'!landcst,IF($D$8="Landuse",VLOOKUP(O117,LAndcost3,2,FALSE),IF($D$8="Location",VLOOKUP(O117,Landcost2,2,FALSE),"Error"))) -> 0 | R117: 0 | S117: 2014 | T117: =IFERROR((GeneralInput!$G$39/(VLOOKUP(S117,GeneralInput!$E$39:$G$45,3,FALSE))),1) -> 1 | U117: 340000 | W117: y | AA117: 14065 | AC117: 14065 | AF117: 340000
C118: 110 | D118: Library | E118: 14 High Street | F118: Boonah | G118: Boonah Library | J118: 0 | K118: 0 | M118: 1 | N118: 0 | P118: 0.0427 | Q118: =IF(O118="",'Unit Rates-Land'!landcst,IF($D$8="Landuse",VLOOKUP(O118,LAndcost3,2,FALSE),IF($D$8="Location",VLOOKUP(O118,Landcost2,2,FALSE),"Error"))) -> 0 | R118: 0 | S118: 2014 | T118: =IFERROR((GeneralInput!$G$39/(VLOOKUP(S118,GeneralInput!$E$39:$G$45,3,FALSE))),1) -> 1 | U118: 0 | W118: y | AA118: 14065 | AC118: 14065 | AF118: 0
B119: LF-000541 | C119: 33 | D119: Indoor sports facility | E119: Coronation Drive | F119: Boonah | G119: Boonah Sports Complex - Coronation Park | J119: 0 | K119: 0 | M119: =IF(L119="",1,VLOOKUP(L119,PArksitecond,2,FALSE)) -> 1 | N119: =IF(K119="","",K119*M119) -> 0 | P119: 0 | Q119: =IF(O119="",'Unit Rates-Land'!landcst,IF($D$8="Landuse",VLOOKUP(O119,LAndcost3,2,FALSE),IF($D$8="Location",VLOOKUP(O119,Landcost2,2,FALSE),"Error"))) -> 0 | R119: =IF(Q119="",0,Q119*10000*P119) -> 0 | S119: 2014 | T119: =IFERROR((GeneralInput!$G$39/(VLOOKUP(S119,GeneralInput!$E$39:$G$45,3,FALSE))),1) -> 1 | U119: =IFERROR((R119+N119)*T119,0) -> 0 | W119: y | AA119: 14065 | AC119: 14065 | AF119: 0
B120: reserve | C120: 111 | D120: Aquatic Centre | E120: Macquarie Street | F120: Boonah | G120: Boonah State School Aquatic Centre | J120: 0 | K120: 0 | M120: 1 | N120: 0 | P120: 0.4779 | Q120: =IF(O120="",'Unit Rates-Land'!landcst,IF($D$8="Landuse",VLOOKUP(O120,LAndcost3,2,FALSE),IF($D$8="Location",VLOOKUP(O120,Landcost2,2,FALSE),"Error"))) -> 0 | R120: 0 | S120: 2014 | T120: =IFERROR((GeneralInput!$G$39/(VLOOKUP(S120,GeneralInput!$E$39:$G$45,3,FALSE))),1) -> 1 | U120: 0 | W120: y | AA120: 14065 | AC120: 14065 | AF120: 0
B121: LF-000541 | C121: 33 | D121: Aquatic Centre | E121: Elizabeth Tce | F121: Boonah | G121: Coronation Park - Coronation Drive | J121: 0 | K121: 0 | M121: =IF(L121="",1,VLOOKUP(L121,PArksitecond,2,FALSE)) -> 1 | N121: =IF(K121="","",K121*M121) -> 0 | P121: 7.612 | Q121: =IF(O121="",'Unit Rates-Land'!landcst,IF($D$8="Landuse",VLOOKUP(O121,LAndcost3,2,FALSE),IF($D$8="Location",VLOOKUP(O121,Landcost2,2,FALSE),"Error"))) -> 0 | R121: =IF(Q121="",0,Q121*10000*P121) -> 0 | S121: 2014 | T121: =IFERROR((GeneralInput!$G$39/(VLOOKUP(S121,GeneralInput!$E$39:$G$45,3,FALSE))),1) -> 1 | U121: =IFERROR((R121+N121)*T121,0) -> 0 | W121: y | AA121: 14065 | AC121: 14065 | AF121: 0
B122: LF-000539 & 540 | C122: 37 | D122: General community space | E122: Alfred st | F122: Boonah | G122: Lions Club of Boonah (Coronation Park) | J122: 0 | K122: 0 | M122: 1 | N122: 0 | P122: 1.428 | Q122: =IF(O122="",'Unit Rates-Land'!landcst,IF($D$8="Landuse",VLOOKUP(O122,LAndcost3,2,FALSE),IF($D$8="Location",VLOOKUP(O122,Landcost2,2,FALSE),"Error"))) -> 0 | R122: 0 | S122: 2014 | T122: =IFERROR((GeneralInput!$G$39/(VLOOKUP(S122,GeneralInput!$E$39:$G$45,3,FALSE))),1) -> 1 | U122: 0 | W122: y | AA122: 14065 | AC122: 14065 | AF122: 0
B123: LF-000501 & LF-000502 | C123: 112 | D123: Community Centre | E123: 5 Hall Street | F123: Harrisville | G123: Harrisville School of Arts | J123: 0 | K123: 195000 | M123: 1 | N123: 195000 | P123: 0.2966 | Q123: =IF(O123="",'Unit Rates-Land'!landcst,IF($D$8="Landuse",VLOOKUP(O123,LAndcost3,2,FALSE),IF($D$8="Location",VLOOKUP(O123,Landcost2,2,FALSE),"Error"))) -> 0 | R123: 0 | S123: 2014 | T123: =IFERROR((GeneralInput!$G$39/(VLOOKUP(S123,GeneralInput!$E$39:$G$45,3,FALSE))),1) -> 1 | U123: 195000 | W123: y | AA123: 14065 | AC123: 14065 | AF123: 195000
B124: LF-000627 | C124: 43 | D124: Community Centre | E124: Pollock Street | F124: Harrisville | G124: Harrisville Community Centre (Hayes Oval) | J124: 0 | K124: 0 | M124: 1 | N124: 0 | P124: 7.105 | Q124: =IF(O124="",'Unit Rates-Land'!landcst,IF($D$8="Landuse",VLOOKUP(O124,LAndcost3,2,FALSE),IF($D$8="Location",VLOOKUP(O124,Landcost2,2,FALSE),"Error"))) -> 0 | R124: 0 | S124: 2014 | T124: =IFERROR((GeneralInput!$G$39/(VLOOKUP(S124,GeneralInput!$E$39:$G$45,3,FALSE))),1) -> 1 | U124: 0 | W124: y | AA124: 14065 | AC124: 14065 | AF124: 0
B125: LF-000503 | C125: 45 | D125: General community space | E125: 43 Queen Street | F125: Harrisville | G125: Memorial Park | J125: 0 | K125: 0 | M125: 1 | N125: 0 | P125: 0.4712 | Q125: =IF(O125="",'Unit Rates-Land'!landcst,IF($D$8="Landuse",VLOOKUP(O125,LAndcost3,2,FALSE),IF($D$8="Location",VLOOKUP(O125,Landcost2,2,FALSE),"Error"))) -> 0 | R125: 0 | S125: 2014 | T125: =IFERROR((GeneralInput!$G$39/(VLOOKUP(S125,GeneralInput!$E$39:$G$45,3,FALSE))),1) -> 1 | U125: 0 | W125: y | AA125: 14065 | AC125: 14065 | AF125: 0
B126: LF-000421, LF-000576 & LF-000577 | C126: 49 | D126: Community Centre | E126: 78 George Street | F126: Kalbar | G126: Kalbar Civic Centre | J126: 0 | K126: 0 | M126: 1 | N126: 0 | P126: 0.2438 | Q126: =IF(O126="",'Unit Rates-Land'!landcst,IF($D$8="Landuse",VLOOKUP(O126,LAndcost3,2,FALSE),IF($D$8="Location",VLOOKUP(O126,Landcost2,2,FALSE),"Error"))) -> 0 | R126: 0 | S126: 2014 | T126: =IFERROR((GeneralInput!$G$39/(VLOOKUP(S126,GeneralInput!$E$39:$G$45,3,FALSE))),1) -> 1 | U126: 0 | W126: y | AA126: 14065 | AC126: 14065 | AF126: 0
B127: LF-000453 | C127: 113 | D127: Museum | E127: 397B Boonah-Fassifern Road | F127: Templin | G127: Fassifern Museum | J127: 0 | K127: 131240 | M127: 1 | N127: 131240 | P127: 1.798 | Q127: =IF(O127="",'Unit Rates-Land'!landcst,IF($D$8="Landuse",VLOOKUP(O127,LAndcost3,2,FALSE),IF($D$8="Location",VLOOKUP(O127,Landcost2,2,FALSE),"Error"))) -> 0 | R127: 0 | S127: 2014 | T127: =IFERROR((GeneralInput!$G$39/(VLOOKUP(S127,GeneralInput!$E$39:$G$45,3,FALSE))),1) -> 1 | U127: 131240 | W127: y | AA127: 14065 | AC127: 14065 | AF127: 131240
B128: LF-000056 | C128: 114 | D128: General community space | E128: 1835 Beechmont Road | F128: Beechmont | G128: Beechmont Community Centre | J128: 0 | K128: 400000 | M128: 1 | N128: 400000 | P128: 1.118 | Q128: =IF(O128="",'Unit Rates-Land'!landcst,IF($D$8="Landuse",VLOOKUP(O128,LAndcost3,2,FALSE),IF($D$8="Location",VLOOKUP(O128,Landcost2,2,FALSE),"Error"))) -> 0 | R128: 0 | S128: 2014 | T128: =IFERROR((GeneralInput!$G$39/(VLOOKUP(S128,GeneralInput!$E$39:$G$45,3,FALSE))),1) -> 1 | U128: 400000 | X128: y | AB128: 15993 | AC128: 15993 | AG128: 400000
B129: reserve | C129: 58 | D129: Community Centre | E129: 1908 Beechmont Road | F129: Beechmont | G129: Graceleigh Park (Hall) | J129: 0 | K129: 0 | M129: 1 | N129: 0 | P129: 2.701 | Q129: =IF(O129="",'Unit Rates-Land'!landcst,IF($D$8="Landuse",VLOOKUP(O129,LAndcost3,2,FALSE),IF($D$8="Location",VLOOKUP(O129,Landcost2,2,FALSE),"Error"))) -> 0 | R129: 0 | S129: 2014 | T129: =IFERROR((GeneralInput!$G$39/(VLOOKUP(S129,GeneralInput!$E$39:$G$45,3,FALSE))),1) -> 1 | U129: 0 | X129: y | AB129: 15993 | AC129: 15993 | AG129: 0
B130: reserve | C130: 62 | D130: Aquatic Centre | E130: 2-26 Monarch Drive | F130: Canungra | G130: Canungra Swimming Pool | J130: 0 | K130: 0 | M130: 1 | N130: 0 | P130: 4.282 | Q130: =IF(O130="",'Unit Rates-Land'!landcst,IF($D$8="Landuse",VLOOKUP(O130,LAndcost3,2,FALSE),IF($D$8="Location",VLOOKUP(O130,Landcost2,2,FALSE),"Error"))) -> 0 | R130: 0 | S130: 2014 | T130: =IFERROR((GeneralInput!$G$39/(VLOOKUP(S130,GeneralInput!$E$39:$G$45,3,FALSE))),1) -> 1 | U130: 0 | X130: y | AB130: 15993 | AC130: 15993 | AG130: 0
B131: reserve | C131: 62 | D131: Indoor sports facility | E131: 2-26 Monarch Drive | F131: Canungra | G131: Moriarty Park Sports Complex | J131: 0 | K131: 0 | M131: 1 | N131: 0 | P131: 4.282 | Q131: =IF(O131="",'Unit Rates-Land'!landcst,IF($D$8="Landuse",VLOOKUP(O131,LAndcost3,2,FALSE),IF($D$8="Location",VLOOKUP(O131,Landcost2,2,FALSE),"Error"))) -> 0 | R131: 0 | S131: 2014 | T131: =IFERROR((GeneralInput!$G$39/(VLOOKUP(S131,GeneralInput!$E$39:$G$45,3,FALSE))),1) -> 1 | U131: 0 | X131: y | AB131: 15993 | AC131: 15993 | AG131: 0
B132: LF-000080 | C132: 115 | D132: Library | E132: 12-14 Kidston Street | F132: Canungra | G132: Canungra Library and Information Centre | J132: 0 | K132: 160000 | M132: 1 | N132: 160000 | P132: 0.0524 | Q132: =IF(O132="",'Unit Rates-Land'!landcst,IF($D$8="Landuse",VLOOKUP(O132,LAndcost3,2,FALSE),IF($D$8="Location",VLOOKUP(O132,Landcost2,2,FALSE),"Error"))) -> 0 | R132: 0 | S132: 2014 | T132: =IFERROR((GeneralInput!$G$39/(VLOOKUP(S132,GeneralInput!$E$39:$G$45,3,FALSE))),1) -> 1 | U132: 160000 | X132: y | AB132: 15993 | AC132: 15993 | AG132: 160000
C133: 64 | D133: Indoor sports facility | E133: 1501 Beaudesert-Beenleigh Road | F133: Tamborine | G133: Cedar Creek Pony Club | J133: 0 | K133: 0 | M133: 1 | N133: 0 | P133: 6.162 | Q133: =IF(O133="",'Unit Rates-Land'!landcst,IF($D$8="Landuse",VLOOKUP(O133,LAndcost3,2,FALSE),IF($D$8="Location",VLOOKUP(O133,Landcost2,2,FALSE),"Error"))) -> 0 | R133: 0 | S133: 2014 | T133: =IFERROR((GeneralInput!$G$39/(VLOOKUP(S133,GeneralInput!$E$39:$G$45,3,FALSE))),1) -> 1 | U133: 0 | X133: y | AB133: 15993 | AC133: 15993 | AG133: 0
B134: Reserve | C134: 66 | D134: Indoor sports facility | E134: 2205 Beaudesert-Beenleigh Road | F134: Tamborine | G134: Tamborine Pony Club (Middle Park) | J134: 0 | K134: 0 | M134: 1 | N134: 0 | P134: 9.887 | Q134: =IF(O134="",'Unit Rates-Land'!landcst,IF($D$8="Landuse",VLOOKUP(O134,LAndcost3,2,FALSE),IF($D$8="Location",VLOOKUP(O134,Landcost2,2,FALSE),"Error"))) -> 0 | R134: 0 | S134: 2014 | T134: =IFERROR((GeneralInput!$G$39/(VLOOKUP(S134,GeneralInput!$E$39:$G$45,3,FALSE))),1) -> 1 | U134: 0 | X134: y | AB134: 15993 | AC134: 15993 | AG134: 0
B135: reserve | C135: 68 | D135: Community Centre | E135: 2680-2726 Waterford-Tamborine Road | F135: Tamborine | G135: Tamborine Memorial Hall | J135: 0 | K135: 0 | M135: 1 | N135: 0 | P135: 3.8203 | Q135: =IF(O135="",'Unit Rates-Land'!landcst,IF($D$8="Landuse",VLOOKUP(O135,LAndcost3,2,FALSE),IF($D$8="Location",VLOOKUP(O135,Landcost2,2,FALSE),"Error"))) -> 0 | R135: 0 | S135: 2014 | T135: =IFERROR((GeneralInput!$G$39/(VLOOKUP(S135,GeneralInput!$E$39:$G$45,3,FALSE))),1) -> 1 | U135: 0 | X135: y | AB135: 15993 | AC135: 15993 | AG135: 0
B136: RP-004667, RS-003956 & RU-000491 | C136: 116 | D136: General community space | E136: 2-10 Main Western Road | F136: Tamborine Mountain | G136: Doughty Park | J136: 0 | K136: 39767 | M136: 1 | N136: 39767 | P136: 0.6641 | Q136: =IF(O136="",'Unit Rates-Land'!landcst,IF($D$8="Landuse",VLOOKUP(O136,LAndcost3,2,FALSE),IF($D$8="Location",VLOOKUP(O136,Landcost2,2,FALSE),"Error"))) -> 0 | R136: 0 | S136: 2014 | T136: =IFERROR((GeneralInput!$G$39/(VLOOKUP(S136,GeneralInput!$E$39:$G$45,3,FALSE))),1) -> 1 | U136: 39767 | X136: y | AB136: 15993 | AC136: 15993 | AG136: 39767
B137: LF-000275 | C137: 74 | D137: Indoor sports facility | E137: 364-412 Long Road | F137: Tamborine Mountain | G137: Long Road Sports Complex | J137: 0 | K137: 0 | M137: 1 | N137: 0 | P137: 19.957 | Q137: =IF(O137="",'Unit Rates-Land'!landcst,IF($D$8="Landuse",VLOOKUP(O137,LAndcost3,2,FALSE),IF($D$8="Location",VLOOKUP(O137,Landcost2,2,FALSE),"Error"))) -> 0 | R137: 0 | S137: 2014 | T137: =IFERROR((GeneralInput!$G$39/(VLOOKUP(S137,GeneralInput!$E$39:$G$45,3,FALSE))),1) -> 1 | U137: 0 | X137: y | AB137: 15993 | AC137: 15993 | AG137: 0
B138: LF-000284 & LF-000285 | C138: 117 | D138: Indoor sports facility | E138: 6 Beacon Rd | F138: Tamborine Mountain | G138: Tamborine Mountain Bowls Club | J138: 0 | K138: 267000 | M138: 1 | N138: 267000 | P138: 0.4426 | Q138: =IF(O138="",'Unit Rates-Land'!landcst,IF($D$8="Landuse",VLOOKUP(O138,LAndcost3,2,FALSE),IF($D$8="Location",VLOOKUP(O138,Landcost2,2,FALSE),"Error"))) -> 0 | R138: 0 | S138: 2014 | T138: =IFERROR((GeneralInput!$G$39/(VLOOKUP(S138,GeneralInput!$E$39:$G$45,3,FALSE))),1) -> 1 | U138: 267000 | X138: y | AB138: 15993 | AC138: 15993 | AG138: 267000
B139: LF-000266 | C139: 119 | D139: General community space | E139: 42 Southport Avenue | F139: Tamborine Mountain | G139: Tamborine Mountain Community Care | J139: 0 | K139: 290000 | M139: 1 | N139: 290000 | P139: 0.1012 | Q139: =IF(O139="",'Unit Rates-Land'!landcst,IF($D$8="Landuse",VLOOKUP(O139,LAndcost3,2,FALSE),IF($D$8="Location",VLOOKUP(O139,Landcost2,2,FALSE),"Error"))) -> 0 | R139: 0 | S139: 2014 | T139: =IFERROR((GeneralInput!$G$39/(VLOOKUP(S139,GeneralInput!$E$39:$G$45,3,FALSE))),1) -> 1 | U139: 290000 | X139: y | AB139: 15993 | AC139: 15993 | AG139: 290000
B140: reserve | C140: 118 | D140: Indoor sports facility | E140: 88 Beacon Road | F140: Tamborine Mountain | G140: Tamborine Mountain Community Men's Shed | J140: 0 | K140: 0 | M140: 1 | N140: 0 | P140: 0.5058 | Q140: =IF(O140="",'Unit Rates-Land'!landcst,IF($D$8="Landuse",VLOOKUP(O140,LAndcost3,2,FALSE),IF($D$8="Location",VLOOKUP(O140,Landcost2,2,FALSE),"Error"))) -> 0 | R140: 0 | S140: 2014 | T140: =IFERROR((GeneralInput!$G$39/(VLOOKUP(S140,GeneralInput!$E$39:$G$45,3,FALSE))),1) -> 1 | U140: 0 | X140: y | AB140: 15993 | AC140: 15993 | AG140: 0
B141: LF-000260, 261 & 262 | C141: 80 | D141: General community space | E141: 25 Forsythia Drive | F141: Tamborine Mountain | G141: Tamborine Mountain Garden Club - Botanical Gardens | J141: 0 | K141: 0 | M141: 1 | N141: 0 | P141: 8.6381 | Q141: =IF(O141="",'Unit Rates-Land'!landcst,IF($D$8="Landuse",VLOOKUP(O141,LAndcost3,2,FALSE),IF($D$8="Location",VLOOKUP(O141,Landcost2,2,FALSE),"Error"))) -> 0 | R141: 0 | S141: 2014 | T141: =IFERROR((GeneralInput!$G$39/(VLOOKUP(S141,GeneralInput!$E$39:$G$45,3,FALSE))),1) -> 1 | U141: 0 | X141: y | AB141: 15993 | AC141: 15993 | AG141: 0
B142: RP-004724, RP-002857 & RS-003980 | C142: 120 | D142: Art space | E142: 53 Wongawallan Road | F142: Tamborine Mountain | G142: Tamborine Mountain Historical Park | J142: 0 | K142: 18598 | M142: 1 | N142: 18598 | P142: 0.4083 | Q142: =IF(O142="",'Unit Rates-Land'!landcst,IF($D$8="Landuse",VLOOKUP(O142,LAndcost3,2,FALSE),IF($D$8="Location",VLOOKUP(O142,Landcost2,2,FALSE),"Error"))) -> 0 | R142: 0 | S142: 2014 | T142: =IFERROR((GeneralInput!$G$39/(VLOOKUP(S142,GeneralInput!$E$39:$G$45,3,FALSE))),1) -> 1 | U142: 18598 | X142: y | AB142: 15993 | AC142: 15993 | AG142: 18598
B143: LF-000281 | C143: 122 | D143: Library | E143: 30-32 Main Street | F143: Tamborine Mountain | G143: Tamborine Mountain Library | J143: 0 | K143: 300000 | M143: 1 | N143: 300000 | P143: 0.0317 | Q143: =IF(O143="",'Unit Rates-Land'!landcst,IF($D$8="Landuse",VLOOKUP(O143,LAndcost3,2,FALSE),IF($D$8="Location",VLOOKUP(O143,Landcost2,2,FALSE),"Error"))) -> 0 | R143: 0 | S143: 2014 | T143: =IFERROR((GeneralInput!$G$39/(VLOOKUP(S143,GeneralInput!$E$39:$G$45,3,FALSE))),1) -> 1 | U143: 300000 | X143: y | AB143: 15993 | AC143: 15993 | AG143: 300000
B144: LF-000284, 285 & 286 | C144: 121 | D144: Aquatic Centre | E144: 14 Beacon Rd | F144: Tamborine Mountain | G144: Tamborine Mountain Swimming Pool | J144: 0 | K144: 362000 | M144: 1 | N144: 362000 | P144: 0.6042 | Q144: =IF(O144="",'Unit Rates-Land'!landcst,IF($D$8="Landuse",VLOOKUP(O144,LAndcost3,2,FALSE),IF($D$8="Location",VLOOKUP(O144,Landcost2,2,FALSE),"Error"))) -> 0 | R144: 0 | S144: 2014 | T144: =IFERROR((GeneralInput!$G$39/(VLOOKUP(S144,GeneralInput!$E$39:$G$45,3,FALSE))),1) -> 1 | U144: 362000 | X144: y | AB144: 15993 | AC144: 15993 | AG144: 362000
B145: LF-000282, RP-004739, RP-004740 & RP-004741 | C145: 123 | D145: Community Centre | E145: 2-4 Knoll Road | F145: Tamborine Mountain | G145: Vonda Youngman Community Centre | J145: 0 | K145: 441685 | M145: 1 | N145: 441685 | P145: 0.485 | Q145: =IF(O145="",'Unit Rates-Land'!landcst,IF($D$8="Landuse",VLOOKUP(O145,LAndcost3,2,FALSE),IF($D$8="Location",VLOOKUP(O145,Landcost2,2,FALSE),"Error"))) -> 0 | R145: 0 | S145: 2014 | T145: =IFERROR((GeneralInput!$G$39/(VLOOKUP(S145,GeneralInput!$E$39:$G$45,3,FALSE))),1) -> 1 | U145: 441685 | X145: y | AB145: 15993 | AC145: 15993 | AG145: 441685
B146: LF-000276 | C146: 124 | D146: Community Centre | E146: 22 Main Street | F146: Tamborine Mountain | G146: Zamia Theatre | J146: 0 | K146: 480000 | M146: =IF(L146="",1,VLOOKUP(L146,PArksitecond,2,FALSE)) -> 1 | N146: =IF(K146="","",K146*M146) -> 480000 | P146: 0.1707 | Q146: =IF(O146="",'Unit Rates-Land'!landcst,IF($D$8="Landuse",VLOOKUP(O146,LAndcost3,2,FALSE),IF($D$8="Location",VLOOKUP(O146,Landcost2,2,FALSE),"Error"))) -> 0 | R146: =IF(Q146="",0,Q146*10000*P146) -> 0 | S146: 2014 | T146: =IFERROR((GeneralInput!$G$39/(VLOOKUP(S146,GeneralInput!$E$39:$G$45,3,FALSE))),1) -> 1 | U146: =IFERROR((R146+N146)*T146,0) -> 480000 | X146: y | AB146: 15993 | AC146: =SUM(Z146:AB146) -> 15993 | AG146: 480000 | AH146: =IF(SUM(AE146:AG146)=U146,"","ERROR") -> 
B147: LF-000117 | C147: 125 | D147: Indoor sports facility | E147: 3086 Beechmont Road | F147: Witheren | G147: Beechmont Girl Guides and Scout Hall | J147: 0 | K147: 320000 | M147: 1 | N147: 320000 | P147: 3.744 | Q147: =IF(O147="",'Unit Rates-Land'!landcst,IF($D$8="Landuse",VLOOKUP(O147,LAndcost3,2,FALSE),IF($D$8="Location",VLOOKUP(O147,Landcost2,2,FALSE),"Error"))) -> 0 | R147: 0 | S147: 2014 | T147: =IFERROR((GeneralInput!$G$39/(VLOOKUP(S147,GeneralInput!$E$39:$G$45,3,FALSE))),1) -> 1 | U147: 320000 | X147: y | AB147: 15993 | AC147: 15993 | AG147: 320000
B156: Location
B157: =IF($D$8="Location",'Unit Rates-Land'!$B18,IF($D$8="Landuse",'Unit Rates-Land'!$G18,"""Error")) -> 0
B158: =IF($D$8="Location",'Unit Rates-Land'!$B19,IF($D$8="Landuse",'Unit Rates-Land'!$G19,"""Error")) -> 0
B159: =IF($D$8="Location",'Unit Rates-Land'!$B20,IF($D$8="Landuse",'Unit Rates-Land'!$G20,"""Error")) -> 0
B160: =IF($D$8="Location",'Unit Rates-Land'!$B21,IF($D$8="Landuse",'Unit Rates-Land'!$G21,"""Error")) -> 0
B161: =IF($D$8="Location",'Unit Rates-Land'!$B22,IF($D$8="Landuse",'Unit Rates-Land'!$G22,"""Error")) -> 0
B162: =IF($D$8="Location",'Unit Rates-Land'!$B23,IF($D$8="Landuse",'Unit Rates-Land'!$G23,"""Error")) -> 0
B163: =IF($D$8="Location",'Unit Rates-Land'!$B24,IF($D$8="Landuse",'Unit Rates-Land'!$G24,"""Error")) -> 0
B164: =IF($D$8="Location",'Unit Rates-Land'!$B25,IF($D$8="Landuse",'Unit Rates-Land'!$G25,"""Error")) -> 0
B165: =IF($D$8="Location",'Unit Rates-Land'!$B26,IF($D$8="Landuse",'Unit Rates-Land'!$G26,"""Error")) -> 0
B166: =IF($D$8="Location",'Unit Rates-Land'!$B27,IF($D$8="Landuse",'Unit Rates-Land'!$G27,"""Error")) -> 0
B167: =IF($D$8="Location",'Unit Rates-Land'!$B28,IF($D$8="Landuse",'Unit Rates-Land'!$G28,"""Error")) -> 0
B168: =IF($D$8="Location",'Unit Rates-Land'!$B29,IF($D$8="Landuse",'Unit Rates-Land'!$G29,"""Error")) -> 0
B169: =IF($D$8="Location",'Unit Rates-Land'!$B30,IF($D$8="Landuse",'Unit Rates-Land'!$G30,"""Error")) -> 0
B170: =IF($D$8="Location",'Unit Rates-Land'!$B31,IF($D$8="Landuse",'Unit Rates-Land'!$G31,"""Error")) -> 0
B171: =IF($D$8="Location",'Unit Rates-Land'!$B32,IF($D$8="Landuse",'Unit Rates-Land'!$G32,"""Error")) -> 0
B172: =IF($D$8="Location",'Unit Rates-Land'!$B33,IF($D$8="Landuse",'Unit Rates-Land'!$G33,"""Error")) -> 0
B173: =IF($D$8="Location",'Unit Rates-Land'!$B34,IF($D$8="Landuse",'Unit Rates-Land'!$G34,"""Error")) -> 0
B174: =IF($D$8="Location",'Unit Rates-Land'!$B35,IF($D$8="Landuse",'Unit Rates-Land'!$G35,"""Error")) -> 0
B175: =IF($D$8="Location",'Unit Rates-Land'!$B36,IF($D$8="Landuse",'Unit Rates-Land'!$G36,"""Error")) -> 0
B176: =IF($D$8="Location",'Unit Rates-Land'!$B37,IF($D$8="Landuse",'Unit Rates-Land'!$G37,"""Error")) -> 0
B177: =IF($D$8="Location",'Unit Rates-Land'!$B38,IF($D$8="Landuse",'Unit Rates-Land'!$G38,"""Error")) -> 0
B178: =IF($D$8="Location",'Unit Rates-Land'!$B39,IF($D$8="Landuse",'Unit Rates-Land'!$G39,"""Error")) -> 0
B179: =IF($D$8="Location",'Unit Rates-Land'!$B40,IF($D$8="Landuse",'Unit Rates-Land'!$G40,"""Error")) -> 0
B180: =IF($D$8="Location",'Unit Rates-Land'!$B41,IF($D$8="Landuse",'Unit Rates-Land'!$G41,"""Error")) -> 0
B181: =IF($D$8="Location",'Unit Rates-Land'!$B42,IF($D$8="Landuse",'Unit Rates-Land'!$G42,"""Error")) -> 0
B182: =IF($D$8="Location",'Unit Rates-Land'!$B43,IF($D$8="Landuse",'Unit Rates-Land'!$G43,"""Error")) -> 0

Sheet ExistTrunkAsset- SW
B2: =NavigationPane!C2 -> Scenic Rim Regional Council
B3: Stormwater
A4: Return to "Existing Trunk Assets"
B5: EXISTING TRUNK ASSETS
B8: Land Valuation Type | D8: Location
H10: Asset Data | W10: Catchment Asset Allocation | AB10: Asset Usage | AH10: Cost Allocation
B11: Basic Asset Data | G11: Asset Attributes | K11: Basic Asset Valuation | P11: Land Attributes | T11: Refined Asset Value | W11: ='CatchmentDemand - SW'!$C8 -> Beaudesert | X11: ='CatchmentDemand - SW'!$C9 -> Boonah | Y11: ='CatchmentDemand - SW'!$C10 -> Canungra | Z11: ='CatchmentDemand - SW'!$C11 -> Kalbar | AB11: =W11 -> Beaudesert | AC11: =X11 -> Boonah | AD11: =Y11 -> Canungra | AE11: =Z11 -> Kalbar | AF11: TOTALS | AH11: =W11 -> Beaudesert | AI11: =X11 -> Boonah | AJ11: =Y11 -> Canungra | AK11: =Z11 -> Kalbar | AL11: Checksum 2
B12: Asset ID | C12: LGIP ID | D12: Asset Class | E12: Asset Name | F12: Description | G12: Unit Rate Type (*) | H12: Length | I12: asset type/name | J12: asset size | K12: Unit Rate | L12: Baseline Valuation | M12: Site/Condition | N12: Multiplier | O12: Gross Value | P12: Land Location/Type | Q12: Size of land (ha) (*) | R12: Unit Cost | S12: Land Value | T12: Valuation Year | U12: Escalation | V12: Current Repalcement Cost
W13: 1 | X13: =W13+1 -> 2 | Y13: =X13+1 -> 3 | Z13: 4
B14: Councils ID (from GIS, FAR, AMA etc.) | C14: ID from the LGIP drawings | D14: Chanel, Detention Basin, GPT. SQUID etc | L14: May be calculated from unit rates OR unique values can be direct entered | V14: CRC | W14: =IFERROR(VLOOKUP(W11,stormcatch,6,FALSE),"") -> 127.524 | X14: 85.02 | Y14: 11.504 | Z14: =IFERROR(VLOOKUP(Z11,'CatchmentDemand - SW'!C7:H11,6,FALSE),"") -> 13.848 | AB14: =W14 -> 127.524 | AC14: =X14 -> 85.02 | AD14: =Y14 -> 11.504 | AE14: =Z14 -> 13.848 | AH14: =SUM(AH15:AH875) -> 10235040 | AI14: =SUM(AI15:AI875) -> 2307769 | AJ14: =SUM(AJ15:AJ875) -> 507285 | AK14: =SUM(AK15:AK875) -> 1413820 | AL14: =SUM(AL15:AL875) -> 0
B15: DF-010215 | C15: PIPE00265 | D15: Drainage Financial (Pipes) | E15: Albert St | F15: Beaudesert | H15: 170.65 | I15: RCP Circular | J15: 600 | K15: =IF(G15=SWTYPE1,VLOOKUP(J15,SWUnitrates1,2,FALSE),IF(G15=SWTYPE2,VLOOKUP(J15,SWUnitrates2,2,FALSE),0)) -> 0 | L15: 87712 | N15: =IF(M15="",1,VLOOKUP(M15,SWsitecond,2,FALSE)) -> 1 | O15: =IF(L15="","",L15*N15) -> 87712 | R15: =IF(P15="",'Unit Rates-Land'!landcst,IF($D$8="Landuse",VLOOKUP(P15,LAndcost3,2,FALSE),IF($D$8="Location",VLOOKUP(P15,Landcost2,2,FALSE),"Error"))) -> 0 | S15: =IF(R15="",0,R15*10000*Q15) -> 0 | T15: 2014 | U15: =IFERROR((GeneralInput!$G$39/(VLOOKUP(T15,GeneralInput!$E$39:$G$45,3,FALSE))),1) -> 1 | V15: =IFERROR(U15*(S15+O15),0) -> 87712 | W15: y | AB15: =IF(W15="y",AB$14,IF(AND(W15>0,W15<=1),W15*AB$14,"")) -> 127.524 | AC15: =IF(X15="y",AC$14,IF(AND(X15>0,X15<=1),X15*AC$14,"")) ->  | AD15: =IF(Y15="y",AD$14,IF(AND(Y15>0,Y15<=1),Y15*AD$14,"")) ->  | AE15: =IF(Z15="y",AE$14,IF(AND(Z15>0,Z15<=1),Z15*AE$14,"")) ->  | AF15: =SUM(AB15:AE15) -> 127.524 | AH15: =IF(AB15="","",(AB15/$AF15)*$V15) -> 87712 | AI15: =IF(AC15="","",(AC15/$AF15)*$V15) ->  | AJ15: =IF(AD15="","",(AD15/$AF15)*$V15) ->  | AK15: =IF(AE15="","",(AE15/$AF15)*$V15) ->  | AL15: =IF(SUM(AH15:AK15)=V15,"","ERROR") -> 
B16: DF-010216 | C16: PIPE00266 | D16: Drainage Financial (Pipes) | E16: Albert St | F16: Beaudesert | H16: 170.18 | I16: RCP Circular | J16: 600 | K16: 0 | L16: 87471 | N16: 1 | O16: =IF(L16="","",L16*N16) -> 87471 | R16: =IF(P16="",'Unit Rates-Land'!landcst,IF($D$8="Landuse",VLOOKUP(P16,LAndcost3,2,FALSE),IF($D$8="Location",VLOOKUP(P16,Landcost2,2,FALSE),"Error"))) -> 0 | S16: =IF(R16="",0,R16*10000*Q16) -> 0 | T16: 2014 | U16: =IFERROR((GeneralInput!$G$39/(VLOOKUP(T16,GeneralInput!$E$39:$G$45,3,FALSE))),1) -> 1 | V16: =IFERROR(U16*(S16+O16),0) -> 87471 | W16: y | AB16: 127.524 | AF16: 127.524 | AH16: 87471
B17: DF-010672 | C17: PIPE00724 | D17: Drainage Financial (Pipes) | E17: Albert St | F17: Beaudesert | H17: 27.62 | I17: RCP Circular | J17: 600 | K17: 0 | L17: 14194 | N17: 1 | O17: 14194 | R17: =IF(P17="",'Unit Rates-Land'!landcst,IF($D$8="Landuse",VLOOKUP(P17,LAndcost3,2,FALSE),IF($D$8="Location",VLOOKUP(P17,Landcost2,2,FALSE),"Error"))) -> 0 | S17: =IF(R17="",0,R17*10000*Q17) -> 0 | T17: 2014 | U17: =IFERROR((GeneralInput!$G$39/(VLOOKUP(T17,GeneralInput!$E$39:$G$45,3,FALSE))),1) -> 1 | V17: 14194 | W17: y | AB17: 127.524 | AF17: 127.524 | AH17: 14194
B18: DF-010103 | C18: PIPE00113 | D18: Drainage Financial (Pipes) | E18: Albert St | F18: Beaudesert | H18: 28.43 | I18: RCP Circular | J18: 750 | K18: 0 | L18: 20357 | N18: 1 | O18: 20357 | R18: =IF(P18="",'Unit Rates-Land'!landcst,IF($D$8="Landuse",VLOOKUP(P18,LAndcost3,2,FALSE),IF($D$8="Location",VLOOKUP(P18,Landcost2,2,FALSE),"Error"))) -> 0 | S18: 0 | T18: 2014 | U18: =IFERROR((GeneralInput!$G$39/(VLOOKUP(T18,GeneralInput!$E$39:$G$45,3,FALSE))),1) -> 1 | V18: 20357 | W18: y | AB18: 127.524 | AF18: 127.524 | AH18: 20357
B19: DF-010217 | C19: PIPE00267 | D19: Drainage Financial (Pipes) | E19: Albert St | F19: Beaudesert | H19: 26.08 | I19: RCP Circular | J19: 900 | K19: 0 | L19: 28659 | N19: 1 | O19: 28659 | R19: =IF(P19="",'Unit Rates-Land'!landcst,IF($D$8="Landuse",VLOOKUP(P19,LAndcost3,2,FALSE),IF($D$8="Location",VLOOKUP(P19,Landcost2,2,FALSE),"Error"))) -> 0 | S19: 0 | T19: 2014 | U19: =IFERROR((GeneralInput!$G$39/(VLOOKUP(T19,GeneralInput!$E$39:$G$45,3,FALSE))),1) -> 1 | V19: 28659 | W19: y | AB19: 127.524 | AF19: 127.524 | AH19: 28659
B20: DF-012409 | C20: NP013 | D20: Drainage Financial (FSWPITS) | E20: Albert St | F20: Beaudesert | I20: Junction Pit | K20: 0 | L20: 841 | N20: 1 | O20: 841 | R20: =IF(P20="",'Unit Rates-Land'!landcst,IF($D$8="Landuse",VLOOKUP(P20,LAndcost3,2,FALSE),IF($D$8="Location",VLOOKUP(P20,Landcost2,2,FALSE),"Error"))) -> 0 | S20: 0 | T20: 2014 | U20: =IFERROR((GeneralInput!$G$39/(VLOOKUP(T20,GeneralInput!$E$39:$G$45,3,FALSE))),1) -> 1 | V20: 841 | W20: y | AB20: 127.524 | AF20: 127.524 | AH20: 841
B21: DF-012416 | C21: NP021 | D21: Drainage Financial (FSWPITS) | E21: Albert St | F21: Beaudesert | I21: Junction Pit | K21: 0 | L21: 1618 | N21: 1 | O21: 1618 | R21: =IF(P21="",'Unit Rates-Land'!landcst,IF($D$8="Landuse",VLOOKUP(P21,LAndcost3,2,FALSE),IF($D$8="Location",VLOOKUP(P21,Landcost2,2,FALSE),"Error"))) -> 0 | S21: 0 | T21: 2014 | U21: =IFERROR((GeneralInput!$G$39/(VLOOKUP(T21,GeneralInput!$E$39:$G$45,3,FALSE))),1) -> 1 | V21: 1618 | W21: y | AB21: 127.524 | AF21: 127.524 | AH21: 1618
B22: DF-011478 | C22: PIT00088 | D22: Drainage Financial (FSWPITS) | E22: Albert St | F22: Beaudesert | I22: Bro-Pit | K22: 0 | L22: 2286 | N22: 1 | O22: 2286 | R22: =IF(P22="",'Unit Rates-Land'!landcst,IF($D$8="Landuse",VLOOKUP(P22,LAndcost3,2,FALSE),IF($D$8="Location",VLOOKUP(P22,Landcost2,2,FALSE),"Error"))) -> 0 | S22: 0 | T22: 2014 | U22: =IFERROR((GeneralInput!$G$39/(VLOOKUP(T22,GeneralInput!$E$39:$G$45,3,FALSE))),1) -> 1 | V22: 2286 | W22: y | AB22: 127.524 | AF22: 127.524 | AH22: 2286
B23: DF-011479 | C23: PIT00089 | D23: Drainage Financial (FSWPITS) | E23: Albert St | F23: Beaudesert | I23: Grated Pit | K23: 0 | L23: 1629 | N23: 1 | O23: 1629 | R23: =IF(P23="",'Unit Rates-Land'!landcst,IF($D$8="Landuse",VLOOKUP(P23,LAndcost3,2,FALSE),IF($D$8="Location",VLOOKUP(P23,Landcost2,2,FALSE),"Error"))) -> 0 | S23: 0 | T23: 2014 | U23: =IFERROR((GeneralInput!$G$39/(VLOOKUP(T23,GeneralInput!$E$39:$G$45,3,FALSE))),1) -> 1 | V23: 1629 | W23: y | AB23: 127.524 | AF23: 127.524 | AH23: 1629
B24: DF-011480 | C24: PIT00090 | D24: Drainage Financial (FSWPITS) | E24: Albert St | F24: Beaudesert | I24: Grated Pit | K24: 0 | L24: 1390 | N24: 1 | O24: 1390 | R24: =IF(P24="",'Unit Rates-Land'!landcst,IF($D$8="Landuse",VLOOKUP(P24,LAndcost3,2,FALSE),IF($D$8="Location",VLOOKUP(P24,Landcost2,2,FALSE),"Error"))) -> 0 | S24: 0 | T24: 2014 | U24: =IFERROR((GeneralInput!$G$39/(VLOOKUP(T24,GeneralInput!$E$39:$G$45,3,FALSE))),1) -> 1 | V24: 1390 | W24: y | AB24: 127.524 | AF24: 127.524 | AH24: 1390
B25: DF-011481 | C25: PIT00091 | D25: Drainage Financial (FSWPITS) | E25: Albert St | F25: Beaudesert | I25: Wing Wall | K25: 0 | L25: 1500 | N25: 1 | O25: 1500 | R25: =IF(P25="",'Unit Rates-Land'!landcst,IF($D$8="Landuse",VLOOKUP(P25,LAndcost3,2,FALSE),IF($D$8="Location",VLOOKUP(P25,Landcost2,2,FALSE),"Error"))) -> 0 | S25: 0 | T25: 2014 | U25: =IFERROR((GeneralInput!$G$39/(VLOOKUP(T25,GeneralInput!$E$39:$G$45,3,FALSE))),1) -> 1 | V25: 1500 | W25: y | AB25: 127.524 | AF25: 127.524 | AH25: 1500
B26: DF-011482 | C26: PIT00092 | D26: Drainage Financial (FSWPITS) | E26: Albert St | F26: Beaudesert | I26: Junction Pit | K26: 0 | L26: 841 | N26: 1 | O26: 841 | R26: =IF(P26="",'Unit Rates-Land'!landcst,IF($D$8="Landuse",VLOOKUP(P26,LAndcost3,2,FALSE),IF($D$8="Location",VLOOKUP(P26,Landcost2,2,FALSE),"Error"))) -> 0 | S26: 0 | T26: 2014 | U26: =IFERROR((GeneralInput!$G$39/(VLOOKUP(T26,GeneralInput!$E$39:$G$45,3,FALSE))),1) -> 1 | V26: 841 | W26: y | AB26: 127.524 | AF26: 127.524 | AH26: 841
B27: DF-011484 | C27: PIT00094 | D27: Drainage Financial (FSWPITS) | E27: Albert St | F27: Beaudesert | I27: Junction Pit | K27: 0 | L27: 4252 | N27: 1 | O27: 4252 | R27: =IF(P27="",'Unit Rates-Land'!landcst,IF($D$8="Landuse",VLOOKUP(P27,LAndcost3,2,FALSE),IF($D$8="Location",VLOOKUP(P27,Landcost2,2,FALSE),"Error"))) -> 0 | S27: 0 | T27: 2014 | U27: =IFERROR((GeneralInput!$G$39/(VLOOKUP(T27,GeneralInput!$E$39:$G$45,3,FALSE))),1) -> 1 | V27: 4252 | W27: y | AB27: 127.524 | AF27: 127.524 | AH27: 4252
B28: DF-011508 | C28: PIT00118 | D28: Drainage Financial (FSWPITS) | E28: Albert St | F28: Beaudesert | I28: Grated Pit | K28: 0 | L28: 1188 | N28: 1 | O28: 1188 | R28: =IF(P28="",'Unit Rates-Land'!landcst,IF($D$8="Landuse",VLOOKUP(P28,LAndcost3,2,FALSE),IF($D$8="Location",VLOOKUP(P28,Landcost2,2,FALSE),"Error"))) -> 0 | S28: 0 | T28: 2014 | U28: =IFERROR((GeneralInput!$G$39/(VLOOKUP(T28,GeneralInput!$E$39:$G$45,3,FALSE))),1) -> 1 | V28: 1188 | W28: y | AB28: 127.524 | AF28: 127.524 | AH28: 1188
B29: DF-011509 | C29: PIT00119 | D29: Drainage Financial (FSWPITS) | E29: Albert St | F29: Beaudesert | I29: Grated Pit | K29: 0 | L29: 1390 | N29: 1 | O29: 1390 | R29: =IF(P29="",'Unit Rates-Land'!landcst,IF($D$8="Landuse",VLOOKUP(P29,LAndcost3,2,FALSE),IF($D$8="Location",VLOOKUP(P29,Landcost2,2,FALSE),"Error"))) -> 0 | S29: 0 | T29: 2014 | U29: =IFERROR((GeneralInput!$G$39/(VLOOKUP(T29,GeneralInput!$E$39:$G$45,3,FALSE))),1) -> 1 | V29: 1390 | W29: y | AB29: 127.524 | AF29: 127.524 | AH29: 1390
B30: DF-011510 | C30: PIT00120 | D30: Drainage Financial (FSWPITS) | E30: Albert St | F30: Beaudesert | I30: Junction Pit | K30: 0 | L30: 4252 | N30: 1 | O30: 4252 | R30: =IF(P30="",'Unit Rates-Land'!landcst,IF($D$8="Landuse",VLOOKUP(P30,LAndcost3,2,FALSE),IF($D$8="Location",VLOOKUP(P30,Landcost2,2,FALSE),"Error"))) -> 0 | S30: 0 | T30: 2014 | U30: =IFERROR((GeneralInput!$G$39/(VLOOKUP(T30,GeneralInput!$E$39:$G$45,3,FALSE))),1) -> 1 | V30: 4252 | W30: y | AB30: 127.524 | AF30: 127.524 | AH30: 4252
B31: DF-011517 | C31: PIT00127 | D31: Drainage Financial (FSWPITS) | E31: Albert St | F31: Beaudesert | I31: Junction Pit | K31: 0 | L31: 2204 | N31: 1 | O31: 2204 | R31: =IF(P31="",'Unit Rates-Land'!landcst,IF($D$8="Landuse",VLOOKUP(P31,LAndcost3,2,FALSE),IF($D$8="Location",VLOOKUP(P31,Landcost2,2,FALSE),"Error"))) -> 0 | S31: 0 | T31: 2014 | U31: =IFERROR((GeneralInput!$G$39/(VLOOKUP(T31,GeneralInput!$E$39:$G$45,3,FALSE))),1) -> 1 | V31: 2204 | W31: y | AB31: 127.524 | AF31: 127.524 | AH31: 2204
B32: DF-011518 | C32: PIT00128 | D32: Drainage Financial (FSWPITS) | E32: Albert St | F32: Beaudesert | I32: Grated Pit | K32: 0 | L32: 1188 | N32: 1 | O32: 1188 | R32: =IF(P32="",'Unit Rates-Land'!landcst,IF($D$8="Landuse",VLOOKUP(P32,LAndcost3,2,FALSE),IF($D$8="Location",VLOOKUP(P32,Landcost2,2,FALSE),"Error"))) -> 0 | S32: 0 | T32: 2014 | U32: =IFERROR((GeneralInput!$G$39/(VLOOKUP(T32,GeneralInput!$E$39:$G$45,3,FALSE))),1) -> 1 | V32: 1188 | W32: y | AB32: 127.524 | AF32: 127.524 | AH32: 1188
B33: DF-011519 | C33: PIT00129 | D33: Drainage Financial (FSWPITS) | E33: Albert St | F33: Beaudesert | I33: Grated Pit | K33: 0 | L33: 1188 | N33: 1 | O33: 1188 | R33: =IF(P33="",'Unit Rates-Land'!landcst,IF($D$8="Landuse",VLOOKUP(P33,LAndcost3,2,FALSE),IF($D$8="Location",VLOOKUP(P33,Landcost2,2,FALSE),"Error"))) -> 0 | S33: 0 | T33: 2014 | U33: =IFERROR((GeneralInput!$G$39/(VLOOKUP(T33,GeneralInput!$E$39:$G$45,3,FALSE))),1) -> 1 | V33: 1188 | W33: y | AB33: 127.524 | AF33: 127.524 | AH33: 1188
B34: DF-011520 | C34: PIT00130 | D34: Drainage Financial (FSWPITS) | E34: Albert St | F34: Beaudesert | I34: Junction Pit | K34: 0 | L34: 841 | N34: 1 | O34: 841 | R34: =IF(P34="",'Unit Rates-Land'!landcst,IF($D$8="Landuse",VLOOKUP(P34,LAndcost3,2,FALSE),IF($D$8="Location",VLOOKUP(P34,Landcost2,2,FALSE),"Error"))) -> 0 | S34: 0 | T34: 2014 | U34: =IFERROR((GeneralInput!$G$39/(VLOOKUP(T34,GeneralInput!$E$39:$G$45,3,FALSE))),1) -> 1 | V34: 841 | W34: y | AB34: 127.524 | AF34: 127.524 | AH34: 841
B35: DF-011623 | C35: PIT00277 | D35: Drainage Financial (FSWPITS) | E35: Albert St | F35: Beaudesert | I35: Grated Pit | K35: 0 | L35: 1629 | N35: 1 | O35: 1629 | R35: =IF(P35="",'Unit Rates-Land'!landcst,IF($D$8="Landuse",VLOOKUP(P35,LAndcost3,2,FALSE),IF($D$8="Location",VLOOKUP(P35,Landcost2,2,FALSE),"Error"))) -> 0 | S35: 0 | T35: 2014 | U35: =IFERROR((GeneralInput!$G$39/(VLOOKUP(T35,GeneralInput!$E$39:$G$45,3,FALSE))),1) -> 1 | V35: 1629 | W35: y | AB35: 127.524 | AF35: 127.524 | AH35: 1629
B36: DF-011624 | C36: PIT00278 | D36: Drainage Financial (FSWPITS) | E36: Albert St | F36: Beaudesert | I36: Grated Pit | K36: 0 | L36: 1629 | N36: 1 | O36: 1629 | R36: =IF(P36="",'Unit Rates-Land'!landcst,IF($D$8="Landuse",VLOOKUP(P36,LAndcost3,2,FALSE),IF($D$8="Location",VLOOKUP(P36,Landcost2,2,FALSE),"Error"))) -> 0 | S36: 0 | T36: 2014 | U36: =IFERROR((GeneralInput!$G$39/(VLOOKUP(T36,GeneralInput!$E$39:$G$45,3,FALSE))),1) -> 1 | V36: 1629 | W36: y | AB36: 127.524 | AF36: 127.524 | AH36: 1629
B37: DF-011625 | C37: PIT00279 | D37: Drainage Financial (FSWPITS) | E37: Albert St | F37: Beaudesert | I37: End Wall (Baffled) | K37: 0 | L37: 1500 | N37: 1 | O37: 1500 | R37: =IF(P37="",'Unit Rates-Land'!landcst,IF($D$8="Landuse",VLOOKUP(P37,LAndcost3,2,FALSE),IF($D$8="Location",VLOOKUP(P37,Landcost2,2,FALSE),"Error"))) -> 0 | S37: 0 | T37: 2014 | U37: =IFERROR((GeneralInput!$G$39/(VLOOKUP(T37,GeneralInput!$E$39:$G$45,3,FALSE))),1) -> 1 | V37: 1500 | W37: y | AB37: 127.524 | AF37: 127.524 | AH37: 1500
B38: DF-012238 | C38: PIT00894 | D38: Drainage Financial (FSWPITS) | E38: Albert St | F38: Beaudesert | I38: Grated Pit | K38: 0 | L38: 1390 | N38: 1 | O38: 1390 | R38: =IF(P38="",'Unit Rates-Land'!landcst,IF($D$8="Landuse",VLOOKUP(P38,LAndcost3,2,FALSE),IF($D$8="Location",VLOOKUP(P38,Landcost2,2,FALSE),"Error"))) -> 0 | S38: 0 | T38: 2014 | U38: =IFERROR((GeneralInput!$G$39/(VLOOKUP(T38,GeneralInput!$E$39:$G$45,3,FALSE))),1) -> 1 | V38: 1390 | W38: y | AB38: 127.524 | AF38: 127.524 | AH38: 1390
B39: DF-012239 | C39: PIT00895 | D39: Drainage Financial (FSWPITS) | E39: Albert St | F39: Beaudesert | I39: Junction Pit | K39: 0 | L39: 841 | N39: 1 | O39: 841 | R39: =IF(P39="",'Unit Rates-Land'!landcst,IF($D$8="Landuse",VLOOKUP(P39,LAndcost3,2,FALSE),IF($D$8="Location",VLOOKUP(P39,Landcost2,2,FALSE),"Error"))) -> 0 | S39: 0 | T39: 2014 | U39: =IFERROR((GeneralInput!$G$39/(VLOOKUP(T39,GeneralInput!$E$39:$G$45,3,FALSE))),1) -> 1 | V39: 841 | W39: y | AB39: 127.524 | AF39: 127.524 | AH39: 841
B40: DF-012240 | C40: PIT00896 | D40: Drainage Financial (FSWPITS) | E40: Albert St | F40: Beaudesert | I40: Grated Pit | K40: 0 | L40: 1188 | N40: 1 | O40: 1188 | R40: =IF(P40="",'Unit Rates-Land'!landcst,IF($D$8="Landuse",VLOOKUP(P40,LAndcost3,2,FALSE),IF($D$8="Location",VLOOKUP(P40,Landcost2,2,FALSE),"Error"))) -> 0 | S40: 0 | T40: 2014 | U40: =IFERROR((GeneralInput!$G$39/(VLOOKUP(T40,GeneralInput!$E$39:$G$45,3,FALSE))),1) -> 1 | V40: 1188 | W40: y | AB40: 127.524 | AF40: 127.524 | AH40: 1188
B41: DF-012241 | C41: PIT00897 | D41: Drainage Financial (FSWPITS) | E41: Albert St | F41: Beaudesert | I41: Junction Pit | K41: 0 | L41: 2204 | N41: 1 | O41: 2204 | R41: =IF(P41="",'Unit Rates-Land'!landcst,IF($D$8="Landuse",VLOOKUP(P41,LAndcost3,2,FALSE),IF($D$8="Location",VLOOKUP(P41,Landcost2,2,FALSE),"Error"))) -> 0 | S41: 0 | T41: 2014 | U41: =IFERROR((GeneralInput!$G$39/(VLOOKUP(T41,GeneralInput!$E$39:$G$45,3,FALSE))),1) -> 1 | V41: 2204 | W41: y | AB41: 127.524 | AF41: 127.524 | AH41: 2204
B42: DF-012242 | C42: PIT00898 | D42: Drainage Financial (FSWPITS) | E42: Albert St | F42: Beaudesert | I42: Grated Pit | K42: 0 | L42: 1188 | N42: 1 | O42: 1188 | R42: =IF(P42="",'Unit Rates-Land'!landcst,IF($D$8="Landuse",VLOOKUP(P42,LAndcost3,2,FALSE),IF($D$8="Location",VLOOKUP(P42,Landcost2,2,FALSE),"Error"))) -> 0 | S42: 0 | T42: 2014 | U42: =IFERROR((GeneralInput!$G$39/(VLOOKUP(T42,GeneralInput!$E$39:$G$45,3,FALSE))),1) -> 1 | V42: 1188 | W42: y | AB42: 127.524 | AF42: 127.524 | AH42: 1188
B43: DF-012243 | C43: PIT00899 | D43: Drainage Financial (FSWPITS) | E43: Albert St | F43: Beaudesert | I43: Junction Pit | K43: 0 | L43: 2691 | N43: 1 | O43: 2691 | R43: =IF(P43="",'Unit Rates-Land'!landcst,IF($D$8="Landuse",VLOOKUP(P43,LAndcost3,2,FALSE),IF($D$8="Location",VLOOKUP(P43,Landcost2,2,FALSE),"Error"))) -> 0 | S43: 0 | T43: 2014 | U43: =IFERROR((GeneralInput!$G$39/(VLOOKUP(T43,GeneralInput!$E$39:$G$45,3,FALSE))),1) -> 1 | V43: 2691 | W43: y | AB43: 127.524 | AF43: 127.524 | AH43: 2691
B44: DF-012245 | C44: PIT00901 | D44: Drainage Financial (FSWPITS) | E44: Albert St | F44: Beaudesert | I44: Bro-Pit | K44: 0 | L44: 3654 | N44: 1 | O44: 3654 | R44: =IF(P44="",'Unit Rates-Land'!landcst,IF($D$8="Landuse",VLOOKUP(P44,LAndcost3,2,FALSE),IF($D$8="Location",VLOOKUP(P44,Landcost2,2,FALSE),"Error"))) -> 0 | S44: 0 | T44: 2014 | U44: =IFERROR((GeneralInput!$G$39/(VLOOKUP(T44,GeneralInput!$E$39:$G$45,3,FALSE))),1) -> 1 | V44: 3654 | W44: y | AB44: 127.524 | AF44: 127.524 | AH44: 3654
B45: DF-012249 | C45: PIT00905 | D45: Drainage Financial (FSWPITS) | E45: Albert St | F45: Beaudesert | I45: Junction Pit | K45: 0 | L45: 4252 | N45: 1 | O45: 4252 | R45: =IF(P45="",'Unit Rates-Land'!landcst,IF($D$8="Landuse",VLOOKUP(P45,LAndcost3,2,FALSE),IF($D$8="Location",VLOOKUP(P45,Landcost2,2,FALSE),"Error"))) -> 0 | S45: 0 | T45: 2014 | U45: =IFERROR((GeneralInput!$G$39/(VLOOKUP(T45,GeneralInput!$E$39:$G$45,3,FALSE))),1) -> 1 | V45: 4252 | W45: y | AB45: 127.524 | AF45: 127.524 | AH45: 4252
B46: DF-011515 | C46: PIT00125 | D46: Drainage Financial (FSWPITS) | E46: Albert/Ecole Sts | F46: Beaudesert | I46: Junction Pit | K46: 0 | L46: 4252 | N46: 1 | O46: 4252 | R46: =IF(P46="",'Unit Rates-Land'!landcst,IF($D$8="Landuse",VLOOKUP(P46,LAndcost3,2,FALSE),IF($D$8="Location",VLOOKUP(P46,Landcost2,2,FALSE),"Error"))) -> 0 | S46: 0 | T46: 2014 | U46: =IFERROR((GeneralInput!$G$39/(VLOOKUP(T46,GeneralInput!$E$39:$G$45,3,FALSE))),1) -> 1 | V46: 4252 | W46: y | AB46: 127.524 | AF46: 127.524 | AH46: 4252
B47: DF-011516 | C47: PIT00126 | D47: Drainage Financial (FSWPITS) | E47: Albert/Ecole Sts | F47: Beaudesert | I47: Grated Pit | K47: 0 | L47: 1390 | N47: 1 | O47: 1390 | R47: =IF(P47="",'Unit Rates-Land'!landcst,IF($D$8="Landuse",VLOOKUP(P47,LAndcost3,2,FALSE),IF($D$8="Location",VLOOKUP(P47,Landcost2,2,FALSE),"Error"))) -> 0 | S47: 0 | T47: 2014 | U47: =IFERROR((GeneralInput!$G$39/(VLOOKUP(T47,GeneralInput!$E$39:$G$45,3,FALSE))),1) -> 1 | V47: 1390 | W47: y | AB47: 127.524 | AF47: 127.524 | AH47: 1390
B48: DF-011686 | C48: PIT00342 | D48: Drainage Financial (FSWPITS) | E48: Alice St | F48: Beaudesert | I48: Grated Pit | K48: 0 | L48: 2997 | N48: 1 | O48: 2997 | R48: =IF(P48="",'Unit Rates-Land'!landcst,IF($D$8="Landuse",VLOOKUP(P48,LAndcost3,2,FALSE),IF($D$8="Location",VLOOKUP(P48,Landcost2,2,FALSE),"Error"))) -> 0 | S48: 0 | T48: 2014 | U48: =IFERROR((GeneralInput!$G$39/(VLOOKUP(T48,GeneralInput!$E$39:$G$45,3,FALSE))),1) -> 1 | V48: 2997 | W48: y | AB48: 127.524 | AF48: 127.524 | AH48: 2997
B49: DF-011688 | C49: PIT00344 | D49: Drainage Financial (FSWPITS) | E49: Alice St | F49: Beaudesert | I49: Grated Pit | K49: 0 | L49: 2997 | N49: 1 | O49: 2997 | R49: =IF(P49="",'Unit Rates-Land'!landcst,IF($D$8="Landuse",VLOOKUP(P49,LAndcost3,2,FALSE),IF($D$8="Location",VLOOKUP(P49,Landcost2,2,FALSE),"Error"))) -> 0 | S49: 0 | T49: 2014 | U49: =IFERROR((GeneralInput!$G$39/(VLOOKUP(T49,GeneralInput!$E$39:$G$45,3,FALSE))),1) -> 1 | V49: 2997 | W49: y | AB49: 127.524 | AF49: 127.524 | AH49: 2997
B50: DF-011692 | C50: PIT00348 | D50: Drainage Financial (FSWPITS) | E50: Alice St | F50: Beaudesert | I50: Junction Pit | K50: 0 | L50: 4252 | N50: 1 | O50: 4252 | R50: =IF(P50="",'Unit Rates-Land'!landcst,IF($D$8="Landuse",VLOOKUP(P50,LAndcost3,2,FALSE),IF($D$8="Location",VLOOKUP(P50,Landcost2,2,FALSE),"Error"))) -> 0 | S50: 0 | T50: 2014 | U50: =IFERROR((GeneralInput!$G$39/(VLOOKUP(T50,GeneralInput!$E$39:$G$45,3,FALSE))),1) -> 1 | V50: 4252 | W50: y | AB50: 127.524 | AF50: 127.524 | AH50: 4252
B51: DF-012387 | C51: PIT01044 | D51: Drainage Financial (FSWPITS) | E51: Alice St | F51: Beaudesert | I51: Grated Pit | K51: 0 | L51: 1390 | N51: 1 | O51: 1390 | R51: =IF(P51="",'Unit Rates-Land'!landcst,IF($D$8="Landuse",VLOOKUP(P51,LAndcost3,2,FALSE),IF($D$8="Location",VLOOKUP(P51,Landcost2,2,FALSE),"Error"))) -> 0 | S51: 0 | T51: 2014 | U51: =IFERROR((GeneralInput!$G$39/(VLOOKUP(T51,GeneralInput!$E$39:$G$45,3,FALSE))),1) -> 1 | V51: 1390 | W51: y | AB51: 127.524 | AF51: 127.524 | AH51: 1390
B52: DF-012388 | C52: PIT01045 | D52: Drainage Financial (FSWPITS) | E52: Alice St | F52: Beaudesert | I52: Junction Pit | K52: 0 | L52: 841 | N52: 1 | O52: 841 | R52: =IF(P52="",'Unit Rates-Land'!landcst,IF($D$8="Landuse",VLOOKUP(P52,LAndcost3,2,FALSE),IF($D$8="Location",VLOOKUP(P52,Landcost2,2,FALSE),"Error"))) -> 0 | S52: 0 | T52: 2014 | U52: =IFERROR((GeneralInput!$G$39/(VLOOKUP(T52,GeneralInput!$E$39:$G$45,3,FALSE))),1) -> 1 | V52: 841 | W52: y | AB52: 127.524 | AF52: 127.524 | AH52: 841
B53: DF-010915 | C53: PIPE00967 | D53: Drainage Financial (Pipes) | E53: Anna St | F53: Beaudesert | H53: 56.57 | I53: RCP Circular | J53: 1800 | K53: 0 | L53: 143360 | N53: 1 | O53: 143360 | R53: =IF(P53="",'Unit Rates-Land'!landcst,IF($D$8="Landuse",VLOOKUP(P53,LAndcost3,2,FALSE),IF($D$8="Location",VLOOKUP(P53,Landcost2,2,FALSE),"Error"))) -> 0 | S53: 0 | T53: 2014 | U53: =IFERROR((GeneralInput!$G$39/(VLOOKUP(T53,GeneralInput!$E$39:$G$45,3,FALSE))),1) -> 1 | V53: 143360 | W53: y | AB53: 127.524 | AF53: 127.524 | AH53: 143360
B54: DF-012411 | C54: NP016 | D54: Drainage Financial (FSWPITS) | E54: Anna St | F54: Beaudesert | I54: Junction Pit | K54: 0 | L54: 1618 | N54: 1 | O54: 1618 | R54: =IF(P54="",'Unit Rates-Land'!landcst,IF($D$8="Landuse",VLOOKUP(P54,LAndcost3,2,FALSE),IF($D$8="Location",VLOOKUP(P54,Landcost2,2,FALSE),"Error"))) -> 0 | S54: 0 | T54: 2014 | U54: =IFERROR((GeneralInput!$G$39/(VLOOKUP(T54,GeneralInput!$E$39:$G$45,3,FALSE))),1) -> 1 | V54: 1618 | W54: y | AB54: 127.524 | AF54: 127.524 | AH54: 1618
B55: DF-012412 | C55: NP017 | D55: Drainage Financial (FSWPITS) | E55: Anna St | F55: Beaudesert | I55: Junction Pit | K55: 0 | L55: 1618 | N55: 1 | O55: 1618 | R55: =IF(P55="",'Unit Rates-Land'!landcst,IF($D$8="Landuse",VLOOKUP(P55,LAndcost3,2,FALSE),IF($D$8="Location",VLOOKUP(P55,Landcost2,2,FALSE),"Error"))) -> 0 | S55: 0 | T55: 2014 | U55: =IFERROR((GeneralInput!$G$39/(VLOOKUP(T55,GeneralInput!$E$39:$G$45,3,FALSE))),1) -> 1 | V55: 1618 | W55: y | AB55: 127.524 | AF55: 127.524 | AH55: 1618
B56: DF-012413 | C56: NP018 | D56: Drainage Financial (FSWPITS) | E56: Anna St | F56: Beaudesert | I56: Junction Pit | K56: 0 | L56: 841 | N56: 1 | O56: 841 | R56: =IF(P56="",'Unit Rates-Land'!landcst,IF($D$8="Landuse",VLOOKUP(P56,LAndcost3,2,FALSE),IF($D$8="Location",VLOOKUP(P56,Landcost2,2,FALSE),"Error"))) -> 0 | S56: 0 | T56: 2014 | U56: =IFERROR((GeneralInput!$G$39/(VLOOKUP(T56,GeneralInput!$E$39:$G$45,3,FALSE))),1) -> 1 | V56: 841 | W56: y | AB56: 127.524 | AF56: 127.524 | AH56: 841
B57: DF-011556 | C57: PIT00204 | D57: Drainage Financial (FSWPITS) | E57: Anna St | F57: Beaudesert | I57: Grated Pit | K57: 0 | L57: 1188 | N57: 1 | O57: 1188 | R57: =IF(P57="",'Unit Rates-Land'!landcst,IF($D$8="Landuse",VLOOKUP(P57,LAndcost3,2,FALSE),IF($D$8="Location",VLOOKUP(P57,Landcost2,2,FALSE),"Error"))) -> 0 | S57: 0 | T57: 2014 | U57: =IFERROR((GeneralInput!$G$39/(VLOOKUP(T57,GeneralInput!$E$39:$G$45,3,FALSE))),1) -> 1 | V57: 1188 | W57: y | AB57: 127.524 | AF57: 127.524 | AH57: 1188
B58: DF-011559 | C58: PIT00207 | D58: Drainage Financial (FSWPITS) | E58: Anna St | F58: Beaudesert | I58: Junction Pit | K58: 0 | L58: 998 | N58: 1 | O58: 998 | R58: =IF(P58="",'Unit Rates-Land'!landcst,IF($D$8="Landuse",VLOOKUP(P58,LAndcost3,2,FALSE),IF($D$8="Location",VLOOKUP(P58,Landcost2,2,FALSE),"Error"))) -> 0 | S58: 0 | T58: 2014 | U58: =IFERROR((GeneralInput!$G$39/(VLOOKUP(T58,GeneralInput!$E$39:$G$45,3,FALSE))),1) -> 1 | V58: 998 | W58: y | AB58: 127.524 | AF58: 127.524 | AH58: 998
B59: DF-011560 | C59: PIT00208 | D59: Drainage Financial (FSWPITS) | E59: Anna St | F59: Beaudesert | I59: Junction Pit | K59: 0 | L59: 841 | N59: 1 | O59: 841 | R59: =IF(P59="",'Unit Rates-Land'!landcst,IF($D$8="Landuse",VLOOKUP(P59,LAndcost3,2,FALSE),IF($D$8="Location",VLOOKUP(P59,Landcost2,2,FALSE),"Error"))) -> 0 | S59: 0 | T59: 2014 | U59: =IFERROR((GeneralInput!$G$39/(VLOOKUP(T59,GeneralInput!$E$39:$G$45,3,FALSE))),1) -> 1 | V59: 841 | W59: y | AB59: 127.524 | AF59: 127.524 | AH59: 841
B60: DF-011596 | C60: PIT00250 | D60: Drainage Financial (FSWPITS) | E60: Anna St | F60: Beaudesert | I60: Junction Pit | K60: 0 | L60: 841 | N60: 1 | O60: 841 | R60: =IF(P60="",'Unit Rates-Land'!landcst,IF($D$8="Landuse",VLOOKUP(P60,LAndcost3,2,FALSE),IF($D$8="Location",VLOOKUP(P60,Landcost2,2,FALSE),"Error"))) -> 0 | S60: 0 | T60: 2014 | U60: =IFERROR((GeneralInput!$G$39/(VLOOKUP(T60,GeneralInput!$E$39:$G$45,3,FALSE))),1) -> 1 | V60: 841 | W60: y | AB60: 127.524 | AF60: 127.524 | AH60: 841
B61: DF-011640 | C61: PIT00294 | D61: Drainage Financial (FSWPITS) | E61: Anna St | F61: Beaudesert | I61: Grated Pit | K61: 0 | L61: 1188 | N61: 1 | O61: 1188 | R61: =IF(P61="",'Unit Rates-Land'!landcst,IF($D$8="Landuse",VLOOKUP(P61,LAndcost3,2,FALSE),IF($D$8="Location",VLOOKUP(P61,Landcost2,2,FALSE),"Error"))) -> 0 | S61: 0 | T61: 2014 | U61: =IFERROR((GeneralInput!$G$39/(VLOOKUP(T61,GeneralInput!$E$39:$G$45,3,FALSE))),1) -> 1 | V61: 1188 | W61: y | AB61: 127.524 | AF61: 127.524 | AH61: 1188
B62: DF-011641 | C62: PIT00295 | D62: Drainage Financial (FSWPITS) | E62: Anna St | F62: Beaudesert | I62: Grated Pit | K62: 0 | L62: 1629 | N62: 1 | O62: 1629 | R62: =IF(P62="",'Unit Rates-Land'!landcst,IF($D$8="Landuse",VLOOKUP(P62,LAndcost3,2,FALSE),IF($D$8="Location",VLOOKUP(P62,Landcost2,2,FALSE),"Error"))) -> 0 | S62: 0 | T62: 2014 | U62: =IFERROR((GeneralInput!$G$39/(VLOOKUP(T62,GeneralInput!$E$39:$G$45,3,FALSE))),1) -> 1 | V62: 1629 | W62: y | AB62: 127.524 | AF62: 127.524 | AH62: 1629
B63: DF-011642 | C63: PIT00296 | D63: Drainage Financial (FSWPITS) | E63: Anna St | F63: Beaudesert | I63: Grated Pit | K63: 0 | L63: 1629 | N63: 1 | O63: 1629 | R63: =IF(P63="",'Unit Rates-Land'!landcst,IF($D$8="Landuse",VLOOKUP(P63,LAndcost3,2,FALSE),IF($D$8="Location",VLOOKUP(P63,Landcost2,2,FALSE),"Error"))) -> 0 | S63: 0 | T63: 2014 | U63: =IFERROR((GeneralInput!$G$39/(VLOOKUP(T63,GeneralInput!$E$39:$G$45,3,FALSE))),1) -> 1 | V63: 1629 | W63: y | AB63: 127.524 | AF63: 127.524 | AH63: 1629
B64: DF-011645 | C64: PIT00299 | D64: Drainage Financial (FSWPITS) | E64: Anna St | F64: Beaudesert | I64: Junction Pit | K64: 0 | L64: 2204 | N64: 1 | O64: 2204 | R64: =IF(P64="",'Unit Rates-Land'!landcst,IF($D$8="Landuse",VLOOKUP(P64,LAndcost3,2,FALSE),IF($D$8="Location",VLOOKUP(P64,Landcost2,2,FALSE),"Error"))) -> 0 | S64: 0 | T64: 2014 | U64: =IFERROR((GeneralInput!$G$39/(VLOOKUP(T64,GeneralInput!$E$39:$G$45,3,FALSE))),1) -> 1 | V64: 2204 | W64: y | AB64: 127.524 | AF64: 127.524 | AH64: 2204
B65: DF-011646 | C65: PIT00300 | D65: Drainage Financial (FSWPITS) | E65: Anna St | F65: Beaudesert | I65: Grated Pit | K65: 0 | L65: 1390 | N65: 1 | O65: 1390 | R65: =IF(P65="",'Unit Rates-Land'!landcst,IF($D$8="Landuse",VLOOKUP(P65,LAndcost3,2,FALSE),IF($D$8="Location",VLOOKUP(P65,Landcost2,2,FALSE),"Error"))) -> 0 | S65: 0 | T65: 2014 | U65: =IFERROR((GeneralInput!$G$39/(VLOOKUP(T65,GeneralInput!$E$39:$G$45,3,FALSE))),1) -> 1 | V65: 1390 | W65: y | AB65: 127.524 | AF65: 127.524 | AH65: 1390
B66: DF-012261 | C66: PIT00917 | D66: Drainage Financial (FSWPITS) | E66: Anna St | F66: Beaudesert | I66: Side Entry Pit | K66: 0 | L66: 1426 | N66: 1 | O66: 1426 | R66: =IF(P66="",'Unit Rates-Land'!landcst,IF($D$8="Landuse",VLOOKUP(P66,LAndcost3,2,FALSE),IF($D$8="Location",VLOOKUP(P66,Landcost2,2,FALSE),"Error"))) -> 0 | S66: 0 | T66: 2014 | U66: =IFERROR((GeneralInput!$G$39/(VLOOKUP(T66,GeneralInput!$E$39:$G$45,3,FALSE))),1) -> 1 | V66: 1426 | W66: y | AB66: 127.524 | AF66: 127.524 | AH66: 1426
B67: DF-012262 | C67: PIT00918 | D67: Drainage Financial (FSWPITS) | E67: Anna St | F67: Beaudesert | I67: Grated Pit | K67: 0 | L67: 2806 | N67: 1 | O67: 2806 | R67: =IF(P67="",'Unit Rates-Land'!landcst,IF($D$8="Landuse",VLOOKUP(P67,LAndcost3,2,FALSE),IF($D$8="Location",VLOOKUP(P67,Landcost2,2,FALSE),"Error"))) -> 0 | S67: 0 | T67: 2014 | U67: =IFERROR((GeneralInput!$G$39/(VLOOKUP(T67,GeneralInput!$E$39:$G$45,3,FALSE))),1) -> 1 | V67: 2806 | W67: y | AB67: 127.524 | AF67: 127.524 | AH67: 2806
B68: DF-012263 | C68: PIT00919 | D68: Drainage Financial (FSWPITS) | E68: Anna St | F68: Beaudesert | I68: Grated Pit | K68: 0 | L68: 1188 | N68: 1 | O68: 1188 | R68: =IF(P68="",'Unit Rates-Land'!landcst,IF($D$8="Landuse",VLOOKUP(P68,LAndcost3,2,FALSE),IF($D$8="Location",VLOOKUP(P68,Landcost2,2,FALSE),"Error"))) -> 0 | S68: 0 | T68: 2014 | U68: =IFERROR((GeneralInput!$G$39/(VLOOKUP(T68,GeneralInput!$E$39:$G$45,3,FALSE))),1) -> 1 | V68: 1188 | W68: y | AB68: 127.524 | AF68: 127.524 | AH68: 1188
B69: DF-012264 | C69: PIT00920 | D69: Drainage Financial (FSWPITS) | E69: Anna St | F69: Beaudesert | I69: Grated Pit | K69: 0 | L69: 2203 | N69: 1 | O69: 2203 | R69: =IF(P69="",'Unit Rates-Land'!landcst,IF($D$8="Landuse",VLOOKUP(P69,LAndcost3,2,FALSE),IF($D$8="Location",VLOOKUP(P69,Landcost2,2,FALSE),"Error"))) -> 0 | S69: 0 | T69: 2014 | U69: =IFERROR((GeneralInput!$G$39/(VLOOKUP(T69,GeneralInput!$E$39:$G$45,3,FALSE))),1) -> 1 | V69: 2203 | W69: y | AB69: 127.524 | AF69: 127.524 | AH69: 2203
B70: DF-012265 | C70: PIT00921 | D70: Drainage Financial (FSWPITS) | E70: Anna St | F70: Beaudesert | I70: Grated Pit | K70: 0 | L70: 1188 | N70: 1 | O70: 1188 | R70: =IF(P70="",'Unit Rates-Land'!landcst,IF($D$8="Landuse",VLOOKUP(P70,LAndcost3,2,FALSE),IF($D$8="Location",VLOOKUP(P70,Landcost2,2,FALSE),"Error"))) -> 0 | S70: 0 | T70: 2014 | U70: =IFERROR((GeneralInput!$G$39/(VLOOKUP(T70,GeneralInput!$E$39:$G$45,3,FALSE))),1) -> 1 | V70: 1188 | W70: y | AB70: 127.524 | AF70: 127.524 | AH70: 1188
B71: DF-012266 | C71: PIT00922 | D71: Drainage Financial (FSWPITS) | E71: Anna St | F71: Beaudesert | I71: Bro-Pit | K71: 0 | L71: 2579 | N71: 1 | O71: 2579 | R71: =IF(P71="",'Unit Rates-Land'!landcst,IF($D$8="Landuse",VLOOKUP(P71,LAndcost3,2,FALSE),IF($D$8="Location",VLOOKUP(P71,Landcost2,2,FALSE),"Error"))) -> 0 | S71: 0 | T71: 2014 | U71: =IFERROR((GeneralInput!$G$39/(VLOOKUP(T71,GeneralInput!$E$39:$G$45,3,FALSE))),1) -> 1 | V71: 2579 | W71: y | AB71: 127.524 | AF71: 127.524 | AH71: 2579
B72: DF-012278 | C72: PIT00934 | D72: Drainage Financial (FSWPITS) | E72: Anna St | F72: Beaudesert | I72: Grated Pit | K72: 0 | L72: 1188 | N72: 1 | O72: 1188 | R72: =IF(P72="",'Unit Rates-Land'!landcst,IF($D$8="Landuse",VLOOKUP(P72,LAndcost3,2,FALSE),IF($D$8="Location",VLOOKUP(P72,Landcost2,2,FALSE),"Error"))) -> 0 | S72: 0 | T72: 2014 | U72: =IFERROR((GeneralInput!$G$39/(VLOOKUP(T72,GeneralInput!$E$39:$G$45,3,FALSE))),1) -> 1 | V72: 1188 | W72: y | AB72: 127.524 | AF72: 127.524 | AH72: 1188
B73: DF-012279 | C73: PIT00935 | D73: Drainage Financial (FSWPITS) | E73: Anna St | F73: Beaudesert | I73: Junction Pit | K73: 0 | L73: 1618 | N73: 1 | O73: 1618 | R73: =IF(P73="",'Unit Rates-Land'!landcst,IF($D$8="Landuse",VLOOKUP(P73,LAndcost3,2,FALSE),IF($D$8="Location",VLOOKUP(P73,Landcost2,2,FALSE),"Error"))) -> 0 | S73: 0 | T73: 2014 | U73: =IFERROR((GeneralInput!$G$39/(VLOOKUP(T73,GeneralInput!$E$39:$G$45,3,FALSE))),1) -> 1 | V73: 1618 | W73: y | AB73: 127.524 | AF73: 127.524 | AH73: 1618
B74: DF-012292 | C74: PIT00948 | D74: Drainage Financial (FSWPITS) | E74: Anna St | F74: Beaudesert | I74: Bro-Pit | K74: 0 | L74: 2860 | N74: 1 | O74: 2860 | R74: =IF(P74="",'Unit Rates-Land'!landcst,IF($D$8="Landuse",VLOOKUP(P74,LAndcost3,2,FALSE),IF($D$8="Location",VLOOKUP(P74,Landcost2,2,FALSE),"Error"))) -> 0 | S74: 0 | T74: 2014 | U74: =IFERROR((GeneralInput!$G$39/(VLOOKUP(T74,GeneralInput!$E$39:$G$45,3,FALSE))),1) -> 1 | V74: 2860 | W74: y | AB74: 127.524 | AF74: 127.524 | AH74: 2860
B75: DF-011595 | C75: PIT00249 | D75: Drainage Financial (FSWPITS) | E75: Anna St & Carpark | F75: Beaudesert | I75: Grated Pit | K75: 0 | L75: 1188 | N75: 1 | O75: 1188 | R75: =IF(P75="",'Unit Rates-Land'!landcst,IF($D$8="Landuse",VLOOKUP(P75,LAndcost3,2,FALSE),IF($D$8="Location",VLOOKUP(P75,Landcost2,2,FALSE),"Error"))) -> 0 | S75: 0 | T75: 2014 | U75: =IFERROR((GeneralInput!$G$39/(VLOOKUP(T75,GeneralInput!$E$39:$G$45,3,FALSE))),1) -> 1 | V75: 1188 | W75: y | AB75: 127.524 | AF75: 127.524 | AH75: 1188
B76: DF-011588 | C76: PIT00242 | D76: Drainage Financial (FSWPITS) | E76: Anna St Carpark | F76: Beaudesert | I76: Junction Pit | K76: 0 | L76: 7498 | N76: 1 | O76: 7498 | R76: =IF(P76="",'Unit Rates-Land'!landcst,IF($D$8="Landuse",VLOOKUP(P76,LAndcost3,2,FALSE),IF($D$8="Location",VLOOKUP(P76,Landcost2,2,FALSE),"Error"))) -> 0 | S76: 0 | T76: 2014 | U76: =IFERROR((GeneralInput!$G$39/(VLOOKUP(T76,GeneralInput!$E$39:$G$45,3,FALSE))),1) -> 1 | V76: 7498 | W76: y | AB76: 127.524 | AF76: 127.524 | AH76: 7498
B77: DF-011589 | C77: PIT00243 | D77: Drainage Financial (FSWPITS) | E77: Anna St Carpark | F77: Beaudesert | I77: Junction Pit | K77: 0 | L77: 4252 | N77: 1 | O77: 4252 | R77: =IF(P77="",'Unit Rates-Land'!landcst,IF($D$8="Landuse",VLOOKUP(P77,LAndcost3,2,FALSE),IF($D$8="Location",VLOOKUP(P77,Landcost2,2,FALSE),"Error"))) -> 0 | S77: 0 | T77: 2014 | U77: =IFERROR((GeneralInput!$G$39/(VLOOKUP(T77,GeneralInput!$E$39:$G$45,3,FALSE))),1) -> 1 | V77: 4252 | W77: y | AB77: 127.524 | AF77: 127.524 | AH77: 4252
B78: DF-011590 | C78: PIT00244 | D78: Drainage Financial (FSWPITS) | E78: Anna St Carpark | F78: Beaudesert | I78: Junction Pit | K78: 0 | L78: 1890 | N78: 1 | O78: 1890 | R78: =IF(P78="",'Unit Rates-Land'!landcst,IF($D$8="Landuse",VLOOKUP(P78,LAndcost3,2,FALSE),IF($D$8="Location",VLOOKUP(P78,Landcost2,2,FALSE),"Error"))) -> 0 | S78: 0 | T78: 2014 | U78: =IFERROR((GeneralInput!$G$39/(VLOOKUP(T78,GeneralInput!$E$39:$G$45,3,FALSE))),1) -> 1 | V78: 1890 | W78: y | AB78: 127.524 | AF78: 127.524 | AH78: 1890
B79: DF-011591 | C79: PIT00245 | D79: Drainage Financial (FSWPITS) | E79: Anna St Carpark | F79: Beaudesert | I79: Inlet | K79: =IF(G79=SWTYPE1,VLOOKUP(J79,SWUnitrates1,2,FALSE),IF(G79=SWTYPE2,VLOOKUP(J79,SWUnitrates2,2,FALSE),0)) -> 0 | L79: 396 | N79: =IF(M79="",1,VLOOKUP(M79,SWsitecond,2,FALSE)) -> 1 | O79: 396 | R79: =IF(P79="",'Unit Rates-Land'!landcst,IF($D$8="Landuse",VLOOKUP(P79,LAndcost3,2,FALSE),IF($D$8="Location",VLOOKUP(P79,Landcost2,2,FALSE),"Error"))) -> 0 | S79: 0 | T79: 2014 | U79: =IFERROR((GeneralInput!$G$39/(VLOOKUP(T79,GeneralInput!$E$39:$G$45,3,FALSE))),1) -> 1 | V79: 396 | W79: y | AB79: =IF(W79="y",AB$14,IF(AND(W79>0,W79<=1),W79*AB$14,"")) -> 127.524 | AC79: =IF(X79="y",AC$14,IF(AND(X79>0,X79<=1),X79*AC$14,"")) ->  | AD79: =IF(Y79="y",AD$14,IF(AND(Y79>0,Y79<=1),Y79*AD$14,"")) ->  | AE79: =IF(Z79="y",AE$14,IF(AND(Z79>0,Z79<=1),Z79*AE$14,"")) ->  | AF79: =SUM(AB79:AE79) -> 127.524 | AH79: =IF(AB79="","",(AB79/$AF79)*$V79) -> 396 | AI79: =IF(AC79="","",(AC79/$AF79)*$V79) ->  | AJ79: =IF(AD79="","",(AD79/$AF79)*$V79) ->  | AK79: =IF(AE79="","",(AE79/$AF79)*$V79) ->  | AL79: =IF(SUM(AH79:AK79)=V79,"","ERROR") -> 
B80: DF-011592 | C80: PIT00246 | D80: Drainage Financial (FSWPITS) | E80: Anna St Carpark | F80: Beaudesert | I80: Grated Pit | K80: 0 | L80: 1390 | N80: 1 | O80: =IF(L80="","",L80*N80) -> 1390 | R80: =IF(P80="",'Unit Rates-Land'!landcst,IF($D$8="Landuse",VLOOKUP(P80,LAndcost3,2,FALSE),IF($D$8="Location",VLOOKUP(P80,Landcost2,2,FALSE),"Error"))) -> 0 | S80: 0 | T80: 2014 | U80: =IFERROR((GeneralInput!$G$39/(VLOOKUP(T80,GeneralInput!$E$39:$G$45,3,FALSE))),1) -> 1 | V80: =IFERROR(U80*(S80+O80),0) -> 1390 | W80: y | AB80: 127.524 | AF80: 127.524 | AH80: 1390
B81: DF-011593 | C81: PIT00247 | D81: Drainage Financial (FSWPITS) | E81: Anna St Carpark | F81: Beaudesert | I81: Junction Pit | K81: 0 | L81: 4252 | N81: 1 | O81: 4252 | R81: =IF(P81="",'Unit Rates-Land'!landcst,IF($D$8="Landuse",VLOOKUP(P81,LAndcost3,2,FALSE),IF($D$8="Location",VLOOKUP(P81,Landcost2,2,FALSE),"Error"))) -> 0 | S81: =IF(R81="",0,R81*10000*Q81) -> 0 | T81: 2014 | U81: =IFERROR((GeneralInput!$G$39/(VLOOKUP(T81,GeneralInput!$E$39:$G$45,3,FALSE))),1) -> 1 | V81: 4252 | W81: y | AB81: 127.524 | AF81: 127.524 | AH81: 4252
B82: DF-011594 | C82: PIT00248 | D82: Drainage Financial (FSWPITS) | E82: Anna St Carpark | F82: Beaudesert | I82: Junction Pit | K82: 0 | L82: 507 | N82: 1 | O82: 507 | R82: =IF(P82="",'Unit Rates-Land'!landcst,IF($D$8="Landuse",VLOOKUP(P82,LAndcost3,2,FALSE),IF($D$8="Location",VLOOKUP(P82,Landcost2,2,FALSE),"Error"))) -> 0 | S82: 0 | T82: 2014 | U82: =IFERROR((GeneralInput!$G$39/(VLOOKUP(T82,GeneralInput!$E$39:$G$45,3,FALSE))),1) -> 1 | V82: 507 | W82: y | AB82: 127.524 | AF82: 127.524 | AH82: 507
B83: DF-012267 | C83: PIT00923 | D83: Drainage Financial (FSWPITS) | E83: Anna St Carpark | F83: Beaudesert | I83: Grated Pit | K83: 0 | L83: 2203 | N83: 1 | O83: 2203 | R83: =IF(P83="",'Unit Rates-Land'!landcst,IF($D$8="Landuse",VLOOKUP(P83,LAndcost3,2,FALSE),IF($D$8="Location",VLOOKUP(P83,Landcost2,2,FALSE),"Error"))) -> 0 | S83: 0 | T83: 2014 | U83: =IFERROR((GeneralInput!$G$39/(VLOOKUP(T83,GeneralInput!$E$39:$G$45,3,FALSE))),1) -> 1 | V83: 2203 | W83: y | AB83: 127.524 | AF83: 127.524 | AH83: 2203
B84: DF-012268 | C84: PIT00924 | D84: Drainage Financial (FSWPITS) | E84: Anna St Carpark | F84: Beaudesert | I84: Grated Pit | K84: 0 | L84: 1922 | N84: 1 | O84: 1922 | R84: =IF(P84="",'Unit Rates-Land'!landcst,IF($D$8="Landuse",VLOOKUP(P84,LAndcost3,2,FALSE),IF($D$8="Location",VLOOKUP(P84,Landcost2,2,FALSE),"Error"))) -> 0 | S84: 0 | T84: 2014 | U84: =IFERROR((GeneralInput!$G$39/(VLOOKUP(T84,GeneralInput!$E$39:$G$45,3,FALSE))),1) -> 1 | V84: 1922 | W84: y | AB84: 127.524 | AF84: 127.524 | AH84: 1922
B85: DF-012269 | C85: PIT00925 | D85: Drainage Financial (FSWPITS) | E85: Anna St Carpark | F85: Beaudesert | I85: Grated Pit | K85: 0 | L85: 2997 | N85: 1 | O85: 2997 | R85: =IF(P85="",'Unit Rates-Land'!landcst,IF($D$8="Landuse",VLOOKUP(P85,LAndcost3,2,FALSE),IF($D$8="Location",VLOOKUP(P85,Landcost2,2,FALSE),"Error"))) -> 0 | S85: 0 | T85: 2014 | U85: =IFERROR((GeneralInput!$G$39/(VLOOKUP(T85,GeneralInput!$E$39:$G$45,3,FALSE))),1) -> 1 | V85: 2997 | W85: y | AB85: 127.524 | AF85: 127.524 | AH85: 2997
B86: DF-012270 | C86: PIT00926 | D86: Drainage Financial (FSWPITS) | E86: Anna St Carpark | F86: Beaudesert | I86: Junction Pit | K86: 0 | L86: 4252 | N86: 1 | O86: 4252 | R86: =IF(P86="",'Unit Rates-Land'!landcst,IF($D$8="Landuse",VLOOKUP(P86,LAndcost3,2,FALSE),IF($D$8="Location",VLOOKUP(P86,Landcost2,2,FALSE),"Error"))) -> 0 | S86: 0 | T86: 2014 | U86: =IFERROR((GeneralInput!$G$39/(VLOOKUP(T86,GeneralInput!$E$39:$G$45,3,FALSE))),1) -> 1 | V86: 4252 | W86: y | AB86: 127.524 | AF86: 127.524 | AH86: 4252
B87: DF-012271 | C87: PIT00927 | D87: Drainage Financial (FSWPITS) | E87: Anna St Carpark | F87: Beaudesert | I87: Junction Pit | K87: 0 | L87: 7498 | N87: 1 | O87: 7498 | R87: =IF(P87="",'Unit Rates-Land'!landcst,IF($D$8="Landuse",VLOOKUP(P87,LAndcost3,2,FALSE),IF($D$8="Location",VLOOKUP(P87,Landcost2,2,FALSE),"Error"))) -> 0 | S87: 0 | T87: 2014 | U87: =IFERROR((GeneralInput!$G$39/(VLOOKUP(T87,GeneralInput!$E$39:$G$45,3,FALSE))),1) -> 1 | V87: 7498 | W87: y | AB87: 127.524 | AF87: 127.524 | AH87: 7498
B88: DF-012272 | C88: PIT00928 | D88: Drainage Financial (FSWPITS) | E88: Anna St Carpark | F88: Beaudesert | I88: Junction Pit | K88: 0 | L88: 7498 | N88: 1 | O88: 7498 | R88: =IF(P88="",'Unit Rates-Land'!landcst,IF($D$8="Landuse",VLOOKUP(P88,LAndcost3,2,FALSE),IF($D$8="Location",VLOOKUP(P88,Landcost2,2,FALSE),"Error"))) -> 0 | S88: 0 | T88: 2014 | U88: =IFERROR((GeneralInput!$G$39/(VLOOKUP(T88,GeneralInput!$E$39:$G$45,3,FALSE))),1) -> 1 | V88: 7498 | W88: y | AB88: 127.524 | AF88: 127.524 | AH88: 7498
B89: DF-012273 | C89: PIT00929 | D89: Drainage Financial (FSWPITS) | E89: Anna St Carpark | F89: Beaudesert | I89: Bro-Pit | K89: 0 | L89: 3654 | N89: 1 | O89: 3654 | R89: =IF(P89="",'Unit Rates-Land'!landcst,IF($D$8="Landuse",VLOOKUP(P89,LAndcost3,2,FALSE),IF($D$8="Location",VLOOKUP(P89,Landcost2,2,FALSE),"Error"))) -> 0 | S89: 0 | T89: 2014 | U89: =IFERROR((GeneralInput!$G$39/(VLOOKUP(T89,GeneralInput!$E$39:$G$45,3,FALSE))),1) -> 1 | V89: 3654 | W89: y | AB89: 127.524 | AF89: 127.524 | AH89: 3654
B90: DF-012274 | C90: PIT00930 | D90: Drainage Financial (FSWPITS) | E90: Anna St Carpark | F90: Beaudesert | I90: Grated Pit | K90: 0 | L90: 2997 | N90: 1 | O90: 2997 | R90: =IF(P90="",'Unit Rates-Land'!landcst,IF($D$8="Landuse",VLOOKUP(P90,LAndcost3,2,FALSE),IF($D$8="Location",VLOOKUP(P90,Landcost2,2,FALSE),"Error"))) -> 0 | S90: 0 | T90: 2014 | U90: =IFERROR((GeneralInput!$G$39/(VLOOKUP(T90,GeneralInput!$E$39:$G$45,3,FALSE))),1) -> 1 | V90: 2997 | W90: y | AB90: 127.524 | AF90: 127.524 | AH90: 2997
B91: DF-012275 | C91: PIT00931 | D91: Drainage Financial (FSWPITS) | E91: Anna St Carpark | F91: Beaudesert | I91: Bro-Pit | K91: 0 | L91: 4442 | N91: 1 | O91: 4442 | R91: =IF(P91="",'Unit Rates-Land'!landcst,IF($D$8="Landuse",VLOOKUP(P91,LAndcost3,2,FALSE),IF($D$8="Location",VLOOKUP(P91,Landcost2,2,FALSE),"Error"))) -> 0 | S91: 0 | T91: 2014 | U91: =IFERROR((GeneralInput!$G$39/(VLOOKUP(T91,GeneralInput!$E$39:$G$45,3,FALSE))),1) -> 1 | V91: 4442 | W91: y | AB91: 127.524 | AF91: 127.524 | AH91: 4442
B92: DF-012276 | C92: PIT00932 | D92: Drainage Financial (FSWPITS) | E92: Anna St Carpark | F92: Beaudesert | I92: Bro-Pit | K92: 0 | L92: 4442 | N92: 1 | O92: 4442 | R92: =IF(P92="",'Unit Rates-Land'!landcst,IF($D$8="Landuse",VLOOKUP(P92,LAndcost3,2,FALSE),IF($D$8="Location",VLOOKUP(P92,Landcost2,2,FALSE),"Error"))) -> 0 | S92: 0 | T92: 2014 | U92: =IFERROR((GeneralInput!$G$39/(VLOOKUP(T92,GeneralInput!$E$39:$G$45,3,FALSE))),1) -> 1 | V92: 4442 | W92: y | AB92: 127.524 | AF92: 127.524 | AH92: 4442
B93: DF-012277 | C93: PIT00933 | D93: Drainage Financial (FSWPITS) | E93: Anna St Carpark | F93: Beaudesert | I93: Unknown | K93: 0 | L93: 1486 | N93: 1 | O93: 1486 | R93: =IF(P93="",'Unit Rates-Land'!landcst,IF($D$8="Landuse",VLOOKUP(P93,LAndcost3,2,FALSE),IF($D$8="Location",VLOOKUP(P93,Landcost2,2,FALSE),"Error"))) -> 0 | S93: 0 | T93: 2014 | U93: =IFERROR((GeneralInput!$G$39/(VLOOKUP(T93,GeneralInput!$E$39:$G$45,3,FALSE))),1) -> 1 | V93: 1486 | W93: y | AB93: 127.524 | AF93: 127.524 | AH93: 1486
B94: DF-012285 | C94: PIT00941 | D94: Drainage Financial (FSWPITS) | E94: Anna St Carpark | F94: Beaudesert | I94: Grated Pit | K94: 0 | L94: 2237 | N94: 1 | O94: 2237 | R94: =IF(P94="",'Unit Rates-Land'!landcst,IF($D$8="Landuse",VLOOKUP(P94,LAndcost3,2,FALSE),IF($D$8="Location",VLOOKUP(P94,Landcost2,2,FALSE),"Error"))) -> 0 | S94: 0 | T94: 2014 | U94: =IFERROR((GeneralInput!$G$39/(VLOOKUP(T94,GeneralInput!$E$39:$G$45,3,FALSE))),1) -> 1 | V94: 2237 | W94: y | AB94: 127.524 | AF94: 127.524 | AH94: 2237
B95: DF-012286 | C95: PIT00942 | D95: Drainage Financial (FSWPITS) | E95: Anna St Carpark | F95: Beaudesert | I95: Junction Pit | K95: =IF(G95=SWTYPE1,VLOOKUP(J95,SWUnitrates1,2,FALSE),IF(G95=SWTYPE2,VLOOKUP(J95,SWUnitrates2,2,FALSE),0)) -> 0 | L95: 1251 | N95: =IF(M95="",1,VLOOKUP(M95,SWsitecond,2,FALSE)) -> 1 | O95: =IF(L95="","",L95*N95) -> 1251 | R95: =IF(P95="",'Unit Rates-Land'!landcst,IF($D$8="Landuse",VLOOKUP(P95,LAndcost3,2,FALSE),IF($D$8="Location",VLOOKUP(P95,Landcost2,2,FALSE),"Error"))) -> 0 | S95: =IF(R95="",0,R95*10000*Q95) -> 0 | T95: 2014 | U95: =IFERROR((GeneralInput!$G$39/(VLOOKUP(T95,GeneralInput!$E$39:$G$45,3,FALSE))),1) -> 1 | V95: =IFERROR(U95*(S95+O95),0) -> 1251 | W95: y | AB95: 127.524 | AF95: 127.524 | AH95: 1251
B96: DF-010893 | C96: PIPE00945 | D96: Drainage Financial (Pipes) | E96: Anna St, Coles | F96: Beaudesert | H96: 77.67 | I96: RCP Circular | J96: 1200 | K96: 0 | L96: 114251 | N96: 1 | O96: 114251 | R96: =IF(P96="",'Unit Rates-Land'!landcst,IF($D$8="Landuse",VLOOKUP(P96,LAndcost3,2,FALSE),IF($D$8="Location",VLOOKUP(P96,Landcost2,2,FALSE),"Error"))) -> 0 | S96: 0 | T96: 2014 | U96: =IFERROR((GeneralInput!$G$39/(VLOOKUP(T96,GeneralInput!$E$39:$G$45,3,FALSE))),1) -> 1 | V96: 114251 | W96: y | AB96: 127.524 | AF96: 127.524 | AH96: 114251
B97: DF-010896 | C97: PIPE00948 | D97: Drainage Financial (Pipes) | E97: Anna St, Coles | F97: Beaudesert | H97: 53.65 | I97: RCP Circular | J97: 1500 | K97: 0 | L97: 109063 | N97: 1 | O97: 109063 | R97: =IF(P97="",'Unit Rates-Land'!landcst,IF($D$8="Landuse",VLOOKUP(P97,LAndcost3,2,FALSE),IF($D$8="Location",VLOOKUP(P97,Landcost2,2,FALSE),"Error"))) -> 0 | S97: 0 | T97: 2014 | U97: =IFERROR((GeneralInput!$G$39/(VLOOKUP(T97,GeneralInput!$E$39:$G$45,3,FALSE))),1) -> 1 | V97: 109063 | W97: y | AB97: 127.524 | AF97: 127.524 | AH97: 109063
B98: DF-012284 | C98: PIT00940 | D98: Drainage Financial (FSWPITS) | E98: Anna/Eaglesfield Sts | F98: Beaudesert | I98: Bro-Pit | K98: 0 | L98: 5394 | N98: 1 | O98: 5394 | R98: =IF(P98="",'Unit Rates-Land'!landcst,IF($D$8="Landuse",VLOOKUP(P98,LAndcost3,2,FALSE),IF($D$8="Location",VLOOKUP(P98,Landcost2,2,FALSE),"Error"))) -> 0 | S98: 0 | T98: 2014 | U98: =IFERROR((GeneralInput!$G$39/(VLOOKUP(T98,GeneralInput!$E$39:$G$45,3,FALSE))),1) -> 1 | V98: 5394 | W98: y | AB98: 127.524 | AF98: 127.524 | AH98: 5394
B99: DF-006370 | D99: Drainage Financial (Pipes) | E99: antina Cct | F99: Beaudesert | H99: 75.57 | I99: RCP | J99: 675 | K99: 0 | L99: 15642 | N99: 1 | O99: 15642 | R99: =IF(P99="",'Unit Rates-Land'!landcst,IF($D$8="Landuse",VLOOKUP(P99,LAndcost3,2,FALSE),IF($D$8="Location",VLOOKUP(P99,Landcost2,2,FALSE),"Error"))) -> 0 | S99: 0 | T99: 2014 | U99: =IFERROR((GeneralInput!$G$39/(VLOOKUP(T99,GeneralInput!$E$39:$G$45,3,FALSE))),1) -> 1 | V99: 15642 | W99: y | AB99: 127.524 | AF99: 127.524 | AH99: 15642
B100: DF-006371 | D100: Drainage Financial (Pipes) | E100: antina Cct | F100: Beaudesert | H100: 18.17 | I100: RCP | J100: 750 | K100: 0 | L100: 4470 | N100: 1 | O100: 4470 | R100: =IF(P100="",'Unit Rates-Land'!landcst,IF($D$8="Landuse",VLOOKUP(P100,LAndcost3,2,FALSE),IF($D$8="Location",VLOOKUP(P100,Landcost2,2,FALSE),"Error"))) -> 0 | S100: 0 | T100: 2014 | U100: =IFERROR((GeneralInput!$G$39/(VLOOKUP(T100,GeneralInput!$E$39:$G$45,3,FALSE))),1) -> 1 | V100: 4470 | W100: y | AB100: 127.524 | AF100: 127.524 | AH100: 4470
B101: DF-006372 | D101: Drainage Financial (FSWPITS) | E101: antina Cct | F101: Beaudesert | I101: MH | J101: 1 X 1200 | K101: 0 | L101: 1690 | N101: 1 | O101: 1690 | R101: =IF(P101="",'Unit Rates-Land'!landcst,IF($D$8="Landuse",VLOOKUP(P101,LAndcost3,2,FALSE),IF($D$8="Location",VLOOKUP(P101,Landcost2,2,FALSE),"Error"))) -> 0 | S101: 0 | T101: 2014 | U101: =IFERROR((GeneralInput!$G$39/(VLOOKUP(T101,GeneralInput!$E$39:$G$45,3,FALSE))),1) -> 1 | V101: 1690 | W101: y | AB101: 127.524 | AF101: 127.524 | AH101: 1690
B102: DF-006373 | D102: Drainage Financial (FSWPITS) | E102: antina Cct | F102: Beaudesert | I102: SEP | J102: 7 X ENTRY PITS | K102: 0 | L102: 10150 | N102: 1 | O102: 10150 | R102: =IF(P102="",'Unit Rates-Land'!landcst,IF($D$8="Landuse",VLOOKUP(P102,LAndcost3,2,FALSE),IF($D$8="Location",VLOOKUP(P102,Landcost2,2,FALSE),"Error"))) -> 0 | S102: 0 | T102: 2014 | U102: =IFERROR((GeneralInput!$G$39/(VLOOKUP(T102,GeneralInput!$E$39:$G$45,3,FALSE))),1) -> 1 | V102: 10150 | W102: y | AB102: 127.524 | AF102: 127.524 | AH102: 10150
B103: DF-011458 | C103: PIT00068 | D103: Drainage Financial (FSWPITS) | E103: Arthur St | F103: Beaudesert | I103: Grated Pit | K103: 0 | L103: 1390 | N103: 1 | O103: 1390 | R103: =IF(P103="",'Unit Rates-Land'!landcst,IF($D$8="Landuse",VLOOKUP(P103,LAndcost3,2,FALSE),IF($D$8="Location",VLOOKUP(P103,Landcost2,2,FALSE),"Error"))) -> 0 | S103: 0 | T103: 2014 | U103: =IFERROR((GeneralInput!$G$39/(VLOOKUP(T103,GeneralInput!$E$39:$G$45,3,FALSE))),1) -> 1 | V103: 1390 | W103: y | AB103: 127.524 | AF103: 127.524 | AH103: 1390
B104: DF-011459 | C104: PIT00069 | D104: Drainage Financial (FSWPITS) | E104: Arthur St | F104: Beaudesert | I104: Grated Pit | K104: 0 | L104: 1188 | N104: 1 | O104: 1188 | R104: =IF(P104="",'Unit Rates-Land'!landcst,IF($D$8="Landuse",VLOOKUP(P104,LAndcost3,2,FALSE),IF($D$8="Location",VLOOKUP(P104,Landcost2,2,FALSE),"Error"))) -> 0 | S104: 0 | T104: 2014 | U104: =IFERROR((GeneralInput!$G$39/(VLOOKUP(T104,GeneralInput!$E$39:$G$45,3,FALSE))),1) -> 1 | V104: 1188 | W104: y | AB104: 127.524 | AF104: 127.524 | AH104: 1188
B105: DF-011460 | C105: PIT00070 | D105: Drainage Financial (FSWPITS) | E105: Arthur St | F105: Beaudesert | I105: Grated Pit | K105: 0 | L105: 2997 | N105: 1 | O105: 2997 | R105: =IF(P105="",'Unit Rates-Land'!landcst,IF($D$8="Landuse",VLOOKUP(P105,LAndcost3,2,FALSE),IF($D$8="Location",VLOOKUP(P105,Landcost2,2,FALSE),"Error"))) -> 0 | S105: 0 | T105: 2014 | U105: =IFERROR((GeneralInput!$G$39/(VLOOKUP(T105,GeneralInput!$E$39:$G$45,3,FALSE))),1) -> 1 | V105: 2997 | W105: y | AB105: 127.524 | AF105: 127.524 | AH105: 2997
B106: DF-011461 | C106: PIT00071 | D106: Drainage Financial (FSWPITS) | E106: Arthur St | F106: Beaudesert | I106: Grated Pit | K106: 0 | L106: 1390 | N106: 1 | O106: 1390 | R106: =IF(P106="",'Unit Rates-Land'!landcst,IF($D$8="Landuse",VLOOKUP(P106,LAndcost3,2,FALSE),IF($D$8="Location",VLOOKUP(P106,Landcost2,2,FALSE),"Error"))) -> 0 | S106: 0 | T106: 2014 | U106: =IFERROR((GeneralInput!$G$39/(VLOOKUP(T106,GeneralInput!$E$39:$G$45,3,FALSE))),1) -> 1 | V106: 1390 | W106: y | AB106: 127.524 | AF106: 127.524 | AH106: 1390
B107: DF-011462 | C107: PIT00072 | D107: Drainage Financial (FSWPITS) | E107: Arthur St | F107: Beaudesert | I107: Grated Pit | K107: =IF(G107=SWTYPE1,VLOOKUP(J107,SWUnitrates1,2,FALSE),IF(G107=SWTYPE2,VLOOKUP(J107,SWUnitrates2,2,FALSE),0)) -> 0 | L107: 1629 | N107: =IF(M107="",1,VLOOKUP(M107,SWsitecond,2,FALSE)) -> 1 | O107: =IF(L107="","",L107*N107) -> 1629 | R107: =IF(P107="",'Unit Rates-Land'!landcst,IF($D$8="Landuse",VLOOKUP(P107,LAndcost3,2,FALSE),IF($D$8="Location",VLOOKUP(P107,Landcost2,2,FALSE),"Error"))) -> 0 | S107: =IF(R107="",0,R107*10000*Q107) -> 0 | T107: 2014 | U107: =IFERROR((GeneralInput!$G$39/(VLOOKUP(T107,GeneralInput!$E$39:$G$45,3,FALSE))),1) -> 1 | V107: =IFERROR(U107*(S107+O107),0) -> 1629 | W107: y | AB107: 127.524 | AF107: 127.524 | AH107: 1629
B108: DF-011463 | C108: PIT00073 | D108: Drainage Financial (FSWPITS) | E108: Arthur St | F108: Beaudesert | I108: Grated Pit | K108: 0 | L108: 1629 | N108: 1 | O108: 1629 | R108: =IF(P108="",'Unit Rates-Land'!landcst,IF($D$8="Landuse",VLOOKUP(P108,LAndcost3,2,FALSE),IF($D$8="Location",VLOOKUP(P108,Landcost2,2,FALSE),"Error"))) -> 0 | S108: 0 | T108: 2014 | U108: =IFERROR((GeneralInput!$G$39/(VLOOKUP(T108,GeneralInput!$E$39:$G$45,3,FALSE))),1) -> 1 | V108: 1629 | W108: y | AB108: 127.524 | AF108: 127.524 | AH108: 1629
B109: DF-011464 | C109: PIT00074 | D109: Drainage Financial (FSWPITS) | E109: Arthur St | F109: Beaudesert | I109: Wing Wall | K109: 0 | L109: 1603 | N109: 1 | O109: 1603 | R109: =IF(P109="",'Unit Rates-Land'!landcst,IF($D$8="Landuse",VLOOKUP(P109,LAndcost3,2,FALSE),IF($D$8="Location",VLOOKUP(P109,Landcost2,2,FALSE),"Error"))) -> 0 | S109: 0 | T109: 2014 | U109: =IFERROR((GeneralInput!$G$39/(VLOOKUP(T109,GeneralInput!$E$39:$G$45,3,FALSE))),1) -> 1 | V109: 1603 | W109: y | AB109: 127.524 | AF109: 127.524 | AH109: 1603
B110: DF-011466 | C110: PIT00076 | D110: Drainage Financial (FSWPITS) | E110: Arthur St | F110: Beaudesert | I110: Grated Pit | K110: 0 | L110: 1188 | N110: 1 | O110: 1188 | R110: =IF(P110="",'Unit Rates-Land'!landcst,IF($D$8="Landuse",VLOOKUP(P110,LAndcost3,2,FALSE),IF($D$8="Location",VLOOKUP(P110,Landcost2,2,FALSE),"Error"))) -> 0 | S110: 0 | T110: 2014 | U110: =IFERROR((GeneralInput!$G$39/(VLOOKUP(T110,GeneralInput!$E$39:$G$45,3,FALSE))),1) -> 1 | V110: 1188 | W110: y | AB110: 127.524 | AF110: 127.524 | AH110: 1188
B111: DF-011491 | C111: PIT00101 | D111: Drainage Financial (FSWPITS) | E111: Arthur St | F111: Beaudesert | I111: Grated Pit | K111: 0 | L111: 1188 | N111: 1 | O111: 1188 | R111: =IF(P111="",'Unit Rates-Land'!landcst,IF($D$8="Landuse",VLOOKUP(P111,LAndcost3,2,FALSE),IF($D$8="Location",VLOOKUP(P111,Landcost2,2,FALSE),"Error"))) -> 0 | S111: 0 | T111: 2014 | U111: =IFERROR((GeneralInput!$G$39/(VLOOKUP(T111,GeneralInput!$E$39:$G$45,3,FALSE))),1) -> 1 | V111: 1188 | W111: y | AB111: 127.524 | AF111: 127.524 | AH111: 1188
B112: DF-011492 | C112: PIT00102 | D112: Drainage Financial (FSWPITS) | E112: Arthur St | F112: Beaudesert | I112: Junction Pit | K112: 0 | L112: 1618 | N112: 1 | O112: 1618 | R112: =IF(P112="",'Unit Rates-Land'!landcst,IF($D$8="Landuse",VLOOKUP(P112,LAndcost3,2,FALSE),IF($D$8="Location",VLOOKUP(P112,Landcost2,2,FALSE),"Error"))) -> 0 | S112: 0 | T112: 2014 | U112: =IFERROR((GeneralInput!$G$39/(VLOOKUP(T112,GeneralInput!$E$39:$G$45,3,FALSE))),1) -> 1 | V112: 1618 | W112: y | AB112: 127.524 | AF112: 127.524 | AH112: 1618
B113: DF-011493 | C113: PIT00103 | D113: Drainage Financial (FSWPITS) | E113: Arthur St | F113: Beaudesert | I113: Grated Pit | K113: 0 | L113: 1188 | N113: 1 | O113: 1188 | R113: =IF(P113="",'Unit Rates-Land'!landcst,IF($D$8="Landuse",VLOOKUP(P113,LAndcost3,2,FALSE),IF($D$8="Location",VLOOKUP(P113,Landcost2,2,FALSE),"Error"))) -> 0 | S113: 0 | T113: 2014 | U113: =IFERROR((GeneralInput!$G$39/(VLOOKUP(T113,GeneralInput!$E$39:$G$45,3,FALSE))),1) -> 1 | V113: 1188 | W113: y | AB113: 127.524 | AF113: 127.524 | AH113: 1188
B114: DF-011494 | C114: PIT00104 | D114: Drainage Financial (FSWPITS) | E114: Arthur St | F114: Beaudesert | I114: Grated Pit | K114: 0 | L114: 1188 | N114: 1 | O114: 1188 | R114: =IF(P114="",'Unit Rates-Land'!landcst,IF($D$8="Landuse",VLOOKUP(P114,LAndcost3,2,FALSE),IF($D$8="Location",VLOOKUP(P114,Landcost2,2,FALSE),"Error"))) -> 0 | S114: 0 | T114: 2014 | U114: =IFERROR((GeneralInput!$G$39/(VLOOKUP(T114,GeneralInput!$E$39:$G$45,3,FALSE))),1) -> 1 | V114: 1188 | W114: y | AB114: 127.524 | AF114: 127.524 | AH114: 1188
B115: DF-011495 | C115: PIT00105 | D115: Drainage Financial (FSWPITS) | E115: Arthur St | F115: Beaudesert | I115: Grated Pit | K115: 0 | L115: 1188 | N115: 1 | O115: 1188 | R115: =IF(P115="",'Unit Rates-Land'!landcst,IF($D$8="Landuse",VLOOKUP(P115,LAndcost3,2,FALSE),IF($D$8="Location",VLOOKUP(P115,Landcost2,2,FALSE),"Error"))) -> 0 | S115: 0 | T115: 2014 | U115: =IFERROR((GeneralInput!$G$39/(VLOOKUP(T115,GeneralInput!$E$39:$G$45,3,FALSE))),1) -> 1 | V115: 1188 | W115: y | AB115: 127.524 | AF115: 127.524 | AH115: 1188
B116: DF-011498 | C116: PIT00108 | D116: Drainage Financial (FSWPITS) | E116: Arthur St | F116: Beaudesert | I116: Grated Pit | K116: 0 | L116: 1390 | N116: 1 | O116: 1390 | R116: =IF(P116="",'Unit Rates-Land'!landcst,IF($D$8="Landuse",VLOOKUP(P116,LAndcost3,2,FALSE),IF($D$8="Location",VLOOKUP(P116,Landcost2,2,FALSE),"Error"))) -> 0 | S116: 0 | T116: 2014 | U116: =IFERROR((GeneralInput!$G$39/(VLOOKUP(T116,GeneralInput!$E$39:$G$45,3,FALSE))),1) -> 1 | V116: 1390 | W116: y | AB116: 127.524 | AF116: 127.524 | AH116: 1390
B117: DF-011499 | C117: PIT00109 | D117: Drainage Financial (FSWPITS) | E117: Arthur St | F117: Beaudesert | I117: Grated Pit | K117: 0 | L117: 1629 | N117: 1 | O117: 1629 | R117: =IF(P117="",'Unit Rates-Land'!landcst,IF($D$8="Landuse",VLOOKUP(P117,LAndcost3,2,FALSE),IF($D$8="Location",VLOOKUP(P117,Landcost2,2,FALSE),"Error"))) -> 0 | S117: 0 | T117: 2014 | U117: =IFERROR((GeneralInput!$G$39/(VLOOKUP(T117,GeneralInput!$E$39:$G$45,3,FALSE))),1) -> 1 | V117: 1629 | W117: y | AB117: 127.524 | AF117: 127.524 | AH117: 1629
B118: DF-011500 | C118: PIT00110 | D118: Drainage Financial (FSWPITS) | E118: Arthur St | F118: Beaudesert | I118: Grated Pit | K118: 0 | L118: 1188 | N118: 1 | O118: 1188 | R118: =IF(P118="",'Unit Rates-Land'!landcst,IF($D$8="Landuse",VLOOKUP(P118,LAndcost3,2,FALSE),IF($D$8="Location",VLOOKUP(P118,Landcost2,2,FALSE),"Error"))) -> 0 | S118: 0 | T118: 2014 | U118: =IFERROR((GeneralInput!$G$39/(VLOOKUP(T118,GeneralInput!$E$39:$G$45,3,FALSE))),1) -> 1 | V118: 1188 | W118: y | AB118: 127.524 | AF118: 127.524 | AH118: 1188
B119: DF-011501 | C119: PIT00111 | D119: Drainage Financial (FSWPITS) | E119: Arthur St | F119: Beaudesert | I119: Grated Pit | K119: 0 | L119: 1188 | N119: 1 | O119: 1188 | R119: =IF(P119="",'Unit Rates-Land'!landcst,IF($D$8="Landuse",VLOOKUP(P119,LAndcost3,2,FALSE),IF($D$8="Location",VLOOKUP(P119,Landcost2,2,FALSE),"Error"))) -> 0 | S119: 0 | T119: 2014 | U119: =IFERROR((GeneralInput!$G$39/(VLOOKUP(T119,GeneralInput!$E$39:$G$45,3,FALSE))),1) -> 1 | V119: 1188 | W119: y | AB119: 127.524 | AF119: 127.524 | AH119: 1188
B120: DF-011502 | C120: PIT00112 | D120: Drainage Financial (FSWPITS) | E120: Arthur St | F120: Beaudesert | I120: Junction Pit | K120: 0 | L120: 841 | N120: 1 | O120: 841 | R120: =IF(P120="",'Unit Rates-Land'!landcst,IF($D$8="Landuse",VLOOKUP(P120,LAndcost3,2,FALSE),IF($D$8="Location",VLOOKUP(P120,Landcost2,2,FALSE),"Error"))) -> 0 | S120: 0 | T120: 2014 | U120: =IFERROR((GeneralInput!$G$39/(VLOOKUP(T120,GeneralInput!$E$39:$G$45,3,FALSE))),1) -> 1 | V120: 841 | W120: y | AB120: 127.524 | AF120: 127.524 | AH120: 841
B121: DF-011505 | C121: PIT00115 | D121: Drainage Financial (FSWPITS) | E121: Arthur St | F121: Beaudesert | I121: Grated Pit | K121: 0 | L121: 2997 | N121: 1 | O121: 2997 | R121: =IF(P121="",'Unit Rates-Land'!landcst,IF($D$8="Landuse",VLOOKUP(P121,LAndcost3,2,FALSE),IF($D$8="Location",VLOOKUP(P121,Landcost2,2,FALSE),"Error"))) -> 0 | S121: 0 | T121: 2014 | U121: =IFERROR((GeneralInput!$G$39/(VLOOKUP(T121,GeneralInput!$E$39:$G$45,3,FALSE))),1) -> 1 | V121: 2997 | W121: y | AB121: 127.524 | AF121: 127.524 | AH121: 2997
B122: DF-011506 | C122: PIT00116 | D122: Drainage Financial (FSWPITS) | E122: Arthur St | F122: Beaudesert | I122: Grated Pit | K122: 0 | L122: 1390 | N122: 1 | O122: 1390 | R122: =IF(P122="",'Unit Rates-Land'!landcst,IF($D$8="Landuse",VLOOKUP(P122,LAndcost3,2,FALSE),IF($D$8="Location",VLOOKUP(P122,Landcost2,2,FALSE),"Error"))) -> 0 | S122: 0 | T122: 2014 | U122: =IFERROR((GeneralInput!$G$39/(VLOOKUP(T122,GeneralInput!$E$39:$G$45,3,FALSE))),1) -> 1 | V122: 1390 | W122: y | AB122: 127.524 | AF122: 127.524 | AH122: 1390
B123: DF-011507 | C123: PIT00117 | D123: Drainage Financial (FSWPITS) | E123: Arthur St | F123: Beaudesert | I123: Grated Pit | K123: 0 | L123: 1390 | N123: 1 | O123: 1390 | R123: =IF(P123="",'Unit Rates-Land'!landcst,IF($D$8="Landuse",VLOOKUP(P123,LAndcost3,2,FALSE),IF($D$8="Location",VLOOKUP(P123,Landcost2,2,FALSE),"Error"))) -> 0 | S123: 0 | T123: 2014 | U123: =IFERROR((GeneralInput!$G$39/(VLOOKUP(T123,GeneralInput!$E$39:$G$45,3,FALSE))),1) -> 1 | V123: 1390 | W123: y | AB123: 127.524 | AF123: 127.524 | AH123: 1390
B124: DF-012112 | C124: PIT00768 | D124: Drainage Financial (FSWPITS) | E124: Bdst-Nerang Rd west of Brooklands | F124: Beaudesert | I124: Bro-Pit | K124: 0 | L124: 5088 | N124: 1 | O124: 5088 | R124: =IF(P124="",'Unit Rates-Land'!landcst,IF($D$8="Landuse",VLOOKUP(P124,LAndcost3,2,FALSE),IF($D$8="Location",VLOOKUP(P124,Landcost2,2,FALSE),"Error"))) -> 0 | S124: 0 | T124: 2014 | U124: =IFERROR((GeneralInput!$G$39/(VLOOKUP(T124,GeneralInput!$E$39:$G$45,3,FALSE))),1) -> 1 | V124: 5088 | W124: y | AB124: 127.524 | AF124: 127.524 | AH124: 5088
B125: DF-010657 | C125: PIPE00709 | D125: Drainage Financial (Pipes) | E125: Beetham St | F125: Beaudesert | H125: 115.87 | I125: Grass Open Channel | K125: 0 | L125: 6952 | N125: 1 | O125: 6952 | R125: =IF(P125="",'Unit Rates-Land'!landcst,IF($D$8="Landuse",VLOOKUP(P125,LAndcost3,2,FALSE),IF($D$8="Location",VLOOKUP(P125,Landcost2,2,FALSE),"Error"))) -> 0 | S125: 0 | T125: 2014 | U125: =IFERROR((GeneralInput!$G$39/(VLOOKUP(T125,GeneralInput!$E$39:$G$45,3,FALSE))),1) -> 1 | V125: 6952 | W125: y | AB125: 127.524 | AF125: 127.524 | AH125: 6952
B126: DF-010658 | C126: PIPE00710 | D126: Drainage Financial (Pipes) | E126: Beetham St | F126: Beaudesert | H126: 93.84 | I126: Grass Open Channel | K126: 0 | L126: 5630 | N126: 1 | O126: 5630 | R126: =IF(P126="",'Unit Rates-Land'!landcst,IF($D$8="Landuse",VLOOKUP(P126,LAndcost3,2,FALSE),IF($D$8="Location",VLOOKUP(P126,Landcost2,2,FALSE),"Error"))) -> 0 | S126: 0 | T126: 2014 | U126: =IFERROR((GeneralInput!$G$39/(VLOOKUP(T126,GeneralInput!$E$39:$G$45,3,FALSE))),1) -> 1 | V126: 5630 | W126: y | AB126: 127.524 | AF126: 127.524 | AH126: 5630
B127: DF-010423 | C127: PIPE00475 | D127: Drainage Financial (Pipes) | E127: Beetham St | F127: Beaudesert | H127: 28.16 | I127: RCP Circular | J127: 600 | K127: 0 | L127: 14474 | N127: 1 | O127: 14474 | R127: =IF(P127="",'Unit Rates-Land'!landcst,IF($D$8="Landuse",VLOOKUP(P127,LAndcost3,2,FALSE),IF($D$8="Location",VLOOKUP(P127,Landcost2,2,FALSE),"Error"))) -> 0 | S127: 0 | T127: 2014 | U127: =IFERROR((GeneralInput!$G$39/(VLOOKUP(T127,GeneralInput!$E$39:$G$45,3,FALSE))),1) -> 1 | V127: 14474 | W127: y | AB127: 127.524 | AF127: 127.524 | AH127: 14474
B128: DF-010424 | C128: PIPE00476 | D128: Drainage Financial (Pipes) | E128: Beetham St | F128: Beaudesert | H128: 9.71 | I128: RCP Circular | J128: 600 | K128: 0 | L128: 4992 | N128: 1 | O128: 4992 | R128: =IF(P128="",'Unit Rates-Land'!landcst,IF($D$8="Landuse",VLOOKUP(P128,LAndcost3,2,FALSE),IF($D$8="Location",VLOOKUP(P128,Landcost2,2,FALSE),"Error"))) -> 0 | S128: 0 | T128: 2014 | U128: =IFERROR((GeneralInput!$G$39/(VLOOKUP(T128,GeneralInput!$E$39:$G$45,3,FALSE))),1) -> 1 | V128: 4992 | W128: y | AB128: 127.524 | AF128: 127.524 | AH128: 4992
B129: DF-010425 | C129: PIPE00477 | D129: Drainage Financial (Pipes) | E129: Beetham St | F129: Beaudesert | H129: 35.53 | I129: RCP Circular | J129: 600 | K129: 0 | L129: 18261 | N129: 1 | O129: 18261 | R129: =IF(P129="",'Unit Rates-Land'!landcst,IF($D$8="Landuse",VLOOKUP(P129,LAndcost3,2,FALSE),IF($D$8="Location",VLOOKUP(P129,Landcost2,2,FALSE),"Error"))) -> 0 | S129: 0 | T129: 2014 | U129: =IFERROR((GeneralInput!$G$39/(VLOOKUP(T129,GeneralInput!$E$39:$G$45,3,FALSE))),1) -> 1 | V129: 18261 | W129: y | AB129: 127.524 | AF129: 127.524 | AH129: 18261
B130: DF-010427 | C130: PIPE00479 | D130: Drainage Financial (Pipes) | E130: Beetham St | F130: Beaudesert | H130: 46.37 | I130: RCP Circular | J130: 600 | K130: 0 | L130: 23834 | N130: 1 | O130: 23834 | R130: =IF(P130="",'Unit Rates-Land'!landcst,IF($D$8="Landuse",VLOOKUP(P130,LAndcost3,2,FALSE),IF($D$8="Location",VLOOKUP(P130,Landcost2,2,FALSE),"Error"))) -> 0 | S130: 0 | T130: 2014 | U130: =IFERROR((GeneralInput!$G$39/(VLOOKUP(T130,GeneralInput!$E$39:$G$45,3,FALSE))),1) -> 1 | V130: 23834 | W130: y | AB130: 127.524 | AF130: 127.524 | AH130: 23834
B131: DF-011860 | C131: PIT00516 | D131: Drainage Financial (FSWPITS) | E131: Beetham St | F131: Beaudesert | I131: Junction Pit | K131: 0 | L131: 4252 | N131: 1 | O131: 4252 | R131: =IF(P131="",'Unit Rates-Land'!landcst,IF($D$8="Landuse",VLOOKUP(P131,LAndcost3,2,FALSE),IF($D$8="Location",VLOOKUP(P131,Landcost2,2,FALSE),"Error"))) -> 0 | S131: 0 | T131: 2014 | U131: =IFERROR((GeneralInput!$G$39/(VLOOKUP(T131,GeneralInput!$E$39:$G$45,3,FALSE))),1) -> 1 | V131: 4252 | W131: y | AB131: 127.524 | AF131: 127.524 | AH131: 4252
B132: DF-011861 | C132: PIT00517 | D132: Drainage Financial (FSWPITS) | E132: Beetham St | F132: Beaudesert | I132: Grated Side Entry Pit | K132: 0 | L132: 1449 | N132: 1 | O132: 1449 | R132: =IF(P132="",'Unit Rates-Land'!landcst,IF($D$8="Landuse",VLOOKUP(P132,LAndcost3,2,FALSE),IF($D$8="Location",VLOOKUP(P132,Landcost2,2,FALSE),"Error"))) -> 0 | S132: 0 | T132: 2014 | U132: =IFERROR((GeneralInput!$G$39/(VLOOKUP(T132,GeneralInput!$E$39:$G$45,3,FALSE))),1) -> 1 | V132: 1449 | W132: y | AB132: 127.524 | AF132: 127.524 | AH132: 1449
B133: DF-011862 | C133: PIT00518 | D133: Drainage Financial (FSWPITS) | E133: Beetham St | F133: Beaudesert | I133: End Wall | K133: 0 | L133: 1500 | N133: 1 | O133: 1500 | R133: =IF(P133="",'Unit Rates-Land'!landcst,IF($D$8="Landuse",VLOOKUP(P133,LAndcost3,2,FALSE),IF($D$8="Location",VLOOKUP(P133,Landcost2,2,FALSE),"Error"))) -> 0 | S133: 0 | T133: 2014 | U133: =IFERROR((GeneralInput!$G$39/(VLOOKUP(T133,GeneralInput!$E$39:$G$45,3,FALSE))),1) -> 1 | V133: 1500 | W133: y | AB133: 127.524 | AF133: 127.524 | AH133: 1500
B134: DF-011863 | C134: PIT00519 | D134: Drainage Financial (FSWPITS) | E134: Beetham St | F134: Beaudesert | I134: Side Inlet (w/Gatic in Gully) | K134: 0 | L134: 2633 | N134: 1 | O134: 2633 | R134: =IF(P134="",'Unit Rates-Land'!landcst,IF($D$8="Landuse",VLOOKUP(P134,LAndcost3,2,FALSE),IF($D$8="Location",VLOOKUP(P134,Landcost2,2,FALSE),"Error"))) -> 0 | S134: 0 | T134: 2014 | U134: =IFERROR((GeneralInput!$G$39/(VLOOKUP(T134,GeneralInput!$E$39:$G$45,3,FALSE))),1) -> 1 | V134: 2633 | W134: y | AB134: 127.524 | AF134: 127.524 | AH134: 2633
B135: DF-011864 | C135: PIT00520 | D135: Drainage Financial (FSWPITS) | E135: Beetham St | F135: Beaudesert | I135: Junction Pit | K135: 0 | L135: 4252 | N135: 1 | O135: 4252 | R135: =IF(P135="",'Unit Rates-Land'!landcst,IF($D$8="Landuse",VLOOKUP(P135,LAndcost3,2,FALSE),IF($D$8="Location",VLOOKUP(P135,Landcost2,2,FALSE),"Error"))) -> 0 | S135: 0 | T135: 2014 | U135: =IFERROR((GeneralInput!$G$39/(VLOOKUP(T135,GeneralInput!$E$39:$G$45,3,FALSE))),1) -> 1 | V135: 4252 | W135: y | AB135: 127.524 | AF135: 127.524 | AH135: 4252
B136: DF-011865 | C136: PIT00521 | D136: Drainage Financial (FSWPITS) | E136: Beetham St | F136: Beaudesert | I136: Wing Wall | K136: 0 | L136: 1500 | N136: 1 | O136: 1500 | R136: =IF(P136="",'Unit Rates-Land'!landcst,IF($D$8="Landuse",VLOOKUP(P136,LAndcost3,2,FALSE),IF($D$8="Location",VLOOKUP(P136,Landcost2,2,FALSE),"Error"))) -> 0 | S136: 0 | T136: 2014 | U136: =IFERROR((GeneralInput!$G$39/(VLOOKUP(T136,GeneralInput!$E$39:$G$45,3,FALSE))),1) -> 1 | V136: 1500 | W136: y | AB136: 127.524 | AF136: 127.524 | AH136: 1500
B137: DF-011866 | C137: PIT00522 | D137: Drainage Financial (FSWPITS) | E137: Beetham St | F137: Beaudesert | I137: Wing Wall | K137: 0 | L137: 1500 | N137: 1 | O137: 1500 | R137: =IF(P137="",'Unit Rates-Land'!landcst,IF($D$8="Landuse",VLOOKUP(P137,LAndcost3,2,FALSE),IF($D$8="Location",VLOOKUP(P137,Landcost2,2,FALSE),"Error"))) -> 0 | S137: 0 | T137: 2014 | U137: =IFERROR((GeneralInput!$G$39/(VLOOKUP(T137,GeneralInput!$E$39:$G$45,3,FALSE))),1) -> 1 | V137: 1500 | W137: y | AB137: 127.524 | AF137: 127.524 | AH137: 1500
B138: DF-011867 | C138: PIT00523 | D138: Drainage Financial (FSWPITS) | E138: Beetham St | F138: Beaudesert | I138: Side Inlet (w/Gatic in Gully) | K138: 0 | L138: 4681 | N138: 1 | O138: 4681 | R138: =IF(P138="",'Unit Rates-Land'!landcst,IF($D$8="Landuse",VLOOKUP(P138,LAndcost3,2,FALSE),IF($D$8="Location",VLOOKUP(P138,Landcost2,2,FALSE),"Error"))) -> 0 | S138: 0 | T138: 2014 | U138: =IFERROR((GeneralInput!$G$39/(VLOOKUP(T138,GeneralInput!$E$39:$G$45,3,FALSE))),1) -> 1 | V138: 4681 | W138: y | AB138: 127.524 | AF138: 127.524 | AH138: 4681
B139: DF-011868 | C139: PIT00524 | D139: Drainage Financial (FSWPITS) | E139: Beetham St | F139: Beaudesert | I139: Junction Pit | K139: 0 | L139: 4252 | N139: 1 | O139: 4252 | R139: =IF(P139="",'Unit Rates-Land'!landcst,IF($D$8="Landuse",VLOOKUP(P139,LAndcost3,2,FALSE),IF($D$8="Location",VLOOKUP(P139,Landcost2,2,FALSE),"Error"))) -> 0 | S139: 0 | T139: 2014 | U139: =IFERROR((GeneralInput!$G$39/(VLOOKUP(T139,GeneralInput!$E$39:$G$45,3,FALSE))),1) -> 1 | V139: 4252 | W139: y | AB139: 127.524 | AF139: 127.524 | AH139: 4252
B140: DF-011869 | C140: PIT00525 | D140: Drainage Financial (FSWPITS) | E140: Beetham St | F140: Beaudesert | I140: Junction Pit | K140: 0 | L140: 4252 | N140: 1 | O140: 4252 | R140: =IF(P140="",'Unit Rates-Land'!landcst,IF($D$8="Landuse",VLOOKUP(P140,LAndcost3,2,FALSE),IF($D$8="Location",VLOOKUP(P140,Landcost2,2,FALSE),"Error"))) -> 0 | S140: 0 | T140: 2014 | U140: =IFERROR((GeneralInput!$G$39/(VLOOKUP(T140,GeneralInput!$E$39:$G$45,3,FALSE))),1) -> 1 | V140: 4252 | W140: y | AB140: 127.524 | AF140: 127.524 | AH140: 4252
B141: DF-011871 | C141: PIT00527 | D141: Drainage Financial (FSWPITS) | E141: Beetham St | F141: Beaudesert | I141: Side Inlet (w/Gatic in Gully) | K141: 0 | L141: 4851 | N141: 1 | O141: 4851 | R141: =IF(P141="",'Unit Rates-Land'!landcst,IF($D$8="Landuse",VLOOKUP(P141,LAndcost3,2,FALSE),IF($D$8="Location",VLOOKUP(P141,Landcost2,2,FALSE),"Error"))) -> 0 | S141: 0 | T141: 2014 | U141: =IFERROR((GeneralInput!$G$39/(VLOOKUP(T141,GeneralInput!$E$39:$G$45,3,FALSE))),1) -> 1 | V141: 4851 | W141: y | AB141: 127.524 | AF141: 127.524 | AH141: 4851
B142: DF-010260 | C142: PIPE00311 | D142: Drainage Financial (Pipes) | E142: Birnam St | F142: Beaudesert | H142: 183.5 | I142: RCP Circular | J142: 600 | K142: 0 | L142: 94321 | N142: 1 | O142: 94321 | R142: =IF(P142="",'Unit Rates-Land'!landcst,IF($D$8="Landuse",VLOOKUP(P142,LAndcost3,2,FALSE),IF($D$8="Location",VLOOKUP(P142,Landcost2,2,FALSE),"Error"))) -> 0 | S142: 0 | T142: 2014 | U142: =IFERROR((GeneralInput!$G$39/(VLOOKUP(T142,GeneralInput!$E$39:$G$45,3,FALSE))),1) -> 1 | V142: 94321 | W142: y | AB142: 127.524 | AF142: 127.524 | AH142: 94321
B143: DF-010365 | C143: PIPE00416 | D143: Drainage Financial (Pipes) | E143: Birnam St | F143: Beaudesert | H143: 70.06 | I143: RCP Circular | J143: 750 | K143: 0 | L143: 50160 | N143: 1 | O143: 50160 | R143: =IF(P143="",'Unit Rates-Land'!landcst,IF($D$8="Landuse",VLOOKUP(P143,LAndcost3,2,FALSE),IF($D$8="Location",VLOOKUP(P143,Landcost2,2,FALSE),"Error"))) -> 0 | S143: 0 | T143: 2014 | U143: =IFERROR((GeneralInput!$G$39/(VLOOKUP(T143,GeneralInput!$E$39:$G$45,3,FALSE))),1) -> 1 | V143: 50160 | W143: y | AB143: =IF(W143="y",AB$14,IF(AND(W143>0,W143<=1),W143*AB$14,"")) -> 127.524 | AC143: =IF(X143="y",AC$14,IF(AND(X143>0,X143<=1),X143*AC$14,"")) ->  | AD143: =IF(Y143="y",AD$14,IF(AND(Y143>0,Y143<=1),Y143*AD$14,"")) ->  | AE143: =IF(Z143="y",AE$14,IF(AND(Z143>0,Z143<=1),Z143*AE$14,"")) ->  | AF143: =SUM(AB143:AE143) -> 127.524 | AH143: =IF(AB143="","",(AB143/$AF143)*$V143) -> 50160 | AI143: =IF(AC143="","",(AC143/$AF143)*$V143) ->  | AJ143: =IF(AD143="","",(AD143/$AF143)*$V143) ->  | AK143: =IF(AE143="","",(AE143/$AF143)*$V143) ->  | AL143: =IF(SUM(AH143:AK143)=V143,"","ERROR") -> 
B144: DF-011675 | C144: PIT00331 | D144: Drainage Financial (FSWPITS) | E144: Birnam St | F144: Beaudesert | I144: Grated Pit | K144: 0 | L144: 1188 | N144: 1 | O144: 1188 | R144: =IF(P144="",'Unit Rates-Land'!landcst,IF($D$8="Landuse",VLOOKUP(P144,LAndcost3,2,FALSE),IF($D$8="Location",VLOOKUP(P144,Landcost2,2,FALSE),"Error"))) -> 0 | S144: 0 | T144: 2014 | U144: =IFERROR((GeneralInput!$G$39/(VLOOKUP(T144,GeneralInput!$E$39:$G$45,3,FALSE))),1) -> 1 | V144: 1188 | W144: y | AB144: 127.524 | AF144: 127.524 | AH144: 1188
B145: DF-011676 | C145: PIT00332 | D145: Drainage Financial (FSWPITS) | E145: Birnam St | F145: Beaudesert | I145: Grated Pit | K145: 0 | L145: 1629 | N145: 1 | O145: 1629 | R145: =IF(P145="",'Unit Rates-Land'!landcst,IF($D$8="Landuse",VLOOKUP(P145,LAndcost3,2,FALSE),IF($D$8="Location",VLOOKUP(P145,Landcost2,2,FALSE),"Error"))) -> 0 | S145: 0 | T145: 2014 | U145: =IFERROR((GeneralInput!$G$39/(VLOOKUP(T145,GeneralInput!$E$39:$G$45,3,FALSE))),1) -> 1 | V145: 1629 | W145: y | AB145: 127.524 | AF145: 127.524 | AH145: 1629
B146: DF-011677 | C146: PIT00333 | D146: Drainage Financial (FSWPITS) | E146: Birnam St | F146: Beaudesert | I146: Grated Pit | K146: 0 | L146: 1629 | N146: 1 | O146: 1629 | R146: =IF(P146="",'Unit Rates-Land'!landcst,IF($D$8="Landuse",VLOOKUP(P146,LAndcost3,2,FALSE),IF($D$8="Location",VLOOKUP(P146,Landcost2,2,FALSE),"Error"))) -> 0 | S146: 0 | T146: 2014 | U146: =IFERROR((GeneralInput!$G$39/(VLOOKUP(T146,GeneralInput!$E$39:$G$45,3,FALSE))),1) -> 1 | V146: 1629 | W146: y | AB146: 127.524 | AF146: 127.524 | AH146: 1629
B147: DF-011678 | C147: PIT00334 | D147: Drainage Financial (FSWPITS) | E147: Birnam St | F147: Beaudesert | I147: Grated Pit | K147: 0 | L147: 1629 | N147: 1 | O147: 1629 | R147: =IF(P147="",'Unit Rates-Land'!landcst,IF($D$8="Landuse",VLOOKUP(P147,LAndcost3,2,FALSE),IF($D$8="Location",VLOOKUP(P147,Landcost2,2,FALSE),"Error"))) -> 0 | S147: 0 | T147: 2014 | U147: =IFERROR((GeneralInput!$G$39/(VLOOKUP(T147,GeneralInput!$E$39:$G$45,3,FALSE))),1) -> 1 | V147: 1629 | W147: y | AB147: 127.524 | AF147: 127.524 | AH147: 1629
B148: DF-011681 | C148: PIT00337 | D148: Drainage Financial (FSWPITS) | E148: Birnam St | F148: Beaudesert | I148: Grated Pit | K148: 0 | L148: 1390 | N148: 1 | O148: 1390 | R148: =IF(P148="",'Unit Rates-Land'!landcst,IF($D$8="Landuse",VLOOKUP(P148,LAndcost3,2,FALSE),IF($D$8="Location",VLOOKUP(P148,Landcost2,2,FALSE),"Error"))) -> 0 | S148: 0 | T148: 2014 | U148: =IFERROR((GeneralInput!$G$39/(VLOOKUP(T148,GeneralInput!$E$39:$G$45,3,FALSE))),1) -> 1 | V148: 1390 | W148: y | AB148: 127.524 | AF148: 127.524 | AH148: 1390
B149: DF-011682 | C149: PIT00338 | D149: Drainage Financial (FSWPITS) | E149: Birnam St | F149: Beaudesert | I149: Grated Pit | K149: 0 | L149: 1188 | N149: 1 | O149: 1188 | R149: =IF(P149="",'Unit Rates-Land'!landcst,IF($D$8="Landuse",VLOOKUP(P149,LAndcost3,2,FALSE),IF($D$8="Location",VLOOKUP(P149,Landcost2,2,FALSE),"Error"))) -> 0 | S149: 0 | T149: 2014 | U149: =IFERROR((GeneralInput!$G$39/(VLOOKUP(T149,GeneralInput!$E$39:$G$45,3,FALSE))),1) -> 1 | V149: 1188 | W149: y | AB149: 127.524 | AF149: 127.524 | AH149: 1188
B150: DF-011683 | C150: PIT00339 | D150: Drainage Financial (FSWPITS) | E150: Birnam St | F150: Beaudesert | I150: Grated Pit | K150: 0 | L150: 1390 | N150: 1 | O150: 1390 | R150: =IF(P150="",'Unit Rates-Land'!landcst,IF($D$8="Landuse",VLOOKUP(P150,LAndcost3,2,FALSE),IF($D$8="Location",VLOOKUP(P150,Landcost2,2,FALSE),"Error"))) -> 0 | S150: 0 | T150: 2014 | U150: =IFERROR((GeneralInput!$G$39/(VLOOKUP(T150,GeneralInput!$E$39:$G$45,3,FALSE))),1) -> 1 | V150: 1390 | W150: y | AB150: 127.524 | AF150: 127.524 | AH150: 1390
B151: DF-011684 | C151: PIT00340 | D151: Drainage Financial (FSWPITS) | E151: Birnam St | F151: Beaudesert | I151: Grated Pit | K151: 0 | L151: 1629 | N151: 1 | O151: 1629 | R151: =IF(P151="",'Unit Rates-Land'!landcst,IF($D$8="Landuse",VLOOKUP(P151,LAndcost3,2,FALSE),IF($D$8="Location",VLOOKUP(P151,Landcost2,2,FALSE),"Error"))) -> 0 | S151: 0 | T151: 2014 | U151: =IFERROR((GeneralInput!$G$39/(VLOOKUP(T151,GeneralInput!$E$39:$G$45,3,FALSE))),1) -> 1 | V151: 1629 | W151: y | AB151: 127.524 | AF151: 127.524 | AH151: 1629
B152: DF-011685 | C152: PIT00341 | D152: Drainage Financial (FSWPITS) | E152: Birnam St | F152: Beaudesert | I152: Grated Pit | K152: 0 | L152: 1629 | N152: 1 | O152: 1629 | R152: =IF(P152="",'Unit Rates-Land'!landcst,IF($D$8="Landuse",VLOOKUP(P152,LAndcost3,2,FALSE),IF($D$8="Location",VLOOKUP(P152,Landcost2,2,FALSE),"Error"))) -> 0 | S152: 0 | T152: 2014 | U152: =IFERROR((GeneralInput!$G$39/(VLOOKUP(T152,GeneralInput!$E$39:$G$45,3,FALSE))),1) -> 1 | V152: 1629 | W152: y | AB152: 127.524 | AF152: 127.524 | AH152: 1629
B153: DF-011687 | C153: PIT00343 | D153: Drainage Financial (FSWPITS) | E153: Birnam St | F153: Beaudesert | I153: Grated Pit | K153: 0 | L153: 1188 | N153: 1 | O153: 1188 | R153: =IF(P153="",'Unit Rates-Land'!landcst,IF($D$8="Landuse",VLOOKUP(P153,LAndcost3,2,FALSE),IF($D$8="Location",VLOOKUP(P153,Landcost2,2,FALSE),"Error"))) -> 0 | S153: 0 | T153: 2014 | U153: =IFERROR((GeneralInput!$G$39/(VLOOKUP(T153,GeneralInput!$E$39:$G$45,3,FALSE))),1) -> 1 | V153: 1188 | W153: y | AB153: 127.524 | AF153: 127.524 | AH153: 1188
B154: DF-011693 | C154: PIT00349 | D154: Drainage Financial (FSWPITS) | E154: Birnam St | F154: Beaudesert | I154: Grated Pit | K154: 0 | L154: 1390 | N154: 1 | O154: 1390 | R154: =IF(P154="",'Unit Rates-Land'!landcst,IF($D$8="Landuse",VLOOKUP(P154,LAndcost3,2,FALSE),IF($D$8="Location",VLOOKUP(P154,Landcost2,2,FALSE),"Error"))) -> 0 | S154: 0 | T154: 2014 | U154: =IFERROR((GeneralInput!$G$39/(VLOOKUP(T154,GeneralInput!$E$39:$G$45,3,FALSE))),1) -> 1 | V154: 1390 | W154: y | AB154: 127.524 | AF154: 127.524 | AH154: 1390
B155: DF-011694 | C155: PIT00350 | D155: Drainage Financial (FSWPITS) | E155: Birnam St | F155: Beaudesert | I155: Grated Pit | K155: 0 | L155: 1390 | N155: 1 | O155: 1390 | R155: =IF(P155="",'Unit Rates-Land'!landcst,IF($D$8="Landuse",VLOOKUP(P155,LAndcost3,2,FALSE),IF($D$8="Location",VLOOKUP(P155,Landcost2,2,FALSE),"Error"))) -> 0 | S155: 0 | T155: 2014 | U155: =IFERROR((GeneralInput!$G$39/(VLOOKUP(T155,GeneralInput!$E$39:$G$45,3,FALSE))),1) -> 1 | V155: 1390 | W155: y | AB155: 127.524 | AF155: 127.524 | AH155: 1390
B156: DF-011789 | C156: PIT00445 | D156: Drainage Financial (FSWPITS) | E156: Birnam St | F156: Beaudesert | I156: Grated Pit | K156: 0 | L156: 2997 | N156: 1 | O156: 2997 | R156: =IF(P156="",'Unit Rates-Land'!landcst,IF($D$8="Landuse",VLOOKUP(P156,LAndcost3,2,FALSE),IF($D$8="Location",VLOOKUP(P156,Landcost2,2,FALSE),"Error"))) -> 0 | S156: 0 | T156: 2014 | U156: =IFERROR((GeneralInput!$G$39/(VLOOKUP(T156,GeneralInput!$E$39:$G$45,3,FALSE))),1) -> 1 | V156: 2997 | W156: y | AB156: 127.524 | AF156: 127.524 | AH156: 2997
B157: DF-011790 | C157: PIT00446 | D157: Drainage Financial (FSWPITS) | E157: Birnam St | F157: Beaudesert | I157: Grated Pit | K157: 0 | L157: 2997 | N157: 1 | O157: 2997 | R157: =IF(P157="",'Unit Rates-Land'!landcst,IF($D$8="Landuse",VLOOKUP(P157,LAndcost3,2,FALSE),IF($D$8="Location",VLOOKUP(P157,Landcost2,2,FALSE),"Error"))) -> 0 | S157: 0 | T157: 2014 | U157: =IFERROR((GeneralInput!$G$39/(VLOOKUP(T157,GeneralInput!$E$39:$G$45,3,FALSE))),1) -> 1 | V157: 2997 | W157: y | AB157: 127.524 | AF157: 127.524 | AH157: 2997
B158: DF-011791 | C158: PIT00447 | D158: Drainage Financial (FSWPITS) | E158: Birnam St | F158: Beaudesert | I158: Grated Pit | K158: 0 | L158: 1629 | N158: 1 | O158: 1629 | R158: =IF(P158="",'Unit Rates-Land'!landcst,IF($D$8="Landuse",VLOOKUP(P158,LAndcost3,2,FALSE),IF($D$8="Location",VLOOKUP(P158,Landcost2,2,FALSE),"Error"))) -> 0 | S158: 0 | T158: 2014 | U158: =IFERROR((GeneralInput!$G$39/(VLOOKUP(T158,GeneralInput!$E$39:$G$45,3,FALSE))),1) -> 1 | V158: 1629 | W158: y | AB158: 127.524 | AF158: 127.524 | AH158: 1629
B159: DF-012383 | C159: PIT01040 | D159: Drainage Financial (FSWPITS) | E159: Birnam St | F159: Beaudesert | I159: Grated Pit | K159: 0 | L159: 1188 | N159: 1 | O159: 1188 | R159: =IF(P159="",'Unit Rates-Land'!landcst,IF($D$8="Landuse",VLOOKUP(P159,LAndcost3,2,FALSE),IF($D$8="Location",VLOOKUP(P159,Landcost2,2,FALSE),"Error"))) -> 0 | S159: 0 | T159: 2014 | U159: =IFERROR((GeneralInput!$G$39/(VLOOKUP(T159,GeneralInput!$E$39:$G$45,3,FALSE))),1) -> 1 | V159: 1188 | W159: y | AB159: 127.524 | AF159: 127.524 | AH159: 1188
B160: DF-012384 | C160: PIT01041 | D160: Drainage Financial (FSWPITS) | E160: Birnam St | F160: Beaudesert | I160: Junction Pit | K160: 0 | L160: 2146 | N160: 1 | O160: 2146 | R160: =IF(P160="",'Unit Rates-Land'!landcst,IF($D$8="Landuse",VLOOKUP(P160,LAndcost3,2,FALSE),IF($D$8="Location",VLOOKUP(P160,Landcost2,2,FALSE),"Error"))) -> 0 | S160: 0 | T160: 2014 | U160: =IFERROR((GeneralInput!$G$39/(VLOOKUP(T160,GeneralInput!$E$39:$G$45,3,FALSE))),1) -> 1 | V160: 2146 | W160: y | AB160: 127.524 | AF160: 127.524 | AH160: 2146
B161: DF-012385 | C161: PIT01042 | D161: Drainage Financial (FSWPITS) | E161: Birnam St | F161: Beaudesert | I161: Junction Pit | K161: 0 | L161: 507 | N161: 1 | O161: 507 | R161: =IF(P161="",'Unit Rates-Land'!landcst,IF($D$8="Landuse",VLOOKUP(P161,LAndcost3,2,FALSE),IF($D$8="Location",VLOOKUP(P161,Landcost2,2,FALSE),"Error"))) -> 0 | S161: 0 | T161: 2014 | U161: =IFERROR((GeneralInput!$G$39/(VLOOKUP(T161,GeneralInput!$E$39:$G$45,3,FALSE))),1) -> 1 | V161: 507 | W161: y | AB161: 127.524 | AF161: 127.524 | AH161: 507
B162: DF-012386 | C162: PIT01043 | D162: Drainage Financial (FSWPITS) | E162: Birnam St | F162: Beaudesert | I162: Junction Pit | K162: 0 | L162: 841 | N162: 1 | O162: 841 | R162: =IF(P162="",'Unit Rates-Land'!landcst,IF($D$8="Landuse",VLOOKUP(P162,LAndcost3,2,FALSE),IF($D$8="Location",VLOOKUP(P162,Landcost2,2,FALSE),"Error"))) -> 0 | S162: 0 | T162: 2014 | U162: =IFERROR((GeneralInput!$G$39/(VLOOKUP(T162,GeneralInput!$E$39:$G$45,3,FALSE))),1) -> 1 | V162: 841 | W162: y | AB162: 127.524 | AF162: 127.524 | AH162: 841
B163: DF-012390 | C163: PIT01047 | D163: Drainage Financial (FSWPITS) | E163: Birnam St | F163: Beaudesert | I163: Junction Pit | K163: 0 | L163: 841 | N163: 1 | O163: 841 | R163: =IF(P163="",'Unit Rates-Land'!landcst,IF($D$8="Landuse",VLOOKUP(P163,LAndcost3,2,FALSE),IF($D$8="Location",VLOOKUP(P163,Landcost2,2,FALSE),"Error"))) -> 0 | S163: 0 | T163: 2014 | U163: =IFERROR((GeneralInput!$G$39/(VLOOKUP(T163,GeneralInput!$E$39:$G$45,3,FALSE))),1) -> 1 | V163: 841 | W163: y | AB163: 127.524 | AF163: 127.524 | AH163: 841
B164: DF-011761 | C164: PIT00417 | D164: Drainage Financial (FSWPITS) | E164: Birnam/Buchanan Sts | F164: Beaudesert | I164: Grated Pit | K164: 0 | L164: 1188 | N164: 1 | O164: 1188 | R164: =IF(P164="",'Unit Rates-Land'!landcst,IF($D$8="Landuse",VLOOKUP(P164,LAndcost3,2,FALSE),IF($D$8="Location",VLOOKUP(P164,Landcost2,2,FALSE),"Error"))) -> 0 | S164: 0 | T164: 2014 | U164: =IFERROR((GeneralInput!$G$39/(VLOOKUP(T164,GeneralInput!$E$39:$G$45,3,FALSE))),1) -> 1 | V164: 1188 | W164: y | AB164: 127.524 | AF164: 127.524 | AH164: 1188
B165: DF-012389 | C165: PIT01046 | D165: Drainage Financial (FSWPITS) | E165: Birnam/Buchanan Sts | F165: Beaudesert | I165: Junction Pit | K165: 0 | L165: 841 | N165: 1 | O165: 841 | R165: =IF(P165="",'Unit Rates-Land'!landcst,IF($D$8="Landuse",VLOOKUP(P165,LAndcost3,2,FALSE),IF($D$8="Location",VLOOKUP(P165,Landcost2,2,FALSE),"Error"))) -> 0 | S165: 0 | T165: 2014 | U165: =IFERROR((GeneralInput!$G$39/(VLOOKUP(T165,GeneralInput!$E$39:$G$45,3,FALSE))),1) -> 1 | V165: 841 | W165: y | AB165: 127.524 | AF165: 127.524 | AH165: 841
B166: DF-011689 | C166: PIT00345 | D166: Drainage Financial (FSWPITS) | E166: Birnam/Michaelina Sts | F166: Beaudesert | I166: Grated Pit | K166: 0 | L166: 1390 | N166: 1 | O166: 1390 | R166: =IF(P166="",'Unit Rates-Land'!landcst,IF($D$8="Landuse",VLOOKUP(P166,LAndcost3,2,FALSE),IF($D$8="Location",VLOOKUP(P166,Landcost2,2,FALSE),"Error"))) -> 0 | S166: 0 | T166: 2014 | U166: =IFERROR((GeneralInput!$G$39/(VLOOKUP(T166,GeneralInput!$E$39:$G$45,3,FALSE))),1) -> 1 | V166: 1390 | W166: y | AB166: 127.524 | AF166: 127.524 | AH166: 1390
B167: DF-010018 | C167: PIPE00023 | D167: Drainage Financial (Pipes) | E167: Boundary St | F167: Beaudesert | H167: 219.57 | I167: RCP Culvert | J167: 3000 X 300 | K167: 0 | L167: 13174 | N167: 1 | O167: 13174 | R167: =IF(P167="",'Unit Rates-Land'!landcst,IF($D$8="Landuse",VLOOKUP(P167,LAndcost3,2,FALSE),IF($D$8="Location",VLOOKUP(P167,Landcost2,2,FALSE),"Error"))) -> 0 | S167: 0 | T167: 2014 | U167: =IFERROR((GeneralInput!$G$39/(VLOOKUP(T167,GeneralInput!$E$39:$G$45,3,FALSE))),1) -> 1 | V167: 13174 | W167: y | AB167: 127.524 | AF167: 127.524 | AH167: 13174
B168: DF-011404 | C168: PIT00001 | D168: Drainage Financial (FSWPITS) | E168: Boundary St | F168: Beaudesert | I168: Outlet - Pipe End | K168: 0 | L168: 481 | N168: 1 | O168: 481 | R168: =IF(P168="",'Unit Rates-Land'!landcst,IF($D$8="Landuse",VLOOKUP(P168,LAndcost3,2,FALSE),IF($D$8="Location",VLOOKUP(P168,Landcost2,2,FALSE),"Error"))) -> 0 | S168: 0 | T168: 2014 | U168: =IFERROR((GeneralInput!$G$39/(VLOOKUP(T168,GeneralInput!$E$39:$G$45,3,FALSE))),1) -> 1 | V168: 481 | W168: y | AB168: 127.524 | AF168: 127.524 | AH168: 481
B169: DF-011405 | C169: PIT00002 | D169: Drainage Financial (FSWPITS) | E169: Boundary St | F169: Beaudesert | I169: Inlet | K169: 0 | L169: 481 | N169: 1 | O169: 481 | R169: =IF(P169="",'Unit Rates-Land'!landcst,IF($D$8="Landuse",VLOOKUP(P169,LAndcost3,2,FALSE),IF($D$8="Location",VLOOKUP(P169,Landcost2,2,FALSE),"Error"))) -> 0 | S169: 0 | T169: 2014 | U169: =IFERROR((GeneralInput!$G$39/(VLOOKUP(T169,GeneralInput!$E$39:$G$45,3,FALSE))),1) -> 1 | V169: 481 | W169: y | AB169: 127.524 | AF169: 127.524 | AH169: 481
B170: DF-011421 | C170: PIT00024 | D170: Drainage Financial (FSWPITS) | E170: Boundary St | F170: Beaudesert | I170: Wing Wall | K170: 0 | L170: 1500 | N170: 1 | O170: 1500 | R170: =IF(P170="",'Unit Rates-Land'!landcst,IF($D$8="Landuse",VLOOKUP(P170,LAndcost3,2,FALSE),IF($D$8="Location",VLOOKUP(P170,Landcost2,2,FALSE),"Error"))) -> 0 | S170: 0 | T170: 2014 | U170: =IFERROR((GeneralInput!$G$39/(VLOOKUP(T170,GeneralInput!$E$39:$G$45,3,FALSE))),1) -> 1 | V170: 1500 | W170: y | AB170: 127.524 | AF170: 127.524 | AH170: 1500
B171: DF-011422 | C171: PIT00025 | D171: Drainage Financial (FSWPITS) | E171: Boundary St | F171: Beaudesert | I171: Grated Pit | K171: =IF(G171=SWTYPE1,VLOOKUP(J171,SWUnitrates1,2,FALSE),IF(G171=SWTYPE2,VLOOKUP(J171,SWUnitrates2,2,FALSE),0)) -> 0 | L171: 1188 | N171: =IF(M171="",1,VLOOKUP(M171,SWsitecond,2,FALSE)) -> 1 | O171: =IF(L171="","",L171*N171) -> 1188 | R171: =IF(P171="",'Unit Rates-Land'!landcst,IF($D$8="Landuse",VLOOKUP(P171,LAndcost3,2,FALSE),IF($D$8="Location",VLOOKUP(P171,Landcost2,2,FALSE),"Error"))) -> 0 | S171: =IF(R171="",0,R171*10000*Q171) -> 0 | T171: 2014 | U171: =IFERROR((GeneralInput!$G$39/(VLOOKUP(T171,GeneralInput!$E$39:$G$45,3,FALSE))),1) -> 1 | V171: =IFERROR(U171*(S171+O171),0) -> 1188 | W171: y | AB171: 127.524 | AF171: 127.524 | AH171: 1188
B172: DF-011423 | C172: PIT00026 | D172: Drainage Financial (FSWPITS) | E172: Boundary St | F172: Beaudesert | I172: Junction Pit | K172: 0 | L172: 2605 | N172: 1 | O172: 2605 | R172: =IF(P172="",'Unit Rates-Land'!landcst,IF($D$8="Landuse",VLOOKUP(P172,LAndcost3,2,FALSE),IF($D$8="Location",VLOOKUP(P172,Landcost2,2,FALSE),"Error"))) -> 0 | S172: 0 | T172: 2014 | U172: =IFERROR((GeneralInput!$G$39/(VLOOKUP(T172,GeneralInput!$E$39:$G$45,3,FALSE))),1) -> 1 | V172: 2605 | W172: y | AB172: 127.524 | AF172: 127.524 | AH172: 2605
B173: DF-011424 | C173: PIT00027 | D173: Drainage Financial (FSWPITS) | E173: Boundary St | F173: Beaudesert | I173: Junction Pit | K173: 0 | L173: 998 | N173: 1 | O173: 998 | R173: =IF(P173="",'Unit Rates-Land'!landcst,IF($D$8="Landuse",VLOOKUP(P173,LAndcost3,2,FALSE),IF($D$8="Location",VLOOKUP(P173,Landcost2,2,FALSE),"Error"))) -> 0 | S173: 0 | T173: 2014 | U173: =IFERROR((GeneralInput!$G$39/(VLOOKUP(T173,GeneralInput!$E$39:$G$45,3,FALSE))),1) -> 1 | V173: 998 | W173: y | AB173: 127.524 | AF173: 127.524 | AH173: 998
B174: DF-011425 | C174: PIT00028 | D174: Drainage Financial (FSWPITS) | E174: Boundary St | F174: Beaudesert | I174: Outlet - Pipe End | K174: 0 | L174: 481 | N174: 1 | O174: 481 | R174: =IF(P174="",'Unit Rates-Land'!landcst,IF($D$8="Landuse",VLOOKUP(P174,LAndcost3,2,FALSE),IF($D$8="Location",VLOOKUP(P174,Landcost2,2,FALSE),"Error"))) -> 0 | S174: 0 | T174: 2014 | U174: =IFERROR((GeneralInput!$G$39/(VLOOKUP(T174,GeneralInput!$E$39:$G$45,3,FALSE))),1) -> 1 | V174: 481 | W174: y | AB174: 127.524 | AF174: 127.524 | AH174: 481
B175: DF-011426 | C175: PIT00029 | D175: Drainage Financial (FSWPITS) | E175: Boundary St | F175: Beaudesert | I175: Bro-Pit | K175: 0 | L175: 2047 | N175: 1 | O175: 2047 | R175: =IF(P175="",'Unit Rates-Land'!landcst,IF($D$8="Landuse",VLOOKUP(P175,LAndcost3,2,FALSE),IF($D$8="Location",VLOOKUP(P175,Landcost2,2,FALSE),"Error"))) -> 0 | S175: 0 | T175: 2014 | U175: =IFERROR((GeneralInput!$G$39/(VLOOKUP(T175,GeneralInput!$E$39:$G$45,3,FALSE))),1) -> 1 | V175: 2047 | W175: y | AB175: 127.524 | AF175: 127.524 | AH175: 2047
B176: DF-011427 | C176: PIT00030 | D176: Drainage Financial (FSWPITS) | E176: Boundary St | F176: Beaudesert | I176: Grated Pit | K176: 0 | L176: 1390 | N176: 1 | O176: 1390 | R176: =IF(P176="",'Unit Rates-Land'!landcst,IF($D$8="Landuse",VLOOKUP(P176,LAndcost3,2,FALSE),IF($D$8="Location",VLOOKUP(P176,Landcost2,2,FALSE),"Error"))) -> 0 | S176: 0 | T176: 2014 | U176: =IFERROR((GeneralInput!$G$39/(VLOOKUP(T176,GeneralInput!$E$39:$G$45,3,FALSE))),1) -> 1 | V176: 1390 | W176: y | AB176: 127.524 | AF176: 127.524 | AH176: 1390
B177: DF-011428 | C177: PIT00031 | D177: Drainage Financial (FSWPITS) | E177: Boundary St | F177: Beaudesert | I177: Junction Pit | K177: 0 | L177: 2146 | N177: 1 | O177: 2146 | R177: =IF(P177="",'Unit Rates-Land'!landcst,IF($D$8="Landuse",VLOOKUP(P177,LAndcost3,2,FALSE),IF($D$8="Location",VLOOKUP(P177,Landcost2,2,FALSE),"Error"))) -> 0 | S177: 0 | T177: 2014 | U177: =IFERROR((GeneralInput!$G$39/(VLOOKUP(T177,GeneralInput!$E$39:$G$45,3,FALSE))),1) -> 1 | V177: 2146 | W177: y | AB177: 127.524 | AF177: 127.524 | AH177: 2146
B178: DF-011429 | C178: PIT00032 | D178: Drainage Financial (FSWPITS) | E178: Boundary St | F178: Beaudesert | I178: Grated Pit | K178: 0 | L178: 1629 | N178: 1 | O178: 1629 | R178: =IF(P178="",'Unit Rates-Land'!landcst,IF($D$8="Landuse",VLOOKUP(P178,LAndcost3,2,FALSE),IF($D$8="Location",VLOOKUP(P178,Landcost2,2,FALSE),"Error"))) -> 0 | S178: 0 | T178: 2014 | U178: =IFERROR((GeneralInput!$G$39/(VLOOKUP(T178,GeneralInput!$E$39:$G$45,3,FALSE))),1) -> 1 | V178: 1629 | W178: y | AB178: 127.524 | AF178: 127.524 | AH178: 1629
B179: DF-011430 | C179: PIT00033 | D179: Drainage Financial (FSWPITS) | E179: Boundary St | F179: Beaudesert | I179: Junction Pit | K179: 0 | L179: 4194 | N179: 1 | O179: 4194 | R179: =IF(P179="",'Unit Rates-Land'!landcst,IF($D$8="Landuse",VLOOKUP(P179,LAndcost3,2,FALSE),IF($D$8="Location",VLOOKUP(P179,Landcost2,2,FALSE),"Error"))) -> 0 | S179: 0 | T179: 2014 | U179: =IFERROR((GeneralInput!$G$39/(VLOOKUP(T179,GeneralInput!$E$39:$G$45,3,FALSE))),1) -> 1 | V179: 4194 | W179: y | AB179: 127.524 | AF179: 127.524 | AH179: 4194
B180: DF-011431 | C180: PIT00034 | D180: Drainage Financial (FSWPITS) | E180: Boundary St | F180: Beaudesert | I180: Grated Pit | K180: 0 | L180: 1390 | N180: 1 | O180: 1390 | R180: =IF(P180="",'Unit Rates-Land'!landcst,IF($D$8="Landuse",VLOOKUP(P180,LAndcost3,2,FALSE),IF($D$8="Location",VLOOKUP(P180,Landcost2,2,FALSE),"Error"))) -> 0 | S180: 0 | T180: 2014 | U180: =IFERROR((GeneralInput!$G$39/(VLOOKUP(T180,GeneralInput!$E$39:$G$45,3,FALSE))),1) -> 1 | V180: 1390 | W180: y | AB180: 127.524 | AF180: 127.524 | AH180: 1390
B181: DF-010420 | C181: PIPE00472 | D181: Drainage Financial (Pipes) | E181: Brisbane St | F181: Beaudesert | H181: 23.68 | I181: RCP Circular | J181: 600 | K181: 0 | L181: 12173 | N181: 1 | O181: 12173 | R181: =IF(P181="",'Unit Rates-Land'!landcst,IF($D$8="Landuse",VLOOKUP(P181,LAndcost3,2,FALSE),IF($D$8="Location",VLOOKUP(P181,Landcost2,2,FALSE),"Error"))) -> 0 | S181: 0 | T181: 2014 | U181: =IFERROR((GeneralInput!$G$39/(VLOOKUP(T181,GeneralInput!$E$39:$G$45,3,FALSE))),1) -> 1 | V181: 12173 | W181: y | AB181: 127.524 | AF181: 127.524 | AH181: 12173
B182: DF-010673 | C182: PIPE00725 | D182: Drainage Financial (Pipes) | E182: Brisbane St | F182: Beaudesert | H182: 81.81 | I182: RCP Circular | J182: 600 | K182: 0 | L182: 42048 | N182: 1 | O182: 42048 | R182: =IF(P182="",'Unit Rates-Land'!landcst,IF($D$8="Landuse",VLOOKUP(P182,LAndcost3,2,FALSE),IF($D$8="Location",VLOOKUP(P182,Landcost2,2,FALSE),"Error"))) -> 0 | S182: 0 | T182: 2014 | U182: =IFERROR((GeneralInput!$G$39/(VLOOKUP(T182,GeneralInput!$E$39:$G$45,3,FALSE))),1) -> 1 | V182: 42048 | W182: y | AB182: 127.524 | AF182: 127.524 | AH182: 42048
B183: DF-010678 | C183: PIPE00730 | D183: Drainage Financial (Pipes) | E183: Brisbane St | F183: Beaudesert | H183: 27.98 | I183: RCP Circular | J183: 600 | K183: 0 | L183: 14380 | N183: 1 | O183: 14380 | R183: =IF(P183="",'Unit Rates-Land'!landcst,IF($D$8="Landuse",VLOOKUP(P183,LAndcost3,2,FALSE),IF($D$8="Location",VLOOKUP(P183,Landcost2,2,FALSE),"Error"))) -> 0 | S183: 0 | T183: 2014 | U183: =IFERROR((GeneralInput!$G$39/(VLOOKUP(T183,GeneralInput!$E$39:$G$45,3,FALSE))),1) -> 1 | V183: 14380 | W183: y | AB183: 127.524 | AF183: 127.524 | AH183: 14380
B184: DF-010679 | C184: PIPE00731 | D184: Drainage Financial (Pipes) | E184: Brisbane St | F184: Beaudesert | H184: 90.12 | I184: RCP Circular | J184: 600 | K184: 0 | L184: 46322 | N184: 1 | O184: 46322 | R184: =IF(P184="",'Unit Rates-Land'!landcst,IF($D$8="Landuse",VLOOKUP(P184,LAndcost3,2,FALSE),IF($D$8="Location",VLOOKUP(P184,Landcost2,2,FALSE),"Error"))) -> 0 | S184: 0 | T184: 2014 | U184: =IFERROR((GeneralInput!$G$39/(VLOOKUP(T184,GeneralInput!$E$39:$G$45,3,FALSE))),1) -> 1 | V184: 46322 | W184: y | AB184: 127.524 | AF184: 127.524 | AH184: 46322
B185: DF-010824 | C185: PIPE00876 | D185: Drainage Financial (Pipes) | E185: Brisbane St | F185: Beaudesert | H185: 85.73 | I185: RCP Circular | J185: 600 | K185: 0 | L185: 44063 | N185: 1 | O185: 44063 | R185: =IF(P185="",'Unit Rates-Land'!landcst,IF($D$8="Landuse",VLOOKUP(P185,LAndcost3,2,FALSE),IF($D$8="Location",VLOOKUP(P185,Landcost2,2,FALSE),"Error"))) -> 0 | S185: 0 | T185: 2014 | U185: =IFERROR((GeneralInput!$G$39/(VLOOKUP(T185,GeneralInput!$E$39:$G$45,3,FALSE))),1) -> 1 | V185: 44063 | W185: y | AB185: 127.524 | AF185: 127.524 | AH185: 44063
B186: DF-010834 | C186: PIPE00886 | D186: Drainage Financial (Pipes) | E186: Brisbane St | F186: Beaudesert | H186: 17.63 | I186: RCP Circular | J186: 600 | K186: 0 | L186: 9062 | N186: 1 | O186: 9062 | R186: =IF(P186="",'Unit Rates-Land'!landcst,IF($D$8="Landuse",VLOOKUP(P186,LAndcost3,2,FALSE),IF($D$8="Location",VLOOKUP(P186,Landcost2,2,FALSE),"Error"))) -> 0 | S186: 0 | T186: 2014 | U186: =IFERROR((GeneralInput!$G$39/(VLOOKUP(T186,GeneralInput!$E$39:$G$45,3,FALSE))),1) -> 1 | V186: 9062 | W186: y | AB186: 127.524 | AF186: 127.524 | AH186: 9062
B187: DF-010835 | C187: PIPE00887 | D187: Drainage Financial (Pipes) | E187: Brisbane St | F187: Beaudesert | H187: 17.39 | I187: RCP Circular | J187: 600 | K187: 0 | L187: 8940 | N187: 1 | O187: 8940 | R187: =IF(P187="",'Unit Rates-Land'!landcst,IF($D$8="Landuse",VLOOKUP(P187,LAndcost3,2,FALSE),IF($D$8="Location",VLOOKUP(P187,Landcost2,2,FALSE),"Error"))) -> 0 | S187: 0 | T187: 2014 | U187: =IFERROR((GeneralInput!$G$39/(VLOOKUP(T187,GeneralInput!$E$39:$G$45,3,FALSE))),1) -> 1 | V187: 8940 | W187: y | AB187: 127.524 | AF187: 127.524 | AH187: 8940
B188: DF-010836 | C188: PIPE00888 | D188: Drainage Financial (Pipes) | E188: Brisbane St | F188: Beaudesert | H188: 62.07 | I188: RCP Circular | J188: 600 | K188: 0 | L188: 31904 | N188: 1 | O188: 31904 | R188: =IF(P188="",'Unit Rates-Land'!landcst,IF($D$8="Landuse",VLOOKUP(P188,LAndcost3,2,FALSE),IF($D$8="Location",VLOOKUP(P188,Landcost2,2,FALSE),"Error"))) -> 0 | S188: 0 | T188: 2014 | U188: =IFERROR((GeneralInput!$G$39/(VLOOKUP(T188,GeneralInput!$E$39:$G$45,3,FALSE))),1) -> 1 | V188: 31904 | W188: y | AB188: 127.524 | AF188: 127.524 | AH188: 31904
B189: DF-010839 | C189: PIPE00891 | D189: Drainage Financial (Pipes) | E189: Brisbane St | F189: Beaudesert | H189: 1.95 | I189: RCP Circular | J189: 600 | K189: 0 | L189: 1002 | N189: 1 | O189: 1002 | R189: =IF(P189="",'Unit Rates-Land'!landcst,IF($D$8="Landuse",VLOOKUP(P189,LAndcost3,2,FALSE),IF($D$8="Location",VLOOKUP(P189,Landcost2,2,FALSE),"Error"))) -> 0 | S189: 0 | T189: 2014 | U189: =IFERROR((GeneralInput!$G$39/(VLOOKUP(T189,GeneralInput!$E$39:$G$45,3,FALSE))),1) -> 1 | V189: 1002 | W189: y | AB189: 127.524 | AF189: 127.524 | AH189: 1002
B190: DF-010840 | C190: PIPE00892 | D190: Drainage Financial (Pipes) | E190: Brisbane St | F190: Beaudesert | H190: 34.6 | I190: RCP Circular | J190: 600 | K190: 0 | L190: 17783 | N190: 1 | O190: 17783 | R190: =IF(P190="",'Unit Rates-Land'!landcst,IF($D$8="Landuse",VLOOKUP(P190,LAndcost3,2,FALSE),IF($D$8="Location",VLOOKUP(P190,Landcost2,2,FALSE),"Error"))) -> 0 | S190: 0 | T190: 2014 | U190: =IFERROR((GeneralInput!$G$39/(VLOOKUP(T190,GeneralInput!$E$39:$G$45,3,FALSE))),1) -> 1 | V190: 17783 | W190: y | AB190: 127.524 | AF190: 127.524 | AH190: 17783
B191: DF-010841 | C191: PIPE00893 | D191: Drainage Financial (Pipes) | E191: Brisbane St | F191: Beaudesert | H191: 31.36 | I191: RCP Circular | J191: 600 | K191: 0 | L191: 16117 | N191: 1 | O191: 16117 | R191: =IF(P191="",'Unit Rates-Land'!landcst,IF($D$8="Landuse",VLOOKUP(P191,LAndcost3,2,FALSE),IF($D$8="Location",VLOOKUP(P191,Landcost2,2,FALSE),"Error"))) -> 0 | S191: 0 | T191: 2014 | U191: =IFERROR((GeneralInput!$G$39/(VLOOKUP(T191,GeneralInput!$E$39:$G$45,3,FALSE))),1) -> 1 | V191: 16117 | W191: y | AB191: 127.524 | AF191: 127.524 | AH191: 16117
B192: DF-010855 | C192: PIPE00907 | D192: Drainage Financial (Pipes) | E192: Brisbane St | F192: Beaudesert | H192: 55.05 | I192: RCP Circular | J192: 600 | K192: 0 | L192: 28294 | N192: 1 | O192: 28294 | R192: =IF(P192="",'Unit Rates-Land'!landcst,IF($D$8="Landuse",VLOOKUP(P192,LAndcost3,2,FALSE),IF($D$8="Location",VLOOKUP(P192,Landcost2,2,FALSE),"Error"))) -> 0 | S192: 0 | T192: 2014 | U192: =IFERROR((GeneralInput!$G$39/(VLOOKUP(T192,GeneralInput!$E$39:$G$45,3,FALSE))),1) -> 1 | V192: 28294 | W192: y | AB192: 127.524 | AF192: 127.524 | AH192: 28294
B193: DF-010856 | C193: PIPE00908 | D193: Drainage Financial (Pipes) | E193: Brisbane St | F193: Beaudesert | H193: 55.66 | I193: RCP Circular | J193: 600 | K193: 0 | L193: 28610 | N193: 1 | O193: 28610 | R193: =IF(P193="",'Unit Rates-Land'!landcst,IF($D$8="Landuse",VLOOKUP(P193,LAndcost3,2,FALSE),IF($D$8="Location",VLOOKUP(P193,Landcost2,2,FALSE),"Error"))) -> 0 | S193: 0 | T193: 2014 | U193: =IFERROR((GeneralInput!$G$39/(VLOOKUP(T193,GeneralInput!$E$39:$G$45,3,FALSE))),1) -> 1 | V193: 28610 | W193: y | AB193: 127.524 | AF193: 127.524 | AH193: 28610
B194: DF-010866 | C194: PIPE00918 | D194: Drainage Financial (Pipes) | E194: Brisbane St | F194: Beaudesert | H194: 52.53 | I194: RCP Circular | J194: 600 | K194: 0 | L194: 26998 | N194: 1 | O194: 26998 | R194: =IF(P194="",'Unit Rates-Land'!landcst,IF($D$8="Landuse",VLOOKUP(P194,LAndcost3,2,FALSE),IF($D$8="Location",VLOOKUP(P194,Landcost2,2,FALSE),"Error"))) -> 0 | S194: 0 | T194: 2014 | U194: =IFERROR((GeneralInput!$G$39/(VLOOKUP(T194,GeneralInput!$E$39:$G$45,3,FALSE))),1) -> 1 | V194: 26998 | W194: y | AB194: 127.524 | AF194: 127.524 | AH194: 26998
B195: DF-010876 | C195: PIPE00928 | D195: Drainage Financial (Pipes) | E195: Brisbane St | F195: Beaudesert | H195: 52.01 | I195: RCP Circular | J195: 750 | K195: 0 | L195: 37237 | N195: 1 | O195: 37237 | R195: =IF(P195="",'Unit Rates-Land'!landcst,IF($D$8="Landuse",VLOOKUP(P195,LAndcost3,2,FALSE),IF($D$8="Location",VLOOKUP(P195,Landcost2,2,FALSE),"Error"))) -> 0 | S195: 0 | T195: 2014 | U195: =IFERROR((GeneralInput!$G$39/(VLOOKUP(T195,GeneralInput!$E$39:$G$45,3,FALSE))),1) -> 1 | V195: 37237 | W195: y | AB195: 127.524 | AF195: 127.524 | AH195: 37237
B196: DF-010877 | C196: PIPE00929 | D196: Drainage Financial (Pipes) | E196: Brisbane St | F196: Beaudesert | H196: 24.39 | I196: RCP Circular | J196: 750 | K196: 0 | L196: 17464 | N196: 1 | O196: 17464 | R196: =IF(P196="",'Unit Rates-Land'!landcst,IF($D$8="Landuse",VLOOKUP(P196,LAndcost3,2,FALSE),IF($D$8="Location",VLOOKUP(P196,Landcost2,2,FALSE),"Error"))) -> 0 | S196: 0 | T196: 2014 | U196: =IFERROR((GeneralInput!$G$39/(VLOOKUP(T196,GeneralInput!$E$39:$G$45,3,FALSE))),1) -> 1 | V196: 17464 | W196: y | AB196: 127.524 | AF196: 127.524 | AH196: 17464
B197: DF-010878 | C197: PIPE00930 | D197: Drainage Financial (Pipes) | E197: Brisbane St | F197: Beaudesert | H197: 174.26 | I197: RCP Circular | J197: 750 | K197: 0 | L197: 124772 | N197: 1 | O197: 124772 | R197: =IF(P197="",'Unit Rates-Land'!landcst,IF($D$8="Landuse",VLOOKUP(P197,LAndcost3,2,FALSE),IF($D$8="Location",VLOOKUP(P197,Landcost2,2,FALSE),"Error"))) -> 0 | S197: 0 | T197: 2014 | U197: =IFERROR((GeneralInput!$G$39/(VLOOKUP(T197,GeneralInput!$E$39:$G$45,3,FALSE))),1) -> 1 | V197: 124772 | W197: y | AB197: 127.524 | AF197: 127.524 | AH197: 124772
B198: DF-010407 | C198: PIPE00459 | D198: Drainage Financial (Pipes) | E198: Brisbane St | F198: Beaudesert | H198: 184.83 | I198: RCP Circular | J198: 900 | K198: 0 | L198: 203126 | N198: 1 | O198: 203126 | R198: =IF(P198="",'Unit Rates-Land'!landcst,IF($D$8="Landuse",VLOOKUP(P198,LAndcost3,2,FALSE),IF($D$8="Location",VLOOKUP(P198,Landcost2,2,FALSE),"Error"))) -> 0 | S198: 0 | T198: 2014 | U198: =IFERROR((GeneralInput!$G$39/(VLOOKUP(T198,GeneralInput!$E$39:$G$45,3,FALSE))),1) -> 1 | V198: 203126 | W198: y | AB198: 127.524 | AF198: 127.524 | AH198: 203126
B199: DF-010412 | C199: PIPE00464 | D199: Drainage Financial (Pipes) | E199: Brisbane St | F199: Beaudesert | H199: 15.27 | I199: RCP Circular | J199: 900 | K199: 0 | L199: 16778 | N199: 1 | O199: 16778 | R199: =IF(P199="",'Unit Rates-Land'!landcst,IF($D$8="Landuse",VLOOKUP(P199,LAndcost3,2,FALSE),IF($D$8="Location",VLOOKUP(P199,Landcost2,2,FALSE),"Error"))) -> 0 | S199: 0 | T199: 2014 | U199: =IFERROR((GeneralInput!$G$39/(VLOOKUP(T199,GeneralInput!$E$39:$G$45,3,FALSE))),1) -> 1 | V199: 16778 | W199: y | AB199: 127.524 | AF199: 127.524 | AH199: 16778
B200: DF-010413 | C200: PIPE00465 | D200: Drainage Financial (Pipes) | E200: Brisbane St | F200: Beaudesert | H200: 41.33 | I200: RCP Circular | J200: 900 | K200: 0 | L200: 45419 | N200: 1 | O200: 45419 | R200: =IF(P200="",'Unit Rates-Land'!landcst,IF($D$8="Landuse",VLOOKUP(P200,LAndcost3,2,FALSE),IF($D$8="Location",VLOOKUP(P200,Landcost2,2,FALSE),"Error"))) -> 0 | S200: 0 | T200: 2014 | U200: =IFERROR((GeneralInput!$G$39/(VLOOKUP(T200,GeneralInput!$E$39:$G$45,3,FALSE))),1) -> 1 | V200: 45419 | W200: y | AB200: 127.524 | AF200: 127.524 | AH200: 45419
B201: DF-010416 | C201: PIPE00468 | D201: Drainage Financial (Pipes) | E201: Brisbane St | F201: Beaudesert | H201: 26.43 | I201: RCP Circular | J201: 900 | K201: 0 | L201: 29047 | N201: 1 | O201: 29047 | R201: =IF(P201="",'Unit Rates-Land'!landcst,IF($D$8="Landuse",VLOOKUP(P201,LAndcost3,2,FALSE),IF($D$8="Location",VLOOKUP(P201,Landcost2,2,FALSE),"Error"))) -> 0 | S201: 0 | T201: 2014 | U201: =IFERROR((GeneralInput!$G$39/(VLOOKUP(T201,GeneralInput!$E$39:$G$45,3,FALSE))),1) -> 1 | V201: 29047 | W201: y | AB201: 127.524 | AF201: 127.524 | AH201: 29047
